Workbook

Sheet S1 traits scores
A1: PEARSON R (FAMILY) | B1: Stem number 2014 | C1: growth rate 2014 | D1: Can_ht 2013 | E1: Canopy height 2014 | F1: 2013 yield | G1: Yield 2014 | H1: 2015 Yield | I1: Glc | J1: Fru | K1: Hexose | L1: Suc | M1: Starch | N1: Total NSC | O1: Suc/Sta | P1: Glc/Fru | Q1: Starch/Fru | R1: Suc/Fru | S1: Starch/Glc | T1: Suc/Glc | U1: Flowering 2011 | V1: Flowerin 2012 | W1: Flowering 2013 | Z1: AVERAGES | AA1: NEW | AE1: Averaged from data reported in Suppl. Table S6 in Maddison et al 2017. | AZ1: Genotype | BA1: Block | BB1: Number of tillers (TransecCount) | BC1: Day flowering 2011 | BD1: Flowering 2011 | BE1: Day flowering 2012 | BF1: Flowering 2012 | BG1: Day flowering 2013 | BH1: Flowering 2013
A2: Stem number 2014 | B2: 1.00 | C2: -0.21 | D2: 0.49 | E2: 0.40 | F2: 0.59 | G2: 0.63 | H2: 0.64 | I2: 0.14 | J2: 0.31 | K2: 0.22 | L2: 0.00 | M2: -0.45 | N2: -0.40 | O2: 0.37 | P2: -0.24 | Q2: -0.45 | R2: -0.32 | S2: -0.38 | T2: -0.12 | U2: 0.09 | V2: 0.16 | W2: 0.07 | Z2: Genotype | AA2: Stem number 2014 | AB2: Flowering 2011 | AC2: Flowering 2012 | AD2: Flowering 2013 | AE2: growth rate 2014 | AF2: Can_ht 2013 | AG2: Canopy height 2014 | AH2: 2013 yield | AI2: Yield 2014 | AJ2: 2015 Yield | AK2: Glc | AL2: Fru | AM2: Hexose | AN2: Suc | AO2: Starch | AP2: Total carb | AQ2: Suc/Sta | AR2: Glc/Fru | AS2: Starch/Fru | AT2: Suc/Fru | AU2: Starch/Glc | AV2: Suc/Glc | AZ2: M. sacch 297 | BA2: 1 | BB2: 25
A3: growth rate 2014 | C3: 1.00 | D3: 0.02 | E3: 0.27 | F3: -0.07 | G3: -0.02 | H3: 0.05 | I3: 0.20 | J3: 0.25 | K3: 0.24 | L3: 0.17 | M3: -0.11 | N3: 0.00 | O3: 0.23 | P3: -0.13 | Q3: -0.17 | R3: -0.10 | S3: -0.10 | T3: 0.03 | U3: 0.20 | V3: 0.18 | W3: 0.14 | Z3: M. sacch 297 | AA3: NA | AB3: 0.00 | AC3: 0.00 | AD3: 0.00 | AE3: NA | AF3: NA | AG3: NA | AH3: NA | AI3: 424.81 | AJ3: NA | AK3: 11.52 | AL3: 8.13 | AM3: 19.65 | AN3: 32.57 | AO3: 48.06 | AP3: 100.29 | AQ3: 1.03 | AR3: 1.42 | AS3: 9.07 | AT3: 5.21 | AU3: 6.43 | AV3: 3.69 | AZ3: M. sacch 297 | BA3: 2 | BB3: 26
A4: Can_ht 2013 | D4: 1.00 | E4: 0.76 | F4: 0.85 | G4: 0.84 | H4: 0.80 | I4: -0.00 | J4: 0.44 | K4: 0.17 | L4: 0.12 | M4: -0.42 | N4: -0.35 | O4: 0.42 | P4: -0.57 | Q4: -0.45 | R4: -0.31 | S4: -0.30 | T4: 0.02 | U4: 0.35 | V4: 0.41 | W4: 0.15 | Z4: M. sinen 102 | AA4: NA | AB4: 0.00 | AC4: 0.00 | AD4: 0.00 | AE4: NA | AF4: NA | AG4: NA | AH4: NA | AI4: 527.67 | AJ4: NA | AK4: 15.37 | AL4: 9.06 | AM4: 24.42 | AN4: 28.21 | AO4: 32.70 | AP4: 85.33 | AQ4: 1.22 | AR4: 1.71 | AS4: 5.99 | AT4: 4.03 | AU4: 4.19 | AV4: 2.70 | AZ4: M. sacch 297 | BA4: 3 | BB4: 22
A5: Canopy height 2014 | E5: 1.00 | F5: 0.58 | G5: 0.73 | H5: 0.77 | I5: 0.16 | J5: 0.61 | K5: 0.35 | L5: 0.31 | M5: -0.53 | N5: -0.36 | O5: 0.56 | P5: -0.64 | Q5: -0.63 | R5: -0.34 | S5: -0.43 | T5: 0.07 | U5: 0.53 | V5: 0.59 | W5: 0.07 | Z5: #112 | AA5: 15.33 | AB5: 0.00 | AC5: 0.00 | AD5: 0.00 | AE5: 0.87 | AF5: 30.00 | AG5: 85.00 | AH5: 39.88 | AI5: 173.08 | AJ5: 429.36 | AK5: 18.38 | AL5: 9.40 | AM5: 27.78 | AN5: 33.71 | AO5: 83.12 | AP5: 144.61 | AQ5: 0.41 | AR5: 1.97 | AS5: 9.01 | AT5: 3.69 | AU5: 4.55 | AV5: 1.86 | AZ5: M. sinen 102 | BA5: 1 | BB5: 17
A6: 2013 yield | F6: 1.00 | G6: 0.92 | H6: 0.83 | I6: 0.04 | J6: 0.41 | K6: 0.19 | L6: -0.04 | M6: -0.40 | N6: -0.37 | O6: 0.41 | P6: -0.44 | Q6: -0.42 | R6: -0.39 | S6: -0.33 | T6: -0.13 | U6: 0.26 | V6: 0.26 | W6: 0.09 | Z6: #120 | AA6: 23.33 | AB6: 0.00 | AC6: 283.67 | AD6: 0.00 | AE6: 0.40 | AF6: 53.33 | AG6: 103.33 | AH6: 188.61 | AI6: 536.46 | AJ6: 813.36 | AK6: 19.95 | AL6: 10.54 | AM6: 30.50 | AN6: 28.13 | AO6: 42.09 | AP6: 100.71 | AQ6: 0.77 | AR6: 1.91 | AS6: 4.51 | AT6: 2.73 | AU6: 2.32 | AV6: 1.43 | AZ6: M. sinen 102 | BA6: 2 | BB6: 20
A7: Yield 2014 | G7: 1.00 | H7: 0.95 | I7: 0.05 | J7: 0.50 | K7: 0.23 | L7: -0.00 | M7: -0.53 | N7: -0.47 | O7: 0.50 | P7: -0.57 | Q7: -0.53 | R7: -0.44 | S7: -0.42 | T7: -0.09 | U7: 0.38 | V7: 0.39 | W7: 0.15 | Z7: #18 | AA7: 23.67 | AB7: 241.33 | AC7: 245.67 | AD7: 0.00 | AE7: 0.08 | AF7: 60.00 | AG7: 131.67 | AH7: 306.28 | AI7: 1396.15 | AJ7: 1846.47 | AK7: 16.95 | AL7: 10.50 | AM7: 27.44 | AN7: 21.23 | AO7: 37.73 | AP7: 86.40 | AQ7: 0.58 | AR7: 1.62 | AS7: 3.59 | AT7: 2.03 | AU7: 2.21 | AV7: 1.25 | AZ7: M. sinen 102 | BA7: 3 | BB7: 21
A8: 2015 Yield | H8: 1.00 | I8: 0.10 | J8: 0.53 | K8: 0.28 | L8: 0.08 | M8: -0.57 | N8: -0.48 | O8: 0.56 | P8: -0.57 | Q8: -0.59 | R8: -0.41 | S8: -0.45 | T8: -0.04 | U8: 0.35 | V8: 0.36 | W8: 0.10 | Z8: #90 | AA8: 15.33 | AB8: 0.00 | AC8: 0.00 | AD8: 0.00 | AE8: 0.48 | AF8: 36.67 | AG8: 103.33 | AH8: 78.24 | AI8: 272.76 | AJ8: 862.43 | AK8: 27.25 | AL8: 11.86 | AM8: 39.11 | AN8: 31.16 | AO8: 64.63 | AP8: 134.91 | AQ8: 0.51 | AR8: 2.29 | AS8: 5.85 | AT8: 2.68 | AU8: 2.56 | AV8: 1.17 | AZ8: #1 | BA8: 1 | BB8: 24
A9: Glc | I9: 1.00 | J9: 0.68 | K9: 0.96 | L9: 0.19 | M9: -0.43 | N9: -0.11 | O9: 0.41 | P9: 0.29 | Q9: -0.55 | R9: -0.53 | S9: -0.64 | T9: -0.51 | U9: 0.21 | V9: 0.20 | W9: 0.17 | Z9: #1 | AA9: 25.67 | AB9: 0.00 | AC9: 0.00 | AD9: 0.00 | AE9: 0.32 | AF9: 75.00 | AG9: 131.67 | AH9: 258.43 | AI9: 1110.72 | AJ9: 1905.28 | AK9: 16.60 | AL9: 10.07 | AM9: 26.67 | AN9: 29.76 | AO9: 33.39 | AP9: 89.81 | AQ9: 0.91 | AR9: 1.65 | AS9: 3.32 | AT9: 2.97 | AU9: 2.04 | AV9: 1.78 | AZ9: #1 | BA9: 2 | BB9: 27
A10: Fru | J10: 1.00 | K10: 0.86 | L10: 0.25 | M10: -0.55 | N10: -0.24 | O10: 0.52 | P10: -0.47 | Q10: -0.74 | R10: -0.74 | S10: -0.65 | T10: -0.35 | U10: 0.36 | V10: 0.38 | W10: 0.10 | Z10: #10 | AA10: 17.00 | AB10: 251.33 | AC10: 261.00 | AD10: 0.00 | AE10: 0.63 | AF10: 71.67 | AG10: 143.33 | AH10: 336.45 | AI10: 1302.23 | AJ10: 2000.44 | AK10: 23.02 | AL10: 12.99 | AM10: 36.01 | AN10: 29.74 | AO10: 26.31 | AP10: 92.05 | AQ10: 1.13 | AR10: 1.77 | AS10: 2.02 | AT10: 2.29 | AU10: 1.15 | AV10: 1.29 | AZ10: #1 | BA10: 3 | BB10: 26
A11: Hexose | K11: 1.00 | L11: 0.23 | M11: -0.51 | N11: -0.17 | O11: 0.49 | P11: 0.02 | Q11: -0.67 | R11: -0.66 | S11: -0.70 | T11: -0.49 | U11: 0.28 | V11: 0.28 | W11: 0.16 | Z11: #100 | AA11: 12.50 | AB11: 221.00 | AC11: 229.50 | AD11: 0.00 | AE11: 0.60 | AF11: 70.00 | AG11: 130.00 | AH11: 85.80 | AI11: 442.49 | AJ11: 635.43 | AK11: 14.21 | AL11: 10.48 | AM11: 24.70 | AN11: 24.86 | AO11: 31.44 | AP11: 81.00 | AQ11: 0.79 | AR11: 1.36 | AS11: 3.00 | AT11: 2.38 | AU11: 2.22 | AV11: 1.76 | AZ11: #10 | BA11: 1 | BB11: 17 | BC11: 256 | BD11: =AVERAGE(BC11:BC13) -> 251.3333333 | BE11: 261 | BF11: =AVERAGE(BE11:BE13) -> 261 | BG11: 233 | BH11: =AVERAGE(BG11:BG13) -> 235.3333333
A12: Suc | L12: 1.00 | M12: 0.16 | N12: 0.47 | O12: 0.12 | P12: -0.12 | Q12: -0.06 | R12: 0.35 | S12: -0.01 | T12: 0.26 | U12: 0.13 | V12: 0.14 | W12: -0.14 | Z12: #101 | AA12: 22.67 | AB12: 272.00 | AC12: 283.67 | AD12: 235.33 | AE12: 0.56 | AF12: 86.67 | AG12: 153.33 | AH12: 441.21 | AI12: 1532.00 | AJ12: 2223.98 | AK12: 18.32 | AL12: 12.20 | AM12: 30.52 | AN12: 22.77 | AO12: 31.06 | AP12: 84.34 | AQ12: 0.74 | AR12: 1.50 | AS12: 2.57 | AT12: 1.86 | AU12: 1.73 | AV12: 1.25 | AZ12: #10 | BA12: 2 | BB12: 15 | BC12: 234 | BE12: 261 | BG12: 233
A13: Starch | M13: 1.00 | N13: 0.91 | O13: -0.86 | P13: 0.23 | Q13: 0.89 | R13: 0.60 | S13: 0.81 | T13: 0.24 | U13: -0.20 | V13: -0.26 | W13: -0.06 | Z13: #102 | AA13: 18.00 | AB13: 243.33 | AC13: 256.33 | AD13: 235.33 | AE13: 0.48 | AF13: 53.33 | AG13: 136.67 | AH13: 134.11 | AI13: 713.42 | AJ13: 1244.82 | AK13: 25.41 | AL13: 12.59 | AM13: 38.01 | AN13: 27.69 | AO13: 29.21 | AP13: 94.90 | AQ13: 0.97 | AR13: 2.01 | AS13: 2.36 | AT13: 2.21 | AU13: 1.18 | AV13: 1.11 | AZ13: #10 | BA13: 3 | BB13: 19 | BC13: 264 | BE13: 261 | BG13: 240
A14: Total NSC | N14: 1.00 | O14: -0.70 | P14: 0.21 | Q14: 0.70 | R14: 0.51 | S14: 0.62 | T14: 0.16 | U14: -0.08 | V14: -0.13 | W14: -0.04 | Z14: #103 | AA14: 30.00 | AB14: 270.00 | AC14: 265.50 | AD14: 235.33 | AE14: 0.95 | AF14: 72.50 | AG14: 160.00 | AH14: 399.02 | AI14: 1704.04 | AJ14: 2261.69 | AK14: 22.74 | AL14: 14.36 | AM14: 37.10 | AN14: 30.34 | AO14: 48.31 | AP14: 115.75 | AQ14: 0.64 | AR14: 1.58 | AS14: 3.37 | AT14: 2.11 | AU14: 2.12 | AV14: 1.34 | AZ14: #100 | BA14: 1 | BB14: 12 | BC14: 200 | BD14: =AVERAGE(BC14:BC16) -> 221 | BE14: 233 | BF14: =AVERAGE(BE14:BE16) -> 229.5 | BG14: 219 | BH14: =AVERAGE(BG14:BG16) -> 219
A15: Suc/Sta | O15: 1.00 | P15: -0.21 | Q15: -0.73 | R15: -0.38 | S15: -0.66 | T15: -0.13 | U15: 0.14 | V15: 0.16 | W15: -0.05 | Z15: #104 | AA15: 16.33 | AB15: 258.67 | AC15: 252.00 | AD15: 219.00 | AE15: 0.56 | AF15: 73.33 | AG15: 168.33 | AH15: 311.77 | AI15: 1476.29 | AJ15: 2339.68 | AK15: 12.26 | AL15: 8.06 | AM15: 20.33 | AN15: 29.93 | AO15: 25.83 | AP15: 76.09 | AQ15: 1.28 | AR15: 1.55 | AS15: 3.16 | AT15: 3.85 | AU15: 2.11 | AV15: 2.43 | AZ15: #100 | BA15: 2 | BB15: 13
A16: Glc/Fru | P16: 1.00 | Q16: 0.35 | R16: 0.30 | S16: 0.07 | T16: -0.26 | U16: -0.23 | V16: -0.28 | W16: 0.12 | Z16: #105 | AA16: 17.33 | AB16: 259.00 | AC16: 256.33 | AD16: 219.00 | AE16: 0.56 | AF16: 68.33 | AG16: 168.33 | AH16: 134.18 | AI16: 906.55 | AJ16: 1765.93 | AK16: 18.11 | AL16: 11.54 | AM16: 29.65 | AN16: 29.05 | AO16: 40.53 | AP16: 99.24 | AQ16: 0.72 | AR16: 1.57 | AS16: 3.53 | AT16: 2.52 | AU16: 2.27 | AV16: 1.61 | AZ16: #100 | BA16: 3 | BC16: 242 | BE16: 226 | BG16: 219
A17: Starch/Fru | Q17: 1.00 | R17: 0.72 | S17: 0.91 | T17: 0.34 | U17: -0.34 | V17: -0.40 | W17: -0.06 | Z17: #108 | AA17: 28.00 | AB17: 254.00 | AC17: 252.00 | AD17: 219.00 | AE17: 0.32 | AF17: 68.33 | AG17: 140.00 | AH17: 316.01 | AI17: 1102.99 | AJ17: 1563.19 | AK17: 23.94 | AL17: 11.93 | AM17: 35.86 | AN17: 26.98 | AO17: 27.28 | AP17: 90.12 | AQ17: 1.01 | AR17: 2.01 | AS17: 2.32 | AT17: 2.28 | AU17: 1.14 | AV17: 1.13 | AZ17: #101 | BA17: 1 | BB17: 22 | BD17: =AVERAGE(BC17:BC19) -> 272 | BE17: 291 | BF17: =AVERAGE(BE17:BE19) -> 283.6666667 | BG17: 240 | BH17: =AVERAGE(BG17:BG19) -> 247
A18: Suc/Fru | R18: 1.00 | S18: 0.75 | T18: 0.70 | U18: -0.28 | V18: -0.31 | W18: -0.20 | Z18: #109 | AA18: 21.33 | AB18: 0.00 | AC18: 279.00 | AD18: 247.00 | AE18: 0.71 | AF18: 78.33 | AG18: 145.00 | AH18: 203.06 | AI18: 1068.95 | AJ18: 1795.64 | AK18: 17.41 | AL18: 10.72 | AM18: 28.13 | AN18: 28.74 | AO18: 40.37 | AP18: 97.24 | AQ18: 0.73 | AR18: 1.64 | AS18: 3.77 | AT18: 2.67 | AU18: 2.31 | AV18: 1.69 | AZ18: #101 | BA18: 2 | BB18: 24 | BE18: 277 | BG18: 254
A19: Starch/Glc | S19: 1.00 | T19: 0.65 | U19: -0.26 | V19: -0.32 | W19: -0.09 | Z19: #11 | AA19: 20.33 | AB19: 252.00 | AC19: 261.40 | AD19: 247.00 | AE19: 0.48 | AF19: 74.00 | AG19: 142.00 | AH19: 246.09 | AI19: 1003.39 | AJ19: 1752.26 | AK19: 22.11 | AL19: 11.48 | AM19: 33.59 | AN19: 30.03 | AO19: 27.93 | AP19: 91.55 | AQ19: 1.11 | AR19: 2.08 | AS19: 2.56 | AT19: 2.82 | AU19: 1.31 | AV19: 1.38 | AZ19: #101 | BA19: 3 | BB19: 22 | BC19: 272 | BE19: 283 | BG19: 247
A20: Suc/Glc | T20: 1.00 | U20: -0.12 | V20: -0.11 | W20: -0.16 | Z20: #110 | AA20: 23.00 | AB20: 258.67 | AC20: 252.33 | AD20: 247.00 | AE20: 0.56 | AF20: 81.67 | AG20: 138.33 | AH20: 348.62 | AI20: 1326.25 | AJ20: 1957.45 | AK20: 25.65 | AL20: 14.26 | AM20: 39.91 | AN20: 37.80 | AO20: 38.52 | AP20: 116.23 | AQ20: 0.98 | AR20: 1.78 | AS20: 2.84 | AT20: 2.68 | AU20: 1.61 | AV20: 1.51 | AZ20: #102 | BA20: 1 | BB20: 24 | BC20: 248 | BD20: =AVERAGE(BC20:BC22) -> 243.3333333 | BE20: 254 | BF20: =AVERAGE(BE20:BE22) -> 256.3333333 | BG20: 226 | BH20: =AVERAGE(BG20:BG22) -> 228.3333333
A21: Flowering 2011 | U21: 1.00 | V21: 0.89 | W21: 0.39 | Z21: #113 | AA21: 14.33 | AB21: 241.00 | AC21: 233.00 | AD21: 228.33 | AE21: 0.71 | AF21: 57.50 | AG21: 140.00 | AH21: 210.97 | AI21: 948.74 | AJ21: 1738.19 | AK21: 24.36 | AL21: 12.46 | AM21: 36.81 | AN21: 31.24 | AO21: 40.62 | AP21: 108.67 | AQ21: 0.78 | AR21: 1.96 | AS21: 3.30 | AT21: 2.53 | AU21: 1.66 | AV21: 1.28 | AZ21: #102 | BA21: 2 | BB21: 13 | BC21: 248 | BE21: 261 | BG21: 226
A22: Flowerin 2012 | V22: 1.00 | W22: 0.36 | Z22: #114 | AA22: 15.00 | AB22: 0.00 | AC22: 0.00 | AD22: 228.33 | AE22: 0.08 | AF22: 33.33 | AG22: 43.33 | AH22: 23.38 | AI22: 62.11 | AJ22: 71.63 | AK22: 11.64 | AL22: 4.43 | AM22: 16.07 | AN22: 21.65 | AO22: 100.01 | AP22: 137.72 | AQ22: 0.22 | AR22: 2.54 | AS22: 23.48 | AT22: 4.93 | AU22: 10.77 | AV22: 2.12 | AZ22: #102 | BA22: 3 | BB22: 17 | BC22: 234 | BE22: 254 | BG22: 233
A23: Flowering 2013 | W23: 1.00 | Z23: #115 | AA23: 17.00 | AB23: 247.00 | AC23: 248.00 | AD23: 228.33 | AE23: 0.95 | AF23: 48.33 | AG23: 126.67 | AH23: 111.65 | AI23: 559.36 | AJ23: 859.09 | AK23: 23.73 | AL23: 13.65 | AM23: 37.37 | AN23: 31.44 | AO23: 33.71 | AP23: 102.51 | AQ23: 1.03 | AR23: 1.74 | AS23: 2.46 | AT23: 2.30 | AU23: 1.43 | AV23: 1.33 | AZ23: #103 | BA23: 1 | BB23: 27 | BD23: =AVERAGE(BC23:BC25) -> 270 | BF23: =AVERAGE(BE23:BE25) -> 265.5 | BH23: =AVERAGE(BG23:BG25) -> 236.5
A24: OBSERVATIONS | B24: =COUNTA(Table212[Stem number 2014]) -> 103 | C24: =COUNTA(Table212[growth rate 2014]) -> 103 | D24: =COUNTA(Table212[Can_ht 2013]) -> 103 | E24: =COUNTA(Table212[Canopy height 2014]) -> 103 | F24: =COUNTA(Table212[2013 yield]) -> 103 | G24: =COUNTA(Table212[Yield 2014]) -> 103 | H24: =COUNTA(Table212[2015 Yield]) -> 103 | I24: =COUNTA(Table212[Glc]) -> 103 | J24: =COUNTA(Table212[Fru]) -> 103 | K24: =COUNTA(Table212[Hexose]) -> 103 | L24: =COUNTA(Table212[Suc]) -> 103 | M24: =COUNTA(Table212[Starch]) -> 103 | N24: =COUNTA(Table212[growth rate 2014]) -> 103 | O24: =COUNTA(Table212[Can_ht 2013]) -> 103 | P24: =COUNTA(Table212[Canopy height 2014]) -> 103 | Q24: =COUNTA(Table212[2013 yield]) -> 103 | R24: =COUNTA(Table212[Yield 2014]) -> 103 | S24: =COUNTA(Table212[2015 Yield]) -> 103 | T24: =COUNTA(Table212[Glc]) -> 103 | U24: =COUNTA(AB:AB) -> 91 | V24: =COUNTA(AC:AC) -> 92 | W24: =COUNTA(AD:AD) -> 110 | Z24: #116 | AA24: 25.33 | AB24: 0.00 | AC24: 0.00 | AD24: 236.50 | AE24: 0.32 | AF24: 65.00 | AG24: 108.33 | AH24: 330.93 | AI24: 862.09 | AJ24: 1129.28 | AK24: 21.35 | AL24: 8.55 | AM24: 29.90 | AN24: 21.09 | AO24: 29.95 | AP24: 80.95 | AQ24: 0.72 | AR24: 2.52 | AS24: 3.52 | AT24: 2.48 | AU24: 1.43 | AV24: 0.99 | AZ24: #103 | BA24: 2 | BB24: 33 | BC24: 276 | BE24: 270 | BG24: 233
Z25: #117 | AA25: 26.50 | AB25: 238.00 | AC25: 248.00 | AD25: 236.50 | AE25: 0.48 | AF25: 57.50 | AG25: 132.50 | AH25: 217.86 | AI25: 935.47 | AJ25: 1585.38 | AK25: 22.45 | AL25: 12.56 | AM25: 35.00 | AN25: 30.36 | AO25: 46.55 | AP25: 111.91 | AQ25: 0.66 | AR25: 1.78 | AS25: 3.70 | AT25: 2.42 | AU25: 2.08 | AV25: 1.36 | AZ25: #103 | BA25: 3 | BC25: 264 | BE25: 261 | BG25: 240
Z26: #118 | AA26: 14.50 | AB26: 0.00 | AC26: 0.00 | AD26: 236.50 | AE26: 0.60 | AF26: 40.00 | AG26: 87.50 | AH26: 63.81 | AI26: 205.67 | AJ26: 429.99 | AK26: 21.29 | AL26: 10.27 | AM26: 31.56 | AN26: 21.79 | AO26: 54.59 | AP26: 107.94 | AQ26: 0.41 | AR26: 2.07 | AS26: 5.34 | AT26: 2.13 | AU26: 2.65 | AV26: 1.04 | AZ26: #104 | BA26: 1 | BB26: 19 | BC26: 256 | BD26: =AVERAGE(BC26:BC28) -> 258.6666667 | BE26: 261 | BF26: =AVERAGE(BE26:BE28) -> 252 | BG26: 226 | BH26: =AVERAGE(BG26:BG28) -> 226
Z27: #119 | AA27: 28.00 | AB27: 244.00 | AC27: 252.00 | AD27: 226.00 | AE27: 1.03 | AF27: 73.33 | AG27: 160.00 | AH27: 314.21 | AI27: 1545.74 | AJ27: 2485.85 | AK27: 18.75 | AL27: 11.36 | AM27: 30.11 | AN27: 25.27 | AO27: 20.69 | AP27: 76.06 | AQ27: 1.23 | AR27: 1.65 | AS27: 1.82 | AT27: 2.22 | AU27: 1.10 | AV27: 1.35 | AZ27: #104 | BA27: 2 | BB27: 16 | BC27: 256 | BE27: 241 | BG27: 226
Z28: #12 | AA28: 23.67 | AB28: 241.33 | AC28: 252.33 | AD28: 226.00 | AE28: 0.24 | AF28: 66.67 | AG28: 138.33 | AH28: 300.34 | AI28: 1097.93 | AJ28: 1373.39 | AK28: 13.17 | AL28: 7.79 | AM28: 20.96 | AN28: 26.63 | AO28: 86.82 | AP28: 134.40 | AQ28: 0.32 | AR28: 1.69 | AS28: 11.72 | AT28: 3.49 | AU28: 7.05 | AV28: 2.07 | AZ28: #104 | BA28: 3 | BB28: 14 | BC28: 264 | BE28: 254 | BG28: 226
A29: P-VALUE R (FAMILY) | B29: Stem number 2014 | C29: growth rate 2014 | D29: Can_ht 2013 | E29: Canopy height 2014 | F29: 2013 yield | G29: Yield 2014 | H29: 2015 Yield | I29: Glc | J29: Fru | K29: Hexose | L29: Suc | M29: Starch | N29: Total NSC | O29: Suc/Sta | P29: Glc/Fru | Q29: Starch/Fru | R29: Suc/Fru | S29: Starch/Glc | T29: Suc/Glc | U29: Flowering 2011 | V29: Flowerin 2012 | W29: Flowering 2013 | Z29: #14 | AA29: 21.67 | AB29: 270.00 | AC29: 267.00 | AD29: 226.00 | AE29: 1.03 | AF29: 51.67 | AG29: 148.33 | AH29: 206.33 | AI29: 898.83 | AJ29: 1676.86 | AK29: 32.51 | AL29: 12.63 | AM29: 45.14 | AN29: 26.45 | AO29: 26.96 | AP29: 98.55 | AQ29: 1.01 | AR29: 2.57 | AS29: 2.17 | AT29: 2.11 | AU29: 0.85 | AV29: 0.82 | AZ29: #105 | BA29: 1 | BB29: 22 | BD29: =AVERAGE(BC29:BC31) -> 259 | BE29: 261 | BF29: =AVERAGE(BE29:BE31) -> 256.3333333 | BG29: 233 | BH29: =AVERAGE(BG29:BG31) -> 214
A30: Stem number 2014 | C30: 0.03318 | D30: 0.00000020 | E30: 0.00003 | F30: 0.00000 | G30: 0.00000 | H30: 0.00000 | I30: 0.16521 | J30: 0.00184 | K30: 0.02974 | L30: 0.97803 | M30: 0.00000 | N30: 0.00003 | O30: 0.00012 | P30: 0.01369 | Q30: 0.00000 | R30: 0.00117 | S30: 0.00009 | T30: 0.21744 | U30: 0.18709 | V30: 0.06364 | W30: 0.22068 | Z30: #15 | AA30: 18.00 | AB30: 234.50 | AC30: 254.00 | AD30: 214.00 | AE30: 0.60 | AF30: 70.00 | AG30: 142.50 | AH30: 183.96 | AI30: 1010.30 | AJ30: 1962.45 | AK30: 21.68 | AL30: 12.30 | AM30: 33.98 | AN30: 36.50 | AO30: 44.84 | AP30: 115.33 | AQ30: 0.81 | AR30: 1.75 | AS30: 3.69 | AT30: 2.96 | AU30: 2.12 | AV30: 1.69 | AZ30: #105 | BA30: 2 | BB30: 14 | BC30: 276 | BE30: 254 | BG30: 190
A31: growth rate 2014 | D31: 0.82438 | E31: 0.00588 | F31: 0.48511 | G31: 0.85460 | H31: 0.64090 | I31: 0.04567 | J31: 0.01081 | K31: 0.01710 | L31: 0.09441 | M31: 0.28277 | N31: 0.99031 | O31: 0.01965 | P31: 0.21185 | Q31: 0.08931 | R31: 0.31826 | S31: 0.31371 | T31: 0.75231 | U31: 0.03181 | V31: 0.04357 | W31: 0.07036 | Z31: #16 | AA31: 13.33 | AB31: 239.33 | AC31: 245.67 | AD31: 214.00 | AE31: 0.40 | AF31: 61.67 | AG31: 120.00 | AH31: 172.99 | AI31: 675.51 | AJ31: 878.29 | AK31: 20.55 | AL31: 12.27 | AM31: 32.82 | AN31: 22.63 | AO31: 50.29 | AP31: 105.73 | AQ31: 0.45 | AR31: 1.67 | AS31: 4.19 | AT31: 1.87 | AU31: 2.53 | AV31: 1.13 | AZ31: #105 | BA31: 3 | BB31: 16 | BC31: 242 | BE31: 254 | BG31: 219
A32: Can_ht 2013 | E32: 0.00000 | F32: 0.00000 | G32: 0.00000 | H32: 0.00000 | I32: 0.97063 | J32: 0.00000 | K32: 0.08583 | L32: 0.23000 | M32: 0.00002 | N32: 0.00039 | O32: 0.00001 | P32: 0.00000 | Q32: 0.00000 | R32: 0.00138 | S32: 0.00203 | T32: 0.81036 | U32: 0.00030 | V32: 0.00002 | W32: 0.06480 | Z32: #17 | AA32: 15.33 | AB32: 279.67 | AC32: 264.00 | AD32: 214.00 | AE32: 0.79 | AF32: 60.00 | AG32: 143.33 | AH32: 94.31 | AI32: 702.12 | AJ32: 1359.12 | AK32: 19.18 | AL32: 11.06 | AM32: 30.25 | AN32: 32.98 | AO32: 59.55 | AP32: 122.78 | AQ32: 0.55 | AR32: 1.74 | AS32: 5.58 | AT32: 3.05 | AU32: 3.20 | AV32: 1.76 | AZ32: #108 | BA32: 1 | BB32: 34 | BC32: 248 | BD32: =AVERAGE(BC32:BC34) -> 254 | BE32: 254 | BF32: =AVERAGE(BE32:BE34) -> 252 | BG32: 226 | BH32: =AVERAGE(BG32:BG34) -> 226
A33: Canopy height 2014 | F33: 0.00000 | G33: 0.00000 | H33: 0.00000 | I33: 0.09923 | J33: 0.00000 | K33: 0.00030 | L33: 0.00139 | M33: 0.00000 | N33: 0.00025 | O33: 0.00000 | P33: 0.00000 | Q33: 0.00000 | R33: 0.00044 | S33: 0.00001 | T33: 0.48723 | U33: 0.00000 | V33: 0.00000 | W33: 0.22784 | Z33: #19 | AA33: 21.33 | AB33: 253.00 | AC33: 262.67 | AD33: 226.00 | AE33: 0.40 | AF33: 55.00 | AG33: 113.33 | AH33: 186.86 | AI33: 685.24 | AJ33: 1038.82 | AK33: 22.59 | AL33: 9.11 | AM33: 31.69 | AN33: 24.76 | AO33: 47.97 | AP33: 104.42 | AQ33: 0.52 | AR33: 2.48 | AS33: 5.28 | AT33: 2.70 | AU33: 2.13 | AV33: 1.09 | AZ33: #108 | BA33: 2 | BB33: 29 | BC33: 242 | BE33: 254 | BG33: 219
A34: 2013 yield | G34: 0.00000 | H34: 0.00000 | I34: 0.67629 | J34: 0.00002 | K34: 0.05676 | L34: 0.65556 | M34: 0.00003 | N34: 0.00014 | O34: 0.00002 | P34: 0.00000 | Q34: 0.00002 | R34: 0.00004 | S34: 0.00065 | T34: 0.20060 | U34: 0.00618 | V34: 0.00621 | W34: 0.17358 | Z34: #2 | AA34: 16.67 | AB34: 253.33 | AC34: 272.33 | AD34: 226.00 | AE34: 0.63 | AF34: 60.00 | AG34: 128.33 | AH34: 160.69 | AI34: 747.80 | AJ34: 1093.31 | AK34: 16.14 | AL34: 9.11 | AM34: 25.25 | AN34: 25.77 | AO34: 48.40 | AP34: 99.42 | AQ34: 0.55 | AR34: 1.78 | AS34: 5.30 | AT34: 2.86 | AU34: 3.01 | AV34: 1.60 | AZ34: #108 | BA34: 3 | BB34: 21 | BC34: 272 | BE34: 248 | BG34: 233
A35: Yield 2014 | H35: 0.00000 | I35: 0.64505 | J35: 0.00000 | K35: 0.02076 | L35: 0.99613 | M35: 0.00000 | N35: 0.00000 | O35: 0.00000 | P35: 0.00000 | Q35: 0.00000 | R35: 0.00000 | S35: 0.00002 | T35: 0.35694 | U35: 0.00012 | V35: 0.00007 | W35: 0.06437 | Z35: #20 | AA35: 17.00 | AD35: 226.00 | AE35: 0.48 | AF35: 45.00 | AG35: 95.00 | AH35: 66.21 | AI35: 337.67 | AJ35: 681.06 | AK35: 16.37 | AL35: 7.67 | AM35: 24.04 | AN35: 22.46 | AO35: 52.83 | AP35: 99.34 | AQ35: 0.43 | AR35: 2.13 | AS35: 6.89 | AT35: 2.93 | AU35: 3.23 | AV35: 1.37 | AZ35: #109 | BA35: 1 | BB35: 22 | BE35: 283 | BF35: =AVERAGE(BE35:BE37) -> 279 | BG35: 240 | BH35: =AVERAGE(BG35:BG37) -> 237.6666667
A36: 2015 Yield | I36: 0.29742 | J36: 0.00000 | K36: 0.00419 | L36: 0.40285 | M36: 0.00000 | N36: 0.00000 | O36: 0.00000 | P36: 0.00000 | Q36: 0.00000 | R36: 0.00002 | S36: 0.00000 | T36: 0.67534 | U36: 0.00033 | V36: 0.00018 | W36: 0.15169 | Z36: #22 | AA36: 20.67 | AB36: 241.33 | AC36: 247.67 | AD36: 237.67 | AE36: 0.56 | AF36: 75.00 | AG36: 138.33 | AH36: 393.82 | AI36: 1415.12 | AJ36: 1972.23 | AK36: 20.54 | AL36: 13.81 | AM36: 34.36 | AN36: 26.93 | AO36: 36.85 | AP36: 98.13 | AQ36: 0.74 | AR36: 1.48 | AS36: 2.77 | AT36: 2.01 | AU36: 1.89 | AV36: 1.36 | AZ36: #109 | BA36: 2 | BB36: 19 | BE36: 277 | BG36: 233
A37: Glc | J37: 0.00000 | K37: 0.00000 | L37: 0.05150 | M37: 0.00001 | N37: 0.28252 | O37: 0.00002 | P37: 0.00298 | Q37: 0.00000 | R37: 0.00000 | S37: 0.00000 | T37: 0.00000 | U37: 0.02145 | V37: 0.02819 | W37: 0.03476 | Z37: #23 | AA37: 23.33 | AB37: 258.67 | AC37: 258.67 | AD37: 237.67 | AE37: 0.56 | AF37: 70.00 | AG37: 148.33 | AH37: 298.46 | AI37: 1104.66 | AJ37: 1707.74 | AK37: 17.27 | AL37: 10.71 | AM37: 27.98 | AN37: 32.88 | AO37: 52.53 | AP37: 113.39 | AQ37: 0.63 | AR37: 1.61 | AS37: 4.88 | AT37: 3.06 | AU37: 3.02 | AV37: 1.89 | AZ37: #109 | BA37: 3 | BB37: 23 | BE37: 277 | BG37: 240
A38: Fru | K38: 0.00000 | L38: 0.01171 | M38: 0.00000 | N38: 0.01393 | O38: 0.00000 | P38: 0.00000 | Q38: 0.00000 | R38: 0.00000 | S38: 0.00000 | T38: 0.00036 | U38: 0.00024 | V38: 0.00009 | W38: 0.15576 | Z38: #24 | AA38: 20.67 | AB38: 247.00 | AC38: 264.00 | AD38: 237.67 | AE38: 0.71 | AF38: 88.33 | AG38: 158.33 | AH38: 387.66 | AI38: 1298.51 | AJ38: 1758.64 | AK38: 21.43 | AL38: 12.56 | AM38: 33.98 | AN38: 34.39 | AO38: 59.94 | AP38: 128.32 | AQ38: 0.72 | AR38: 1.73 | AS38: 5.16 | AT38: 2.79 | AU38: 2.96 | AV38: 1.62 | AZ38: #11 | BA38: 1 | BB38: 20 | BC38: 242 | BD38: =AVERAGE(BC38:BC42) -> 252 | BE38: 254 | BF38: =AVERAGE(BE38:BE42) -> 261.4 | BG38: 226 | BH38: =AVERAGE(BG38:BG42) -> 226
A39: Hexose | L39: 0.01940 | M39: 0.00000 | N39: 0.08841 | O39: 0.00000 | P39: 0.87920 | Q39: 0.00000 | R39: 0.00000 | S39: 0.00000 | T39: 0.00000 | U39: 0.00325 | V39: 0.00314 | W39: 0.04952 | Z39: #25 | AA39: 17.00 | AB39: 281.50 | AC39: 273.50 | AD39: 226.00 | AE39: 0.63 | AF39: 58.33 | AG39: 138.33 | AH39: 130.75 | AI39: 486.64 | AJ39: 1135.58 | AK39: 21.15 | AL39: 10.22 | AM39: 31.37 | AN39: 32.66 | AO39: 47.27 | AP39: 111.30 | AQ39: 0.82 | AR39: 2.15 | AS39: 5.50 | AT39: 3.34 | AU39: 2.39 | AV39: 1.54 | AZ39: #11 | BA39: 2 | BB39: 23 | BC39: 264 | BE39: 261 | BG39: 226
A40: Suc | M40: 0.11906 | N40: 0.00000 | O40: 0.22533 | P40: 0.22238 | Q40: 0.57376 | R40: 0.00034 | S40: 0.94758 | T40: 0.00951 | U40: 0.10344 | V40: 0.09371 | W40: 0.07366 | Z40: #26 | AA40: 11.50 | AD40: 226.00 | AE40: 0.95 | AF40: 25.00 | AG40: 85.00 | AH40: 12.00 | AI40: 101.61 | AJ40: 477.78 | AK40: 16.44 | AL40: 7.93 | AM40: 24.36 | AN40: 27.32 | AO40: 83.13 | AP40: 134.82 | AQ40: 0.33 | AR40: 2.07 | AS40: 10.62 | AT40: 3.47 | AU40: 5.12 | AV40: 1.68 | AZ40: #11 | BA40: 2 | BB40: 18 | BC40: 256 | BE40: 277 | BG40: 233
A41: Starch | N41: 0.00000 | O41: 0.00000 | P41: 0.01990 | Q41: 0.00000 | R41: 0.00000 | S41: 0.00000 | T41: 0.01668 | U41: 0.02700 | V41: 0.00701 | W41: 0.28043 | Z41: #27 | AA41: 17.33 | AD41: 226.00 | AE41: 0.32 | AF41: 56.67 | AG41: 115.00 | AH41: 104.87 | AI41: 468.05 | AJ41: 813.48 | AK41: 16.10 | AL41: 9.92 | AM41: 26.02 | AN41: 27.13 | AO41: 66.95 | AP41: 120.09 | AQ41: 0.41 | AR41: 1.61 | AS41: 7.19 | AT41: 2.83 | AU41: 4.53 | AV41: 1.78 | AZ41: #11 | BA41: 3 | BB41: 18 | BC41: 256 | BE41: 254 | BG41: 219
A42: Total NSC | O42: 0.00000 | P42: 0.03327 | Q42: 0.00000 | R42: 0.00000 | S42: 0.00000 | T42: 0.11023 | U42: 0.22106 | V42: 0.11288 | W42: 0.32813 | Z42: #28 | AA42: 21.50 | AB42: 276.00 | AC42: 277.00 | AD42: 226.00 | AE42: 0.83 | AF42: 52.50 | AG42: 130.00 | AH42: 128.24 | AI42: 652.55 | AJ42: 1022.78 | AK42: 18.45 | AL42: 8.44 | AM42: 26.89 | AN42: 26.27 | AO42: 43.98 | AP42: 97.14 | AQ42: 0.59 | AR42: 2.19 | AS42: 5.21 | AT42: 3.10 | AU42: 2.38 | AV42: 1.42 | AZ42: #11 | BA42: 3 | BB42: 22 | BC42: 242 | BE42: 261 | BG42: 226
A43: Suc/Sta | P43: 0.03509 | Q43: 0.00000 | R43: 0.00008 | S43: 0.00000 | T43: 0.19206 | U43: 0.09525 | V43: 0.06852 | W43: 0.31878 | Z43: #3 | AA43: 16.67 | AD43: 226.00 | AE43: 0.32 | AF43: 63.33 | AG43: 105.00 | AH43: 276.95 | AI43: 687.92 | AJ43: 1163.64 | AK43: 21.25 | AL43: 9.51 | AM43: 30.76 | AN43: 28.61 | AO43: 61.15 | AP43: 120.52 | AQ43: 0.47 | AR43: 2.23 | AS43: 6.49 | AT43: 3.00 | AU43: 2.93 | AV43: 1.35 | AZ43: #110 | BA43: 1 | BB43: 20 | BC43: 264 | BD43: =AVERAGE(BC43:BC45) -> 258.6666667 | BE43: 270 | BF43: =AVERAGE(BE43:BE45) -> 252.3333333 | BG43: 233 | BH43: =AVERAGE(BG43:BG45) -> 228.3333333
A44: Glc/Fru | Q44: 0.00033 | R44: 0.00213 | S44: 0.51353 | T44: 0.00846 | U44: 0.01419 | V44: 0.00313 | W44: 0.11098 | Z44: #32 | AA44: 19.67 | AB44: 276.00 | AD44: 228.33 | AE44: 0.71 | AF44: 41.67 | AG44: 83.33 | AH44: 92.03 | AI44: 340.03 | AJ44: 649.93 | AK44: 22.19 | AL44: 8.51 | AM44: 30.71 | AN44: 26.57 | AO44: 40.14 | AP44: 97.41 | AQ44: 0.68 | AR44: 2.63 | AS44: 4.90 | AT44: 3.22 | AU44: 1.86 | AV44: 1.21 | AZ44: #110 | BA44: 2 | BB44: 25 | BC44: 256 | BE44: 233 | BG44: 226
A45: Starch/Fru | R45: 0.00000 | S45: 0.00000 | T45: 0.00055 | U45: 0.00057 | V45: 0.00003 | W45: 0.25624 | Z45: #34 | AA45: 25.00 | AB45: 263.33 | AC45: 271.67 | AD45: 228.33 | AE45: 0.24 | AF45: 68.33 | AG45: 118.33 | AH45: 306.98 | AI45: 1061.93 | AJ45: 1809.72 | AK45: 21.47 | AL45: 11.76 | AM45: 33.23 | AN45: 24.90 | AO45: 43.09 | AP45: 101.22 | AQ45: 0.59 | AR45: 1.81 | AS45: 3.81 | AT45: 2.16 | AU45: 2.13 | AV45: 1.20 | AZ45: #110 | BA45: 3 | BB45: 24 | BC45: 256 | BE45: 254 | BG45: 226
A46: Suc/Fru | S46: 0.00000 | T46: 0.00000 | U46: 0.00383 | V46: 0.00155 | W46: 0.01921 | Z46: #35 | AA46: 23.00 | AD46: 228.33 | AE46: 0.40 | AF46: 73.33 | AG46: 130.00 | AH46: 321.34 | AI46: 1215.78 | AJ46: 2157.65 | AK46: 25.54 | AL46: 11.11 | AM46: 36.66 | AN46: 26.14 | AO46: 21.35 | AP46: 84.15 | AQ46: 1.33 | AR46: 2.29 | AS46: 1.90 | AT46: 2.35 | AU46: 0.83 | AV46: 1.02 | AZ46: #112 | BA46: 1 | BB46: 16 | BG46: 254 | BH46: =AVERAGE(BG46:BG48) -> 254
A47: Starch/Glc | T47: 0.00000 | U47: 0.00559 | V47: 0.00101 | W47: 0.17782 | Z47: #36 | AA47: 20.33 | AB47: 274.00 | AC47: 279.00 | AD47: 254.00 | AE47: 0.63 | AF47: 101.67 | AG47: 151.67 | AH47: 557.19 | AI47: 1933.81 | AJ47: 2737.17 | AK47: 20.94 | AL47: 14.06 | AM47: 35.00 | AN47: 26.86 | AO47: 28.51 | AP47: 90.38 | AQ47: 0.94 | AR47: 1.49 | AS47: 2.06 | AT47: 1.91 | AU47: 1.38 | AV47: 1.28 | AZ47: #112 | BA47: 2 | BB47: 13
A48: Suc/Glc | U48: 0.13082 | V48: 0.14265 | W48: 0.04683 | Z48: #37 | AA48: 22.50 | AB48: 268.00 | AC48: 251.00 | AD48: 254.00 | AE48: 0.71 | AF48: 52.50 | AG48: 130.00 | AH48: 116.42 | AI48: 805.13 | AJ48: 1549.79 | AK48: 18.91 | AL48: 10.19 | AM48: 29.10 | AN48: 29.36 | AO48: 32.60 | AP48: 91.06 | AQ48: 0.91 | AR48: 1.86 | AS48: 3.20 | AT48: 2.88 | AU48: 1.73 | AV48: 1.55 | AZ48: #112 | BA48: 3 | BB48: 17
A49: Flowering 2011 | V49: 0.00000 | W49: 0.00001 | Z49: #39 | AA49: 21.00 | AB49: 266.67 | AC49: 269.33 | AD49: 254.00 | AE49: 0.71 | AF49: 96.67 | AG49: 153.33 | AH49: 641.35 | AI49: 1580.25 | AJ49: 2417.21 | AK49: 17.52 | AL49: 11.84 | AM49: 29.36 | AN49: 31.14 | AO49: 64.33 | AP49: 124.84 | AQ49: 0.52 | AR49: 1.47 | AS49: 5.98 | AT49: 2.71 | AU49: 4.18 | AV49: 1.87 | AZ49: #113 | BA49: 1 | BB49: 23 | BC49: 248 | BD49: =AVERAGE(BC49:BC51) -> 241 | BE49: 233 | BF49: =AVERAGE(BE49:BE51) -> 233 | BG49: 198 | BH49: =AVERAGE(BG49:BG51) -> 208.5
A50: Flowerin 2012 | W50: 0.00005 | Z50: #4 | AA50: 21.33 | AB50: 273.33 | AC50: 272.33 | AD50: 208.50 | AE50: 0.71 | AF50: 66.67 | AG50: 125.00 | AH50: 281.50 | AI50: 886.39 | AJ50: 1484.31 | AK50: 24.91 | AL50: 11.90 | AM50: 36.81 | AN50: 21.82 | AO50: 21.20 | AP50: 79.83 | AQ50: 1.06 | AR50: 2.09 | AS50: 1.80 | AT50: 1.82 | AU50: 0.88 | AV50: 0.87 | AZ50: #113 | BA50: 2 | BB50: 20
A51: Flowering 2013 | Z51: #40 | AA51: 19.67 | AD51: 208.50 | AE51: 0.56 | AF51: 63.33 | AG51: 123.33 | AH51: 130.51 | AI51: 457.34 | AJ51: 1003.50 | AK51: 20.90 | AL51: 10.54 | AM51: 31.43 | AN51: 27.98 | AO51: 39.52 | AP51: 98.93 | AQ51: 0.73 | AR51: 1.96 | AS51: 3.77 | AT51: 2.64 | AU51: 1.94 | AV51: 1.35 | AZ51: #113 | BA51: 3 | BC51: 234 | BE51: 233 | BG51: 219
Z52: #41 | AA52: 23.67 | AB52: 264.00 | AC52: 252.00 | AD52: 208.50 | AE52: 0.48 | AF52: 83.33 | AG52: 136.67 | AH52: 387.57 | AI52: 1325.50 | AJ52: 1969.94 | AK52: 17.63 | AL52: 9.53 | AM52: 27.15 | AN52: 27.82 | AO52: 48.31 | AP52: 103.29 | AQ52: 0.58 | AR52: 1.86 | AS52: 5.07 | AT52: 2.94 | AU52: 2.73 | AV52: 1.58 | AZ52: #114 | BA52: 1 | BB52: 9
Z53: #42 | AA53: 14.67 | AB53: 244.00 | AC53: 245.67 | AD53: 0.00 | AE53: 0.56 | AF53: 38.33 | AG53: 115.00 | AH53: 48.02 | AI53: 333.74 | AJ53: 572.73 | AK53: 20.78 | AL53: 9.71 | AM53: 30.49 | AN53: 30.04 | AO53: 75.23 | AP53: 135.75 | AQ53: 0.40 | AR53: 2.16 | AS53: 8.01 | AT53: 3.18 | AU53: 3.69 | AV53: 1.47 | AZ53: #114 | BA53: 2 | BB53: 18
Z54: #43 | AA54: 20.00 | AB54: 254.00 | AC54: 257.33 | AD54: 0.00 | AE54: 0.48 | AF54: 83.33 | AG54: 156.67 | AH54: 317.13 | AI54: 994.04 | AJ54: 1631.16 | AK54: 19.47 | AL54: 12.21 | AM54: 31.68 | AN54: 42.11 | AO54: 65.69 | AP54: 139.48 | AQ54: 0.65 | AR54: 1.59 | AS54: 5.37 | AT54: 3.45 | AU54: 3.38 | AV54: 2.18 | AZ54: #114 | BA54: 3 | BB54: 18
Z55: #44 | AA55: 17.00 | AB55: 0.00 | AC55: 0.00 | AD55: 0.00 | AE55: 0.71 | AF55: 45.00 | AG55: 100.00 | AH55: 191.84 | AI55: 583.61 | AJ55: 995.30 | AK55: 21.13 | AL55: 9.67 | AM55: 30.80 | AN55: 25.25 | AO55: 45.02 | AP55: 101.07 | AQ55: 0.68 | AR55: 2.20 | AS55: 4.96 | AT55: 2.72 | AU55: 2.38 | AV55: 1.24 | AZ55: #115 | BA55: 1 | BB55: 20 | BC55: 242 | BD55: =AVERAGE(BC55:BC57) -> 247 | BE55: 248 | BF55: =AVERAGE(BE55:BE57) -> 248 | BG55: 226 | BH55: =AVERAGE(BG55:BG57) -> 223.6666667
Z56: #45 | AA56: 16.33 | AB56: 238.00 | AC56: 245.33 | AD56: 223.67 | AE56: 0.40 | AF56: 35.00 | AG56: 121.67 | AH56: 91.34 | AI56: 494.78 | AJ56: 948.03 | AK56: 21.70 | AL56: 9.79 | AM56: 31.49 | AN56: 30.51 | AO56: 47.72 | AP56: 109.72 | AQ56: 0.65 | AR56: 2.23 | AS56: 4.95 | AT56: 3.12 | AU56: 2.21 | AV56: 1.41 | AZ56: #115 | BA56: 2 | BB56: 17 | BC56: 227 | BE56: 248 | BG56: 226
Z57: #46 | AA57: 21.67 | AB57: 283.33 | AC57: 281.67 | AD57: 223.67 | AE57: 0.56 | AF57: 66.67 | AG57: 146.67 | AH57: 207.48 | AI57: 1203.20 | AJ57: 2014.52 | AK57: 22.41 | AL57: 12.15 | AM57: 34.56 | AN57: 31.69 | AO57: 34.31 | AP57: 100.56 | AQ57: 0.92 | AR57: 1.85 | AS57: 2.83 | AT57: 2.61 | AU57: 1.53 | AV57: 1.41 | AZ57: #115 | BA57: 3 | BB57: 14 | BC57: 272 | BE57: 248 | BG57: 219
Z58: #47 | AA58: 23.67 | AB58: 255.33 | AC58: 261.67 | AD58: 223.67 | AE58: 0.32 | AF58: 75.00 | AG58: 141.67 | AH58: 459.05 | AI58: 1468.91 | AJ58: 1728.58 | AK58: 19.36 | AL58: 12.71 | AM58: 32.07 | AN58: 31.43 | AO58: 43.42 | AP58: 106.92 | AQ58: 0.73 | AR58: 1.53 | AS58: 3.56 | AT58: 2.53 | AU58: 2.32 | AV58: 1.65 | AZ58: #116 | BA58: 1 | BB58: 26
Z59: #48 | AA59: 21.00 | AB59: 272.00 | AC59: 280.00 | AD59: 0.00 | AE59: 0.56 | AF59: 68.33 | AG59: 131.67 | AH59: 248.23 | AI59: 852.32 | AJ59: 1435.27 | AK59: 14.86 | AL59: 7.64 | AM59: 22.50 | AN59: 30.11 | AO59: 65.26 | AP59: 117.86 | AQ59: 0.48 | AR59: 1.96 | AS59: 8.54 | AT59: 4.04 | AU59: 4.35 | AV59: 2.05 | AZ59: #116 | BA59: 2 | BB59: 24
Z60: #49 | AA60: 23.33 | AB60: 276.00 | AC60: 269.33 | AD60: 0.00 | AE60: 0.40 | AF60: 71.67 | AG60: 151.67 | AH60: 402.49 | AI60: 1482.67 | AJ60: 1698.99 | AK60: 21.30 | AL60: 12.90 | AM60: 34.20 | AN60: 27.08 | AO60: 30.24 | AP60: 91.52 | AQ60: 0.91 | AR60: 1.69 | AS60: 2.54 | AT60: 2.23 | AU60: 1.47 | AV60: 1.29 | AZ60: #116 | BA60: 3 | BB60: 26
Z61: #50 | AA61: 26.00 | AD61: 0.00 | AE61: 0.08 | AF61: 51.67 | AG61: 115.00 | AH61: 247.29 | AI61: 1067.18 | AJ61: 1889.03 | AK61: 17.05 | AL61: 9.38 | AM61: 26.43 | AN61: 23.66 | AO61: 25.31 | AP61: 75.39 | AQ61: 1.05 | AR61: 1.76 | AS61: 2.63 | AT61: 2.56 | AU61: 1.47 | AV61: 1.47 | AZ61: #117 | BA61: 1 | BB61: 25 | BC61: 242 | BD61: =AVERAGE(BC61:BC63) -> 238 | BE61: 248 | BF61: =AVERAGE(BE61:BE63) -> 248 | BG61: 226 | BH61: =AVERAGE(BG61:BG63) -> 226
Z62: #51 | AA62: 17.33 | AC62: 291.00 | AD62: 226.00 | AE62: 0.63 | AF62: 51.67 | AG62: 110.00 | AH62: 149.78 | AI62: 457.99 | AJ62: 677.95 | AK62: 24.72 | AL62: 10.17 | AM62: 34.89 | AN62: 31.73 | AO62: 49.93 | AP62: 116.54 | AQ62: 0.66 | AR62: 2.42 | AS62: 5.11 | AT62: 3.20 | AU62: 2.17 | AV62: 1.35 | AZ62: #117 | BA62: 2 | BB62: 28
Z63: #53 | AA63: 18.33 | AB63: 246.00 | AC63: 258.67 | AD63: 226.00 | AE63: 0.63 | AF63: 88.33 | AG63: 155.00 | AH63: 450.86 | AI63: 1671.02 | AJ63: 2175.55 | AK63: 22.44 | AL63: 13.67 | AM63: 36.11 | AN63: 24.99 | AO63: 23.37 | AP63: 84.46 | AQ63: 1.09 | AR63: 1.65 | AS63: 1.69 | AT63: 1.82 | AU63: 1.05 | AV63: 1.13 | AZ63: #117 | BA63: 3 | BC63: 234 | BE63: 248 | BG63: 226
Z64: #55 | AA64: 19.00 | AB64: 251.33 | AC64: 256.67 | AD64: 226.00 | AE64: 0.56 | AF64: 75.00 | AG64: 155.00 | AH64: 261.06 | AI64: 1015.54 | AJ64: 1554.73 | AK64: 16.14 | AL64: 9.75 | AM64: 25.89 | AN64: 34.81 | AO64: 44.05 | AP64: 104.75 | AQ64: 0.92 | AR64: 1.66 | AS64: 4.49 | AT64: 3.55 | AU64: 2.70 | AV64: 2.15 | AZ64: #118 | BA64: 1 | BB64: 16
Z65: #56 | AA65: 18.00 | AB65: 269.33 | AC65: 274.67 | AD65: 0.00 | AE65: 0.79 | AF65: 68.33 | AG65: 160.00 | AH65: 234.97 | AI65: 789.68 | AJ65: 1207.23 | AK65: 25.55 | AL65: 13.72 | AM65: 39.27 | AN65: 33.80 | AO65: 23.54 | AP65: 96.61 | AQ65: 1.45 | AR65: 1.88 | AS65: 1.75 | AT65: 2.52 | AU65: 0.93 | AV65: 1.33 | AZ65: #118 | BA65: 2 | BB65: 13
Z66: #57 | AA66: 14.00 | AB66: 244.33 | AC66: 240.33 | AD66: 0.00 | AE66: 0.71 | AF66: 53.33 | AG66: 136.67 | AH66: 187.81 | AI66: 806.23 | AJ66: 1351.82 | AK66: 14.64 | AL66: 8.38 | AM66: 23.02 | AN66: 27.64 | AO66: 59.72 | AP66: 110.37 | AQ66: 0.47 | AR66: 1.73 | AS66: 7.23 | AT66: 3.41 | AU66: 4.20 | AV66: 1.98 | AZ66: #118 | BA66: 3
Z67: #59 | AA67: 19.00 | AD67: 0.00 | AE67: 0.48 | AF67: 52.50 | AG67: 140.00 | AH67: 241.44 | AI67: 987.76 | AJ67: 1934.62 | AK67: 19.32 | AL67: 12.65 | AM67: 31.96 | AN67: 29.13 | AO67: 30.10 | AP67: 91.19 | AQ67: 0.97 | AR67: 1.53 | AS67: 2.40 | AT67: 2.29 | AU67: 1.57 | AV67: 1.50 | AZ67: #119 | BA67: 1 | BB67: 26 | BC67: 256 | BD67: =AVERAGE(BC67:BC69) -> 244 | BE67: 248 | BF67: =AVERAGE(BE67:BE69) -> 252 | BG67: 226 | BH67: =AVERAGE(BG67:BG69) -> 228.3333333
Z68: #6 | AA68: 17.00 | AB68: 253.33 | AC68: 256.33 | AD68: 228.33 | AE68: 0.48 | AF68: 55.00 | AG68: 121.67 | AH68: 157.45 | AI68: 702.79 | AJ68: 1144.29 | AK68: 22.19 | AL68: 12.34 | AM68: 34.53 | AN68: 22.76 | AO68: 33.19 | AP68: 90.48 | AQ68: 0.68 | AR68: 1.80 | AS68: 2.70 | AT68: 1.85 | AU68: 1.50 | AV68: 1.02 | AZ68: #119 | BA68: 2 | BB68: 25 | BC68: 256 | BE68: 254 | BG68: 226
Z69: #60 | AA69: 18.33 | AB69: 260.00 | AC69: 261.67 | AD69: 228.33 | AE69: 0.32 | AF69: 63.33 | AG69: 116.67 | AH69: 310.57 | AI69: 964.42 | AJ69: 1088.66 | AK69: 20.61 | AL69: 10.35 | AM69: 30.95 | AN69: 24.74 | AO69: 36.08 | AP69: 91.77 | AQ69: 0.68 | AR69: 1.99 | AS69: 3.49 | AT69: 2.39 | AU69: 1.75 | AV69: 1.20 | AZ69: #119 | BA69: 3 | BB69: 33 | BC69: 220 | BE69: 254 | BG69: 233
Z70: #61 | AA70: 20.50 | AB70: 270.00 | AC70: 281.67 | AD70: 228.33 | AE70: 0.63 | AF70: 51.67 | AG70: 116.67 | AH70: 129.28 | AI70: 439.17 | AJ70: 935.81 | AK70: 17.85 | AL70: 10.73 | AM70: 28.58 | AN70: 27.43 | AO70: 76.84 | AP70: 132.86 | AQ70: 0.39 | AR70: 1.65 | AS70: 7.77 | AT70: 2.66 | AU70: 4.85 | AV70: 1.64 | AZ70: #12 | BA70: 1 | BB70: 17 | BC70: 234 | BD70: =AVERAGE(BC70:BC72) -> 241.3333333 | BE70: 248 | BF70: =AVERAGE(BE70:BE72) -> 252.3333333 | BG70: 184 | BH70: =AVERAGE(BG70:BG72) -> 207.3333333
Z71: #63 | AA71: 20.33 | AB71: 250.67 | AC71: 261.00 | AD71: 207.33 | AE71: 0.16 | AF71: 80.00 | AG71: 126.67 | AH71: 381.95 | AI71: 1395.43 | AJ71: 1623.70 | AK71: 18.75 | AL71: 11.65 | AM71: 30.40 | AN71: 29.17 | AO71: 55.20 | AP71: 114.77 | AQ71: 0.61 | AR71: 1.62 | AS71: 5.21 | AT71: 2.53 | AU71: 3.18 | AV71: 1.56 | AZ71: #12 | BA71: 2 | BB71: 25 | BC71: 242 | BE71: 261 | BG71: 219
Z72: #66 | AA72: 9.00 | AD72: 207.33 | AE72: 0.24 | AF72: 32.50 | AG72: 72.50 | AH72: 23.00 | AI72: 95.95 | AJ72: 262.21 | AK72: 19.97 | AL72: 7.16 | AM72: 27.13 | AN72: 31.48 | AO72: 70.56 | AP72: 129.17 | AQ72: 0.45 | AR72: 2.78 | AS72: 9.85 | AT72: 4.40 | AU72: 3.54 | AV72: 1.59 | AZ72: #12 | BA72: 3 | BB72: 29 | BC72: 248 | BE72: 248 | BG72: 219
Z73: #67 | AA73: 15.50 | AC73: 291.00 | AD73: 207.33 | AE73: 0.36 | AF73: 57.50 | AG73: 120.00 | AH73: 128.00 | AI73: 480.00 | AJ73: 847.74 | AK73: 18.99 | AL73: 10.62 | AM73: 29.62 | AN73: 24.90 | AO73: 45.17 | AP73: 99.69 | AQ73: 0.58 | AR73: 1.79 | AS73: 4.24 | AT73: 2.34 | AU73: 2.32 | AV73: 1.31 | AZ73: #120 | BA73: 1 | BB73: 27 | BE73: 277 | BF73: =AVERAGE(BE73:BE75) -> 283.6666667 | BG73: 240 | BH73: =AVERAGE(BG73:BG75) -> 244.6666667
Z74: #68 | AA74: 16.00 | AB74: 266.00 | AC74: 264.00 | AD74: 244.67 | AE74: 0.56 | AF74: 46.67 | AG74: 121.67 | AH74: 117.50 | AI74: 573.30 | AJ74: 864.65 | AK74: 23.62 | AL74: 12.18 | AM74: 35.80 | AN74: 29.33 | AO74: 41.47 | AP74: 106.61 | AQ74: 0.71 | AR74: 1.94 | AS74: 3.40 | AT74: 2.40 | AU74: 1.75 | AV74: 1.24 | AZ74: #120 | BA74: 2 | BB74: 20 | BE74: 291 | BG74: 247
Z75: #69 | AA75: 28.00 | AB75: 261.33 | AC75: 264.00 | AD75: 244.67 | AE75: 0.56 | AF75: 88.33 | AG75: 143.33 | AH75: 430.19 | AI75: 1614.76 | AJ75: 2508.80 | AK75: 17.84 | AL75: 10.92 | AM75: 28.76 | AN75: 28.31 | AO75: 32.92 | AP75: 89.99 | AQ75: 0.86 | AR75: 1.64 | AS75: 3.00 | AT75: 2.58 | AU75: 1.83 | AV75: 1.57 | AZ75: #120 | BA75: 3 | BB75: 23 | BE75: 283 | BG75: 247
Z76: #7 | AA76: 20.00 | AB76: 260.00 | AC76: 267.00 | AD76: 244.67 | AE76: 0.71 | AF76: 66.67 | AG76: 141.67 | AH76: 234.17 | AI76: 1060.75 | AJ76: 1704.05 | AK76: 21.47 | AL76: 13.04 | AM76: 34.51 | AN76: 27.50 | AO76: 28.15 | AP76: 90.16 | AQ76: 1.04 | AR76: 1.66 | AS76: 2.20 | AT76: 2.12 | AU76: 1.32 | AV76: 1.28 | AZ76: #14 | BA76: 1 | BB76: 19 | BD76: =AVERAGE(BC76:BC78) -> 270 | BE76: 270 | BF76: =AVERAGE(BE76:BE78) -> 267 | BG76: 233 | BH76: =AVERAGE(BG76:BG78) -> 230.6666667
Z77: #70 | AA77: 16.33 | AB77: 256.00 | AC77: 254.33 | AD77: 230.67 | AE77: 0.32 | AF77: 80.00 | AG77: 143.33 | AH77: 318.71 | AI77: 1149.25 | AJ77: 1384.57 | AK77: 14.85 | AL77: 6.85 | AM77: 21.69 | AN77: 29.38 | AO77: 82.54 | AP77: 133.62 | AQ77: 0.36 | AR77: 2.18 | AS77: 12.30 | AT77: 4.31 | AU77: 5.63 | AV77: 2.00 | AZ77: #14 | BA77: 2 | BB77: 22 | BC77: 264 | BE77: 261 | BG77: 226
Z78: #71 | AA78: 25.50 | AB78: 268.00 | AC78: 267.33 | AD78: 230.67 | AE78: 0.48 | AF78: 56.67 | AG78: 120.00 | AH78: 169.81 | AI78: 637.27 | AJ78: 1101.20 | AK78: 21.16 | AL78: 11.29 | AM78: 32.45 | AN78: 29.42 | AO78: 54.25 | AP78: 116.12 | AQ78: 0.56 | AR78: 1.89 | AS78: 4.94 | AT78: 2.71 | AU78: 2.59 | AV78: 1.42 | AZ78: #14 | BA78: 3 | BB78: 24 | BC78: 276 | BE78: 270 | BG78: 233
Z79: #72 | AA79: 21.00 | AB79: 266.67 | AC79: 269.33 | AD79: 230.67 | AE79: 0.40 | AF79: 70.00 | AG79: 143.33 | AH79: 449.38 | AI79: 1913.75 | AJ79: 2717.47 | AK79: 20.10 | AL79: 12.07 | AM79: 32.17 | AN79: 18.82 | AO79: 26.80 | AP79: 77.79 | AQ79: 0.74 | AR79: 1.70 | AS79: 2.22 | AT79: 1.60 | AU79: 1.32 | AV79: 0.94 | AZ79: #15 | BA79: 1 | BB79: 18 | BC79: 227 | BD79: =AVERAGE(BC79:BC81) -> 234.5 | BE79: 254 | BF79: =AVERAGE(BE79:BE81) -> 254 | BG79: 233 | BH79: =AVERAGE(BG79:BG81) -> 233
Z80: #73 | AA80: 19.67 | AB80: 256.00 | AC80: 259.67 | AD80: 233.00 | AE80: 0.87 | AF80: 68.33 | AG80: 133.33 | AH80: 258.57 | AI80: 1049.05 | AJ80: 1511.91 | AK80: 20.53 | AL80: 10.11 | AM80: 30.64 | AN80: 24.42 | AO80: 27.34 | AP80: 82.40 | AQ80: 0.92 | AR80: 2.03 | AS80: 2.69 | AT80: 2.42 | AU80: 1.33 | AV80: 1.19 | AZ80: #15 | BA80: 2 | BB80: 18
Z81: #74 | AA81: 18.33 | AB81: 264.00 | AC81: 261.00 | AD81: 233.00 | AE81: 0.87 | AF81: 61.67 | AG81: 146.67 | AH81: 154.00 | AI81: 729.75 | AJ81: 1465.97 | AK81: 20.53 | AL81: 11.49 | AM81: 32.03 | AN81: 33.55 | AO81: 66.68 | AP81: 132.26 | AQ81: 0.59 | AR81: 1.77 | AS81: 6.34 | AT81: 2.98 | AU81: 3.64 | AV81: 1.69 | AZ81: #15 | BA81: 3 | BB81: 12 | BC81: 242 | BE81: 254 | BG81: 233
Z82: #75 | AA82: 18.00 | AB82: 276.00 | AC82: 296.00 | AD82: 233.00 | AE82: 0.48 | AF82: 45.00 | AG82: 103.33 | AH82: 156.65 | AI82: 482.91 | AJ82: 929.66 | AK82: 21.34 | AL82: 9.58 | AM82: 30.92 | AN82: 27.18 | AO82: 46.01 | AP82: 104.11 | AQ82: 0.59 | AR82: 2.24 | AS82: 4.90 | AT82: 2.89 | AU82: 2.20 | AV82: 1.30 | AZ82: #16 | BA82: 1 | BB82: 14 | BC82: 227 | BD82: =AVERAGE(BC82:BC84) -> 239.3333333 | BE82: 241 | BF82: =AVERAGE(BE82:BE84) -> 245.6666667 | BG82: 226 | BH82: =AVERAGE(BG82:BG84) -> 223.6666667
Z83: #76 | AA83: 9.00 | AB83: 248.67 | AC83: 252.00 | AD83: 223.67 | AE83: 0.71 | AF83: 63.33 | AG83: 142.50 | AH83: 89.87 | AI83: 432.37 | AJ83: 649.32 | AK83: 20.21 | AL83: 10.65 | AM83: 30.86 | AN83: 24.17 | AO83: 66.01 | AP83: 121.04 | AQ83: 0.38 | AR83: 1.90 | AS83: 6.47 | AT83: 2.33 | AU83: 3.43 | AV83: 1.23 | AZ83: #16 | BA83: 2 | BB83: 14 | BC83: 264 | BE83: 248 | BG83: 226
Z84: #77 | AA84: 22.33 | AB84: 241.67 | AC84: 250.00 | AD84: 223.67 | AE84: 0.71 | AF84: 95.00 | AG84: 160.00 | AH84: 623.21 | AI84: 1796.97 | AJ84: 2355.95 | AK84: 20.29 | AL84: 12.11 | AM84: 32.40 | AN84: 22.70 | AO84: 13.78 | AP84: 68.88 | AQ84: 1.65 | AR84: 1.68 | AS84: 1.15 | AT84: 1.87 | AU84: 0.68 | AV84: 1.12 | AZ84: #16 | BA84: 3 | BC84: 227 | BE84: 248 | BG84: 219
Z85: #78 | AA85: 9.50 | AB85: 0.00 | AC85: 0.00 | AD85: 223.67 | AE85: 0.60 | AF85: 22.50 | AG85: 57.50 | AH85: 23.00 | AI85: 54.57 | AJ85: 44.04 | AK85: 15.30 | AL85: 5.98 | AM85: 21.29 | AN85: 18.45 | AO85: 69.73 | AP85: 109.46 | AQ85: 0.43 | AR85: 2.56 | AS85: 11.66 | AT85: 3.08 | AU85: 4.19 | AV85: 1.21 | AZ85: #17 | BA85: 1 | BB85: 19 | BC85: 291 | BD85: =AVERAGE(BC85:BC87) -> 279.6666667 | BE85: 261 | BF85: =AVERAGE(BE85:BE87) -> 264 | BG85: 226 | BH85: =AVERAGE(BG85:BG87) -> 228.3333333
Z86: #79 | AA86: 17.33 | AB86: 242.00 | AC86: 267.00 | AD86: 228.33 | AE86: 0.71 | AF86: 61.67 | AG86: 143.33 | AH86: 88.44 | AI86: 602.22 | AJ86: 1362.97 | AK86: 14.20 | AL86: 8.10 | AM86: 22.30 | AN86: 28.07 | AO86: 35.09 | AP86: 85.46 | AQ86: 0.81 | AR86: 1.47 | AS86: 7.11 | AT86: 5.30 | AU86: 9.27 | AV86: 6.64 | AZ86: #17 | BA86: 2 | BB86: 11 | BC86: 276 | BE86: 270 | BG86: 233
Z87: #8 | AA87: 21.33 | AD87: 228.33 | AE87: 0.63 | AF87: 80.00 | AG87: 145.00 | AH87: 470.82 | AI87: 1351.41 | AJ87: 2001.57 | AK87: 19.86 | AL87: 9.99 | AM87: 29.85 | AN87: 27.43 | AO87: 23.28 | AP87: 80.56 | AQ87: 1.25 | AR87: 1.98 | AS87: 2.37 | AT87: 2.74 | AU87: 1.26 | AV87: 1.42 | AZ87: #17 | BA87: 3 | BB87: 16 | BC87: 272 | BE87: 261 | BG87: 226
Z88: #80 | AA88: 25.67 | AB88: 229.67 | AC88: 247.67 | AD88: 228.33 | AE88: 0.48 | AF88: 55.00 | AG88: 136.67 | AH88: 280.54 | AI88: 1355.91 | AJ88: 2155.57 | AK88: 18.75 | AL88: 11.56 | AM88: 30.31 | AN88: 28.31 | AO88: 25.94 | AP88: 84.56 | AQ88: 1.09 | AR88: 1.64 | AS88: 2.32 | AT88: 2.55 | AU88: 1.40 | AV88: 1.53 | AZ88: #18 | BA88: 1 | BB88: 19 | BC88: 234 | BD88: =AVERAGE(BC88:BC90) -> 241.3333333 | BE88: 248 | BF88: =AVERAGE(BE88:BE90) -> 245.6666667 | BG88: 226 | BH88: =AVERAGE(BG88:BG90) -> 226
Z89: #81 | AA89: 15.00 | AB89: 242.00 | AC89: 254.00 | AD89: 226.00 | AE89: 0.87 | AF89: 46.67 | AG89: 123.33 | AH89: 56.08 | AI89: 392.74 | AJ89: 923.64 | AK89: 24.10 | AL89: 11.75 | AM89: 35.85 | AN89: 29.34 | AO89: 25.70 | AP89: 90.89 | AQ89: 1.15 | AR89: 2.05 | AS89: 2.18 | AT89: 2.51 | AU89: 1.07 | AV89: 1.23 | AZ89: #18 | BA89: 2 | BB89: 17 | BC89: 234 | BE89: 248 | BG89: 226
Z90: #82 | AA90: 27.33 | AB90: 264.00 | AC90: 252.67 | AD90: 226.00 | AE90: 0.48 | AF90: 101.67 | AG90: 133.33 | AH90: 698.22 | AI90: 1798.67 | AJ90: 2533.80 | AK90: 20.26 | AL90: 11.73 | AM90: 31.99 | AN90: 25.36 | AO90: 37.14 | AP90: 94.48 | AQ90: 0.76 | AR90: 1.75 | AS90: 3.29 | AT90: 2.25 | AU90: 1.89 | AV90: 1.28 | AZ90: #18 | BA90: 3 | BB90: 35 | BC90: 256 | BE90: 241 | BG90: 226
Z91: #84 | AA91: 18.50 | AB91: 262.00 | AC91: 274.67 | AD91: 226.00 | AE91: 0.79 | AF91: 56.67 | AG91: 141.67 | AH91: 109.54 | AI91: 714.98 | AJ91: 1283.58 | AK91: 23.26 | AL91: 11.21 | AM91: 34.47 | AN91: 28.87 | AO91: 36.86 | AP91: 100.21 | AQ91: 0.81 | AR91: 2.10 | AS91: 3.30 | AT91: 2.62 | AU91: 1.61 | AV91: 1.24 | AZ91: #19 | BA91: 1 | BB91: 18 | BC91: 242 | BD91: =AVERAGE(BC91:BC93) -> 253 | BE91: 270 | BF91: =AVERAGE(BE91:BE93) -> 262.6666667 | BG91: 205 | BH91: =AVERAGE(BG91:BG93) -> 214.3333333
Z92: #86 | AA92: 20.00 | AB92: 261.33 | AC92: 261.00 | AD92: 214.33 | AE92: 0.48 | AF92: 55.00 | AG92: 128.33 | AH92: 157.95 | AI92: 755.82 | AJ92: 1158.47 | AK92: 15.42 | AL92: 8.68 | AM92: 24.10 | AN92: 24.80 | AO92: 55.24 | AP92: 104.15 | AQ92: 0.50 | AR92: 1.77 | AS92: 6.82 | AT92: 2.89 | AU92: 3.91 | AV92: 1.63 | AZ92: #19 | BA92: 2 | BB92: 24 | BC92: 264 | BE92: 248 | BG92: 212
Z93: #87 | AA93: 22.00 | AC93: 288.33 | AD93: 214.33 | AE93: 0.79 | AF93: 70.00 | AG93: 143.33 | AH93: 166.30 | AI93: 769.88 | AJ93: 1152.06 | AK93: 17.73 | AL93: 9.73 | AM93: 27.46 | AN93: 29.17 | AO93: 31.22 | AP93: 87.85 | AQ93: 1.04 | AR93: 1.82 | AS93: 3.24 | AT93: 3.03 | AU93: 1.88 | AV93: 1.68 | AZ93: #19 | BA93: 3 | BB93: 22 | BE93: 270 | BG93: 226
Z94: #88 | AA94: 20.33 | AB94: 254.00 | AC94: 258.67 | AD94: 214.33 | AE94: 0.32 | AF94: 60.00 | AG94: 125.00 | AH94: 207.44 | AI94: 1075.06 | AJ94: 1293.48 | AK94: 14.58 | AL94: 8.26 | AM94: 22.83 | AN94: 26.28 | AO94: 37.34 | AP94: 86.45 | AQ94: 0.72 | AR94: 1.79 | AS94: 4.64 | AT94: 3.26 | AU94: 2.54 | AV94: 1.79 | AZ94: #2 | BA94: 1 | BB94: 16 | BC94: 264 | BD94: =AVERAGE(BC94:BC96) -> 253.3333333 | BE94: 270 | BF94: =AVERAGE(BE94:BE96) -> 272.3333333 | BG94: 226 | BH94: =AVERAGE(BG94:BG96) -> 233
Z95: #89 | AA95: 18.67 | AB95: 236.33 | AC95: 245.67 | AD95: 233.00 | AE95: 0.63 | AF95: 73.33 | AG95: 151.67 | AH95: 291.89 | AI95: 1436.10 | AJ95: 2112.68 | AK95: 23.87 | AL95: 14.51 | AM95: 38.38 | AN95: 28.92 | AO95: 37.24 | AP95: 104.54 | AQ95: 0.82 | AR95: 1.64 | AS95: 2.53 | AT95: 1.98 | AU95: 1.53 | AV95: 1.20 | AZ95: #2 | BA95: 2 | BB95: 13 | BC95: 248 | BE95: 277 | BG95: 240
Z96: #9 | AA96: 7.33 | AB96: 272.00 | AD96: 233.00 | AE96: 1.11 | AF96: 36.67 | AG96: 78.33 | AH96: 45.33 | AI96: 73.59 | AJ96: 137.89 | AK96: 13.40 | AL96: 7.21 | AM96: 20.61 | AN96: 24.49 | AO96: 89.15 | AP96: 134.25 | AQ96: 0.29 | AR96: 1.82 | AS96: 13.12 | AT96: 3.48 | AU96: 7.69 | AV96: 1.99 | AZ96: #2 | BA96: 3 | BB96: 21 | BC96: 248 | BE96: 270 | BG96: 233
Z97: #91 | AA97: 20.67 | AB97: 272.00 | AC97: 281.00 | AD97: 233.00 | AE97: 0.16 | AF97: 48.33 | AG97: 96.67 | AH97: 79.82 | AI97: 335.34 | AJ97: 563.11 | AK97: 21.07 | AL97: 9.40 | AM97: 30.47 | AN97: 23.84 | AO97: 51.05 | AP97: 105.37 | AQ97: 0.50 | AR97: 2.24 | AS97: 5.43 | AT97: 2.55 | AU97: 2.46 | AV97: 1.15 | AZ97: #20 | BA97: 1 | BB97: 17 | BD97: =AVERAGE(BC97:BC99) ->  | BF97: =AVERAGE(BE97:BE99) ->  | BH97: =AVERAGE(BG97:BG99) -> 247
Z98: #92 | AA98: 20.67 | AB98: 272.00 | AC98: 267.00 | AD98: 247.00 | AE98: 0.95 | AF98: 66.67 | AG98: 146.67 | AH98: 355.96 | AI98: 1361.61 | AJ98: 1900.60 | AK98: 22.07 | AL98: 13.94 | AM98: 36.01 | AN98: 27.53 | AO98: 28.18 | AP98: 91.73 | AQ98: 1.04 | AR98: 1.60 | AS98: 2.09 | AT98: 1.98 | AU98: 1.31 | AV98: 1.32 | AZ98: #20 | BA98: 2
Z99: #93 | AA99: 19.67 | AB99: 237.33 | AC99: 247.67 | AD99: 247.00 | AE99: 1.03 | AF99: 95.00 | AG99: 166.67 | AH99: 383.64 | AI99: 1306.30 | AJ99: 1789.75 | AK99: 20.27 | AL99: 11.46 | AM99: 31.73 | AN99: 25.09 | AO99: 28.81 | AP99: 85.64 | AQ99: 0.90 | AR99: 1.74 | AS99: 2.64 | AT99: 2.28 | AU99: 1.56 | AV99: 1.34 | AZ99: #20 | BA99: 3 | BG99: 247
Z100: #94 | AA100: 21.00 | AB100: 285.00 | AC100: 265.50 | AD100: 247.00 | AE100: 0.60 | AF100: 57.50 | AG100: 145.00 | AH100: 140.66 | AI100: 722.91 | AJ100: 1200.08 | AK100: 28.60 | AL100: 14.62 | AM100: 43.23 | AN100: 39.55 | AO100: 32.55 | AP100: 115.33 | AQ100: 1.21 | AR100: 1.96 | AS100: 2.23 | AT100: 2.70 | AU100: 1.14 | AV100: 1.38 | AZ100: #22 | BA100: 1 | BB100: 18 | BC100: 242 | BD100: =AVERAGE(BC100:BC102) -> 241.3333333 | BE100: 241 | BF100: =AVERAGE(BE100:BE102) -> 247.6666667 | BG100: 226 | BH100: =AVERAGE(BG100:BG102) -> 226
Z101: #95 | AA101: 27.50 | AB101: 227.00 | AC101: 251.00 | AD101: 226.00 | AE101: 0.60 | AF101: 70.00 | AG101: 147.50 | AH101: 466.35 | AI101: 1794.55 | AJ101: 2475.24 | AK101: 19.91 | AL101: 12.35 | AM101: 32.26 | AN101: 20.82 | AO101: 20.73 | AP101: 73.81 | AQ101: 1.00 | AR101: 1.61 | AS101: 1.68 | AT101: 1.69 | AU101: 1.04 | AV101: 1.04 | AZ101: #22 | BA101: 2 | BB101: 19 | BC101: 248 | BE101: 248 | BG101: 233
Z102: #96 | AA102: 24.67 | AB102: 241.67 | AC102: 250.00 | AD102: 226.00 | AE102: 0.40 | AF102: 56.67 | AG102: 121.67 | AH102: 243.28 | AI102: 816.53 | AJ102: 1239.86 | AK102: 22.04 | AL102: 9.69 | AM102: 31.73 | AN102: 28.35 | AO102: 32.87 | AP102: 92.95 | AQ102: 0.97 | AR102: 2.32 | AS102: 3.41 | AT102: 2.94 | AU102: 1.56 | AV102: 1.31 | AZ102: #22 | BA102: 3 | BB102: 25 | BC102: 234 | BE102: 254 | BG102: 219
Z103: #97 | AA103: 17.50 | AB103: 245.00 | AC103: 244.50 | AD103: 226.00 | AE103: 0.83 | AF103: 60.00 | AG103: 145.00 | AH103: 199.86 | AI103: 1048.97 | AJ103: 1566.93 | AK103: 20.78 | AL103: 12.01 | AM103: 32.79 | AN103: 34.64 | AO103: 43.77 | AP103: 111.19 | AQ103: 0.77 | AR103: 1.73 | AS103: 3.64 | AT103: 2.82 | AU103: 2.10 | AV103: 1.63 | AZ103: #23 | BA103: 1 | BB103: 20 | BC103: 264 | BD103: =AVERAGE(BC103:BC105) -> 258.6666667 | BE103: 261 | BF103: =AVERAGE(BE103:BE105) -> 258.6666667 | BG103: 233 | BH103: =AVERAGE(BG103:BG105) -> 226
Z104: #98 | AA104: 25.67 | AB104: 0.00 | AC104: 0.00 | AD104: 226.00 | AE104: 0.16 | AF104: 50.00 | AG104: 120.00 | AH104: 137.83 | AI104: 662.81 | AJ104: 1247.27 | AK104: 20.88 | AL104: 10.31 | AM104: 31.19 | AN104: 26.01 | AO104: 40.23 | AP104: 97.43 | AQ104: 0.64 | AR104: 2.01 | AS104: 3.94 | AT104: 2.53 | AU104: 1.98 | AV104: 1.27 | AZ104: #23 | BA104: 2 | BB104: 33 | BC104: 248 | BE104: 261 | BG104: 219
Z105: #99 | AA105: 17.67 | AB105: 274.00 | AC105: 274.67 | AD105: 226.00 | AE105: 0.79 | AF105: 60.00 | AG105: 143.33 | AH105: 156.98 | AI105: 766.75 | AJ105: 1379.77 | AK105: 25.89 | AL105: 15.58 | AM105: 41.47 | AN105: 19.51 | AO105: 22.52 | AP105: 83.50 | AQ105: 0.87 | AR105: 1.66 | AS105: 1.48 | AT105: 1.26 | AU105: 0.89 | AV105: 0.76 | AZ105: #23 | BA105: 3 | BB105: 17 | BC105: 264 | BE105: 254 | BG105: 226
AD106: 226.00 | AZ106: #24 | BA106: 1 | BB106: 22 | BC106: 227 | BD106: =AVERAGE(BC106:BC108) -> 247 | BE106: 261 | BF106: =AVERAGE(BE106:BE108) -> 264 | BG106: 240 | BH106: =AVERAGE(BG106:BG108) -> 230.6666667
AD107: 230.67 | AZ107: #24 | BA107: 2 | BB107: 25 | BC107: 242 | BE107: 261 | BG107: 212
AD108: 230.67 | AZ108: #24 | BA108: 3 | BB108: 15 | BC108: 272 | BE108: 270 | BG108: 240
AD109: 230.67 | AZ109: #25 | BA109: 1 | BB109: 9 | BC109: 291 | BD109: =AVERAGE(BC109:BC111) -> 281.5 | BE109: 277 | BF109: =AVERAGE(BE109:BE111) -> 273.5 | BG109: 240 | BH109: =AVERAGE(BG109:BG111) -> 240
AD110: 240.00 | AZ110: #25 | BA110: 2 | BB110: 17 | BC110: 272 | BE110: 270 | BG110: 240
AD111: 240.00 | AZ111: #25 | BA111: 3 | BB111: 17
AZ112: #26 | BA112: 1 | BB112: 16 | BD112: =AVERAGE(BC112:BC114) ->  | BF112: =AVERAGE(BE112:BE114) ->  | BH112: =AVERAGE(BG112:BG114) -> 233
AZ113: #26 | BA113: 2 | BB113: 7
AZ114: #26 | BA114: 3 | BG114: 233
AZ115: #27 | BA115: 1 | BB115: 17 | BD115: =AVERAGE(BC115:BC117) ->  | BF115: =AVERAGE(BE115:BE117) ->  | BH115: =AVERAGE(BG115:BG117) -> 
AZ116: #27 | BA116: 2 | BB116: 22
AZ117: #27 | BA117: 3 | BB117: 13
AZ118: #28 | BA118: 1 | BB118: 15 | BD118: =AVERAGE(BC118:BC120) -> 276 | BE118: 277 | BF118: =AVERAGE(BE118:BE120) -> 277 | BG118: 240 | BH118: =AVERAGE(BG118:BG120) -> 236.5
AZ119: #28 | BA119: 2 | BB119: 28
AZ120: #28 | BA120: 3 | BC120: 276 | BE120: 277 | BG120: 233
AZ121: #3 | BA121: 1 | BB121: 16 | BD121: =AVERAGE(BC121:BC123) ->  | BF121: =AVERAGE(BE121:BE123) ->  | BH121: =AVERAGE(BG121:BG123) -> 
AZ122: #3 | BA122: 2 | BB122: 19
AZ123: #3 | BA123: 3 | BB123: 15
AZ124: #32 | BA124: 1 | BB124: 15 | BD124: =AVERAGE(BC124:BC126) -> 276 | BF124: =AVERAGE(BE124:BE126) ->  | BH124: =AVERAGE(BG124:BG126) -> 254
AZ125: #32 | BA125: 2 | BB125: 26 | BC125: 276 | BG125: 254
AZ126: #32 | BA126: 3 | BB126: 18
AZ127: #34 | BA127: 1 | BB127: 26 | BC127: 276 | BD127: =AVERAGE(BC127:BC129) -> 263.3333333 | BE127: 254 | BF127: =AVERAGE(BE127:BE129) -> 271.6666667 | BG127: 233 | BH127: =AVERAGE(BG127:BG129) -> 244.6666667
AZ128: #34 | BA128: 2 | BB128: 26 | BC128: 242 | BE128: 270 | BG128: 247
AZ129: #34 | BA129: 3 | BB129: 23 | BC129: 272 | BE129: 291 | BG129: 254
AZ130: #35 | BA130: 1 | BB130: 24 | BD130: =AVERAGE(BC130:BC132) ->  | BF130: =AVERAGE(BE130:BE132) ->  | BH130: =AVERAGE(BG130:BG132) -> 
AZ131: #35 | BA131: 2 | BB131: 24
AZ132: #35 | BA132: 3 | BB132: 21
AZ133: #36 | BA133: 1 | BB133: 16 | BC133: 276 | BD133: =AVERAGE(BC133:BC135) -> 274 | BE133: 283 | BF133: =AVERAGE(BE133:BE135) -> 279 | BG133: 254 | BH133: =AVERAGE(BG133:BG135) -> 249.3333333
AZ134: #36 | BA134: 2 | BB134: 25 | BC134: 272 | BE134: 277 | BG134: 254
AZ135: #36 | BA135: 3 | BB135: 20 | BE135: 277 | BG135: 240
AZ136: #37 | BA136: 1 | BB136: 19 | BC136: 272 | BD136: =AVERAGE(BC136:BC138) -> 268 | BE136: 254 | BF136: =AVERAGE(BE136:BE138) -> 251 | BG136: 226 | BH136: =AVERAGE(BG136:BG138) -> 222.5
AZ137: #37 | BA137: 2 | BB137: 26
AZ138: #37 | BA138: 3 | BC138: 264 | BE138: 248 | BG138: 219
AZ139: #39 | BA139: 1 | BB139: 19 | BC139: 264 | BD139: =AVERAGE(BC139:BC141) -> 266.6666667 | BE139: 270 | BF139: =AVERAGE(BE139:BE141) -> 269.3333333 | BG139: 233 | BH139: =AVERAGE(BG139:BG141) -> 235.3333333
AZ140: #39 | BA140: 2 | BB140: 23 | BC140: 264 | BE140: 261 | BG140: 233
AZ141: #39 | BA141: 3 | BB141: 21 | BC141: 272 | BE141: 277 | BG141: 240
AZ142: #4 | BA142: 1 | BB142: 24 | BC142: 276 | BD142: =AVERAGE(BC142:BC144) -> 273.3333333 | BE142: 270 | BF142: =AVERAGE(BE142:BE144) -> 272.3333333 | BG142: 226 | BH142: =AVERAGE(BG142:BG144) -> 235.3333333
AZ143: #4 | BA143: 2 | BB143: 20 | BC143: 272 | BE143: 277 | BG143: 240
AZ144: #4 | BA144: 3 | BB144: 20 | BC144: 272 | BE144: 270 | BG144: 240
AZ145: #40 | BA145: 1 | BB145: 21 | BD145: =AVERAGE(BC145:BC147) ->  | BF145: =AVERAGE(BE145:BE147) ->  | BH145: =AVERAGE(BG145:BG147) -> 254
AZ146: #40 | BA146: 2 | BB146: 18
AZ147: #40 | BA147: 3 | BB147: 20 | BG147: 254
AZ148: #41 | BA148: 1 | BB148: 21 | BD148: =AVERAGE(BC148:BC150) -> 264 | BE148: 241 | BF148: =AVERAGE(BE148:BE150) -> 252 | BG148: 240 | BH148: =AVERAGE(BG148:BG150) -> 230.6666667
AZ149: #41 | BA149: 2 | BB149: 23 | BE149: 254 | BG149: 219
AZ150: #41 | BA150: 3 | BB150: 27 | BC150: 264 | BE150: 261 | BG150: 233
AZ151: #42 | BA151: 1 | BB151: 14 | BC151: 256 | BD151: =AVERAGE(BC151:BC153) -> 244 | BE151: 248 | BF151: =AVERAGE(BE151:BE153) -> 245.6666667 | BG151: 226 | BH151: =AVERAGE(BG151:BG153) -> 221.3333333
AZ152: #42 | BA152: 2 | BB152: 19 | BC152: 234 | BE152: 241 | BG152: 219
AZ153: #42 | BA153: 3 | BB153: 11 | BC153: 242 | BE153: 248 | BG153: 219
AZ154: #43 | BA154: 1 | BB154: 26 | BC154: 272 | BD154: =AVERAGE(BC154:BC156) -> 254 | BE154: 270 | BF154: =AVERAGE(BE154:BE156) -> 257.3333333 | BG154: 219 | BH154: =AVERAGE(BG154:BG156) -> 216.6666667
AZ155: #43 | BA155: 2 | BB155: 18 | BC155: 248 | BE155: 241 | BG155: 212
AZ156: #43 | BA156: 3 | BB156: 16 | BC156: 242 | BE156: 261 | BG156: 219
AZ157: #44 | BA157: 1 | BB157: 15
AZ158: #44 | BA158: 2 | BB158: 18
AZ159: #44 | BA159: 3 | BB159: 18
AZ160: #45 | BA160: 1 | BB160: 13 | BC160: 234 | BD160: =AVERAGE(BC160:BC162) -> 238 | BE160: 241 | BF160: =AVERAGE(BE160:BE162) -> 245.3333333 | BG160: 219 | BH160: =AVERAGE(BG160:BG162) -> 226
AZ161: #45 | BA161: 2 | BB161: 20 | BC161: 242 | BE161: 241 | BG161: 233
AZ162: #45 | BA162: 3 | BB162: 16 | BE162: 254 | BG162: 226
AZ163: #46 | BA163: 1 | BB163: 21 | BC163: 276 | BD163: =AVERAGE(BC163:BC165) -> 283.3333333 | BE163: 277 | BF163: =AVERAGE(BE163:BE165) -> 281.6666667 | BG163: 233 | BH163: =AVERAGE(BG163:BG165) -> 235.3333333
AZ164: #46 | BA164: 2 | BB164: 19 | BC164: 276 | BE164: 277 | BG164: 240
AZ165: #46 | BA165: 3 | BB165: 25 | BC165: 298 | BE165: 291 | BG165: 233
AZ166: #47 | BA166: 1 | BB166: 26 | BC166: 248 | BD166: =AVERAGE(BC166:BC168) -> 255.3333333 | BE166: 261 | BF166: =AVERAGE(BE166:BE168) -> 261.6666667 | BG166: 233 | BH166: =AVERAGE(BG166:BG168) -> 228.3333333
AZ167: #47 | BA167: 2 | BB167: 22 | BC167: 227 | BE167: 254 | BG167: 219
AZ168: #47 | BA168: 3 | BB168: 23 | BC168: 291 | BE168: 270 | BG168: 233
AZ169: #48 | BA169: 1 | BB169: 17 | BC169: 272 | BD169: =AVERAGE(BC169:BC171) -> 272 | BE169: 283 | BF169: =AVERAGE(BE169:BE171) -> 280 | BG169: 240 | BH169: =AVERAGE(BG169:BG171) -> 237.6666667
AZ170: #48 | BA170: 2 | BB170: 22 | BE170: 277 | BG170: 233
AZ171: #48 | BA171: 3 | BB171: 24 | BG171: 240
AZ172: #49 | BA172: 1 | BB172: 25 | BC172: 276 | BD172: =AVERAGE(BC172:BC174) -> 276 | BE172: 261 | BF172: =AVERAGE(BE172:BE174) -> 269.3333333 | BG172: 226 | BH172: =AVERAGE(BG172:BG174) -> 230.6666667
AZ173: #49 | BA173: 2 | BB173: 28 | BE173: 277 | BG173: 240
AZ174: #49 | BA174: 3 | BB174: 17 | BE174: 270 | BG174: 226
AZ175: #5 | BA175: 1 | BB175: 15 | BD175: =AVERAGE(BC175:BC177) ->  | BF175: =AVERAGE(BE175:BE177) ->  | BH175: =AVERAGE(BG175:BG177) -> 
AZ176: #5 | BA176: 2 | BB176: 12
AZ177: #5 | BA177: 3 | BB177: 9
AZ178: #50 | BA178: 1 | BB178: 25 | BD178: =AVERAGE(BC178:BC180) ->  | BF178: =AVERAGE(BE178:BE180) ->  | BH178: =AVERAGE(BG178:BG180) -> 
AZ179: #50 | BA179: 2 | BB179: 29
AZ180: #50 | BA180: 3 | BB180: 24
AZ181: #51 | BA181: 1 | BB181: 17 | BD181: =AVERAGE(BC181:BC183) ->  | BF181: =AVERAGE(BE181:BE183) -> 291 | BG181: 254 | BH181: =AVERAGE(BG181:BG183) -> 254
AZ182: #51 | BA182: 2 | BB182: 15
AZ183: #51 | BA183: 3 | BB183: 20 | BE183: 291 | BG183: 254
AZ184: #53 | BA184: 1 | BB184: 23 | BC184: 234 | BD184: =AVERAGE(BC184:BC186) -> 246 | BE184: 254 | BF184: =AVERAGE(BE184:BE186) -> 258.6666667 | BG184: 226 | BH184: =AVERAGE(BG184:BG186) -> 233
AZ185: #53 | BA185: 2 | BB185: 14 | BC185: 256 | BE185: 261 | BG185: 240
AZ186: #53 | BA186: 3 | BB186: 18 | BC186: 248 | BE186: 261 | BG186: 233
AZ187: #55 | BA187: 1 | BB187: 15 | BC187: 256 | BD187: =AVERAGE(BC187:BC189) -> 251.3333333 | BE187: 261 | BF187: =AVERAGE(BE187:BE189) -> 256.6666667 | BG187: 233 | BH187: =AVERAGE(BG187:BG189) -> 226
AZ188: #55 | BA188: 2 | BB188: 21 | BC188: 242 | BE188: 248 | BG188: 226
AZ189: #55 | BA189: 3 | BB189: 21 | BC189: 256 | BE189: 261 | BG189: 219
AZ190: #56 | BA190: 1 | BB190: 16 | BC190: 276 | BD190: =AVERAGE(BC190:BC192) -> 269.3333333 | BE190: 277 | BF190: =AVERAGE(BE190:BE192) -> 274.6666667 | BG190: 240 | BH190: =AVERAGE(BG190:BG192) -> 235.3333333
AZ191: #56 | BA191: 2 | BB191: 20 | BC191: 276 | BE191: 270 | BG191: 233
AZ192: #56 | BA192: 3 | BB192: 18 | BC192: 256 | BE192: 277 | BG192: 233
AZ193: #57 | BA193: 1 | BB193: 11 | BC193: 242 | BD193: =AVERAGE(BC193:BC195) -> 244.3333333 | BE193: 219 | BF193: =AVERAGE(BE193:BE195) -> 240.3333333 | BG193: 226 | BH193: =AVERAGE(BG193:BG195) -> 190.3333333
AZ194: #57 | BA194: 2 | BB194: 18 | BC194: 264 | BE194: 248 | BG194: 176
AZ195: #57 | BA195: 3 | BB195: 13 | BC195: 227 | BE195: 254 | BG195: 169
AZ196: #59 | BA196: 1 | BB196: 18 | BD196: =AVERAGE(BC196:BC198) ->  | BF196: =AVERAGE(BE196:BE198) ->  | BG196: 254 | BH196: =AVERAGE(BG196:BG198) -> 250.5
AZ197: #59 | BA197: 2 | BB197: 20
AZ198: #59 | BA198: 3 | BG198: 247
AZ199: #6 | BA199: 1 | BB199: 17 | BC199: 264 | BD199: =AVERAGE(BC199:BC201) -> 253.3333333 | BE199: 261 | BF199: =AVERAGE(BE199:BE201) -> 256.3333333 | BG199: 226 | BH199: =AVERAGE(BG199:BG201) -> 228.3333333
AZ200: #6 | BA200: 2 | BB200: 16 | BC200: 276 | BE200: 254 | BG200: 233
... 115 more rows

Sheet S2 Phenotypic differences
A1: T-test (unpaired) | B1: 112&90 against 18&120 | C1: Msac297 against Msin102 | D1: Column1
A2: Number of tillers (TransecCount) | B2: 0.015 | C2: 0.042
A3: Canopy height (cm) | B3: 0.035 | C3: 0.060
A4: 2015 Yield (g DW plant) | B4: 0.032 | C4: 0.018
A5: Glc | B5: 0.176 | C5: 0.518
A6: Fru | B6: 0.932 | C6: 0.909
A7: Hexose | B7: 0.312 | C7: 0.710
A8: Suc | B8: 0.021 | C8: 0.005
A9: Total_soluble | B9: 0.066 | C9: 0.415
A10: Starch | B10: 0.004 | C10: 0.265
A11: Total_carb | B11: 0.000 | C11: 0.046
A12: Suc/Sta | B12: 0.091 | C12: 0.827
A13: Glc/Fru | B13: 0.006 | C13: 0.072
A14: Starch/Fru | B14: 0.041 | C14: 0.271
A15: Suc/Fru | B15: 0.068 | C15: 0.278
A16: Starch/Glc | B16: 0.109 | C16: 0.225
A17: Suc/Glc | B17: 0.403 | C17: 0.182
B22: New data
A23: Genotype | B23: RNA-seq | C23: Number of tillers (TransecCount) | D23: Canopy height (cm) | E23: 2015 Yield (g DW plant) | F23: Glc | G23: Fru | H23: Hexose | I23: Suc | J23: Total_soluble | K23: Starch | L23: Total_carb | M23: Suc/Sta | N23: Glc/Fru | O23: Starch/Fru | P23: Suc/Fru | Q23: Starch/Glc | R23: Suc/Glc
A24: #112 | B24: Yes | C24: 16.00 | D24: 80.00 | E24: 338.83 | F24: 22.33 | G24: 12.07 | H24: 34.40 | I24: 38.04 | J24: 72.45 | K24: 92.08 | L24: 164.52 | M24: 0.41 | N24: 1.85 | O24: 7.63 | P24: 3.15 | Q24: 4.12 | R24: 1.70
A25: #112 | B25: Yes | C25: 13.00 | D25: 85.00 | E25: 407.13 | F25: 15.15 | G25: 7.35 | H25: 22.50 | I25: 33.12 | J25: 55.62 | K25: 66.52 | L25: 122.14 | M25: 0.50 | N25: 2.06 | O25: 9.05 | P25: 4.51 | Q25: 4.39 | R25: 2.19
A26: #112 | B26: Yes | C26: 17.00 | D26: 90.00 | E26: 542.11 | F26: 17.65 | G26: 8.78 | H26: 26.43 | I26: 29.96 | J26: 56.39 | K26: 90.77 | L26: 147.16 | M26: 0.33 | N26: 2.01 | O26: 10.34 | P26: 3.41 | Q26: 5.14 | R26: 1.70
A27: #90 | B27: Yes | C27: 14.00 | D27: 95.00 | E27: 777.44 | F27: 30.71 | G27: 12.84 | H27: 43.55 | I27: 36.65 | J27: 80.20 | K27: 57.14 | L27: 137.34 | M27: 0.64 | N27: 2.39 | O27: 4.45 | P27: 2.85 | Q27: 1.86 | R27: 1.19
A28: #90 | B28: Yes | C28: 16.00 | D28: 105.00 | E28: 858.38 | F28: 20.45 | G28: 9.11 | H28: 29.56 | I28: 27.64 | J28: 57.20 | K28: 84.00 | L28: 141.20 | M28: 0.33 | N28: 2.25 | O28: 9.22 | P28: 3.03 | Q28: 4.11 | R28: 1.35
A29: #90 | B29: Yes | C29: 16.00 | D29: 110.00 | E29: 951.48 | F29: 30.59 | G29: 13.64 | H29: 44.23 | I29: 29.21 | J29: 73.43 | K29: 52.75 | L29: 126.19 | M29: 0.55 | N29: 2.24 | O29: 3.87 | P29: 2.14 | Q29: 1.72 | R29: 0.95
A30: #120 | B30: Yes | C30: 27.00 | D30: 80.00 | E30: 483.74 | F30: 15.50 | G30: 7.78 | H30: 23.28 | I30: 26.34 | J30: 49.62 | K30: 66.19 | L30: 115.81 | M30: 0.40 | N30: 1.99 | O30: 8.51 | P30: 3.39 | Q30: 4.27 | R30: 1.70
A31: #120 | B31: Yes | C31: 20.00 | D31: 115.00 | E31: 920.98 | F31: 20.30 | G31: 10.77 | H31: 31.07 | I31: 22.98 | J31: 54.05 | K31: 26.77 | L31: 80.82 | M31: 0.86 | N31: 1.88 | O31: 2.49 | P31: 2.13 | Q31: 1.32 | R31: 1.13
A32: #120 | B32: Yes | C32: 23.00 | D32: 115.00 | E32: 1035.37 | F32: 24.07 | G32: 13.07 | H32: 37.14 | I32: 35.06 | J32: 72.20 | K32: 33.30 | L32: 105.50 | M32: 1.05 | N32: 1.84 | O32: 2.55 | P32: 2.68 | Q32: 1.38 | R32: 1.46
A33: #18 | B33: Yes | C33: 19.00 | D33: 125.00 | E33: 1543.74 | F33: 18.64 | G33: 12.07 | H33: 30.71 | I33: 22.73 | J33: 53.44 | K33: 46.66 | L33: 100.10 | M33: 0.49 | N33: 1.54 | O33: 3.87 | P33: 1.88 | Q33: 2.50 | R33: 1.22
A34: #18 | B34: Yes | C34: 17.00 | D34: 135.00 | E34: 1872.80 | F34: 15.85 | G34: 9.26 | H34: 25.11 | I34: 19.51 | J34: 44.62 | K34: 37.59 | L34: 82.21 | M34: 0.52 | N34: 1.71 | O34: 4.06 | P34: 2.11 | Q34: 2.37 | R34: 1.23
A35: #18 | B35: Yes | C35: 35.00 | D35: 135.00 | E35: 2122.87 | F35: 16.34 | G35: 10.16 | H35: 26.51 | I35: 21.43 | J35: 47.94 | K35: 28.95 | L35: 76.89 | M35: 0.74 | N35: 1.61 | O35: 2.85 | P35: 2.11 | Q35: 1.77 | R35: 1.31
A36: M. sacch 297 | B36: Yes | C36: 25.00 | D36: 152.00 | E36: 219.10 | F36: 8.47 | G36: 5.66 | H36: 14.13 | I36: 33.84 | J36: 47.97 | K36: 64.79 | L36: 112.77 | M36: 0.52 | N36: 1.50 | O36: 11.44 | P36: 5.97 | Q36: 7.65 | R36: 4.00
A37: M. sacch 297 | B37: Yes | C37: 26.00 | D37: 113.00 | E37: 600.64 | F37: 20.20 | G37: 14.35 | H37: 34.56 | I37: 31.28 | J37: 65.84 | K37: 15.20 | L37: 81.03 | M37: 2.06 | N37: 1.41 | O37: 1.06 | P37: 2.18 | Q37: 0.75 | R37: 1.55
A38: M. sacch 297 | B38: Yes | C38: 22.00 | D38: 107.00 | E38: 454.69 | F38: 5.90 | G38: 4.37 | H38: 10.26 | I38: 32.60 | J38: 42.86 | K38: 64.19 | L38: 107.06 | M38: 0.51 | N38: 1.35 | O38: 14.71 | P38: 7.47 | Q38: 10.89 | R38: 5.53
A39: M. sinen 102 | B39: Yes | C39: 17.00 | D39: 162.00 | F39: 20.01 | G39: 8.45 | H39: 28.45 | I39: 20.73 | J39: 49.19 | K39: 18.71 | L39: 67.90 | M39: 1.11 | N39: 2.37 | O39: 2.21 | P39: 2.45 | Q39: 0.94 | R39: 1.04
A40: M. sinen 102 | B40: Yes | C40: 20.00 | D40: 170.00 | E40: 1311.84 | F40: 9.81 | G40: 5.90 | H40: 15.71 | I40: 25.79 | J40: 41.50 | K40: 34.65 | L40: 76.14 | M40: 0.74 | N40: 1.66 | O40: 5.87 | P40: 4.37 | Q40: 3.53 | R40: 2.63
A41: M. sinen 102 | B41: Yes | C41: 21.00 | D41: 155.00 | E41: 1838.77 | F41: 16.05 | G41: 8.84 | H41: 24.89 | I41: 21.18 | J41: 46.07 | K41: 24.40 | L41: 70.46 | M41: 0.87 | N41: 1.82 | O41: 2.76 | P41: 2.40 | Q41: 1.52 | R41: 1.32
A42: T-TEST HYBRIDS | C42: =TTEST(C24:C29,C30:C35,2,2) -> 0.01468151922 | D42: =TTEST(D24:D29,D30:D35,2,2) -> 0.03524446311 | E42: 0.03178549498 | F42: 0.1756557738 | G42: 0.9324402933 | H42: 0.3123520019 | I42: 0.02147433363 | J42: =TTEST(J24:J29,J30:J35,2,2) -> 0.06555055726 | K42: 0.00435783095 | L42: 0.0004352350368 | M42: 0.0907675215 | N42: 0.005958458747 | O42: =TTEST(O24:O29,O30:O35,2,2) -> 0.04084093211 | P42: 0.06778883871 | Q42: 0.1089205594 | R42: 0.4034742662
A43: T-TEST PARENTS | C43: =TTEST(C36:C38,C39:C41,2,2) -> 0.04231565584 | D43: =TTEST(D36:D38,D39:D41,2,2) -> 0.06020095593 | E43: 0.01790587124 | F43: 0.5175776995 | G43: 0.9091030734 | H43: 0.7102839503 | I43: 0.004879905614 | J43: 0.415194348 | K43: 0.2645911267 | L43: 0.04593504183 | M43: 0.826894061 | N43: 0.07235847716 | O43: 0.2705299839 | P43: 0.2781909828 | Q43: 0.2246894636 | R43: 0.1822392098
A44: T-TEST HETEROSIS | C44: =TTEST(C24:C35,C36:C41,2,2) -> 0.3933572508 | D44: =TTEST(D24:D35,D36:D41,2,2) -> 0.003984679431 | E44: 0.753123193 | F44: 0.02166030073 | G44: 0.06590189497 | H44: 0.02591293634 | I44: 0.7503918172 | J44: 0.06277626907 | K44: 0.1038804083 | L44: 0.02997754298 | M44: 0.04725702928 | N44: 0.09784969336 | O44: 0.7644877711 | P44: =TTEST(P24:P35,P36:P41,2,2) -> 0.06781027683 | Q44: 0.3319511671 | R44: 0.02747315484

Sheet S3 DE_hybrids
D1: ROOTS | I1: STEM | N1: LEAF
A2: GENE | B2: Description | C2: Goterm | D2: roots_baseMean | E2: roots_log2FoldChange | F2: roots_lfcSE | G2: roots_pvalue | H2: roots_padj | I2: stem_baseMean | J2: stem_log2FoldChange | K2: stem_lfcSE | L2: stem_pvalue | M2: stem_padj | N2: leaf_baseMean | O2: leaf_log2FoldChange | P2: leaf_lfcSE | Q2: leaf_pvalue | R2: leaf_padj
A3: Misin07G248700 | B3: kinetochore protein NDC80 homolog; kinetochore protein ndc80 homolog | C3: P:establishment of mitotic spindle orientation; C:condensed nuclear chromosome kinetochore; F:structural constituent of cytoskeleton; C:cytoskeleton; P:mitotic spindle organization; C:Ndc80 complex; P:attachment of mitotic spindle microtubules to kinetochore | D3: 102.6834059 | E3: 4.887160969 | F3: 0.4447289472 | G3: 1.61E-28 | H3: 9.06E-24 | I3: 102.6834059 | J3: 4.326860185 | K3: 0.4570484342 | L3: 4.92E-22 | M3: 4.42E-18 | N3: 102.6834059 | O3: 4.855085805 | P3: 0.6818981149 | Q3: 3.60E-14 | R3: 6.69E-11
A4: Misin10G098300 | B4: pentatricopeptide repeat-containing protein At5g02830, chloroplastic; pentatricopeptide repeat-containing protein chloroplastic | C4: C:plastid | D4: 145.9752456 | E4: 7.567959791 | F4: 0.7462148862 | G4: 2.42E-25 | H4: 6.84E-21 | I4: 145.9752456 | J4: 7.371481669 | K4: 0.7271750148 | L4: 1.92E-25 | M4: 2.59E-21 | N4: 145.9752456 | O4: 8.394140164 | P4: 1.340731584 | Q4: 1.87E-11 | R4: 1.77E-08
A5: Misin10G003100 | B5: ---NA--- | C5: 0 | D5: 240.0794893 | E5: -5.829164093 | F5: 0.6055280956 | G5: 1.41E-22 | H5: 2.66E-18 | I5: 240.0794893 | J5: -6.533813141 | K5: 0.5268675453 | L5: 2.82E-36 | M5: 7.59E-32 | N5: 240.0794893 | O5: -5.801418892 | P5: 0.7003943347 | Q5: 5.60E-18 | R5: 1.89E-14
A6: Misin09G191800 | B6: hypothetical protein SORBIDRAFT_05g026130; uncharacterized protein loc4339105 | C6: C:plastid | D6: 497.3289045 | E6: -8.233740411 | F6: 0.9397097476 | G6: 6.99E-20 | H6: 9.86E-16 | I6: 497.3289045 | J6: -6.910282379 | K6: 0.5272165052 | L6: 2.45E-40 | M6: 1.32E-35 | N6: 497.3289045 | O6: -9.493634409 | P6: 1.420477333 | Q6: 6.83E-13 | R6: 9.20E-10
A7: MisinT025500 | B7: serine protease Do | C7: F:serine-type endopeptidase activity; P:proteolysis; F:peptidase activity; F:serine-type peptidase activity; F:hydrolase activity; C:periplasmic space | D7: 361.9514806 | E7: -2.631038471 | F7: 0.291864506 | G7: 1.50E-19 | H7: 1.69E-15 | I7: 361.9514806 | J7: -2.123661747 | K7: 0.2832819261 | L7: 1.05E-14 | M7: 2.02E-11 | N7: 361.9514806 | O7: -1.274925566 | P7: 0.336751375 | Q7: 2.89E-06 | R7: 0.0006772354657
A8: Misin14G114700 | B8: predicted protein | C8: 0 | D8: 124.2416134 | E8: -4.735849267 | F8: 0.5358765836 | G8: 3.86E-19 | H8: 3.62E-15 | I8: 124.2416134 | J8: -5.775283032 | K8: 0.5059071499 | L8: 6.01E-31 | M8: 1.08E-26 | N8: 124.2416134 | O8: -4.508972668 | P8: 0.6223459658 | Q8: 1.48E-14 | R8: 2.84E-11
A9: Misin18G131900 | B9: enhancer of mRNA-decapping protein 4-like | C9: C:P-body; P:deadenylation-independent decapping of nuclear-transcribed mRNA | D9: 118.2992729 | E9: -36.68836906 | F9: 4.40084915 | G9: 1.08E-17 | H9: 8.73E-14 | I9: 118.2992729 | J9: -0.1816408555 | K9: 0.9781336029 | L9: 0.02371804856 | M9: 0.38280703 | N9: 118.2992729 | O9: -3.222013393 | P9: 5.297992458 | Q9: 5.36E-05 | R9: 0.007162840374
A10: Misin19G248200 | B10: probable LRR receptor-like serine/threonine-protein kinase At3g47570; probable lrr receptor-like serine threonine-protein kinase at3g47570 | C10: F:nucleotide binding; F:protein kinase activity; C:membrane; P:phosphorylation | D10: 88.28506905 | E10: -6.755657927 | F10: 0.8191843482 | G10: 2.00E-17 | H10: 1.41E-13 | I10: 88.28506905 | J10: -3.061136819 | K10: 0.8229838192 | L10: 3.37E-06 | M10: 0.0006858093506 | N10: 88.28506905 | O10: -4.73444911 | P10: 0.8792751741 | Q10: 2.41E-09 | R10: 1.35E-06
A11: Misin10G106600 | B11: ---NA--- | C11: 0 | D11: 231.535529 | E11: 2.523294273 | F11: 0.3008397736 | G11: 3.83E-17 | H11: 2.40E-13 | I11: 231.535529 | J11: 2.708129271 | K11: 0.3092843551 | L11: 1.67E-19 | M11: 1.00E-15 | N11: 231.535529 | O11: 1.754455219 | P11: 0.3272549756 | Q11: 1.97E-09 | R11: 1.15E-06
A12: Misin01G074800 | B12: hypothetical protein SORBI_003G420400; uncharacterized protein loc103650776 | C12: C:mitochondrion; F:zinc ion binding; C:membrane; P:sterol metabolic process; P:isopentenyl diphosphate biosynthetic process, mevalonate pathway; P:isopentenyl diphosphate biosynthetic process, methylerythritol 4-phosphate pathway; F:poly(G) binding; P:root development; P:regulation of catalytic activity | D12: 99.38057165 | E12: -3.43341843 | F12: 0.4152872501 | G12: 8.53E-17 | H12: 4.81E-13 | I12: 99.38057165 | J12: -2.424782656 | K12: 0.3388847496 | L12: 9.33E-14 | M12: 1.40E-10 | N12: 99.38057165 | O12: -3.295293508 | P12: 0.4085912828 | Q12: 6.71E-17 | R12: 1.81E-13
A13: MisinT392400 | B13: nodulin-like protein | C13: C:plasma membrane; P:transport; F:transmembrane transporter activity | D13: 255.9059043 | E13: 3.412485589 | F13: 0.4173245707 | G13: 1.83E-16 | H13: 9.36E-13 | I13: 255.9059043 | J13: 3.893613617 | K13: 0.4232658458 | L13: 4.50E-21 | M13: 3.46E-17 | N13: 255.9059043 | O13: 3.874981864 | P13: 0.4543389015 | Q13: 6.96E-19 | R13: 2.68E-15
A14: MisinT344300 | B14: wall-associated kinase | C14: F:protein kinase activity; F:calcium ion binding; F:ATP binding; P:protein phosphorylation; C:integral component of membrane; F:polysaccharide binding | D14: 126.6174577 | E14: -7.834195584 | F14: 1.014687282 | G14: 5.88E-16 | H14: 2.77E-12 | I14: 126.6174577 | J14: -7.462045961 | K14: 1.188116241 | L14: 1.24E-11 | M14: 1.19E-08 | N14: 126.6174577 | O14: -1.097474816 | P14: 1.893946401 | Q14: 0.002051610981 | R14: 0.1046597572
A15: Misin10G040500 | B15: short-chain dehydrogenase/reductase family 42E member 1; short-chain dehydrogenase reductase family 42e member 1 | C15: F:3-beta-hydroxy-delta5-steroid dehydrogenase activity; C:endoplasmic reticulum; P:steroid biosynthetic process; P:C21-steroid hormone metabolic process; P:androgen metabolic process; P:estrogen metabolic process; C:integral component of membrane; P:oxidation-reduction process | D15: 225.1511867 | E15: 3.340821063 | F15: 0.4161868399 | G15: 6.38E-16 | H15: 2.77E-12 | I15: 225.1511867 | J15: 3.687964434 | K15: 0.433534313 | L15: 1.83E-18 | M15: 8.23E-15 | N15: 225.1511867 | O15: 4.012999819 | P15: 0.4633379579 | Q15: 1.96E-19 | R15: 8.94E-16
A16: Misin16G204900 | B16: AIG2-like protein | C16: 0 | D16: 143.575865 | E16: 2.818629111 | F16: 0.3671480634 | G16: 1.18E-14 | H16: 4.76E-11 | I16: 143.575865 | J16: 3.090821623 | K16: 0.3693256538 | L16: 4.29E-18 | M16: 1.65E-14 | N16: 143.575865 | O16: 1.99961319 | P16: 0.3454115392 | Q16: 3.38E-10 | R16: 2.43E-07
A17: MisinT439700 | B17: probable aldo-keto reductase 2 | C17: F:oxidoreductase activity; P:oxidation-reduction process | D17: 216.8184832 | E17: 6.319921419 | F17: 0.8520412288 | G17: 1.95E-14 | H17: 7.35E-11 | I17: 216.8184832 | J17: 5.890696945 | K17: 0.8055774313 | L17: 3.65E-14 | M17: 6.25E-11 | N17: 216.8184832 | O17: 8.201251476 | P17: 0.8586873444 | Q17: 9.99E-23 | R17: 8.97E-19
A18: Misin05G081700 | B18: probable receptor-like protein kinase At1g67000; probable receptor-like protein kinase at1g67000 | C18: F:binding; C:integral component of plasma membrane; P:glycosphingolipid metabolic process; P:signal transduction; F:phosphatidate phosphatase activity; P:phospholipid catabolic process; F:kinase activity; P:glycerolipid metabolic process; P:phospholipid dephosphorylation | D18: 151.4428486 | E18: -4.77170564 | F18: 0.6351617452 | G18: 2.23E-14 | H18: 7.85E-11 | I18: 151.4428486 | J18: -4.747980535 | K18: 0.5718083391 | L18: 1.87E-17 | M18: 5.31E-14 | N18: 151.4428486 | O18: -3.901384555 | P18: 0.6006299458 | Q18: 3.95E-12 | R18: 4.53E-09
A19: Misin04G315900 | B19: PREDICTED: uncharacterized protein LOC103651017 isoform X1 | C19: 0 | D19: 281.7279853 | E19: 5.655529789 | F19: 0.760941728 | G19: 2.63E-14 | H19: 8.72E-11 | I19: 281.7279853 | J19: 6.140355647 | K19: 0.8173751783 | L19: 7.18E-15 | M19: 1.43E-11 | N19: 281.7279853 | O19: 4.462354621 | P19: 0.761223546 | Q19: 1.62E-10 | R19: 1.30E-07
A20: Misin09G206700 | B20: heat shock cognate 70 kDa protein 2; heat shock cognate 70 kda protein 2 | C20: F:ATP binding | D20: 75.20397614 | E20: 5.532149022 | F20: 0.7450353918 | G20: 2.97E-14 | H20: 9.29E-11 | I20: 75.20397614 | J20: 6.056890385 | K20: 0.9465121514 | L20: 1.81E-11 | M20: 1.65E-08 | N20: 75.20397614 | O20: 6.53784613 | P20: 1.225456637 | Q20: 3.91E-09 | R20: 2.11E-06
A21: Misin07G422600 | B21: thioredoxin H2 | C21: P:sulfate assimilation; C:cell; C:cytosol; C:plasma membrane; P:protein folding; P:glycerol ether metabolic process; F:protein disulfide oxidoreductase activity; F:oxidoreductase activity, acting on a sulfur group of donors, disulfide as acceptor; P:cellular response to oxidative stress; P:cell redox homeostasis; P:oxidation-reduction process | D21: 879.9536341 | E21: 10.70607572 | F21: 1.588969414 | G21: 3.38E-14 | H21: 1.00E-10 | I21: 879.9536341 | J21: 9.300857243 | K21: 1.179643431 | L21: 1.20E-17 | M21: 3.82E-14 | N21: 879.9536341 | O21: 10.42802654 | P21: 0.8847360901 | Q21: 8.81E-34 | R21: 1.58E-29
A22: Misin02G503600 | B22: putative disease resistance protein RGA3 | C22: F:protein kinase activity; F:ATP binding; P:protein phosphorylation; F:ADP binding | D22: 326.3211324 | E22: -3.609471261 | F22: 0.4942626094 | G22: 1.66E-13 | H22: 4.70E-10 | I22: 326.3211324 | J22: -3.07193137 | K22: 0.4944365004 | L22: 3.93E-11 | M22: 3.31E-08 | N22: 326.3211324 | O22: -4.71068298 | P22: 0.5509236623 | Q22: 4.06E-19 | R22: 1.68E-15
A23: Misin01G046200 | B23: Aspartic proteinase nepenthesin-1 | C23: F:aspartic-type endopeptidase activity; P:proteolysis; F:peptidase activity; C:membrane; C:integral component of membrane; P:protein catabolic process | D23: 168.9909106 | E23: -10.17965935 | F23: 1.573929177 | G23: 4.01E-13 | H23: 1.08E-09 | I23: 168.9909106 | J23: -10.28975867 | K23: 1.586460685 | L23: 5.69E-14 | M23: 9.30E-11 | N23: 168.9909106 | O23: -8.135209807 | P23: 1.53164708 | Q23: 4.17E-09 | R23: 2.22E-06
A24: Misin07G312000 | B24: disease resistance protein RGA2; disease resistance protein rga2 | C24: C:mitochondrion; F:organic cyclic compound binding; F:heterocyclic compound binding | D24: 75.06641895 | E24: 5.483974224 | F24: 0.7828260993 | G24: 6.62E-13 | H24: 1.70E-09 | I24: 75.06641895 | J24: 4.211621856 | K24: 0.7200302084 | L24: 5.74E-10 | M24: 3.73E-07 | N24: 75.06641895 | O24: 5.383929509 | P24: 0.8570514977 | Q24: 1.20E-11 | R24: 1.26E-08
A25: Misin09G191900 | B25: hypothetical protein OsI_08264; hypothetical protein OsI_08264 [Oryza sativa Indica Group] | C25: C:plastid | D25: 196.5805651 | E25: -3.313271162 | F25: 0.4687153467 | G25: 1.00E-12 | H25: 2.46E-09 | I25: 196.5805651 | J25: -4.544208781 | K25: 0.4763422821 | L25: 2.70E-22 | M25: 2.91E-18 | N25: 196.5805651 | O25: -5.940578773 | P25: 0.7281750637 | Q25: 1.67E-17 | R25: 5.31E-14
A26: Misin08G030600 | B26: ---NA--- | C26: 0 | D26: 615.516999 | E26: -3.206950258 | F26: 0.4567888741 | G26: 1.46E-12 | H26: 3.43E-09 | I26: 615.516999 | J26: -2.565154034 | K26: 0.4629547644 | L26: 2.59E-09 | M26: 1.37E-06 | N26: 615.516999 | O26: -3.270147657 | P26: 0.4663180408 | Q26: 2.16E-13 | R26: 3.24E-10
A27: Misin07G418800 | B27: nitrilase 1 isoform X1; nitrilase 1 isoform x1 | C27: P:nitrogen compound metabolic process; F:hydrolase activity, acting on carbon-nitrogen (but not peptide) bonds | D27: 174.5613762 | E27: 4.482866604 | F27: 0.6445753095 | G27: 1.53E-12 | H27: 3.44E-09 | I27: 174.5613762 | J27: 4.760804794 | K27: 0.6772888368 | L27: 3.43E-13 | M27: 4.86E-10 | N27: 174.5613762 | O27: 4.631041264 | P27: 0.6726280795 | Q27: 1.94E-13 | R27: 3.08E-10
A28: Misin02G431100 | B28: probable choline kinase 2 | C28: F:kinase activity; P:phosphorylation | D28: 184.0656578 | E28: 3.6207472 | F28: 0.5272322554 | G28: 3.84E-12 | H28: 8.32E-09 | I28: 184.0656578 | J28: 4.526286457 | K28: 0.5452828606 | L28: 1.80E-17 | M28: 5.31E-14 | N28: 184.0656578 | O28: 3.599660368 | P28: 0.5424063071 | Q28: 2.04E-12 | R28: 2.55E-09
A29: Misin15G197300 | B29: Ubiquitin carboxyl-terminal hydrolase 2 | C29: P:proteolysis; P:ubiquitin-dependent protein catabolic process; F:peptidase activity; F:cysteine-type peptidase activity; F:zinc ion binding; C:membrane; C:integral component of membrane; P:protein deubiquitination; F:hydrolase activity; F:thiol-dependent ubiquitinyl hydrolase activity; F:metal ion binding | D29: 294.7134403 | E29: 23.41413135 | F29: 3.795898849 | G29: 8.88E-12 | H29: 1.86E-08 | I29: 294.7134403 | J29: 23.60086967 | K29: 3.89800197 | L29: 9.06E-12 | M29: 9.03E-09 | N29: 294.7134403 | O29: 22.51985587 | P29: 3.79145535 | Q29: 4.77E-12 | R29: 5.35E-09
A30: MisinT357700 | B30: putative receptor-like protein kinase At4g00960; receptor-like protein kinase at4g00960 | C30: C:obsolete cell part | D30: 197.586619 | E30: -3.492588861 | F30: 0.5239232501 | G30: 1.60E-11 | H30: 3.11E-08 | I30: 197.586619 | J30: -2.979879063 | K30: 0.5792137621 | L30: 1.83E-08 | M30: 7.97E-06 | N30: 197.586619 | O30: -3.952945227 | P30: 0.5370200335 | Q30: 8.23E-15 | R30: 1.77E-11
A31: Misin10G040400 | B31: N utilization substance protein B; uncharacterized protein loc103701218 isoform x1 | C31: C:mitochondrion; C:integral component of membrane | D31: 61.41061777 | E31: 3.442215794 | F31: 0.5160167826 | G31: 1.57E-11 | H31: 3.11E-08 | I31: 61.41061777 | J31: 3.027529716 | K31: 0.5300797251 | L31: 8.38E-10 | M31: 5.22E-07 | N31: 61.41061777 | O31: 3.480343346 | P31: 0.5389901472 | Q31: 7.65E-12 | R31: 8.41E-09
A32: Misin10G064000 | B32: ---NA--- | C32: 0 | D32: 67.71081298 | E32: 5.597102541 | F32: 0.8628347724 | G32: 2.19E-11 | H32: 4.11E-08 | I32: 67.71081298 | J32: 5.264871579 | K32: 0.7892049849 | L32: 4.03E-12 | M32: 4.62E-09 | N32: 67.71081298 | O32: 4.691637148 | P32: 0.5848760946 | Q32: 3.46E-17 | R32: 9.82E-14
A33: Misin10G115700 | B33: Lysosomal alpha-mannosidase; lysosomal alpha-mannosidase | C33: F:alpha-mannosidase activity; P:mannose metabolic process; P:protein deglycosylation; C:obsolete cell part; F:metal ion binding | D33: 96.78175473 | E33: -6.967348631 | F33: 1.118553859 | G33: 4.63E-11 | H33: 8.42E-08 | I33: 96.78175473 | J33: -6.61821339 | K33: 0.7905795472 | L33: 5.33E-18 | M33: 1.91E-14 | N33: 96.78175473 | O33: -8.30423107 | P33: 1.50323333 | Q33: 1.33E-09 | R33: 8.03E-07
A34: Misin02G503500 | B34: QTL43_2-1 protein | C34: C:cytoplasm; P:metal ion transport; F:ADP binding; F:transition metal ion binding; P:cellular transition metal ion homeostasis | D34: 71.29343607 | E34: -4.240700258 | F34: 0.6591894396 | G34: 5.90E-11 | H34: 1.04E-07 | I34: 71.29343607 | J34: -3.70680043 | K34: 0.6006185209 | L34: 6.29E-11 | M34: 5.06E-08 | N34: 71.29343607 | O34: -4.282171737 | P34: 0.7535502392 | Q34: 5.02E-10 | R34: 3.47E-07
A35: Misin04G316500 | B35: F-box domain containing protein | C35: 0 | D35: 67.96163993 | E35: 7.272091628 | F35: 1.184423605 | G35: 6.35E-11 | H35: 1.05E-07 | I35: 67.96163993 | J35: 5.963619986 | K35: 0.8682768701 | L35: 8.36E-13 | M35: 1.10E-09 | N35: 67.96163993 | O35: 8.868523487 | P35: 1.517845086 | Q35: 1.82E-10 | R35: 1.44E-07
A36: Misin15G148800 | B36: predicted protein | C36: 0 | D36: 53.23592141 | E36: -3.845978728 | F36: 0.5965337491 | G36: 6.20E-11 | H36: 1.05E-07 | I36: 53.23592141 | J36: -3.429027233 | K36: 0.5359106873 | L36: 1.29E-11 | M36: 1.21E-08 | N36: 53.23592141 | O36: -3.0349232 | P36: 0.7524846106 | Q36: 1.71E-06 | R36: 0.0004366412269
A37: Misin19G023900 | B37: predicted protein | C37: 0 | D37: 536.596706 | E37: -2.739617222 | F37: 0.4232746822 | G37: 7.09E-11 | H37: 1.14E-07 | I37: 536.596706 | J37: -2.324690034 | K37: 0.4169305511 | L37: 2.44E-09 | M37: 1.31E-06 | N37: 536.596706 | O37: -2.859223188 | P37: 0.4105311646 | Q37: 4.62E-13 | R37: 6.73E-10
A38: Misin17G227600 | B38: NB-LRR protein; nb-lrr protein | C38: F:peptidase activity, acting on L-amino acid peptides | D38: 200.0159972 | E38: -4.199581745 | F38: 0.6598011245 | G38: 9.36E-11 | H38: 1.47E-07 | I38: 200.0159972 | J38: -1.43934498 | K38: 0.9914969684 | L38: 0.0003009417517 | M38: 0.02414529131 | N38: 200.0159972 | O38: -0.02489025056 | P38: 0.1522791454 | Q38: 0.3674158538 | R38: 1
A39: MisinT342100 | B39: WPP domain-associated protein-like | C39: 0 | D39: 334.3360337 | E39: -1.759963834 | F39: 0.2732382008 | G39: 1.03E-10 | H39: 1.57E-07 | I39: 334.3360337 | J39: -0.9597170836 | K39: 0.3198483921 | L39: 3.82E-06 | M39: 0.0007623435067 | N39: 334.3360337 | O39: -0.9676131706 | P39: 0.2858787912 | Q39: 1.63E-05 | R39: 0.002789717296
A40: Misin17G216100 | B40: probable aldehyde dehydrogenase isoform X1; probable aldehyde dehydrogenase isoform x1 | C40: F:1-pyrroline-5-carboxylate dehydrogenase activity; F:3-chloroallyl aldehyde dehydrogenase activity; F:aldehyde dehydrogenase (NAD+) activity; C:mitochondrion; P:gluconeogenesis; P:glycolytic process; P:arginine metabolic process; P:histidine metabolic process; P:isoleucine catabolic process; P:leucine catabolic process; P:lysine catabolic process; P:proline biosynthetic process; P:tryptophan metabolic process; P:valine catabolic process; P:fatty acid metabolic process; P:bile acid biosynthetic process; F:zinc ion binding; C:chloroplast; P:proline catabolic process to glutamate; P:1,2-dichloroethane catabolic process; P:beta-alanine metabolic process; P:L-ascorbic acid metabolic process; P:limonene catabolic process; P:glycerolipid metabolic process; F:cobalt ion binding; P:oxidation-reduction process; P:reactive oxygen species metabolic process | D40: 629.9383752 | E40: 3.211058175 | F40: 0.5047341119 | G40: 1.31E-10 | H40: 1.94E-07 | I40: 629.9383752 | J40: 4.188726199 | K40: 0.5126167267 | L40: 4.45E-17 | M40: 1.14E-13 | N40: 629.9383752 | O40: 4.17724414 | P40: 0.5270496845 | Q40: 8.67E-17 | R40: 2.22E-13
A41: Misin17G016500 | B41: predicted protein | C41: F:nucleic acid binding; F:RNA-DNA hybrid ribonuclease activity; F:inorganic anion exchanger activity; P:anion transport; P:inorganic anion transport; C:membrane; C:integral component of membrane; P:RNA phosphodiester bond hydrolysis, endonucleolytic | D41: 73.92936676 | E41: 22.01615038 | F41: 4.103565041 | G41: 1.63E-10 | H41: 2.36E-07 | I41: 73.92936676 | J41: 0.1997613524 | K41: 0.9641080285 | L41: 0.02952335528 | M41: 0.4214997489 | N41: 73.92936676 | O41: 0.1747245467 | P41: 0.935957352 | Q41: 0.03048820844 | R41: 0.4887563013
A42: Misin15G138700 | B42: putative disease resistance RPP13-like protein 3; disease resistance rpp13-like protein 3 | C42: C:plastid; F:ADP binding | D42: 122.5081404 | E42: -3.524861939 | F42: 0.559947204 | G42: 1.85E-10 | H42: 2.60E-07 | I42: 122.5081404 | J42: -3.69198688 | K42: 0.5432006378 | L42: 1.03E-12 | M42: 1.31E-09 | N42: 122.5081404 | O42: -6.726915201 | P42: 1.532075268 | Q42: 2.46E-07 | R42: 8.13E-05
A43: Misin14G115600 | B43: ---NA--- | C43: 0 | D43: 98.32039696 | E43: 8.986127516 | F43: 1.591302747 | G43: 2.37E-10 | H43: 3.26E-07 | I43: 98.32039696 | J43: 8.844507992 | K43: 1.576461189 | L43: 1.14E-10 | M43: 8.56E-08 | N43: 98.32039696 | O43: 9.015227374 | P43: 1.562826345 | Q43: 2.53E-10 | R43: 1.92E-07
A44: Misin04G319100 | B44: predicted protein | C44: P:cellular protein metabolic process | D44: 338.3471588 | E44: -2.913961099 | F44: 0.4670937035 | G44: 3.11E-10 | H44: 4.18E-07 | I44: 338.3471588 | J44: -1.705055732 | K44: 0.5690561538 | L44: 1.06E-05 | M44: 0.001722075516 | N44: 338.3471588 | O44: -0.2329950818 | P44: 0.4111362175 | Q44: 0.01224272543 | R44: 0.3152841611
A45: Misin10G050400 | B45: LRR receptor-like serine/threonine-protein kinase GSO1; lrr receptor-like serine threonine-protein kinase gso1 | C45: C:membrane | D45: 110.4920704 | E45: -3.596023266 | F45: 0.581485757 | G45: 3.66E-10 | H45: 4.80E-07 | I45: 110.4920704 | J45: -0.03343169038 | K45: 0.1872436352 | L45: 0.5036240195 | M45: 0.9798044219 | N45: 110.4920704 | O45: -2.676485599 | P45: 0.5984065945 | Q45: 4.36E-07 | R45: 0.0001319656724
A46: Misin17G013700 | B46: maize proteinase inhibitor | C46: F:serine-type endopeptidase inhibitor activity; F:peptidase activity; P:response to wounding; P:negative regulation of endopeptidase activity | D46: 329.8728909 | E46: 4.517331442 | F46: 0.7391068051 | G46: 4.13E-10 | H46: 5.29E-07 | I46: 329.8728909 | J46: 0.1978338339 | K46: 0.4766148693 | L46: 0.0310800282 | M46: 0.430667829 | N46: 329.8728909 | O46: 0.03286158027 | P46: 0.1848610548 | Q46: 0.2844444655 | R46: 0.976363493
A47: MisinT056300 | B47: disease resistance protein RPM1-like; disease resistance protein rpm1-like | C47: F:ion binding; F:organic cyclic compound binding; F:heterocyclic compound binding | D47: 523.6551679 | E47: -4.008385236 | F47: 0.6575649334 | G47: 5.56E-10 | H47: 6.66E-07 | I47: 523.6551679 | J47: -4.812789796 | K47: 0.6615749599 | L47: 5.93E-14 | M47: 9.40E-11 | N47: 523.6551679 | O47: -6.377692572 | P47: 0.8566398896 | Q47: 5.35E-15 | R47: 1.20E-11
A48: Misin15G165300 | B48: ---NA--- | C48: 0 | D48: 99.29968028 | E48: -5.655264582 | F48: 0.9475297953 | G48: 5.67E-10 | H48: 6.66E-07 | I48: 99.29968028 | J48: -5.423297268 | K48: 0.6769115191 | L48: 1.98E-16 | M48: 4.84E-13 | N48: 99.29968028 | O48: -8.102642819 | P48: 1.497158315 | Q48: 2.52E-09 | R48: 1.40E-06
A49: Misin10G003000 | B49: ---NA--- | C49: 0 | D49: 66.25072406 | E49: -8.316897261 | F49: 1.480702667 | G49: 5.55E-10 | H49: 6.66E-07 | I49: 66.25072406 | J49: -9.462932487 | K49: 1.50202797 | L49: 7.46E-13 | M49: 1.00E-09 | N49: 66.25072406 | O49: -7.438037379 | P49: 1.505751602 | Q49: 2.73E-08 | R49: 1.22E-05
A50: Misin10G092100 | B50: ---NA--- | C50: 0 | D50: 78.97399649 | E50: -5.641045827 | F50: 0.9446355059 | G50: 5.60E-10 | H50: 6.66E-07 | I50: 78.97399649 | J50: -3.141351996 | K50: 0.5550815784 | L50: 1.13E-09 | M50: 6.63E-07 | N50: 78.97399649 | O50: -2.88992106 | P50: 0.5955752691 | Q50: 9.38E-08 | R50: 3.58E-05
A51: Misin01G031800 | B51: nucleic acid binding protein | C51: F:DNA binding; F:RNA binding; F:protein binding; C:nucleus; P:flower development; P:negative regulation of short-day photoperiodism, flowering; P:negative regulation of long-day photoperiodism, flowering | D51: 376.7567162 | E51: 1.906207412 | F51: 0.3108459821 | G51: 7.30E-10 | H51: 8.41E-07 | I51: 376.7567162 | J51: 0.7098606553 | K51: 0.3846241922 | L51: 0.0002569764018 | M51: 0.0216321932 | N51: 376.7567162 | O51: 1.261588083 | P51: 0.3442591247 | Q51: 4.29E-06 | R51: 0.0009139452523
A52: MisinT265000 | B52: ---NA--- | C52: 0 | D52: 84.73469544 | E52: -8.051117666 | F52: 1.443207963 | G52: 8.86E-10 | H52: 1.00E-06 | I52: 84.73469544 | J52: -7.269661983 | K52: 0.8945370243 | L52: 2.31E-17 | M52: 6.21E-14 | N52: 84.73469544 | O52: -8.910113591 | P52: 1.4344865 | Q52: 2.03E-11 | R52: 1.89E-08
A53: MisinT026500 | B53: hypothetical protein F775_22227; uncharacterized protein loc101759150 isoform x1 | C53: C:integral component of membrane | D53: 366.4639918 | E53: 4.340041607 | F53: 0.7249588371 | G53: 9.61E-10 | H53: 1.06E-06 | I53: 366.4639918 | J53: 3.755621064 | K53: 0.7474735708 | L53: 3.94E-08 | M53: 1.54E-05 | N53: 366.4639918 | O53: 2.929751973 | P53: 0.6775168322 | Q53: 7.20E-07 | R53: 0.0002062255722
A54: Misin09G170200 | B54: disease resistance protein RPM1 isoform X1 | C54: F:ADP binding | D54: 521.1402036 | E54: -4.918541099 | F54: 0.8304844683 | G54: 1.10E-09 | H54: 1.18E-06 | I54: 521.1402036 | J54: -5.157358305 | K54: 0.8346543913 | L54: 9.60E-11 | M54: 7.39E-08 | N54: 521.1402036 | O54: -9.238354909 | P54: 1.570405127 | Q54: 1.15E-10 | R54: 9.65E-08
A55: Misin07G023900 | B55: putative F-box protein At2g02030; f-box protein at2g02030 | C55: F:binding; P:primary metabolic process; P:cellular macromolecule metabolic process; C:obsolete intracellular part | D55: 46.83259926 | E55: 8.581592559 | F55: 1.576373509 | G55: 1.11E-09 | H55: 1.18E-06 | I55: 46.83259926 | J55: 6.926988132 | K55: 1.554255966 | L55: 2.05E-07 | M55: 6.55E-05 | N55: 46.83259926 | O55: 8.217273485 | P55: 1.571764328 | Q55: 6.13E-09 | R55: 3.18E-06
A56: Misin07G250000 | B56: protein transport protein SEC23; protein transport protein sec23 | C56: P:transport | D56: 52.29220712 | E56: 4.49146436 | F56: 0.756180738 | G56: 1.20E-09 | H56: 1.25E-06 | I56: 52.29220712 | J56: 4.711396921 | K56: 0.788837254 | L56: 3.26E-10 | M56: 2.20E-07 | N56: 52.29220712 | O56: 4.705395576 | P56: 0.7864474416 | Q56: 7.35E-11 | R56: 6.39E-08
A57: Misin07G375800 | B57: geraniol 8-hydroxylase-like | C57: F:monooxygenase activity; F:binding; P:metabolic process; C:membrane; F:oxidoreductase activity, acting on paired donors, with incorporation or reduction of molecular oxygen | D57: 724.7495335 | E57: -3.000706565 | F57: 0.5023650945 | G57: 1.59E-09 | H57: 1.63E-06 | I57: 724.7495335 | J57: -3.044858858 | K57: 0.4935166585 | L57: 5.18E-11 | M57: 4.29E-08 | N57: 724.7495335 | O57: -4.909471677 | P57: 0.5372216971 | Q57: 2.15E-21 | R57: 1.65E-17
A58: MisinT086100 | B58: hypothetical protein SORBI_001G307500 | C58: 0 | D58: 160.1904278 | E58: 3.106366758 | F58: 0.5221316018 | G58: 1.79E-09 | H58: 1.80E-06 | I58: 160.1904278 | J58: 2.412022669 | K58: 0.5744820309 | L58: 8.35E-07 | M58: 0.0002184305299 | N58: 160.1904278 | O58: 0.09417377804 | P58: 0.2681342748 | Q58: 0.05828972259 | R58: 0.6427259117
A59: Misin05G081600 | B59: probable receptor-like protein kinase At1g67000; probable receptor-like protein kinase at1g67000 | C59: F:nucleotide binding; F:protein kinase activity; C:membrane; P:phosphorylation | D59: 191.7346348 | E59: -3.080876872 | F59: 0.5206497078 | G59: 2.18E-09 | H59: 2.16E-06 | I59: 191.7346348 | J59: -3.999518466 | K59: 0.5295492558 | L59: 5.26E-15 | M59: 1.09E-11 | N59: 191.7346348 | O59: -0.7715371562 | P59: 0.8173051355 | Q59: 0.001538664855 | R59: 0.08643959235
A60: Misin10G077800 | B60: dual specificity protein kinase pyk3-like isoform X1; uncharacterized protein loc101774273 isoform x1 | C60: F:kinase activity | D60: 111.7253526 | E60: -2.313842803 | F60: 0.3897671304 | G60: 2.27E-09 | H60: 2.21E-06 | I60: 111.7253526 | J60: -1.03142831 | K60: 0.5030522106 | L60: 7.54E-05 | M60: 0.008285972447 | N60: 111.7253526 | O60: -0.3445566658 | P60: 0.4546093908 | Q60: 0.005325073117 | R60: 0.1884942931
A61: Misin15G159000 | B61: putative rp3 protein | C61: F:ADP binding | D61: 105.0128237 | E61: 5.02204754 | F61: 0.874416562 | G61: 3.02E-09 | H61: 2.88E-06 | I61: 105.0128237 | J61: 5.215798588 | K61: 0.8584977008 | L61: 1.80E-10 | M61: 1.26E-07 | N61: 105.0128237 | O61: 3.067621348 | P61: 0.9013390008 | Q61: 7.46E-06 | R61: 0.001450535953
A62: Misin10G028900 | B62: predicted protein | C62: P:regulation of transcription, DNA-templated; F:protein dimerization activity | D62: 122.6207328 | E62: -4.068728875 | F62: 0.7026202745 | G62: 3.42E-09 | H62: 3.22E-06 | I62: 122.6207328 | J62: -4.435927214 | K62: 0.6684358234 | L62: 4.60E-12 | M62: 5.16E-09 | N62: 122.6207328 | O62: -2.896323308 | P62: 1.889005758 | Q62: 0.0001570607985 | R62: 0.01685587753
A63: Misin11G035500 | B63: L10-interacting MYB domain-containing protein-like | C63: 0 | D63: 54.74827814 | E63: 8.249280389 | F63: 1.570551274 | G63: 4.19E-09 | H63: 3.88E-06 | I63: 54.74827814 | J63: 8.3402145 | K63: 1.553041539 | L63: 8.42E-10 | M63: 5.22E-07 | N63: 54.74827814 | O63: 5.208462367 | P63: 0.9638354947 | Q63: 2.15E-09 | R63: 1.23E-06
A64: Misin07G422400 | B64: ---NA--- | C64: 0 | D64: 76.62589219 | E64: 8.821498163 | F64: 1.729623438 | G64: 5.06E-09 | H64: 4.61E-06 | I64: 76.62589219 | J64: 8.839990536 | K64: 1.714597527 | L64: 1.26E-09 | M64: 7.25E-07 | N64: 76.62589219 | O64: 9.1300462 | P64: 1.698882872 | Q64: 1.90E-09 | R64: 1.13E-06
A65: Misin07G289000 | B65: two-component response regulator ORR33-like | C65: P:phosphorelay signal transduction system; C:intracellular | D65: 289.0514794 | E65: -1.821761218 | F65: 0.3137596115 | G65: 5.24E-09 | H65: 4.69E-06 | I65: 289.0514794 | J65: -1.462075035 | K65: 0.3512857873 | L65: 1.74E-07 | M65: 5.61E-05 | N65: 289.0514794 | O65: -1.12075705 | P65: 0.3510358547 | Q65: 1.81E-05 | R65: 0.003052215559
A66: Misin09G200400 | B66: hypothetical protein SORBIDRAFT_10g003395, partial | C66: 0 | D66: 30.16032343 | E66: 8.096559393 | F66: 1.55528102 | G66: 6.11E-09 | H66: 5.38E-06 | I66: 30.16032343 | J66: 6.471121757 | K66: 1.603587946 | L66: 9.05E-07 | M66: 0.0002322864938 | N66: 30.16032343 | O66: 7.486105641 | P66: 1.59749338 | Q66: 7.77E-08 | R66: 3.10E-05
A67: Misin09G151400 | B67: hypothetical protein SORBI_005G185700 | C67: 0 | D67: 2071.242512 | E67: -22.55058301 | F67: 5.189167064 | G67: 7.61E-09 | H67: 6.60E-06 | I67: 2071.242512 | J67: -0.7265744922 | K67: 2.189312302 | L67: 0.001226347626 | M67: 0.06587186277 | N67: 2071.242512 | O67: -0.1879999596 | P67: 1.033216694 | Q67: 0.02185958479 | R67: 0.4174708013
A68: Misin01G055200 | B68: indole-3-acetaldehyde oxidase | C68: F:xanthine dehydrogenase activity; F:iron ion binding; C:cytosol; P:obsolete electron transport; P:tryptophan metabolic process; F:electron transfer activity; P:xanthine catabolic process; P:abscisic acid biosynthetic process; P:auxin biosynthetic process; F:oxidoreductase activity, acting on CH-OH group of donors; F:molybdopterin cofactor binding; F:indole-3-acetaldehyde oxidase activity; F:2 iron, 2 sulfur cluster binding; P:oxidation-reduction process; F:FAD binding | D68: 90.61271225 | E68: -7.33287095 | F68: 1.398328062 | G68: 9.81E-09 | H68: 8.38E-06 | I68: 90.61271225 | J68: -4.515118059 | K68: 0.566987857 | L68: 2.83E-16 | M68: 6.63E-13 | N68: 90.61271225 | O68: -8.754920967 | P68: 1.469961812 | Q68: 1.01E-10 | R68: 8.61E-08
A69: MisinT323700 | B69: disease resistance protein RPM1; disease resistance protein rpm1 | C69: F:ATP binding; P:apoptotic process | D69: 212.1030016 | E69: 4.595469455 | F69: 0.8279603386 | G69: 1.08E-08 | H69: 9.10E-06 | I69: 212.1030016 | J69: 5.318804444 | K69: 0.8638187644 | L69: 1.08E-10 | M69: 8.17E-08 | N69: 212.1030016 | O69: 5.438578595 | P69: 0.8936014512 | Q69: 4.15E-11 | R69: 3.66E-08
A70: Misin10G071100 | B70: protein YIPF6 homolog | C70: C:membrane; C:integral component of membrane | D70: 54.8834719 | E70: -7.951470367 | F70: 1.582034877 | G70: 1.63E-08 | H70: 1.35E-05 | I70: 54.8834719 | J70: -8.840026306 | K70: 1.585409476 | L70: 1.39E-10 | M70: 1.03E-07 | N70: 54.8834719 | O70: -6.324326116 | P70: 1.855494442 | Q70: 3.00E-06 | R70: 0.0006961812262
A71: Misin09G040900 | B71: B3 domain-containing protein Os11g0156000-like; b3 domain-containing protein os11g0156000-like | C71: F:DNA binding; C:nucleus; P:regulation of transcription, DNA-templated | D71: 145.004625 | E71: 2.426432035 | F71: 0.4355091598 | G71: 1.77E-08 | H71: 1.45E-05 | I71: 145.004625 | J71: 0.1609164634 | K71: 0.2656301449 | L71: 0.05073589209 | M71: 0.5385835813 | N71: 145.004625 | O71: 5.604859578 | P71: 0.6350707797 | Q71: 4.77E-20 | R71: 2.85E-16
A72: Misin09G165900 | B72: predicted protein; receptor-like protein kinase at4g00960 isoform x2 | C72: F:nucleotide binding; F:protein serine/threonine kinase activity; C:plasma membrane; P:protein phosphorylation; P:defense response; P:serine family amino acid metabolic process; C:plasmodesma | D72: 765.7107877 | E72: -7.366696786 | F72: 1.440910142 | G72: 1.79E-08 | H72: 1.45E-05 | I72: 765.7107877 | J72: -10.25242784 | K72: 1.494524006 | L72: 4.97E-15 | M72: 1.07E-11 | N72: 765.7107877 | O72: -12.26724445 | P72: 1.505559911 | Q72: 1.54E-19 | R72: 8.31E-16
A73: Misin09G181500 | B73: wall-associated receptor kinase 2-like | C73: F:protein serine/threonine kinase activity; F:calcium ion binding; F:ATP binding; P:protein phosphorylation; P:serine family amino acid metabolic process; C:membrane | D73: 79.91028654 | E73: -7.152758216 | F73: 1.399640776 | G73: 2.14E-08 | H73: 1.70E-05 | I73: 79.91028654 | J73: -10.53956011 | K73: 1.540653043 | L73: 3.41E-15 | M73: 7.65E-12 | N73: 79.91028654 | O73: -5.45123728 | P73: 1.91886967 | Q73: 9.76E-06 | R73: 0.001826424641
A74: Misin09G210800 | B74: DNA-directed RNA polymerases II, IV and V subunit 9A; dna-directed rna polymerases iv and v subunit 9a | C74: P:maintenance of transcriptional fidelity during DNA-templated transcription elongation from RNA polymerase II promoter; F:nucleic acid binding; F:DNA-directed 5'-3' RNA polymerase activity; C:RNA polymerase II, core complex; C:nucleolus; P:purine nucleobase metabolic process; P:pyrimidine nucleobase metabolic process; P:transcription-coupled nucleotide-excision repair; P:transcription initiation from RNA polymerase II promoter; F:zinc ion binding | D74: 64.33549813 | E74: -7.513720202 | F74: 1.495015729 | G74: 2.36E-08 | H74: 1.84E-05 | I74: 64.33549813 | J74: -4.972666071 | K74: 0.7403792584 | L74: 3.02E-12 | M74: 3.54E-09 | N74: 64.33549813 | O74: -7.597658235 | P74: 1.519268506 | Q74: 2.04E-08 | R74: 9.55E-06
A75: Misin02G490600 | B75: bifunctional fucokinase/fucose pyrophosphorylase; bifunctional fucokinase fucose pyrophosphorylase | C75: F:RNA binding; F:ATP binding; C:cytoplasm; P:fructose metabolic process; P:mannose metabolic process; P:phosphorylation; P:dephosphorylation; F:phosphatase activity; P:GDP-L-fucose salvage; P:cellular macromolecule metabolic process; F:fucose-1-phosphate guanylyltransferase activity; F:fucokinase activity | D75: 165.2330252 | E75: 2.625972903 | F75: 0.4767164324 | G75: 2.38E-08 | H75: 1.84E-05 | I75: 165.2330252 | J75: 2.910121874 | K75: 0.4910393978 | L75: 2.39E-10 | M75: 1.63E-07 | N75: 165.2330252 | O75: 1.831316433 | P75: 0.5749492512 | Q75: 1.20E-05 | R75: 0.002149016295
A76: MisinT011200 | B76: disease resistance protein RPM1-like; disease resistance protein rpm1-like | C76: F:ATP binding; P:apoptotic process; P:defense response | D76: 96.47075069 | E76: -7.238673512 | F76: 1.451104549 | G76: 3.44E-08 | H76: 2.62E-05 | I76: 96.47075069 | J76: -5.809375999 | K76: 0.8792585836 | L76: 5.26E-12 | M76: 5.78E-09 | N76: 96.47075069 | O76: -7.309527375 | P76: 1.52338869 | Q76: 5.08E-08 | R76: 2.15E-05
A77: Misin10G036400 | B77: autophagy-related protein 13b | C77: P:autophagy; C:Atg1/ULK1 kinase complex | D77: 366.1693425 | E77: 1.219583171 | F77: 0.2264339005 | G77: 4.50E-08 | H77: 3.39E-05 | I77: 366.1693425 | J77: 1.161855394 | K77: 0.2546586617 | L77: 5.45E-09 | M77: 2.67E-06 | N77: 366.1693425 | O77: 0.8214356407 | P77: 0.2405654086 | Q77: 1.96E-05 | R77: 0.0032154692
A78: Misin11G244200 | B78: PREDICTED: uncharacterized protein LOC103651017 isoform X1 | C78: 0 | D78: 41.29577227 | E78: 6.054220863 | F78: 1.187318344 | G78: 4.77E-08 | H78: 3.54E-05 | I78: 41.29577227 | J78: 7.075340259 | K78: 1.506591984 | L78: 7.76E-08 | M78: 2.85E-05 | N78: 41.29577227 | O78: 6.457047205 | P78: 1.526422211 | Q78: 4.21E-07 | R78: 0.0001289827475
A79: Misin01G050400 | B79: 2-succinylbenzoate--CoA ligase, chloroplastic/peroxisomal | C79: F:catalytic activity; C:peroxisome; P:metabolic process; C:chloroplast; P:phylloquinone biosynthetic process | D79: 70.40359799 | E79: -7.903169391 | F79: 1.677807249 | G79: 6.04E-08 | H79: 4.42E-05 | I79: 70.40359799 | J79: -8.165501903 | K79: 1.644827084 | L79: 7.84E-09 | M79: 3.64E-06 | N79: 70.40359799 | O79: -6.419280154 | P79: 2.006267937 | Q79: 4.19E-06 | R79: 0.0008990687498
A80: Misin05G065500 | B80: ---NA--- | C80: 0 | D80: 49.72488633 | E80: -7.559308244 | F80: 1.59296139 | G80: 6.96E-08 | H80: 4.97E-05 | I80: 49.72488633 | J80: -8.246528764 | K80: 1.568051694 | L80: 1.69E-09 | M80: 9.39E-07 | N80: 49.72488633 | O80: -7.208954984 | P80: 1.656592003 | Q80: 2.62E-07 | R80: 8.61E-05
A81: Misin02G490300 | B81: ---NA--- | C81: 0 | D81: 113.5673498 | E81: 2.3403482 | F81: 0.4422782405 | G81: 6.91E-08 | H81: 4.97E-05 | I81: 113.5673498 | J81: 2.200409653 | K81: 0.4541643163 | L81: 7.79E-08 | M81: 2.85E-05 | N81: 113.5673498 | O81: 0.1662397823 | P81: 0.3372641908 | Q81: 0.02132046219 | R81: 0.4122899859
A82: Misin07G327900 | B82: ---NA--- | C82: 0 | D82: 22.14773344 | E82: 7.408430131 | F82: 1.577378612 | G82: 9.21E-08 | H82: 6.49E-05 | I82: 22.14773344 | J82: 7.111208701 | K82: 1.539459175 | L82: 1.01E-07 | M82: 3.56E-05 | N82: 22.14773344 | O82: 6.407256442 | P82: 1.805920344 | Q82: 2.26E-06 | R82: 0.0005426000965
A83: Misin06G159300 | B83: Protein NRT1/ PTR FAMILY 6.2; protein nrt1 ptr family | C83: F:transporter activity; P:oligopeptide transport; C:integral component of membrane; P:divalent metal ion transport | D83: 168.1174898 | E83: -5.957677022 | F83: 1.215375479 | G83: 1.12E-07 | H83: 7.78E-05 | I83: 168.1174898 | J83: -5.803726411 | K83: 1.007945426 | L83: 9.93E-10 | M83: 6.04E-07 | N83: 168.1174898 | O83: -5.022529023 | P83: 1.684762721 | Q83: 8.74E-06 | R83: 0.001651416891
A84: MisinT587600 | B84: ---NA--- | C84: 0 | D84: 128.0011406 | E84: 3.87278296 | F84: 0.7647566516 | G84: 1.38E-07 | H84: 9.47E-05 | I84: 128.0011406 | J84: 3.400912588 | K84: 0.7968082 | L84: 7.62E-07 | M84: 0.0002002616463 | N84: 128.0011406 | O84: 3.593297883 | P84: 0.7643555623 | Q84: 1.24E-07 | R84: 4.54E-05
A85: Misin18G256700 | B85: putative two-component response regulator family protein | C85: P:phosphorelay signal transduction system; F:DNA binding; C:nucleus; P:transcription, DNA-templated; P:regulation of transcription, DNA-templated | D85: 193.4746167 | E85: -2.609349857 | F85: 0.5108722146 | G85: 1.43E-07 | H85: 9.71E-05 | I85: 193.4746167 | J85: -0.5636857698 | K85: 0.5898264506 | L85: 0.002305686166 | M85: 0.09935305477 | N85: 193.4746167 | O85: -1.865173464 | P85: 0.6276804999 | Q85: 1.91E-05 | R85: 0.003163759847
A86: Misin09G171000 | B86: probable L-type lectin-domain containing receptor kinase S.5; probable l-type lectin-domain containing receptor kinase | C86: F:transferase activity | D86: 49.8227552 | E86: -7.97357582 | F86: 1.810400078 | G86: 1.48E-07 | H86: 9.83E-05 | I86: 49.8227552 | J86: -6.918459143 | K86: 1.860223725 | L86: 1.29E-06 | M86: 0.0003170031756 | N86: 49.8227552 | O86: -0.3993492403 | P86: 1.173096842 | Q86: 0.01034615004 | R86: 0.2839525386
A87: Misin10G003200 | B87: ---NA--- | C87: 0 | D87: 455.383753 | E87: -2.667204231 | F87: 0.5232997543 | G87: 1.48E-07 | H87: 9.83E-05 | I87: 455.383753 | J87: -2.463653448 | K87: 0.5200382452 | L87: 1.25E-07 | M87: 4.27E-05 | N87: 455.383753 | O87: -0.00519853642 | P87: 0.1047128446 | Q87: 0.8171951249 | R87: 1
A88: Misin15G132100 | B88: Calmodulin-binding protein 60 C | C88: F:calmodulin binding; P:response to stress; F:hydrolase activity, acting on ester bonds | D88: 157.8627092 | E88: -2.970404457 | F88: 0.5909002203 | G88: 1.86E-07 | H88: 0.0001220807131 | I88: 157.8627092 | J88: -0.8674283373 | K88: 0.8244060846 | L88: 0.001061758081 | M88: 0.05952363849 | N88: 157.8627092 | O88: -3.234066482 | P88: 0.7669866719 | Q88: 9.20E-07 | R88: 0.0002540518881
A89: Misin15G196600 | B89: ---NA--- | C89: 0 | D89: 31.19993278 | E89: -7.097328878 | F89: 1.566120749 | G89: 1.90E-07 | H89: 0.0001228699805 | I89: 31.19993278 | J89: -7.788030805 | K89: 1.513220345 | L89: 5.18E-09 | M89: 2.56E-06 | N89: 31.19993278 | O89: -7.395221752 | P89: 1.573763715 | Q89: 7.49E-08 | R89: 3.01E-05
A90: MisinT014600 | B90: putative cytochrome P450 superfamily protein; cytochrome p450 superfamily protein | C90: F:iron ion binding; C:integral component of membrane; F:oxidoreductase activity, acting on paired donors, with incorporation or reduction of molecular oxygen, NAD(P)H as one donor, and incorporation of one atom of oxygen; F:heme binding; P:secondary metabolite biosynthetic process; P:oxidation-reduction process | D90: 1522.846516 | E90: 7.088725237 | F90: 1.619529921 | G90: 2.87E-07 | H90: 0.0001800017455 | I90: 1522.846516 | J90: 7.922085219 | K90: 1.535208374 | L90: 4.14E-09 | M90: 2.09E-06 | N90: 1522.846516 | O90: 10.91618632 | P90: 0.8236743156 | Q90: 4.50E-42 | R90: 2.42E-37
A91: Misin01G293600 | B91: ---NA--- | C91: 0 | D91: 35.70120188 | E91: 7.288719068 | F91: 1.684912383 | G91: 2.87E-07 | H91: 0.0001800017455 | I91: 35.70120188 | J91: 7.232710946 | K91: 1.604036915 | L91: 1.34E-07 | M91: 4.53E-05 | N91: 35.70120188 | O91: 8.154622197 | P91: 1.626930271 | Q91: 1.71E-08 | R91: 8.09E-06
A92: Misin12G006200 | B92: ---NA--- | C92: 0 | D92: 70.99436739 | E92: -4.191817783 | F92: 0.8667412787 | G92: 2.83E-07 | H92: 0.0001800017455 | I92: 70.99436739 | J92: -4.463466652 | K92: 0.7741434098 | L92: 1.02E-09 | M92: 6.06E-07 | N92: 70.99436739 | O92: -4.152278837 | P92: 0.8639725722 | Q92: 5.60E-08 | R92: 2.34E-05
A93: Misin01G032000 | B93: methylenetetrahydrofolate reductase 1 | C93: F:methylenetetrahydrofolate reductase (NAD(P)H) activity; C:cytosol; P:methionine metabolic process; P:tetrahydrofolate interconversion; P:oxidation-reduction process | D93: 1826.643342 | E93: -2.197959493 | F93: 0.449416487 | G93: 2.94E-07 | H93: 0.0001819781481 | I93: 1826.643342 | J93: -2.86036877 | K93: 0.4439213401 | L93: 9.22E-12 | M93: 9.03E-09 | N93: 1826.643342 | O93: -2.4412872 | P93: 0.463267554 | Q93: 1.20E-08 | R93: 5.81E-06
A94: Misin07G316900 | B94: Histone-lysine N-methyltransferase, H3 lysine-9 specific SUVH5; histone-lysine n- h3 lysine-9 specific suvh5 | C94: C:nucleus; C:chromosome; P:lysine catabolic process; F:zinc ion binding; F:histone-lysine N-methyltransferase activity; P:histone lysine methylation; F:histone binding | D94: 14.47244377 | E94: 7.264976238 | F94: 1.684160258 | G94: 3.00E-07 | H94: 0.0001839741141 | I94: 14.47244377 | J94: 4.015800619 | K94: 2.535993855 | L94: 0.0001083416591 | M94: 0.01091010632 | N94: 14.47244377 | O94: 6.194517911 | P94: 2.006383844 | Q94: 5.37E-06 | R94: 0.001110561197
A95: Misin07G427600 | B95: RAN GTPase-activating protein 2-like | C95: 0 | D95: 82.36955634 | E95: -1.755687499 | F95: 0.3657969041 | G95: 3.54E-07 | H95: 0.0002110619134 | I95: 82.36955634 | J95: -2.111609853 | K95: 0.3471782019 | L95: 1.52E-10 | M95: 1.11E-07 | N95: 82.36955634 | O95: -2.533802496 | P95: 0.4306862227 | Q95: 4.76E-10 | R95: 3.33E-07
A96: Misin15G152300 | B96: ---NA--- | C96: 0 | D96: 80.21341945 | E96: 2.316475706 | F96: 0.4800510264 | G96: 3.57E-07 | H96: 0.0002110619134 | I96: 80.21341945 | J96: 3.356273185 | K96: 0.5038355572 | L96: 2.17E-12 | M96: 2.59E-09 | N96: 80.21341945 | O96: 2.283531504 | P96: 0.508116973 | Q96: 3.27E-07 | R96: 0.0001047121521
A97: Misin18G226000 | B97: GRIP and coiled-coil domain-containing protein 2 | C97: 0 | D97: 142.7118026 | E97: -5.043766467 | F97: 1.079983634 | G97: 3.59E-07 | H97: 0.0002110619134 | I97: 142.7118026 | J97: -4.52511633 | K97: 0.9362406924 | L97: 1.18E-07 | M97: 4.06E-05 | N97: 142.7118026 | O97: -4.065009917 | P97: 1.534022981 | Q97: 1.96E-05 | R97: 0.0032154692
A98: Misin10G032000 | B98: Disease resistance protein RGA2; disease resistance protein rga2 | C98: F:nucleotide binding | D98: 17.48626867 | E98: 3.898023193 | F98: 0.8148139734 | G98: 3.56E-07 | H98: 0.0002110619134 | I98: 17.48626867 | J98: 0.5655187995 | K98: 0.7724779088 | L98: 0.003631091649 | M98: 0.1331688649 | N98: 17.48626867 | O98: 0.04654053632 | P98: 0.2052790786 | Q98: 0.1791622581 | R98: 0.9036194632
A99: Misin09G170500 | B99: NB-ARC domain containing protein, expressed | C99: F:ADP binding | D99: 69.83489349 | E99: -5.319493106 | F99: 1.161027018 | G99: 4.14E-07 | H99: 0.0002405072292 | I99: 69.83489349 | J99: -4.131138267 | K99: 1.108898476 | L99: 3.62E-06 | M99: 0.0007331509915 | N99: 69.83489349 | O99: -6.180017052 | P99: 2.01267206 | Q99: 5.54E-06 | R99: 0.00113847856
A100: Misin07G340200 | B100: ---NA--- | C100: 0 | D100: 259.0412083 | E100: -2.599815487 | F100: 0.5485233979 | G100: 4.56E-07 | H100: 0.0002624145956 | I100: 259.0412083 | J100: -1.945658337 | K100: 0.6576957463 | L100: 1.39E-05 | M100: 0.002147728134 | N100: 259.0412083 | O100: -2.898194622 | P100: 0.5391832166 | Q100: 7.59E-09 | R100: 3.82E-06
A101: MisinT025200 | B101: putative disease resistance RPP13-like protein 3 | C101: F:magnesium ion binding; F:terpene synthase activity; F:lyase activity; F:ADP binding | D101: 269.1484581 | E101: -2.772235834 | F101: 0.5854636027 | G101: 4.62E-07 | H101: 0.0002633468314 | I101: 269.1484581 | J101: -1.839604029 | K101: 0.7713214091 | L101: 4.30E-05 | M101: 0.005348870626 | N101: 269.1484581 | O101: -2.542797953 | P101: 0.5984105183 | Q101: 9.19E-07 | R101: 0.0002540518881
A102: Misin01G196200 | B102: PREDICTED: uncharacterized protein LOC103639286 | C102: 0 | D102: 47.68220563 | E102: 7.602524308 | F102: 1.933329948 | G102: 5.35E-07 | H102: 0.0003017260911 | I102: 47.68220563 | J102: 7.6393625 | K102: 1.783646186 | L102: 1.88E-07 | M102: 6.03E-05 | N102: 47.68220563 | O102: 8.459174652 | P102: 1.795096009 | Q102: 5.24E-08 | R102: 2.21E-05
A103: Misin15G155700 | B103: NBS-LRR class disease resistance protein | C103: F:nucleotide binding; F:ATP binding; C:membrane; C:integral component of membrane; F:ADP binding | D103: 20.69873757 | E103: -6.886355935 | F103: 1.665070177 | G103: 5.52E-07 | H103: 0.0003083929026 | I103: 20.69873757 | J103: -8.033644093 | K103: 1.549127339 | L103: 3.19E-09 | M103: 1.65E-06 | N103: 20.69873757 | O103: -2.47903548 | P103: 2.514237762 | Q103: 0.0004080502378 | R103: 0.03495024891
A104: MisinT392300 | B104: methionine adenosyltransferase 2 subunit beta | C104: F:isomerase activity | D104: 59.11481841 | E104: 3.825994194 | F104: 0.8306877014 | G104: 5.89E-07 | H104: 0.0003255854004 | I104: 59.11481841 | J104: 4.868948105 | K104: 0.8420154925 | L104: 1.01E-09 | M104: 6.04E-07 | N104: 59.11481841 | O104: 6.005800805 | P104: 1.104322776 | Q104: 2.04E-09 | R104: 1.18E-06
A105: Misin16G146300 | B105: ---NA--- | C105: 0 | D105: 22.72123951 | E105: 7.123538715 | F105: 1.773471205 | G105: 6.09E-07 | H105: 0.000333303865 | I105: 22.72123951 | J105: 6.483598492 | K105: 1.755954412 | L105: 1.84E-06 | M105: 0.0004226269767 | N105: 22.72123951 | O105: 6.685240721 | P105: 1.684464171 | Q105: 8.41E-07 | R105: 0.0002347073279
A106: Misin02G503700 | B106: probable serine/threonine-protein kinase NAK; probable serine threonine-protein kinase nak | C106: F:protein serine/threonine kinase activity; F:ATP binding; P:protein phosphorylation; P:serine family amino acid metabolic process | D106: 92.37667301 | E106: -3.265987949 | F106: 0.7215615469 | G106: 7.60E-07 | H106: 0.0004123763677 | I106: 92.37667301 | J106: -2.091001048 | K106: 0.9215781257 | L106: 5.54E-05 | M106: 0.006608193581 | N106: 92.37667301 | O106: -3.637375451 | P106: 0.7970364251 | Q106: 2.14E-07 | R106: 7.25E-05
A107: Misin03G042000 | B107: predicted protein; protein fatty acid export chloroplastic-like | C107: C:integral component of membrane | D107: 539.5623888 | E107: 1.314501636 | F107: 0.3050607483 | G107: 8.32E-07 | H107: 0.0004466643553 | I107: 539.5623888 | J107: 0.8086489319 | K107: 0.3358057666 | L107: 4.37E-05 | M107: 0.005407816473 | N107: 539.5623888 | O107: 1.435404285 | P107: 0.2977122955 | Q107: 2.73E-08 | R107: 1.22E-05
A108: Misin10G078300 | B108: dual specificity protein kinase pyk3-like isoform X1 | C108: F:kinase activity | D108: 89.17742215 | E108: -1.797502963 | F108: 0.4193238902 | G108: 1.06E-06 | H108: 0.0005617964038 | I108: 89.17742215 | J108: -1.802030226 | K108: 0.3887853679 | L108: 1.05E-07 | M108: 3.69E-05 | N108: 89.17742215 | O108: -2.606310416 | P108: 0.4600521986 | Q108: 1.66E-09 | R108: 9.94E-07
A109: Misin17G168000 | B109: B3 domain-containing protein; b3 domain-containing protein | C109: F:DNA binding; C:nucleus; P:regulation of transcription, DNA-templated | D109: 66.40563591 | E109: -2.722704813 | F109: 0.6301368184 | G109: 1.17E-06 | H109: 0.0006160435928 | I109: 66.40563591 | J109: -3.193283078 | K109: 0.5693092322 | L109: 1.52E-09 | M109: 8.60E-07 | N109: 66.40563591 | O109: -2.466847652 | P109: 0.9602092533 | Q109: 3.81E-05 | R109: 0.005490250315
A110: Misin07G339800 | B110: probable LRR receptor-like serine/threonine-protein kinase At3g47570; probable lrr receptor-like serine threonine-protein kinase at3g47570 | C110: F:protein serine/threonine kinase activity; F:ATP binding; P:protein phosphorylation; P:serine family amino acid metabolic process; C:integral component of membrane | D110: 51.61690711 | E110: -3.56784887 | F110: 0.8324105116 | G110: 1.23E-06 | H110: 0.0006443527752 | I110: 51.61690711 | J110: -3.946862965 | K110: 0.7296028726 | L110: 6.00E-09 | M110: 2.89E-06 | N110: 51.61690711 | O110: -3.168022033 | P110: 0.8102625825 | Q110: 2.28E-06 | R110: 0.0005467738213
A111: Misin09G171900 | B111: mannose/glucose-specific lectin-like isoform X1; mannose glucose-specific lectin-like isoform x1 | C111: F:nucleotide binding | D111: 122.1117839 | E111: -6.829976588 | F111: 1.866795659 | G111: 1.29E-06 | H111: 0.000669223177 | I111: 122.1117839 | J111: -6.815597732 | K111: 1.696275037 | L111: 7.48E-07 | M111: 0.0001985668303 | N111: 122.1117839 | O111: -9.922352868 | P111: 1.637389078 | Q111: 2.23E-11 | R111: 2.04E-08
A112: Misin07G473000 | B112: ---NA--- | C112: 0 | D112: 33.25386831 | E112: 5.538389963 | F112: 1.382341628 | G112: 1.31E-06 | H112: 0.0006721708647 | I112: 33.25386831 | J112: 6.145085246 | K112: 2.062496738 | L112: 6.80E-06 | M112: 0.001212639085 | N112: 33.25386831 | O112: 2.059764181 | P112: 1.974939349 | Q112: 0.0004946125655 | R112: 0.03965364876
A113: Misin07G401300 | B113: putative receptor-like protein kinase At3g47110 | C113: F:transferase activity | D113: 906.0178148 | E113: -4.637045476 | F113: 1.12318308 | G113: 1.39E-06 | H113: 0.0007060238194 | I113: 906.0178148 | J113: -2.671566415 | K113: 1.379248783 | L113: 9.62E-05 | M113: 0.01000049547 | N113: 906.0178148 | O113: -4.188600647 | P113: 0.9521532923 | Q113: 3.10E-07 | R113: 0.0001006310286
A114: Misin07G491800 | B114: PREDICTED: uncharacterized protein LOC104584816 | C114: 0 | D114: 20.5649251 | E114: 4.146076144 | F114: 1.003990231 | G114: 1.54E-06 | H114: 0.0007664986724 | I114: 20.5649251 | J114: 4.888141414 | K114: 1.331971824 | L114: 3.78E-06 | M114: 0.0007599292122 | N114: 20.5649251 | O114: 6.580573511 | P114: 1.557919097 | Q114: 4.24E-07 | R114: 0.0001290775399
A115: Misin08G022200 | B115: putative F-box protein At2g02030; f-box protein at2g02030 | C115: F:transferase activity; P:cellular protein metabolic process; C:obsolete intracellular part | D115: 11.30745812 | E115: 6.644853967 | F115: 1.841584492 | G115: 1.53E-06 | H115: 0.0007664986724 | I115: 11.30745812 | J115: 5.441993504 | K115: 2.04511172 | L115: 1.52E-05 | M115: 0.002314438123 | N115: 11.30745812 | O115: 4.963855542 | P115: 2.438839618 | Q115: 3.55E-05 | R115: 0.005165805998
A116: Misin12G256000 | B116: ---NA--- | C116: 0 | D116: 57.60072071 | E116: 3.615871617 | F116: 0.8768856644 | G116: 1.66E-06 | H116: 0.0008219578788 | I116: 57.60072071 | J116: 3.656328472 | K116: 0.8616304832 | L116: 8.69E-07 | M116: 0.0002261121528 | N116: 57.60072071 | O116: 1.170142044 | P116: 1.134075829 | Q116: 0.0009063169261 | R116: 0.06073112487
A117: Misin01G072900 | B117: 40S ribosomal protein S29; 40s ribosomal protein s29 | C117: F:DNA binding; F:RNA binding; F:structural constituent of ribosome; C:nucleus; P:translation; F:zinc ion binding; C:integral component of membrane; C:cytosolic small ribosomal subunit; P:ribosome biogenesis | D117: 56.93520912 | E117: -6.48502877 | F117: 1.817192329 | G117: 1.75E-06 | H117: 0.0008582909339 | I117: 56.93520912 | J117: -7.666151945 | K117: 1.320964376 | L117: 1.76E-10 | M117: 1.25E-07 | N117: 56.93520912 | O117: -7.57384107 | P117: 1.694137806 | Q117: 1.65E-07 | R117: 5.75E-05
A118: Misin05G304300 | B118: UDP-glycosyltransferase 87A1-like; udp-glycosyltransferase 87a1-like | C118: P:flavonoid biosynthetic process; C:intracellular membrane-bounded organelle; P:flavonoid glucuronidation; F:quercetin 3-O-glucosyltransferase activity; F:quercetin 7-O-glucosyltransferase activity | D118: 83.39763199 | E118: -2.606082697 | F118: 0.6514625613 | G118: 2.02E-06 | H118: 0.0009820171099 | I118: 83.39763199 | J118: -3.028838695 | K118: 0.6000837944 | L118: 2.96E-08 | M118: 1.20E-05 | N118: 83.39763199 | O118: -0.1128101609 | P118: 0.4558349577 | Q118: 0.06246065554 | R118: 0.6608857221
A119: Misin07G401200 | B119: putative receptor-like protein kinase At3g47110; receptor-like protein kinase at3g47110 | C119: F:nucleotide binding; F:protein kinase activity; C:membrane; P:phosphorylation | D119: 786.7640379 | E119: -4.450527695 | F119: 1.150950639 | G119: 2.26E-06 | H119: 0.001090208705 | I119: 786.7640379 | J119: -1.847322889 | K119: 1.344431044 | L119: 0.0003194133095 | M119: 0.02530645889 | N119: 786.7640379 | O119: -2.149570377 | P119: 1.265671703 | Q119: 0.0001696161374 | R119: 0.01795298508
A120: Misin12G113600 | B120: ATP-dependent 6-phosphofructokinase 2; atp-dependent 6-phosphofructokinase 2 | C120: F:6-phosphofructokinase activity; F:ATP binding; C:6-phosphofructokinase complex; P:fructose metabolic process; P:fructose 6-phosphate metabolic process; P:galactose metabolic process; P:mannose metabolic process; P:gluconeogenesis; P:pentose-phosphate shunt; C:plastid; F:metal ion binding; P:glycolytic process through fructose-6-phosphate | D120: 45.46157357 | E120: -5.774696009 | F120: 1.605332719 | G120: 2.29E-06 | H120: 0.001093304755 | I120: 45.46157357 | J120: -6.594788515 | K120: 1.039742352 | L120: 1.83E-11 | M120: 1.65E-08 | N120: 45.46157357 | O120: -7.048486558 | P120: 1.504604536 | Q120: 8.22E-08 | R120: 3.21E-05
A121: Misin13G198400 | B121: nitronate monooxygenase | C121: C:cytosol; F:nitronate monooxygenase activity; P:para-aminobenzoic acid metabolic process; F:dioxygenase activity; P:oxidation-reduction process | D121: 166.2282262 | E121: 4.842897604 | F121: 1.293921644 | G121: 2.50E-06 | H121: 0.001185314702 | I121: 166.2282262 | J121: 5.286431518 | K121: 1.205700399 | L121: 5.93E-07 | M121: 0.000161373201 | N121: 166.2282262 | O121: 5.136433075 | P121: 1.299911825 | Q121: 1.09E-06 | R121: 0.0002930807243
A122: Misin09G123300 | B122: ---NA--- | C122: 0 | D122: 36.04383923 | E122: -6.435985527 | F122: 2.032483765 | G122: 3.03E-06 | H122: 0.001424577059 | I122: 36.04383923 | J122: -7.145462228 | K122: 1.646641121 | L122: 2.48E-07 | M122: 7.76E-05 | N122: 36.04383923 | O122: -5.23982487 | P122: 2.400486785 | Q122: 2.65E-05 | R122: 0.004128899657
A123: Misin10G077900 | B123: mitogen-activated protein kinase kinase kinase 2-like isoform X1; mitogen-activated protein kinase kinase kinase 2-like isoform x1 | C123: F:nucleotide binding; F:protein kinase activity; P:phosphorylation; P:primary metabolic process; P:cellular macromolecule metabolic process | D123: 58.06667372 | E123: -2.398934741 | F123: 0.6647263058 | G123: 3.49E-06 | H123: 0.001625540463 | I123: 58.06667372 | J123: -0.4869553083 | K123: 0.5493980983 | L123: 0.003382067062 | M123: 0.1274187853 | N123: 58.06667372 | O123: -0.8096238449 | P123: 0.8146813254 | Q123: 0.001330307252 | R123: 0.07863399914
A124: Misin09G167700 | B124: putative F-box/FBD/LRR-repeat protein At5g56810 | C124: F:nucleic acid binding; F:zinc ion binding | D124: 48.79193571 | E124: -4.80335802 | F124: 1.375053761 | G124: 3.62E-06 | H124: 0.001672775429 | I124: 48.79193571 | J124: -2.655986548 | K124: 1.605091445 | L124: 0.0001576315085 | M124: 0.01457762995 | N124: 48.79193571 | O124: -4.15564565 | P124: 1.663676819 | Q124: 2.41E-05 | R124: 0.003804760559
A125: Misin10G025400 | B125: cation-chloride cotransporter 1 isoform X1; cation-chloride cotransporter 1 isoform x1 | C125: F:potassium:chloride symporter activity; F:potassium:chloride symporter activity; C:integral component of membrane; P:chloride ion homeostasis; P:potassium ion homeostasis; P:potassium ion transmembrane transport; P:chloride transmembrane transport | D125: 16.63615143 | E125: -6.276330262 | F125: 2.044912795 | G125: 3.67E-06 | H125: 0.001682551386 | I125: 16.63615143 | J125: -6.812749934 | K125: 1.436822967 | L125: 8.06E-08 | M125: 2.91E-05 | N125: 16.63615143 | O125: -2.971764219 | P125: 2.663510328 | Q125: 0.000264107259 | R125: 0.02513918477
A126: Misin11G205100 | B126: probable N-acetyltransferase HLS1; probable n-acetyltransferase hls1 | C126: F:peptide alpha-N-acetyltransferase activity; P:N-terminal protein amino acid acetylation; C:protein acetyltransferase complex; P:obsolete acyl-carrier-protein biosynthetic process | D126: 38.30862645 | E126: 7.881101026 | F126: 7.64808372 | G126: 4.45E-06 | H126: 2.02E-03 | I126: 38.30862645 | J126: 9.304097679 | K126: 7.099764905 | L126: 2.20E-06 | M126: 4.94E-04 | N126: 38.30862645 | O126: 0.1479711252 | P126: 0.8755582796 | Q126: 0.03742860724 | R126: 0.5371991191
A127: MisinT013400 | B127: hypothetical protein SORBI_005G171700 | C127: P:regulation of transcription, DNA-templated; F:zinc ion binding | D127: 21.7168718 | E127: 3.790094205 | F127: 1.098353195 | G127: 4.57E-06 | H127: 0.002063790274 | I127: 21.7168718 | J127: 5.015044027 | K127: 0.9861078979 | L127: 3.94E-08 | M127: 1.54E-05 | N127: 21.7168718 | O127: 1.866443643 | P127: 1.185726701 | Q127: 0.0002331026194 | R127: 0.02270959063
A128: Misin10G023700 | B128: alpha carbonic anhydrase 7-like | C128: F:metal ion binding | D128: 16.05047173 | E128: 6.255288366 | F128: 2.210551259 | G128: 4.87E-06 | H128: 0.002178005815 | I128: 16.05047173 | J128: 2.006262301 | K128: 2.430971035 | L128: 0.0008064870242 | M128: 0.04909546715 | N128: 16.05047173 | O128: 2.166901404 | P128: 2.576016806 | Q128: 0.0005809093784 | R128: 0.04401757069
A129: Misin03G074500 | B129: protein FIZZY-RELATED 3; protein fizzy-related 3 | C129: F:anaphase-promoting complex binding; P:regulation of catalytic activity; F:ubiquitin-protein transferase activator activity | D129: 21.15739048 | E129: 4.811196815 | F129: 1.484904059 | G129: 5.05E-06 | H129: 0.002209549913 | I129: 21.15739048 | J129: 3.905475031 | K129: 1.196232592 | L129: 9.16E-06 | M129: 0.001537934877 | N129: 21.15739048 | O129: 7.438484311 | P129: 1.550767762 | Q129: 5.04E-08 | R129: 2.15E-05
A130: Misin11G099200 | B130: betaine aldehyde dehydrogenase | C130: C:peroxisome; P:arginine metabolic process; P:glycine metabolic process; P:proline metabolic process; P:L-serine metabolic process; P:threonine metabolic process; F:betaine-aldehyde dehydrogenase activity; F:aminobutyraldehyde dehydrogenase activity; P:glycine betaine biosynthetic process from choline; P:beta-alanine metabolic process; F:1-pyrroline dehydrogenase activity; P:oxidation-reduction process; P:cellular response to anoxia | D130: 21.37387589 | E130: -4.862213195 | F130: 1.503209186 | G130: 5.02E-06 | H130: 0.002209549913 | I130: 21.37387589 | J130: -5.690530529 | K130: 0.9369070835 | L130: 1.62E-10 | M130: 1.17E-07 | N130: 21.37387589 | O130: -1.161353837 | P130: 1.902996189 | Q130: 0.001844604494 | R130: 0.09836878255
A131: Misin15G149100 | B131: probable inactive purple acid phosphatase 1 | C131: F:acid phosphatase activity; P:riboflavin metabolic process; P:dephosphorylation; P:hexachlorocyclohexane metabolic process; F:metal ion binding | D131: 105.5151994 | E131: -2.520196019 | F131: 0.7507700873 | G131: 5.00E-06 | H131: 0.002209549913 | I131: 105.5151994 | J131: -0.9548200567 | K131: 0.8462838177 | L131: 0.0008117731056 | M131: 0.04930583547 | N131: 105.5151994 | O131: -0.07344755347 | P131: 0.2453268841 | Q131: 0.08901324006 | R131: 0.7492215908
A132: Misin07G461000 | B132: ATPase family AAA domain-containing protein 3; atpase family aaa domain-containing protein 3 | C132: F:ATP binding; C:mitochondrion; F:hydrolase activity | D132: 772.2834652 | E132: 1.290177823 | F132: 0.443020982 | G132: 5.56E-06 | H132: 0.002413089547 | I132: 772.2834652 | J132: 0.3463656845 | K132: 0.3021691477 | L132: 0.006498325421 | M132: 0.1872537819 | N132: 772.2834652 | O132: 0.149556003 | P132: 0.2679602301 | Q132: 0.02015532096 | R132: 0.4014462354
A133: Misin01G016200 | B133: predicted protein; uncharacterized protein loc100277624 | C133: F:structural constituent of ribosome; C:mitochondrial small ribosomal subunit; P:ribosome biogenesis | D133: 501.6277559 | E133: -1.824089921 | F133: 0.5982712585 | G133: 6.17E-06 | H133: 0.002655752858 | I133: 501.6277559 | J133: -1.935638478 | K133: 0.4775767119 | L133: 9.30E-07 | M133: 0.0002374815113 | N133: 501.6277559 | O133: -1.635786249 | P133: 0.5365594695 | Q133: 1.60E-05 | R133: 0.00275220352
A134: Misin12G095900 | B134: serine carboxypeptidase-like 10 | C134: F:serine-type carboxypeptidase activity; C:mitochondrion; F:transferase activity, transferring acyl groups other than amino-acyl groups; P:secondary metabolic process; P:proteolysis involved in cellular protein catabolic process | D134: 343.994036 | E134: 1.962752487 | F134: 0.6373961033 | G134: 6.24E-06 | H134: 0.002665995011 | I134: 343.994036 | J134: 3.507568981 | K134: 0.480662634 | L134: 2.55E-14 | M134: 4.59E-11 | N134: 343.994036 | O134: 2.556124657 | P134: 0.4885791759 | Q134: 1.56E-08 | R134: 7.44E-06
A135: Misin07G363000 | B135: monoterpene synthase | C135: F:magnesium ion binding; P:metabolic process; F:terpene synthase activity; F:lyase activity; F:metal ion binding | D135: 319.4886631 | E135: 4.155377769 | F135: 1.309265506 | G135: 6.30E-06 | H135: 0.002670838473 | I135: 319.4886631 | J135: -1.63664913 | K135: 0.9133367332 | L135: 0.0001407008586 | M135: 0.01327540938 | N135: 319.4886631 | O135: -0.05813056564 | P135: 0.2138612348 | Q135: 0.1252307023 | R135: 0.8230044432
A136: MisinT244700 | B136: probable protein phosphatase 2C 73; probable protein phosphatase 2c 73 | C136: F:protein serine/threonine phosphatase activity; P:protein dephosphorylation; P:cation transport; C:protein serine/threonine phosphatase complex; C:membrane; P:transmembrane transport | D136: 145.3529751 | E136: -1.695371587 | F136: 0.5708714977 | G136: 6.46E-06 | H136: 0.002720504023 | I136: 145.3529751 | J136: -2.533681687 | K136: 0.4050010381 | L136: 3.83E-11 | M136: 3.31E-08 | N136: 145.3529751 | O136: -2.696052731 | P136: 0.5960256001 | Q136: 3.62E-07 | R136: 0.0001147538397
A137: Misin06G000800 | B137: TPA: putative HLH DNA-binding domain superfamily protein; tpa: hlh dna-binding domain superfamily protein | C137: F:binding | D137: 882.4438785 | E137: -1.031863726 | F137: 0.412051357 | G137: 7.65E-06 | H137: 0.003172925202 | I137: 882.4438785 | J137: -1.311135761 | K137: 0.2856293234 | L137: 1.29E-08 | M137: 5.78E-06 | N137: 882.4438785 | O137: -1.248391913 | P137: 0.2605328469 | Q137: 4.90E-08 | R137: 2.11E-05
A138: Misin07G502700 | B138: predicted protein; uncharacterized protein loc101770149 | C138: C:mitochondrion; C:integral component of membrane | D138: 551.7042825 | E138: 1.01572652 | F138: 0.4073959265 | G138: 7.65E-06 | H138: 0.003172925202 | I138: 551.7042825 | J138: -0.004325941534 | K138: 0.1032060377 | L138: 0.9187443035 | M138: 1 | N138: 551.7042825 | O138: 0.02471088412 | P138: 0.09034086441 | Q138: 0.3163681209 | R138: 0.992412588
A139: Misin10G005300 | B139: hypothetical protein BAE44_0023153; uncharacterized protein loc103997792 | C139: C:membrane | D139: 28.96330917 | E139: -5.409962831 | F139: 2.004413598 | G139: 8.05E-06 | H139: 0.003314395559 | I139: 28.96330917 | J139: -6.790502557 | K139: 1.516049727 | L139: 2.12E-07 | M139: 6.72E-05 | N139: 28.96330917 | O139: 0.002279833937 | P139: 0.250641703 | Q139: 0.9400158985 | R139: 1
A140: MisinT340700 | B140: pathogenesis-related protein PR-4-like; pathogenesis-related protein pr-4-like | C140: F:chitin binding; P:defense response to bacterium; P:defense response to fungus | D140: 74.16707845 | E140: -5.751607347 | F140: 2.27430481 | G140: 8.44E-06 | H140: 0.003451379275 | I140: 74.16707845 | J140: -0.09303630214 | K140: 0.4945257901 | L140: 0.1282611854 | M140: 0.7494654405 | N140: 74.16707845 | O140: -0.9196813783 | P140: 1.755978529 | Q140: 0.002766363123 | R140: 0.1252418599
A141: Misin07G250100 | B141: AP2-like ethylene-responsive transcription factor PLT2 isoform X1 | C141: F:DNA binding; F:DNA-binding transcription factor activity; C:nucleus; P:transcription, DNA-templated; P:regulation of transcription, DNA-templated; P:multicellular organism development | D141: 30.73362905 | E141: 3.215015671 | F141: 1.092015127 | G141: 9.04E-06 | H141: 0.003668726824 | I141: 30.73362905 | J141: 3.35094756 | K141: 0.8412388266 | L141: 1.77E-06 | M141: 0.0004199131692 | N141: 30.73362905 | O141: 3.701998585 | P141: 0.8395033639 | Q141: 3.74E-07 | R141: 0.0001172913362
A142: Misin12G124800 | B142: ---NA--- | C142: 0 | D142: 21.3882357 | E142: 5.753623677 | F142: 2.415316439 | G142: 9.82E-06 | H142: 0.003955117399 | I142: 21.3882357 | J142: 5.656429509 | K142: 2.056152618 | L142: 1.21E-05 | M142: 0.001919876417 | N142: 21.3882357 | O142: 7.656027743 | P142: 1.694305208 | Q142: 1.38E-07 | R142: 4.96E-05
A143: MisinT447600 | B143: ---NA--- | C143: 0 | D143: 17.25456269 | E143: 5.932676268 | F143: 2.763106363 | G143: 1.12E-05 | H143: 0.004498095881 | I143: 17.25456269 | J143: 3.112487184 | K143: 2.462869162 | L143: 0.0002503122976 | M143: 0.02123712604 | N143: 17.25456269 | O143: 4.621051775 | P143: 2.947410921 | Q143: 7.11E-05 | R143: 0.008950222414
A144: MisinT042000 | B144: probable LRR receptor-like serine/threonine-protein kinase At4g36180; probable lrr receptor-like serine threonine-protein kinase at4g36180 | C144: C:integral component of membrane | D144: 30.61440126 | E144: 3.367470555 | F144: 1.223518178 | G144: 1.15E-05 | H144: 0.004570731176 | I144: 30.61440126 | J144: 6.502444909 | K144: 1.700556613 | L144: 1.41E-06 | M144: 0.0003413638584 | N144: 30.61440126 | O144: 6.398815812 | P144: 1.932387786 | Q144: 3.49E-06 | R144: 0.0007817317043
A145: Misin03G357000 | B145: ---NA--- | C145: 0 | D145: 404.7809862 | E145: 1.606128217 | F145: 0.64918056 | G145: 1.17E-05 | H145: 0.004631914888 | I145: 404.7809862 | J145: 0.2508712348 | K145: 0.3266576455 | L145: 0.0173291157 | M145: 0.3256406501 | N145: 404.7809862 | O145: 0.8190589806 | P145: 0.6037073083 | Q145: 0.000676020414 | R145: 0.04941736744
A146: Misin17G114900 | B146: ---NA--- | C146: 0 | D146: 61.49857134 | E146: -2.982425637 | F146: 1.095309505 | G146: 1.19E-05 | H146: 0.004650043656 | I146: 61.49857134 | J146: -0.2076287589 | K146: 0.4197675037 | L146: 0.02696433215 | M146: 0.4075679951 | N146: 61.49857134 | O146: -2.321098684 | P146: 0.9716201607 | Q146: 5.29E-05 | R146: 0.00712958574
A147: Misin02G495200 | B147: ---NA--- | C147: 0 | D147: 441.9862102 | E147: -0.8824285278 | F147: 0.4292571578 | G147: 1.23E-05 | H147: 0.004802751976 | I147: 441.9862102 | J147: -0.9640496794 | K147: 0.2816528456 | L147: 6.91E-07 | M147: 0.0001862636868 | N147: 441.9862102 | O147: -3.44947178 | P147: 0.2600430164 | Q147: 2.73E-41 | R147: 7.35E-37
A148: Misin15G157200 | B148: ---NA--- | C148: 0 | D148: 32.52972494 | E148: -5.699577207 | F148: 2.631932966 | G148: 1.24E-05 | H148: 0.00480390726 | I148: 32.52972494 | J148: -7.183193356 | K148: 1.760819661 | L148: 4.87E-07 | M148: 0.0001375057066 | N148: 32.52972494 | O148: -6.71575309 | P148: 2.054199304 | Q148: 3.41E-06 | R148: 0.0007679681047
A149: Misin18G259300 | B149: ---NA--- | C149: 0 | D149: 88.67662545 | E149: 1.724907421 | F149: 0.7007536595 | G149: 1.26E-05 | H149: 0.004840716124 | I149: 88.67662545 | J149: 2.34494116 | K149: 0.4542542053 | L149: 1.96E-08 | M149: 8.30E-06 | N149: 88.67662545 | O149: 2.878448191 | P149: 0.4465193025 | Q149: 1.48E-11 | R149: 1.45E-08
A150: Misin07G415800 | B150: ---NA--- | C150: 0 | D150: 477.3507246 | E150: 3.284246002 | F150: 1.246607536 | G150: 1.34E-05 | H150: 0.005095246211 | I150: 477.3507246 | J150: 2.891244352 | K150: 1.200102865 | L150: 4.22E-05 | M150: 0.005257475419 | N150: 477.3507246 | O150: 1.812639153 | P150: 1.369610348 | Q150: 0.0003662358942 | R150: 0.03208285984
A151: Misin02G288000 | B151: GRIP and coiled-coil domain-containing protein 2 | C151: 0 | D151: 139.7712122 | E151: -5.521947106 | F151: 2.597654451 | G151: 1.41E-05 | H151: 0.005319479662 | I151: 139.7712122 | J151: -6.580816439 | K151: 1.424525562 | L151: 1.51E-07 | M151: 5.10E-05 | N151: 139.7712122 | O151: -7.041343117 | P151: 1.978332892 | Q151: 1.85E-06 | R151: 0.0004639455939
A152: Misin12G156400 | B152: protein NRT1/ PTR FAMILY 4.6-like isoform X1; protein nrt1 ptr family -like isoform x1 | C152: F:transporter activity; P:transport; C:integral component of membrane | D152: 21.6804561 | E152: 4.429759378 | F152: 1.80551327 | G152: 1.44E-05 | H152: 0.005433016499 | I152: 21.6804561 | J152: 4.20853071 | K152: 1.182594158 | L152: 5.14E-06 | M152: 0.0009779469028 | N152: 21.6804561 | O152: 8.084240692 | P152: 1.541821727 | Q152: 5.92E-09 | R152: 3.10E-06
A153: Misin03G034300 | B153: DDRGK domain-containing protein 1; ddrgk domain-containing protein 1 | C153: C:integral component of membrane | D153: 798.0151333 | E153: -0.7537180933 | F153: 0.4077753138 | G153: 1.47E-05 | H153: 0.005472048349 | I153: 798.0151333 | J153: -0.9684050519 | K153: 0.2536357494 | L153: 1.18E-07 | M153: 4.06E-05 | N153: 798.0151333 | O153: -0.8233392304 | P153: 0.2387009012 | Q153: 1.82E-05 | R153: 0.003055762579
A154: Misin02G296700 | B154: ---NA--- | C154: 0 | D154: 107.9095935 | E154: 2.545147709 | F154: 1.010956225 | G154: 1.48E-05 | H154: 0.005481836912 | I154: 107.9095935 | J154: 1.870629785 | K154: 0.9889526499 | L154: 0.0001137497912 | M154: 0.01136970316 | N154: 107.9095935 | O154: 2.409949093 | P154: 0.8454536774 | Q154: 2.40E-05 | R154: 0.003798606546
A155: Misin14G123500 | B155: putative disease resistance RPP13-like protein 3; disease resistance rpp13-like protein 3 | C155: C:plastid; F:ADP binding | D155: 37.73776386 | E155: -3.016311422 | F155: 1.195133774 | G155: 1.53E-05 | H155: 0.005654845725 | I155: 37.73776386 | J155: -2.597148849 | K155: 0.8240769307 | L155: 1.10E-05 | M155: 0.00177339096 | N155: 37.73776386 | O155: -1.466013111 | P155: 1.233716557 | Q155: 0.0005586183077 | R155: 0.04292004462
A156: Misin10G060500 | B156: putative disease resistance protein RGA1 | C156: F:protein kinase activity; F:ATP binding; P:protein phosphorylation; C:membrane; C:integral component of membrane; F:ADP binding | D156: 46.08239244 | E156: -5.383478575 | F156: 2.578870323 | G156: 1.55E-05 | H156: 0.005691594434 | I156: 46.08239244 | J156: -7.769596578 | K156: 1.633719287 | L156: 3.10E-08 | M156: 1.25E-05 | N156: 46.08239244 | O156: -6.729754844 | P156: 1.819197694 | Q156: 1.54E-06 | R156: 0.000398006646
A157: Misin07G320300 | B157: probable ATP-dependent DNA helicase RecQ; probable atp-dependent dna helicase | C157: F:nucleic acid binding; F:DNA helicase activity; F:helicase activity; C:replication fork; P:DNA replication; P:DNA repair; P:DNA recombination; C:nuclear lumen; P:chromosome organization | D157: 24.62537568 | E157: -5.646443736 | F157: 2.93131123 | G157: 1.57E-05 | H157: 0.005721027699 | I157: 24.62537568 | J157: -7.340116478 | K157: 1.911458685 | L157: 7.33E-07 | M157: 0.0001964167196 | N157: 24.62537568 | O157: -4.94951295 | P157: 2.915400262 | Q157: 5.33E-05 | R157: 0.007140059396
A158: Misin08G240700 | B158: 2-C-methyl-D-erythritol 2,4-cyclodiphosphate synthase, chloroplastic; 2-c-methyl-d-erythritol -cyclodiphosphate chloroplastic | C158: F:2-C-methyl-D-erythritol 2,4-cyclodiphosphate synthase activity; C:chloroplast stroma; P:chlorophyll biosynthetic process; P:carotenoid biosynthetic process; P:isopentenyl diphosphate biosynthetic process, methylerythritol 4-phosphate pathway; F:metal ion binding | D158: 332.5343452 | E158: 0.9825057378 | F158: 0.5004987906 | G158: 1.58E-05 | H158: 0.005721027699 | I158: 332.5343452 | J158: 0.4658365195 | K158: 0.2864893933 | L158: 0.001629037273 | M158: 0.07873969957 | N158: 332.5343452 | O158: 0.04946577286 | P158: 0.1254897854 | Q158: 0.1148563198 | R158: 0.8027148617
A159: MisinT245000 | B159: hypothetical protein SORBIDRAFT_05g000760 | C159: C:membrane; C:integral component of membrane | D159: 239.6126242 | E159: -2.968773631 | F159: 1.21586196 | G159: 1.70E-05 | H159: 0.006116370775 | I159: 239.6126242 | J159: -0.05943566496 | K159: 0.2235948112 | L159: 0.2648304236 | M159: 0.9007411031 | N159: 239.6126242 | O159: -0.15109874 | P159: 0.4170010729 | Q159: 0.0319371028 | R159: 0.4986090282
A160: Misin09G205400 | B160: cysteine-rich receptor-like protein kinase 21 isoform X1; cysteine-rich receptor-like protein kinase 21 isoform x1 | C160: F:protein serine/threonine kinase activity; F:ubiquitin-protein transferase activity; F:ATP binding; C:plasma membrane; P:protein phosphorylation; P:ubiquitin-dependent protein catabolic process; P:defense response; P:serine family amino acid metabolic process; C:plasmodesma; P:protein ubiquitination; C:obsolete intracellular part | D160: 26.07918375 | E160: -5.270004002 | F160: 2.597550621 | G160: 1.73E-05 | H160: 0.006180879028 | I160: 26.07918375 | J160: -7.079299847 | K160: 1.652755775 | L160: 3.09E-07 | M160: 9.30E-05 | N160: 26.07918375 | O160: -6.210708517 | P160: 2.037125347 | Q160: 5.68E-06 | R160: 0.001158547158
A161: Misin08G143900 | B161: ---NA--- | C161: 0 | D161: 63.84173789 | E161: -3.930752857 | F161: 1.657198671 | G161: 1.76E-05 | H161: 0.006247999788 | I161: 63.84173789 | J161: -0.3715959132 | K161: 0.7692448771 | L161: 0.01075981814 | M161: 0.2505996544 | N161: 63.84173789 | O161: -0.3661285956 | P161: 0.8188893827 | Q161: 0.009727079027 | R161: 0.2744888479
A162: Misin02G343000 | B162: 60S ribosomal protein L10; 60s ribosomal protein l10 | C162: P:ribosomal large subunit assembly; F:DNA-binding transcription factor activity; F:structural constituent of ribosome; C:transcription factor complex; P:regulation of transcription, DNA-templated; P:regulation of transcription, DNA-templated; P:translation; C:integral component of membrane; C:cytosolic large ribosomal subunit; F:sequence-specific DNA binding | D162: 181.0283928 | E162: 3.214138244 | F162: 1.336454241 | G162: 1.79E-05 | H162: 0.006324938098 | I162: 181.0283928 | J162: 2.661089424 | K162: 1.297661644 | L162: 7.91E-05 | M162: 0.008588670132 | N162: 181.0283928 | O162: 0.172980649 | P162: 0.5093489738 | Q162: 0.0291009753 | R162: 0.4787710277
A163: Misin12G056600 | B163: ---NA--- | C163: 0 | D163: 14.17787208 | E163: -5.341834553 | F163: 2.756776098 | G163: 1.82E-05 | H163: 0.006343894127 | I163: 14.17787208 | J163: -5.249247577 | K163: 1.585004683 | L163: 6.52E-06 | M163: 0.001178493971 | N163: 14.17787208 | O163: -0.4806515501 | P163: 1.270888265 | Q163: 0.007761980649 | R163: 0.238632016
A164: Misin09G184700 | B164: probable O-methyltransferase 2; probable o-methyltransferase 2 | C164: F:O-methyltransferase activity; F:S-adenosylmethionine-dependent methyltransferase activity; P:aromatic compound biosynthetic process; P:methylation; F:ADP binding; F:protein dimerization activity | D164: 258.4174404 | E164: -3.099373707 | F164: 1.295253098 | G164: 1.82E-05 | H164: 0.006343894127 | I164: 258.4174404 | J164: -5.257833587 | K164: 0.9013919289 | L164: 7.49E-10 | M164: 4.80E-07 | N164: 258.4174404 | O164: -0.2476125497 | P164: 0.8616431287 | Q164: 0.02131518079 | R164: 0.4122899859
A165: Misin15G054800 | B165: DNA-directed RNA polymerase V subunit 5A; dna-directed rna polymerase v subunit 5a | C165: F:RNA polymerase I activity; F:RNA polymerase II activity; F:RNA polymerase III activity; F:DNA binding; C:RNA polymerase II, core complex; C:RNA polymerase III complex; C:RNA polymerase I complex; P:transcription, DNA-templated; C:plastid; C:integral component of membrane | D165: 159.7366712 | E165: 1.298623542 | F165: 0.6385433591 | G165: 1.83E-05 | H165: 0.006346544206 | I165: 159.7366712 | J165: 0.4378065435 | K165: 0.3784157655 | L165: 0.003129925971 | M165: 0.1208779654 | N165: 159.7366712 | O165: 0.02469723072 | P165: 0.1121232676 | Q165: 0.3291310294 | R165: 0.9960957384
A166: Misin11G199400 | B166: Polygalacturonase ADPG1; polygalacturonase adpg1 | C166: P:metabolic process; F:hydrolase activity, acting on glycosyl bonds | D166: 14.43842098 | E166: 5.564599063 | F166: 3.216332996 | G166: 1.89E-05 | H166: 0.006511424667 | I166: 14.43842098 | J166: 5.083901466 | K166: 2.868886107 | L166: 4.58E-05 | M166: 0.005619106738 | N166: 14.43842098 | O166: 0.5797866558 | P166: 1.528350935 | Q166: 0.005749933159 | R166: 0.1987027896
A167: Misin07G365600 | B167: COX assembly mitochondrial protein 2 homolog; cox assembly mitochondrial protein 2 homolog | C167: F:DNA binding; C:nucleus; C:mitochondrion; P:regulation of transcription, DNA-templated | D167: 15.38289982 | E167: -5.027101174 | F167: 2.526208014 | G167: 2.00E-05 | H167: 0.006837666815 | I167: 15.38289982 | J167: -7.137065869 | K167: 1.562530651 | L167: 1.19E-07 | M167: 4.07E-05 | N167: 15.38289982 | O167: -5.798862361 | P167: 2.021772072 | Q167: 8.48E-06 | R167: 0.001624975649
A168: Misin05G281900 | B168: cobalt import ATP-binding protein cbiO 2; cobalt import atp-binding protein cbio 2 | C168: F:ATP binding; C:chloroplast envelope; F:ATPase activity | D168: 72.8093888 | E168: 2.335444975 | F168: 1.039765189 | G168: 2.05E-05 | H168: 0.006957826798 | I168: 72.8093888 | J168: 2.549992316 | K168: 0.7912781877 | L168: 9.53E-06 | M168: 0.0015746995 | N168: 72.8093888 | O168: 2.315297997 | P168: 0.6852343666 | Q168: 8.69E-06 | R168: 0.001651416891
A169: Misin01G106500 | B169: haloacid dehalogenase-like hydrolase domain-containing protein 3 | C169: P:metabolic process; F:hydrolase activity | D169: 36.72432892 | E169: -2.227908013 | F169: 1.019292319 | G169: 2.18E-05 | H169: 0.00734930542 | I169: 36.72432892 | J169: -0.4368695811 | K169: 0.5453127919 | L169: 0.004724725153 | M169: 0.1576127354 | N169: 36.72432892 | O169: -0.0897144506 | P169: 0.2747073132 | Q169: 0.06548984071 | R169: 0.6743908807
A170: Misin05G043900 | B170: protein GIGANTEA; protein gigantea | C170: C:nucleoplasm; P:regulation of transcription, DNA-templated; P:response to cold; P:response to blue light; P:flower development; P:response to far red light; P:temperature compensation of the circadian clock; P:cell differentiation; P:response to hydrogen peroxide; P:positive regulation of long-day photoperiodism, flowering | D170: 4774.908829 | E170: 0.8242558481 | F170: 0.4980718813 | G170: 2.26E-05 | H170: 0.007570738425 | I170: 4774.908829 | J170: 0.2800795608 | K170: 0.2480059962 | L170: 0.0124781602 | M170: 0.2728186028 | N170: 4774.908829 | O170: 0.01336488329 | P170: 0.07844052198 | Q170: 0.5571393675 | R170: 1
A171: Misin10G034200 | B171: ---NA--- | C171: 0 | D171: 18.26646414 | E171: -5.077621059 | F171: 2.810103553 | G171: 2.33E-05 | H171: 0.007763468124 | I171: 18.26646414 | J171: -1.455494993 | K171: 1.584893805 | L171: 0.0009878043378 | M171: 0.05655468512 | N171: 18.26646414 | O171: -3.035406457 | P171: 2.784720178 | Q171: 0.0002611695559 | R171: 0.02494771246
A172: Misin08G323100 | B172: putative ubiquinone biosynthesis protein ubiB; uncharacterized protein sll0005 | C172: F:binding | D172: 152.1643827 | E172: 1.820957953 | F172: 0.9105181552 | G172: 2.52E-05 | H172: 0.008376375219 | I172: 152.1643827 | J172: 2.814581669 | K172: 0.5406170521 | L172: 1.38E-08 | M172: 6.13E-06 | N172: 152.1643827 | O172: 3.064650478 | P172: 0.5286000629 | Q172: 6.79E-10 | R172: 4.35E-07
A173: MisinT014900 | B173: putative cytochrome P450 superfamily protein; cytochrome p450 superfamily protein | C173: F:iron ion binding; C:integral component of membrane; F:oxidoreductase activity, acting on paired donors, with incorporation or reduction of molecular oxygen, NAD(P)H as one donor, and incorporation of one atom of oxygen; F:heme binding; P:secondary metabolite biosynthetic process; P:oxidation-reduction process | D173: 378.020499 | E173: 4.663390715 | F173: 2.454663521 | G173: 2.54E-05 | H173: 0.00838028013 | I173: 378.020499 | J173: 5.930026951 | K173: 1.558195104 | L173: 2.01E-06 | M173: 0.000457178909 | N173: 378.020499 | O173: 11.4614562 | P173: 1.374797029 | Q173: 1.99E-19 | R173: 8.94E-16
A174: Misin01G289300 | B174: ---NA--- | C174: 0 | D174: 25.64433951 | E174: 3.202717545 | F174: 1.533902456 | G174: 2.73E-05 | H174: 0.008955293907 | I174: 25.64433951 | J174: 3.93639132 | K174: 1.148115229 | L174: 6.71E-06 | M174: 0.001201422799 | N174: 25.64433951 | O174: 4.333229068 | P174: 1.507147923 | Q174: 1.26E-05 | R174: 0.002232956132
A175: Misin19G036900 | B175: predicted protein | C175: F:ubiquitin-protein transferase activity; C:membrane; C:integral component of membrane; P:protein ubiquitination; C:SCF ubiquitin ligase complex; P:SCF-dependent proteasomal ubiquitin-dependent protein catabolic process | D175: 65.43507402 | E175: -3.538914821 | F175: 1.741758375 | G175: 2.87E-05 | H175: 0.009343294479 | I175: 65.43507402 | J175: -2.841315649 | K175: 1.400126749 | L175: 8.04E-05 | M175: 0.008675714248 | N175: 65.43507402 | O175: -1.65085604 | P175: 1.705005432 | Q175: 0.0007267693301 | R175: 0.05197466592
A176: Misin09G189700 | B176: SEC14 cytosolic factor-like; sec14 cytosolic factor-like | C176: F:transporter activity; C:intracellular; P:transport | D176: 43.34828153 | E176: -2.633531018 | F176: 1.293099421 | G176: 2.88E-05 | H176: 0.009343294479 | I176: 43.34828153 | J176: -2.577441629 | K176: 0.9309584067 | L176: 2.27E-05 | M176: 0.003220418828 | N176: 43.34828153 | O176: -0.1480728608 | P176: 0.416430814 | Q176: 0.03327453071 | R176: 0.5084133131
A177: Misin03G352500 | B177: ---NA--- | C177: 0 | D177: 24.32096472 | E177: 5.026659082 | F177: 3.366353673 | G177: 2.97E-05 | H177: 0.009565737307 | I177: 24.32096472 | J177: 6.376427907 | K177: 2.452828021 | L177: 8.98E-06 | M177: 0.001512038973 | N177: 24.32096472 | O177: 4.981509598 | P177: 3.150026016 | Q177: 5.86E-05 | R177: 0.007647480227
A178: Misin11G021300 | B178: ---NA--- | C178: 0 | D178: 36.48092141 | E178: -3.569117727 | F178: 1.791152018 | G178: 3.01E-05 | H178: 0.009648064183 | I178: 36.48092141 | J178: -4.834768857 | K178: 0.8897000237 | L178: 6.85E-09 | M178: 3.24E-06 | N178: 36.48092141 | O178: -0.5964121455 | P178: 1.160336099 | Q178: 0.004950661842 | R178: 0.1794864783
A179: Misin08G144200 | B179: probable U3 small nucleolar RNA-associated protein 7; probable u3 small nucleolar rna-associated protein 7 | C179: P:maturation of SSU-rRNA from tricistronic rRNA transcript (SSU-rRNA, 5.8S rRNA, LSU-rRNA); C:nucleolus; C:integral component of membrane; C:90S preribosome; C:small-subunit processome | D179: 432.6063355 | E179: 0.791582799 | F179: 0.5392016251 | G179: 3.14E-05 | H179: 0.01000474694 | I179: 432.6063355 | J179: 0.1027118467 | K179: 0.1779805694 | L179: 0.1279765922 | M179: 0.7491050736 | N179: 432.6063355 | O179: 0.07908490536 | P179: 0.1718792667 | Q179: 0.05357699623 | R179: 0.6243753353
A180: Misin14G079700 | B180: ---NA--- | C180: 0 | D180: 223.6052674 | E180: -3.595058982 | F180: 1.848620062 | G180: 3.20E-05 | H180: 0.01012941657 | I180: 223.6052674 | J180: -1.494881326 | K180: 1.630119499 | L180: 0.0009710435205 | M180: 0.05595183922 | N180: 223.6052674 | O180: -3.806990355 | P180: 1.472177618 | Q180: 2.36E-05 | R180: 0.003752649771
A181: Misin04G318200 | B181: predicted protein; uncharacterized protein loc9267373 | C181: F:ATPase-coupled transmembrane transporter activity | D181: 37.75565712 | E181: 1.533000884 | F181: 0.8798939482 | G181: 3.38E-05 | H181: 0.01063549843 | I181: 37.75565712 | J181: 1.732700913 | K181: 0.6728468673 | L181: 2.79E-05 | M181: 0.00373361734 | N181: 37.75565712 | O181: 2.963426179 | P181: 1.035313775 | Q181: 2.05E-05 | R181: 0.003339394052
A182: Misin10G003700 | B182: ---NA--- | C182: 0 | D182: 16.19225483 | E182: -4.74984229 | F182: 3.121211701 | G182: 3.45E-05 | H182: 0.0107979882 | I182: 16.19225483 | J182: -4.967591181 | K182: 2.655725515 | L182: 4.65E-05 | M182: 0.005683739326 | N182: 16.19225483 | O182: -0.09130223037 | P182: 0.5009048433 | Q182: 0.0969212999 | R182: 0.7671314592
A183: Misin03G006300 | B183: ---NA--- | C183: 0 | D183: 11.88762917 | E183: -4.62289182 | F183: 2.906127586 | G183: 3.50E-05 | H183: 0.01089959767 | I183: 11.88762917 | J183: -6.525857504 | K183: 1.830361278 | L183: 2.24E-06 | M183: 0.000500800241 | N183: 11.88762917 | O183: -3.619158754 | P183: 2.790477631 | Q183: 0.0001539007138 | R183: 0.0166493995
A184: MisinT087300 | B184: rho GTPase-activating protein REN1-like isoform X1; rho gtpase-activating protein ren1-like isoform x1 | C184: P:regulation of GTPase activity | D184: 214.4591154 | E184: 1.207939576 | F184: 0.7507350386 | G184: 3.52E-05 | H184: 0.01092093301 | I184: 214.4591154 | J184: 1.521753562 | K184: 0.4881934108 | L184: 6.00E-06 | M184: 0.001095923859 | N184: 214.4591154 | O184: 2.782494907 | P184: 0.4015399281 | Q184: 6.21E-13 | R184: 8.58E-10
A185: Misin14G074000 | B185: hypothetical protein SORBI_008G077400 | C185: C:integral component of membrane | D185: 4.874857863 | E185: 4.569086265 | F185: 2.985282614 | G185: 3.77E-05 | H185: 0.01163010469 | I185: 4.874857863 | J185: 0.2474023192 | K185: 0.8446004913 | L185: 0.02753168842 | M185: 0.410012621 | N185: 4.874857863 | O185: 0.1089858198 | P185: 0.5672153258 | Q185: 0.07512600075 | R185: 0.7088991143
A186: Misin07G271500 | B186: NADP-dependant malate dehydrogenase; nadp-dependant malate partial | C186: P:carbohydrate metabolic process; P:pyruvate metabolic process; P:tricarboxylic acid cycle; P:malate metabolic process; C:chloroplast; P:carbon utilization; F:malate dehydrogenase (NADP+) activity | D186: 201.6619582 | E186: -1.442303403 | F186: 0.8831327781 | G186: 3.91E-05 | H186: 0.01185273849 | I186: 201.6619582 | J186: -0.8620317622 | K186: 0.5848997621 | L186: 0.00039069756 | M186: 0.02919659218 | N186: 201.6619582 | O186: -3.115557475 | P186: 0.4171137657 | Q186: 9.10E-15 | R186: 1.89E-11
A187: MisinT181400 | B187: ---NA--- | C187: 0 | D187: 116.5752861 | E187: -1.213710848 | F187: 0.7784134193 | G187: 3.89E-05 | H187: 0.01185273849 | I187: 116.5752861 | J187: -1.849869885 | K187: 0.4240859038 | L187: 3.05E-07 | M187: 9.24E-05 | N187: 116.5752861 | O187: -3.354496703 | P187: 0.5658848607 | Q187: 2.43E-10 | R187: 1.87E-07
A188: Misin01G025700 | B188: Protein kinase APK1A, chloroplastic; protein kinase chloroplastic | C188: F:protein serine/threonine kinase activity; F:ATP binding; P:protein phosphorylation; P:serine family amino acid metabolic process; C:plastid | D188: 330.802781 | E188: -0.8901718922 | F188: 0.6256707457 | G188: 3.88E-05 | H188: 0.01185273849 | I188: 330.802781 | J188: -1.268327018 | K188: 0.383889101 | L188: 1.81E-06 | M188: 0.0004199131692 | N188: 330.802781 | O188: -1.031652453 | P188: 0.3823482526 | Q188: 5.45E-05 | R188: 0.007228939435
A189: MisinT317000 | B189: mTERF family protein | C189: F:double-stranded DNA binding; C:mitochondrion; P:regulation of transcription, DNA-templated | D189: 22.08644023 | E189: -3.447937289 | F189: 1.91639509 | G189: 3.98E-05 | H189: 0.01193283817 | I189: 22.08644023 | J189: -0.8060889624 | K189: 1.044869932 | L189: 0.002257451544 | M189: 0.09815996929 | N189: 22.08644023 | O189: -2.809196354 | P189: 1.56403339 | Q189: 0.0001110343699 | R189: 0.01275474771
A190: Misin02G408100 | B190: predicted protein; uncharacterized protein loc100275414 | C190: C:membrane | D190: 344.5894777 | E190: -2.010367909 | F190: 1.14603462 | G190: 3.97E-05 | H190: 0.01193283817 | I190: 344.5894777 | J190: -5.803354985 | K190: 0.6354944216 | L190: 1.08E-20 | M190: 7.27E-17 | N190: 344.5894777 | O190: -0.1003207022 | P190: 0.3122153562 | Q190: 0.05784418129 | R190: 0.6402363002
A191: Misin09G200300 | B191: putative disease resistance protein RGA1 | C191: C:membrane; C:integral component of membrane; F:ADP binding | D191: 14.10661057 | E191: 4.483155249 | F191: 2.986058965 | G191: 4.03E-05 | H191: 0.01203989793 | I191: 14.10661057 | J191: 1.731867649 | K191: 2.333358172 | L191: 0.00109244159 | M191: 0.06067555736 | N191: 14.10661057 | O191: 2.849730266 | P191: 2.783878561 | Q191: 0.0003106683758 | R191: 0.02832023477
A192: Misin12G006100 | B192: ---NA--- | C192: 0 | D192: 23.25295352 | E192: -4.438661513 | F192: 3.088167748 | G192: 4.33E-05 | H192: 0.01284907018 | I192: 23.25295352 | J192: -7.113677187 | K192: 1.81817843 | L192: 7.56E-07 | M192: 0.000199750019 | N192: 23.25295352 | O192: -5.78727345 | P192: 2.481769 | Q192: 1.79E-05 | R192: 0.003036808291
A193: Misin08G287400 | B193: F-box/kelch-repeat protein At3g23880-like | C193: F:ubiquitin-protein transferase activity; P:protein ubiquitination; C:SCF ubiquitin ligase complex; P:SCF-dependent proteasomal ubiquitin-dependent protein catabolic process | D193: 36.72805153 | E193: 2.840709985 | F193: 1.644954163 | G193: 4.63E-05 | H193: 0.01366608066 | I193: 36.72805153 | J193: 3.012136541 | K193: 1.40591904 | L193: 6.51E-05 | M193: 0.007341122273 | N193: 36.72805153 | O193: 6.475141444 | P193: 1.954063715 | Q193: 3.40E-06 | R193: 0.0007679681047
A194: Misin19G069100 | B194: ---NA--- | C194: 0 | D194: 15.2049799 | E194: -4.308981194 | F194: 3.171989454 | G194: 4.89E-05 | H194: 0.01436745046 | I194: 15.2049799 | J194: -5.980201243 | K194: 2.264179603 | L194: 1.13E-05 | M194: 0.001813438706 | N194: 15.2049799 | O194: -0.4596406498 | P194: 1.280515727 | Q194: 0.008334109686 | R194: 0.2490294838
A195: Misin10G032200 | B195: Disease resistance protein RGA2; disease resistance protein rga2 | C195: F:nucleotide binding | D195: 29.75849254 | E195: -1.580942431 | F195: 1.0303301 | G195: 5.05E-05 | H195: 0.01474120246 | I195: 29.75849254 | J195: -0.08354619763 | K195: 0.1996817535 | L195: 0.1837879307 | M195: 0.8334593538 | N195: 29.75849254 | O195: -1.296738571 | P195: 0.9331034492 | Q195: 0.0004165821387 | R195: 0.03551164988
A196: Misin03G164900 | B196: predicted protein; uncharacterized protein loc100278276 | C196: C:membrane | D196: 96.90745483 | E196: 2.536389895 | F196: 1.525435118 | G196: 5.07E-05 | H196: 0.01474120246 | I196: 96.90745483 | J196: -0.0208075243 | K196: 0.1970809 | L196: 0.6509311562 | M196: 1 | N196: 96.90745483 | O196: 0.01321210159 | P196: 0.1525532133 | Q196: 0.6119588084 | R196: 1
A197: Misin09G170100 | B197: ---NA--- | C197: 0 | D197: 46.0299794 | E197: -3.090185033 | F197: 1.957645816 | G197: 5.74E-05 | H197: 0.01658929747 | I197: 46.0299794 | J197: -5.127571732 | K197: 1.154753874 | L197: 5.12E-07 | M197: 0.000143695089 | N197: 46.0299794 | O197: -6.816907129 | P197: 1.939898672 | Q197: 2.16E-06 | R197: 0.0005281297876
A198: MisinT209100 | B198: Disease resistance protein RPM1 | C198: F:ATP binding; P:apoptotic process; F:ADP binding | D198: 31.42953292 | E198: -3.912859563 | F198: 2.80961833 | G198: 5.84E-05 | H198: 0.01669779802 | I198: 31.42953292 | J198: -2.276220689 | K198: 1.554595006 | L198: 0.0002415047621 | M198: 0.02068532442 | N198: 31.42953292 | O198: -5.224138359 | P198: 1.027606153 | Q198: 1.17E-08 | R198: 5.73E-06
A199: Misin02G211900 | B199: ---NA--- | C199: 0 | D199: 187.0126986 | E199: 2.547939121 | F199: 1.619436158 | G199: 5.89E-05 | H199: 0.01669779802 | I199: 187.0126986 | J199: 2.841602659 | K199: 1.254770737 | L199: 5.40E-05 | M199: 0.006496001219 | N199: 187.0126986 | O199: 4.340084586 | P199: 0.9260256242 | Q199: 8.93E-08 | R199: 3.44E-05
A200: Misin06G100000 | B200: ---NA--- | C200: 0 | D200: 47.12856711 | E200: -3.733382476 | F200: 2.571231027 | G200: 5.88E-05 | H200: 0.01669779802 | I200: 47.12856711 | J200: -6.492264075 | K200: 1.404761319 | L200: 1.59E-07 | M200: 5.24E-05 | N200: 47.12856711 | O200: -4.746488666 | P200: 2.68509615 | Q200: 5.38E-05 | R200: 0.007167148329
... 4300 more rows

Sheet S4 DE_species
D1: Miscanthus sinensis VS hybrids | S1: Miscanthus sacchariflorus VS hybrids
D2: ROOTS | I2: STEM | N2: LEAF | S2: ROOTS | X2: STEM | AC2: LEAF
A3: GENE | B3: DESCRIPTION | C3: GOTERMS | D3: msi_root_baseMean | E3: msi_root_log2FoldChange | F3: msi_root_lfcSE | G3: msi_root_pvalue | H3: msi_root_padj | I3: msi_stem_baseMean | J3: msi_stem_log2FoldChange | K3: msi_stem_lfcSE | L3: msi_stem_pvalue | M3: msi_stem_padj | N3: msi_leaf_baseMean | O3: msi_leaf_log2FoldChange | P3: msi_leaf_lfcSE | Q3: msi_leaf_pvalue | R3: msi_leaf_padj | S3: msac_root_baseMean | T3: msac_root_log2FoldChange | U3: msac_root_lfcSE | V3: msac_root_pvalue | W3: msac_root_padj | X3: msac_stem_baseMean | Y3: msac_stem_log2FoldChange | Z3: msac_stem_lfcSE | AA3: msac_stem_pvalue | AB3: msac_stem_padj | AC3: msac_leaf_baseMean | AD3: msac_leaf_log2FoldChange | AE3: msac_leaf_lfcSE | AF3: msac_leaf_pvalue | AG3: msac_leaf_padj
A4: Misin05G152600 | B4: 40S ribosomal protein S4; 40s ribosomal protein s4 | C4: F:structural constituent of ribosome; C:mitochondrion; P:translation; C:chloroplast; F:rRNA binding; C:cytosolic small ribosomal subunit; P:ribosome biogenesis | D4: 1340.788106 | E4: 6.313189047 | F4: 0.4797561805 | G4: 6.90E-41 | H4: 3.70E-36 | I4: 1340.788106 | J4: 5.93907943 | K4: 0.3705054797 | L4: 2.24E-58 | M4: 1.23E-53 | N4: 1340.788106 | O4: 4.380933813 | P4: 0.364669183 | Q4: 8.22E-34 | R4: 2.88E-30 | S4: 1340.788106 | T4: -0.7104274165 | U4: 0.290161441 | V4: 0.005016548871 | W4: 0.0322909779 | X4: 1340.788106 | Y4: -0.9334416488 | Z4: 0.3361767728 | AA4: 0.0001458519735 | AB4: 0.00498109355 | AC4: 1340.788106 | AD4: -1.676662789 | AE4: 0.3167292776 | AF4: 1.80E-09 | AG4: 2.17E-07
A5: Misin13G168200 | B5: ---NA--- | C5: 0 | D5: 802.7927208 | E5: 5.901823219 | F5: 0.4977010125 | G5: 1.40E-33 | H5: 1.50E-29 | I5: 802.7927208 | J5: 5.976218721 | K5: 0.3823818006 | L5: 1.29E-55 | M5: 3.54E-51 | N5: 802.7927208 | O5: 7.686644964 | P5: 0.6140423588 | Q5: 1.71E-37 | R5: 9.61E-34 | S5: 802.7927208 | T5: -0.4736370212 | U5: 0.2580581004 | V5: 0.0399738864 | W5: 0.1293066069 | X5: 802.7927208 | Y5: -0.3823169508 | Z5: 0.2466386702 | AA5: 0.032714676 | AB5: 0.1783607465 | AC5: 802.7927208 | AD5: -0.6673744216 | AE5: 0.2700905685 | AF5: 0.002644385674 | AG5: 0.02623569265
A6: Misin17G048800 | B6: predicted protein; uncharacterized protein loc102716210 isoform x2 | C6: F:serine-type endopeptidase activity; P:proteolysis | D6: 686.6490752 | E6: 3.620219749 | F6: 0.2907445265 | G6: 7.64E-37 | H6: 1.02E-32 | I6: 686.6490752 | J6: 6.665994167 | K6: 0.4434325852 | L6: 9.45E-52 | M6: 1.73E-47 | N6: 686.6490752 | O6: 4.153763735 | P6: 0.2407612796 | Q6: 3.13E-67 | R6: 8.78E-63 | S6: 686.6490752 | T6: -1.085750058 | U6: 0.1693257072 | V6: 1.78E-11 | W6: 3.80E-09 | X6: 686.6490752 | Y6: -1.396413511 | Z6: 0.1675666408 | AA6: 8.36E-18 | AB6: 7.47E-15 | AC6: 686.6490752 | AD6: -1.120195864 | AE6: 0.1710601335 | AF6: 2.78E-12 | AG6: 7.06E-10
A7: Misin06G079300 | B7: truncated transcription factor CAULIFLOWER D-like; truncated transcription factor cauliflower d-like | C7: F:DNA-binding transcription factor activity; F:binding; C:nucleus; C:transcription factor complex; C:mitochondrion; P:regulation of transcription, DNA-templated; P:regulation of transcription, DNA-templated | D7: 938.8851746 | E7: 3.82138672 | F7: 0.3868586795 | G7: 3.38E-24 | H7: 1.81E-20 | I7: 938.8851746 | J7: 5.642194866 | K7: 0.3848196503 | L7: 3.59E-49 | M7: 4.92E-45 | N7: 938.8851746 | O7: 6.169006487 | P7: 0.3378841871 | Q7: 1.70E-75 | R7: 9.53E-71 | S7: 938.8851746 | T7: -1.147943744 | U7: 0.2633545323 | V7: 1.44E-06 | W7: 6.68E-05 | X7: 938.8851746 | Y7: -0.154148363 | Z7: 0.2113389558 | AA7: 0.3406862975 | AB7: 0.6082459158 | AC7: 938.8851746 | AD7: -0.04587662765 | AE7: 0.2220315275 | AF7: 0.8058726917 | AG7: 0.9221130249
A8: Misin02G435000 | B8: NAC domain-containing protein 8; nac domain-containing protein 8 | C8: F:DNA binding; C:nucleus; P:regulation of transcription, DNA-templated | D8: 461.5079154 | E8: 3.699550273 | F8: 0.3900461593 | G8: 1.07E-22 | H8: 4.77E-19 | I8: 461.5079154 | J8: 4.372696291 | K8: 0.3192583677 | L8: 3.58E-43 | M8: 3.93E-39 | N8: 461.5079154 | O8: 4.623680213 | P8: 0.3307402202 | Q8: 5.45E-45 | R8: 7.64E-41 | S8: 461.5079154 | T8: -0.6787141177 | U8: 0.2341187855 | V8: 0.001419781442 | W8: 0.01330996545 | X8: 461.5079154 | Y8: -0.7017149494 | Z8: 0.2561176521 | AA8: 0.0002813181088 | AB8: 0.008275170683 | AC8: 461.5079154 | AD8: -0.8088453745 | AE8: 0.2402192908 | AF8: 9.81E-05 | AG8: 0.002251573752
A9: Misin01G222900 | B9: formin-like protein 20 | C9: C:mitochondrion | D9: 609.2664594 | E9: 2.789240562 | F9: 0.3248523065 | G9: 2.65E-20 | H9: 7.48E-17 | I9: 609.2664594 | J9: 3.268750103 | K9: 0.2479520366 | L9: 1.46E-41 | M9: 1.34E-37 | N9: 609.2664594 | O9: 3.719345069 | P9: 0.270347649 | Q9: 1.05E-43 | R9: 9.80E-40 | S9: 609.2664594 | T9: -1.214217455 | U9: 0.2153782883 | V9: 1.63E-09 | W9: 2.00E-07 | X9: 609.2664594 | Y9: -0.7892355426 | Z9: 0.2313605493 | AA9: 1.90E-05 | AB9: 0.000945318694 | AC9: 609.2664594 | AD9: -0.7417241281 | AE9: 0.2160918838 | AF9: 9.52E-05 | AG9: 0.002202822873
A10: Misin08G317200 | B10: putative ubiquinone biosynthesis protein ubiB; uncharacterized protein sll0005 | C10: F:protein kinase activity; F:transporter activity; F:ATP binding; C:mitochondrion; P:protein phosphorylation; P:transport | D10: 2454.665717 | E10: 1.204421342 | F10: 0.2095727402 | G10: 1.86E-09 | H10: 2.29E-07 | I10: 2454.665717 | J10: 2.051754415 | K10: 0.1667960846 | L10: 7.13E-37 | M10: 5.58E-33 | N10: 2454.665717 | O10: 1.859410247 | P10: 0.1665671509 | Q10: 2.00E-31 | R10: 4.87E-28 | S10: 2454.665717 | T10: -0.7828958666 | U10: 0.1597476105 | V10: 2.65E-07 | W10: 1.60E-05 | X10: 2454.665717 | Y10: -0.3869005036 | Z10: 0.1533041174 | AA10: 0.003292661936 | AB10: 0.04508824583 | AC10: 2454.665717 | AD10: -0.6830341808 | AE10: 0.1597617223 | AF10: 3.66E-06 | AG10: 0.0001547018812
A11: Misin07G418700 | B11: nitrilase 1 isoform X1; nitrilase 1 isoform x1 | C11: C:integral component of membrane; F:cyanoalanine nitrilase activity; P:nitrile metabolic process | D11: 2522.979168 | E11: 1.833979058 | F11: 0.3454828038 | G11: 4.89E-09 | H11: 4.97E-07 | I11: 2522.979168 | J11: 3.413590214 | K11: 0.2762121863 | L11: 1.07E-36 | M11: 7.35E-33 | N11: 2522.979168 | O11: 2.526814839 | P11: 0.282755789 | Q11: 2.17E-21 | R11: 2.09E-18 | S11: 2522.979168 | T11: -0.02482265967 | U11: 0.241075427 | V11: 0.909761331 | W11: 0.9513389179 | X11: 2522.979168 | Y11: 0.05459493382 | Z11: 0.2062483627 | AA11: 0.7316408027 | AB11: 0.8807576069 | AC11: 2522.979168 | AD11: -0.01706923193 | AE11: 0.2240763728 | AF11: 0.927630907 | AG11: 0.9790468936
A12: Misin19G050800 | B12: carotenoid 9,10(9',10')-cleavage dioxygenase 1-like; carotenoid (9 )-cleavage dioxygenase 1-like | C12: F:nucleic acid binding; F:protein serine/threonine kinase activity; F:ATP binding; P:protein phosphorylation; F:methyltransferase activity; P:serine family amino acid metabolic process; C:integral component of membrane; F:oxidoreductase activity, acting on single donors with incorporation of molecular oxygen, incorporation of two atoms of oxygen; P:methylation; P:oxidation-reduction process | D12: 2358.831012 | E12: 6.205435702 | F12: 0.7664494529 | G12: 2.91E-17 | H12: 4.10E-14 | I12: 2358.831012 | J12: 8.202577254 | K12: 0.6675984977 | L12: 1.11E-35 | M12: 6.77E-32 | N12: 2358.831012 | O12: 7.975598664 | P12: 0.6559216649 | Q12: 1.16E-35 | R12: 5.91E-32 | S12: 2358.831012 | T12: -0.3047183409 | U12: 0.443014798 | V12: 0.3608195212 | W12: 0.5471223513 | X12: 2358.831012 | Y12: -0.3552648996 | Z12: 0.4155994197 | AA12: 0.1072497899 | AB12: 0.3350602032 | AC12: 2358.831012 | AD12: -0.4747675881 | AE12: 0.4484213645 | AF12: 0.09830854743 | AG12: 0.283886051
A13: Misin17G139900 | B13: predicted protein; uncharacterized protein cbei_0202 | C13: C:chloroplast; P:photosynthesis; F:oxidoreductase activity; P:oxidation-reduction process; F:FAD binding | D13: 945.0985449 | E13: 2.155432706 | F13: 0.3275873122 | G13: 6.07E-13 | H13: 2.44E-10 | I13: 945.0985449 | J13: 3.158465345 | K13: 0.2629679712 | L13: 2.12E-35 | M13: 1.16E-31 | N13: 945.0985449 | O13: 2.699280031 | P13: 0.2492534749 | Q13: 3.15E-29 | R13: 6.30E-26 | S13: 945.0985449 | T13: -0.2498789953 | U13: 0.2195024239 | V13: 0.2164925895 | W13: 0.3930708141 | X13: 945.0985449 | Y13: -0.6643668298 | Z13: 0.2459298953 | AA13: 0.0003716660903 | AB13: 0.01024898139 | AC13: 945.0985449 | AD13: -1.29013284 | AE13: 0.2372487172 | AF13: 1.61E-09 | AG13: 1.96E-07
A14: Misin08G326800 | B14: tubulin-folding cofactor A; tubulin-folding cofactor a | C14: C:cytosol; P:tubulin complex assembly; P:post-chaperonin tubulin folding pathway; C:tubulin complex; F:beta-tubulin binding | D14: 421.9368578 | E14: 4.212795268 | F14: 0.4993801793 | G14: 3.12E-18 | H14: 4.91E-15 | I14: 421.9368578 | J14: 5.772468276 | K14: 0.4724836355 | L14: 7.69E-35 | M14: 3.83E-31 | N14: 421.9368578 | O14: 6.286825343 | P14: 0.8807953766 | Q14: 9.26E-14 | R14: 3.63E-11 | S14: 421.9368578 | T14: -0.6993055851 | U14: 0.3191824927 | V14: 0.01019895037 | W14: 0.05232426128 | X14: 421.9368578 | Y14: -1.097129351 | Z14: 0.3729077716 | AA14: 7.52E-05 | AB14: 0.002917739232 | AC14: 421.9368578 | AD14: -1.066465319 | AE14: 0.3531916444 | AF14: 0.0001422576679 | AG14: 0.002983740203
A15: Misin10G115400 | B15: ---NA--- | C15: 0 | D15: 623.4498336 | E15: 4.62741782 | F15: 0.5476401406 | G15: 3.73E-18 | H15: 5.70E-15 | I15: 623.4498336 | J15: 4.707238813 | K15: 0.3945908987 | L15: 3.01E-33 | M15: 1.38E-29 | N15: 623.4498336 | O15: 5.456756934 | P15: 0.4296333901 | Q15: 9.95E-38 | R15: 6.20E-34 | S15: 623.4498336 | T15: -1.382004781 | U15: 0.3130343917 | V15: 6.65E-07 | W15: 3.46E-05 | X15: 623.4498336 | Y15: -1.694786361 | Z15: 0.3107068802 | AA15: 2.31E-09 | AB15: 4.13E-07 | AC15: 623.4498336 | AD15: -1.668353914 | AE15: 0.3220018281 | AF15: 3.33E-09 | AG15: 3.74E-07
A16: Misin05G153500 | B16: acyltransferase-like protein At1g54570, chloroplastic; acyltransferase-like protein chloroplastic | C16: F:diacylglycerol O-acyltransferase activity; C:plastoglobule; P:phytol metabolic process; P:obsolete acyl-carrier-protein biosynthetic process; P:glycerolipid metabolic process | D16: 937.5480884 | E16: 2.397479917 | F16: 0.4206818739 | G16: 8.04E-11 | H16: 1.58E-08 | I16: 937.5480884 | J16: 3.941472503 | K16: 0.3345672909 | L16: 7.40E-33 | M16: 3.12E-29 | N16: 937.5480884 | O16: 2.883984226 | P16: 0.2662827794 | Q16: 6.49E-29 | R16: 1.21E-25 | S16: 937.5480884 | T16: -0.9458823443 | U16: 0.2622524467 | V16: 5.73E-05 | W16: 0.001239379378 | X16: 937.5480884 | Y16: -0.1077859979 | Z16: 0.2073843138 | AA16: 0.5002090149 | AB16: 0.7364759977 | AC16: 937.5480884 | AD16: -0.3424053687 | AE16: 0.2338978339 | AF16: 0.0778366644 | AG16: 0.2470554229
A17: Misin11G093500 | B17: 26S proteasome non-ATPase regulatory subunit 11 homolog; 26s proteasome non-atpase regulatory subunit 11 homolog | C17: C:proteasome complex; C:cytosol; C:plasmodesma | D17: 564.6759536 | E17: 8.685612957 | F17: 1.908223802 | G17: 2.18E-09 | H17: 2.59E-07 | I17: 564.6759536 | J17: 7.658587205 | K17: 0.6562505682 | L17: 2.48E-32 | M17: 9.73E-29 | N17: 564.6759536 | O17: 8.13679774 | P17: 0.879887277 | Q17: 4.82E-22 | R17: 5.10E-19 | S17: 564.6759536 | T17: 0.2657457473 | U17: 0.2671789945 | V17: 0.2633014944 | W17: 0.4461574404 | X17: 564.6759536 | Y17: -0.3644174546 | Z17: 0.257076703 | AA17: 0.04587488709 | AB17: 0.2140908 | AC17: 564.6759536 | AD17: -0.5498121846 | AE17: 0.2800361544 | AF17: 0.01420031381 | AG17: 0.08421535372
A18: Misin15G029800 | B18: TPA: putative cyclin-T1 family protein; tpa: cyclin-t1 family protein | C18: C:cyclin-dependent protein kinase holoenzyme complex; C:nucleus; F:cyclin-dependent protein serine/threonine kinase regulator activity; P:positive regulation of cyclin-dependent protein serine/threonine kinase activity; P:positive regulation of transcription by RNA polymerase II; P:regulation of cell cycle; P:positive regulation of phosphorylation of RNA polymerase II C-terminal domain | D18: 795.3988854 | E18: 7.137303917 | F18: 0.9659504542 | G18: 2.27E-15 | H18: 2.02E-12 | I18: 795.3988854 | J18: 7.809954761 | K18: 0.6839592637 | L18: 4.30E-31 | M18: 1.57E-27 | N18: 795.3988854 | O18: 7.578258629 | P18: 0.6456276321 | Q18: 2.62E-33 | R18: 8.65E-30 | S18: 795.3988854 | T18: -0.3922681124 | U18: 0.3763158255 | V18: 0.1968351319 | W18: 0.3701791512 | X18: 795.3988854 | Y18: -0.4199349534 | Z18: 0.3704021161 | AA18: 0.0542646564 | AB18: 0.2338785479 | AC18: 795.3988854 | AD18: -0.2550889535 | AE18: 0.3425810069 | AF18: 0.3003330764 | AG18: 0.5496551017
A19: Misin19G224000 | B19: PREDICTED: uncharacterized protein LOC101767261; uncharacterized protein loc107275256 isoform x1 | C19: F:protein serine/threonine kinase activity; F:binding; P:protein phosphorylation; P:serine family amino acid metabolic process; C:obsolete intracellular part | D19: 1430.023146 | E19: 9.136848967 | F19: 1.462693933 | G19: 1.26E-13 | H19: 6.42E-11 | I19: 1430.023146 | J19: 9.790484232 | K19: 0.9032429015 | L19: 9.26E-29 | M19: 3.17E-25 | N19: 1430.023146 | O19: 9.131871954 | P19: 1.384387446 | Q19: 3.73E-13 | R19: 1.27E-10 | S19: 1430.023146 | T19: -0.4874657637 | U19: 0.3322214084 | V19: 0.08120221001 | W19: 0.205994575 | X19: 1430.023146 | Y19: -0.5280828921 | Z19: 0.3508145742 | AA19: 0.01682438913 | AB19: 0.1228315699 | AC19: 1430.023146 | AD19: -1.578740533 | AE19: 0.3903470176 | AF19: 8.65E-07 | AG19: 4.63E-05
A20: Misin16G195600 | B20: signal recognition particle 54 kDa protein 2; signal recognition particle 54 kda protein 2 | C20: F:GTPase activity; F:GTP binding; C:signal recognition particle, endoplasmic reticulum targeting; P:SRP-dependent cotranslational protein targeting to membrane; F:7S RNA binding | D20: 357.925078 | E20: 3.313122002 | F20: 0.4577736602 | G20: 4.03E-15 | H20: 3.43E-12 | I20: 357.925078 | J20: 3.919457403 | K20: 0.3656103775 | L20: 9.97E-28 | M20: 3.22E-24 | N20: 357.925078 | O20: 5.501796952 | P20: 0.4805218299 | Q20: 3.94E-31 | R20: 9.22E-28 | S20: 357.925078 | T20: -0.8933967419 | U20: 0.2962472095 | V20: 0.0005516329366 | W20: 0.006783639945 | X20: 357.925078 | Y20: -0.4459435705 | Z20: 0.2804655994 | AA20: 0.0212330835 | AB20: 0.1403265222 | AC20: 357.925078 | AD20: 0.07161008277 | AE20: 0.2520125651 | AF20: 0.7254493771 | AG20: 0.8761537602
A21: Misin18G019200 | B21: ---NA--- | C21: 0 | D21: 325.075233 | E21: 4.704836459 | F21: 0.588102734 | G21: 1.49E-16 | H21: 1.82E-13 | I21: 325.075233 | J21: 6.444627271 | K21: 0.6049914327 | L21: 4.04E-27 | M21: 1.23E-23 | N21: 325.075233 | O21: 7.740484444 | P21: 1.060169379 | Q21: 8.63E-15 | R21: 4.21E-12 | S21: 325.075233 | T21: -0.5962205842 | U21: 0.312304064 | V21: 0.02577723567 | W21: 0.09703944182 | X21: 325.075233 | Y21: -0.9453135606 | Z21: 0.3708211526 | AA21: 0.0002969439095 | AB21: 0.008639922573 | AC21: 325.075233 | AD21: -0.4024498805 | AE21: 0.2983861718 | AF21: 0.08047936019 | AG21: 0.2523444354
A22: Misin05G331000 | B22: ABC transporter C family member 3-like; mrp-like abc transporter | C22: F:ATP binding; C:plastid; C:integral component of membrane; F:ATPase-coupled transmembrane transporter activity; P:transmembrane transport | D22: 261.8261736 | E22: 4.836140416 | F22: 0.6328566533 | G22: 2.44E-15 | H22: 2.14E-12 | I22: 261.8261736 | J22: 6.037294276 | K22: 0.5748526958 | L22: 2.35E-26 | M22: 6.78E-23 | N22: 261.8261736 | O22: 4.642151275 | P22: 0.5622739869 | Q22: 3.44E-17 | R22: 2.44E-14 | S22: 261.8261736 | T22: -0.3153045791 | U22: 0.325918843 | V22: 0.2527879922 | W22: 0.4348340527 | X22: 261.8261736 | Y22: -0.597864957 | Z22: 0.3680525376 | AA22: 0.009688613229 | AB22: 0.08928842127 | AC22: 261.8261736 | AD22: -0.8347795224 | AE22: 0.3712104479 | AF22: 0.002769021099 | AG22: 0.02709277976
A23: Misin04G137700 | B23: NADH-plastoquinone oxidoreductase subunit J (chloroplast); nadh-plastoquinone oxidoreductase subunit j | C23: P:obsolete electron transport; P:metabolic process; C:chloroplast; C:thylakoid; C:membrane; F:NADH dehydrogenase (quinone) activity | D23: 3036.695268 | E23: 4.294271353 | F23: 0.6331463943 | G23: 7.42E-13 | H23: 2.84E-10 | I23: 3036.695268 | J23: 5.141059935 | K23: 0.4949149939 | L23: 9.93E-26 | M23: 2.72E-22 | N23: 3036.695268 | O23: 3.784481992 | P23: 0.4865874166 | Q23: 1.02E-15 | R23: 5.70E-13 | S23: 3036.695268 | T23: -0.2110903524 | U23: 0.3899860308 | V23: 0.4959742154 | W23: 0.6676519769 | X23: 3036.695268 | Y23: 0.217504514 | Z23: 0.3280354605 | AA23: 0.2627616979 | AB23: 0.5341799761 | AC23: 3036.695268 | AD23: 0.252457639 | AE23: 0.3631002102 | AF23: 0.3190006025 | AG23: 0.5682255221
A24: Misin15G076100 | B24: hypothetical protein SORBIDRAFT_08g003860 | C24: C:membrane | D24: 300.2621314 | E24: 5.902120904 | F24: 0.9077200207 | G24: 4.58E-12 | H24: 1.32E-09 | I24: 300.2621314 | J24: 5.915383105 | K24: 0.5719073609 | L24: 1.31E-25 | M24: 3.41E-22 | N24: 300.2621314 | O24: 5.396524186 | P24: 0.505845073 | Q24: 2.57E-27 | R24: 4.23E-24 | S24: 300.2621314 | T24: -0.8577262063 | U24: 0.3406079202 | V24: 0.002805225873 | W24: 0.021590748 | X24: 300.2621314 | Y24: -0.2940484772 | Z24: 0.2817604732 | AA24: 0.1180288218 | AB24: 0.3524703348 | AC24: 300.2621314 | AD24: -0.7603403009 | AE24: 0.3433154986 | AF24: 0.003859755252 | AG24: 0.0344375395
A25: Misin10G078000 | B25: kinase superfamily protein; uncharacterized protein loc100276598 isoform x2 | C25: F:protein serine/threonine kinase activity; F:ATP binding; C:mitochondrion; C:plasma membrane; P:protein phosphorylation; P:defense response; P:serine family amino acid metabolic process; C:plasmodesma; C:integral component of membrane | D25: 346.4216767 | E25: 3.984964162 | F25: 0.5599604917 | G25: 4.94E-14 | H25: 2.85E-11 | I25: 346.4216767 | J25: 4.881675612 | K25: 0.4802121353 | L25: 9.74E-25 | M25: 2.32E-21 | N25: 346.4216767 | O25: 5.154092218 | P25: 0.4709432313 | Q25: 1.46E-28 | R25: 2.64E-25 | S25: 346.4216767 | T25: -0.2870792375 | U25: 0.3227579425 | V25: 0.2944573502 | W25: 0.4799804758 | X25: 346.4216767 | Y25: -0.501548091 | Z25: 0.3445844056 | AA25: 0.02098504292 | AB25: 0.1394127259 | AC25: 346.4216767 | AD25: -0.3096557423 | AE25: 0.3091135031 | AF25: 0.1849644402 | AG25: 0.4157807867
A26: Misin01G198000 | B26: F-box domain containing protein | C26: C:membrane | D26: 199.3547283 | E26: 3.638240308 | F26: 0.5514230757 | G26: 7.37E-13 | H26: 2.84E-10 | I26: 199.3547283 | J26: 4.873004373 | K26: 0.4793196977 | L26: 9.64E-25 | M26: 2.32E-21 | N26: 199.3547283 | O26: 5.450345097 | P26: 0.6174282164 | Q26: 1.85E-19 | R26: 1.50E-16 | S26: 199.3547283 | T26: -0.4854172818 | U26: 0.2892914025 | V26: 0.05434861067 | W26: 0.1583917293 | X26: 199.3547283 | Y26: -0.5515322333 | Z26: 0.3063036485 | AA26: 0.007862597583 | AB26: 0.07845899816 | AC26: 199.3547283 | AD26: -1.185675255 | AE26: 0.321130186 | AF26: 8.98E-06 | AG26: 0.0003290127079
A27: Misin06G149100 | B27: Methylsterol monooxygenase 1-1; methylsterol monooxygenase 1-1 | C27: F:iron ion binding; P:fatty acid biosynthetic process; C:integral component of membrane; F:oxidoreductase activity; P:oxidation-reduction process | D27: 2530.809019 | E27: 6.33894374 | F27: 2.180946777 | G27: 5.48E-06 | H27: 0.0001650852599 | I27: 2530.809019 | J27: 9.31111226 | K27: 0.9420034565 | L27: 2.73E-24 | M27: 6.23E-21 | N27: 2530.809019 | O27: 10.41806004 | P27: 0.9514389503 | Q27: 1.83E-30 | R27: 3.94E-27 | S27: 2530.809019 | T27: 0.9916396705 | U27: 0.669525941 | V27: 0.01996208109 | W27: 0.08168242808 | X27: 2530.809019 | Y27: 0.1517806736 | Z27: 0.4058205521 | AA27: 0.4394299924 | AB27: 0.6914147291 | AC27: 2530.809019 | AD27: -0.04837989555 | AE27: 0.4507704879 | AF27: 0.8554539437 | AG27: 0.9472484587
A28: Misin01G315000 | B28: transmembrane protein 230 isoform X2; transmembrane protein 230 isoform x2 | C28: C:membrane | D28: 229.3273881 | E28: 4.025180309 | F28: 0.5671617983 | G28: 6.08E-14 | H28: 3.43E-11 | I28: 229.3273881 | J28: 5.774137596 | K28: 0.5798199525 | L28: 7.05E-24 | M28: 1.55E-20 | N28: 229.3273881 | O28: 5.03175515 | P28: 0.4843718889 | Q28: 6.13E-26 | R28: 8.82E-23 | S28: 229.3273881 | T28: -0.2329782115 | U28: 0.2954272759 | V28: 0.3641905652 | W28: 0.5505741053 | X28: 229.3273881 | Y28: -0.3362047463 | Z28: 0.2775110745 | AA28: 0.0745055372 | AB28: 0.2765548892 | AC28: 229.3273881 | AD28: -0.4792093411 | AE28: 0.3028176336 | AF28: 0.04071555695 | AG28: 0.1655213114
A29: Misin07G076500 | B29: predicted protein; uncharacterized protein loc103637782 | C29: P:nucleotide metabolic process; P:L-arabinose metabolic process; F:alpha-L-arabinofuranosidase activity | D29: 1000.267355 | E29: 2.643881929 | F29: 0.6498484119 | G29: 3.12E-07 | H29: 1.58E-05 | I29: 1000.267355 | J29: 4.651332637 | K29: 0.4721734038 | L29: 2.11E-23 | M29: 4.44E-20 | N29: 1000.267355 | O29: 4.220010623 | P29: 0.4735814914 | Q29: 1.17E-19 | R29: 9.81E-17 | S29: 1000.267355 | T29: -0.7169509029 | U29: 0.4081286687 | V29: 0.02648317807 | W29: 0.09878160967 | X29: 1000.267355 | Y29: -0.3795114705 | Z29: 0.3626138387 | AA29: 0.07503987537 | AB29: 0.2775069793 | AC29: 1000.267355 | AD29: -0.3509544138 | AE29: 0.3620632396 | AF29: 0.1701637984 | AG29: 0.3954764061
A30: Misin04G137600 | B30: NADH-plastoquinone oxidoreductase subunit K (chloroplast); nadh-plastoquinone oxidoreductase subunit k | C30: F:iron ion binding; C:plasma membrane; P:mitochondrial electron transport, NADH to ubiquinone; P:ubiquinone biosynthetic process; P:sodium ion transport; F:NADH dehydrogenase (ubiquinone) activity; C:chloroplast thylakoid membrane; P:photosynthesis, light reaction; F:quinone binding; F:4 iron, 4 sulfur cluster binding; P:proton transmembrane transport | D30: 3768.721114 | E30: 3.996748091 | F30: 0.6302101189 | G30: 7.63E-12 | H30: 1.99E-09 | I30: 3768.721114 | J30: 4.747582341 | K30: 0.4820619391 | L30: 2.26E-23 | M30: 4.59E-20 | N30: 3768.721114 | O30: 3.2125522 | P30: 0.4937836609 | Q30: 2.26E-12 | R30: 6.65E-10 | S30: 3768.721114 | T30: -0.179321884 | U30: 0.3835897714 | V30: 0.559008337 | W30: 0.718409447 | X30: 3768.721114 | Y30: 0.179140482 | Z30: 0.3144020713 | AA30: 0.3445575108 | AB30: 0.6119759311 | AC30: 3768.721114 | AD30: 0.2144951366 | AE30: 0.3535427823 | AF30: 0.3895205039 | AG30: 0.6359159767
A31: Misin04G266900 | B31: enoyl-CoA hydratase 2, peroxisomal; enoyl- hydratase peroxisomal | C31: F:ornithine decarboxylase activity; C:cytoplasm; P:arginine metabolic process; P:proline metabolic process; P:putrescine biosynthetic process from ornithine | D31: 285.4967601 | E31: 4.538346012 | F31: 0.5306539417 | G31: 1.52E-18 | H31: 2.81E-15 | I31: 285.4967601 | J31: 5.802269866 | K31: 0.5902552917 | L31: 2.52E-23 | M31: 4.93E-20 | N31: 285.4967601 | O31: 5.319849838 | P31: 0.5320363036 | Q31: 2.89E-24 | R31: 3.85E-21 | S31: 285.4967601 | T31: -1.294162877 | U31: 0.250097113 | V31: 1.83E-08 | W31: 1.66E-06 | X31: 285.4967601 | Y31: -1.667953547 | Z31: 0.2482329391 | AA31: 1.18E-12 | AB31: 4.52E-10 | AC31: 285.4967601 | AD31: -1.717358961 | AE31: 0.2571218211 | AF31: 3.73E-13 | AG31: 1.17E-10
A32: Misin01G352000 | B32: hydroxyproline-rich glycoprotein-like | C32: C:integral component of membrane | D32: 357.9448145 | E32: 6.887553671 | F32: 1.438916327 | G32: 1.71E-08 | H32: 1.46E-06 | I32: 357.9448145 | J32: 7.628066853 | K32: 0.7968759388 | L32: 1.47E-22 | M32: 2.77E-19 | N32: 357.9448145 | O32: 8.172768048 | P32: 1.468014969 | Q32: 5.13E-10 | R32: 8.53E-08 | S32: 357.9448145 | T32: -0.6468164442 | U32: 0.4102471223 | V32: 0.04533686102 | W32: 0.1406622938 | X32: 357.9448145 | Y32: -0.573883297 | Z32: 0.4314832062 | AA32: 0.01983312789 | AB32: 0.1350084291 | AC32: 357.9448145 | AD32: -1.269655765 | AE32: 0.4880395048 | AF32: 0.0002916427981 | AG32: 0.005182758659
A33: Misin04G380400 | B33: predicted protein | C33: 0 | D33: 632.2598626 | E33: 4.769354991 | F33: 0.7529158219 | G33: 1.78E-11 | H33: 4.08E-09 | I33: 632.2598626 | J33: 5.612436155 | K33: 0.5822633759 | L33: 1.74E-22 | M33: 3.18E-19 | N33: 632.2598626 | O33: 4.86367767 | P33: 0.5222758719 | Q33: 2.87E-21 | R33: 2.73E-18 | S33: 632.2598626 | T33: 0.1060314618 | U33: 0.3973431704 | V33: 0.7349368705 | W33: 0.8441534476 | X33: 632.2598626 | Y33: -0.2973968671 | Z33: 0.3606480234 | AA33: 0.1488014733 | AB33: 0.3987539417 | AC33: 632.2598626 | AD33: -0.3793995788 | AE33: 0.3924355086 | AF33: 0.1551989027 | AG33: 0.3743476028
A34: Misin07G455100 | B34: ADP-ribosylation factor; adp-ribosylation factor | C34: F:GTP binding; C:intracellular; P:small GTPase mediated signal transduction | D34: 500.5229092 | E34: 0.2383257369 | F34: 0.3175458356 | G34: 0.403617284 | H34: 0.5999153239 | I34: 500.5229092 | J34: 2.805655095 | K34: 0.3104740007 | L34: 2.99E-22 | M34: 5.29E-19 | N34: 500.5229092 | O34: 0.8244690838 | P34: 0.276045123 | Q34: 0.0002334256979 | R34: 0.004855964491 | S34: 500.5229092 | T34: -0.4309759643 | U34: 0.2523324075 | V34: 0.05710582063 | W34: 0.1635231185 | X34: 500.5229092 | Y34: -0.2377395537 | Z34: 0.2220655656 | AA34: 0.1543101749 | AB34: 0.4062406659 | AC34: 500.5229092 | AD34: -0.4889907798 | AE34: 0.2539970909 | AF34: 0.0188198603 | AG34: 0.1009383059
A35: Misin16G223200 | B35: 40S ribosomal protein S6; 40s ribosomal protein s6 | C35: F:structural constituent of ribosome; P:rRNA processing; P:translation; C:cytosolic small ribosomal subunit; P:ribosomal small subunit biogenesis | D35: 605.9861223 | E35: 5.170171417 | F35: 0.7410154473 | G35: 2.86E-13 | H35: 1.29E-10 | I35: 605.9861223 | J35: 6.553376091 | K35: 0.6881517244 | L35: 3.83E-22 | M35: 6.56E-19 | N35: 605.9861223 | O35: 2.298458058 | P35: 0.7270677902 | Q35: 6.35E-06 | R35: 0.0002641816739 | S35: 605.9861223 | T35: -1.236184325 | U35: 0.5175795406 | V35: 0.001471641969 | W35: 0.01368846754 | X35: 605.9861223 | Y35: -1.1398872 | Z35: 0.5928454026 | AA35: 0.001222399425 | AB35: 0.02344398411 | AC35: 605.9861223 | AD35: -2.054484462 | AE35: 0.6074591344 | AF35: 4.84E-06 | AG35: 0.0001938480845
A36: Misin09G013900 | B36: 5'-3' exoribonuclease 4-like isoform X1; 5 -3 exoribonuclease 4-like isoform x1 | C36: F:nucleic acid binding; F:exonuclease activity; C:mitochondrion; P:nucleic acid phosphodiester bond hydrolysis | D36: 2064.074198 | E36: 4.399770535 | F36: 0.7012385069 | G36: 1.98E-11 | H36: 4.50E-09 | I36: 2064.074198 | J36: 4.931860877 | K36: 0.5288280168 | L36: 3.61E-21 | M36: 6.00E-18 | N36: 2064.074198 | O36: 4.262848627 | P36: 0.5271814407 | Q36: 1.32E-16 | R36: 8.22E-14 | S36: 2064.074198 | T36: -0.8867190313 | U36: 0.4747133928 | V36: 0.01326450408 | W36: 0.06213225827 | X36: 2064.074198 | Y36: -1.028250423 | Z36: 0.5675722791 | AA36: 0.001958357484 | AB36: 0.03216846887 | AC36: 2064.074198 | AD36: -0.7482140794 | AE36: 0.4744236516 | AF36: 0.01643985734 | AG36: 0.09275949687
A37: Misin02G334500 | B37: ---NA--- | C37: 0 | D37: 771.0813241 | E37: 8.356776137 | F37: 1.92386053 | G37: 8.87E-09 | H37: 8.34E-07 | I37: 771.0813241 | J37: 8.379793973 | K37: 0.9176265833 | L37: 6.43E-21 | M37: 1.04E-17 | N37: 771.0813241 | O37: 8.533252352 | P37: 1.097970699 | Q37: 1.18E-16 | R37: 7.60E-14 | S37: 771.0813241 | T37: -1.296319009 | U37: 0.421830296 | V37: 0.0001637919075 | W37: 0.002796308252 | X37: 771.0813241 | Y37: -1.053099606 | Z37: 0.4741221904 | AA37: 0.0006664624205 | AB37: 0.01534811953 | AC37: 771.0813241 | AD37: -0.9777207145 | AE37: 0.4266238638 | AF37: 0.001568537574 | AG37: 0.01810111725
A38: Misin01G368100 | B38: predicted protein; uncharacterized protein loc100276044 isoform x1 | C38: C:mitochondrion; C:plastid | D38: 193.8541835 | E38: 7.3646734 | F38: 1.87886701 | G38: 1.76E-07 | H38: 1.00E-05 | I38: 193.8541835 | J38: 6.328576236 | K38: 0.6870759986 | L38: 8.06E-21 | M38: 1.26E-17 | N38: 193.8541835 | O38: 8.432368569 | P38: 1.424931532 | Q38: 5.29E-11 | R38: 1.12E-08 | S38: 193.8541835 | T38: -0.4154598657 | U38: 0.2413542509 | V38: 0.05721065036 | W38: 0.1637153922 | X38: 193.8541835 | Y38: -0.6189385072 | Z38: 0.2672289188 | AA38: 0.001484958897 | AB38: 0.02662983203 | AC38: 193.8541835 | AD38: -0.9066206162 | AE38: 0.2654074726 | AF38: 6.03E-05 | AG38: 0.001525878993
A39: Misin04G364200 | B39: putative pentatricopeptide repeat-containing protein | C39: F:catalytic activity; P:L-arabinose metabolic process; F:alpha-L-arabinofuranosidase activity | D39: 259.0131969 | E39: 4.91820632 | F39: 0.7586712137 | G39: 7.46E-12 | H39: 1.97E-09 | I39: 259.0131969 | J39: 4.315812132 | K39: 0.4750105243 | L39: 2.06E-20 | M39: 3.08E-17 | N39: 259.0131969 | O39: 3.039699435 | P39: 0.4594108261 | Q39: 6.99E-13 | R39: 2.22E-10 | S39: 259.0131969 | T39: -0.7329346077 | U39: 0.3675399217 | V39: 0.01506929544 | W39: 0.06768897859 | X39: 259.0131969 | Y39: -0.8977365104 | Z39: 0.4314765005 | AA39: 0.001266866673 | AB39: 0.02404895206 | AC39: 259.0131969 | AD39: -0.6159559055 | AE39: 0.364275301 | AF39: 0.02077842116 | AG39: 0.107567744
A40: Misin07G457300 | B40: coatomer subunit delta-3 | C40: C:Golgi membrane; P:retrograde vesicle-mediated transport, Golgi to endoplasmic reticulum; P:protein transport; C:integral component of membrane; C:COPI vesicle coat | D40: 295.078003 | E40: 1.876295195 | F40: 0.4300903703 | G40: 4.84E-07 | H40: 2.31E-05 | I40: 295.078003 | J40: 3.145579772 | K40: 0.3629599824 | L40: 2.08E-20 | M40: 3.08E-17 | N40: 295.078003 | O40: 2.400723507 | P40: 0.3658570352 | Q40: 1.84E-13 | R40: 6.83E-11 | S40: 295.078003 | T40: -0.05896636892 | U40: 0.2786863211 | V40: 0.8104411523 | W40: 0.8924571483 | X40: 295.078003 | Y40: -0.2630312873 | Z40: 0.2515271195 | AA40: 0.1393365217 | AB40: 0.3849847898 | AC40: 295.078003 | AD40: -0.3651751092 | AE40: 0.2798288956 | AF40: 0.09731823028 | AG40: 0.2821420365
A41: Misin19G013800 | B41: ozone-responsive stress related protein | C41: C:integral component of membrane | D41: 197.1660142 | E41: 7.432148717 | F41: 1.900591757 | G41: 1.63E-07 | H41: 9.37E-06 | I41: 197.1660142 | J41: 6.608793671 | K41: 0.7293629634 | L41: 2.88E-20 | M41: 4.15E-17 | N41: 197.1660142 | O41: 6.31271277 | P41: 0.8978565982 | Q41: 1.96E-13 | R41: 7.09E-11 | S41: 197.1660142 | T41: -0.1847740241 | U41: 0.3149837859 | V41: 0.492458097 | W41: 0.6647067438 | X41: 197.1660142 | Y41: -0.3284788204 | Z41: 0.2959251053 | AA41: 0.08974290223 | AB41: 0.3056634006 | AC41: 197.1660142 | AD41: -0.1212685066 | AE41: 0.2920958396 | AF41: 0.5881995816 | AG41: 0.7905366646
A42: Misin13G117600 | B42: omega-6 fatty acid desaturase, chloroplastic; omega-6 fatty acid chloroplastic | C42: P:lipid metabolic process; C:chloroplast envelope; P:photoinhibition; C:integral component of membrane | D42: 1870.022956 | E42: 3.031943046 | F42: 0.4336916845 | G42: 1.22E-14 | H42: 8.98E-12 | I42: 1870.022956 | J42: 2.776066459 | K42: 0.3274816578 | L42: 4.26E-20 | M42: 5.98E-17 | N42: 1870.022956 | O42: 3.635659058 | P42: 0.3085547254 | Q42: 9.04E-33 | R42: 2.67E-29 | S42: 1870.022956 | T42: 0.01909004068 | U42: 0.2708210061 | V42: 0.9367212046 | W42: 0.9665154725 | X42: 1870.022956 | Y42: -0.2459906946 | Z42: 0.2428563016 | AA42: 0.1589672351 | AB42: 0.4125986213 | AC42: 1870.022956 | AD42: -0.6814654654 | AE42: 0.2935643203 | AF42: 0.003795244065 | AG42: 0.0340352196
A43: Misin01G223500 | B43: EKC/KEOPS complex subunit bud32 isoform X1; ekc keops complex subunit bud32 isoform x1 | C43: C:EKC/KEOPS complex; F:protein serine/threonine kinase activity; F:ATP binding; C:nucleus; C:mitochondrion; C:cytosol; P:protein phosphorylation; P:serine family amino acid metabolic process; P:tRNA threonylcarbamoyladenosine metabolic process | D43: 178.3982113 | E43: 3.050012828 | F43: 0.5000090076 | G43: 5.02E-12 | H43: 1.41E-09 | I43: 178.3982113 | J43: 3.008758003 | K43: 0.3547386878 | L43: 6.55E-20 | M43: 8.98E-17 | N43: 178.3982113 | O43: 0.9641457895 | P43: 0.2755006036 | Q43: 2.82E-05 | R43: 0.0008872092746 | S43: 178.3982113 | T43: -1.006236751 | U43: 0.2533291721 | V43: 1.12E-05 | W43: 0.0003430575361 | X43: 178.3982113 | Y43: -0.7152405381 | Z43: 0.2711588833 | AA43: 0.0003736621351 | AB43: 0.01028021876 | AC43: 178.3982113 | AD43: -1.262966073 | AE43: 0.2571849166 | AF43: 2.94E-08 | AG43: 2.55E-06
A44: MisinT165200 | B44: ---NA--- | C44: 0 | D44: 226.316505 | E44: 3.653437359 | F44: 0.5313431571 | G44: 1.23E-13 | H44: 6.33E-11 | I44: 226.316505 | J44: 3.098916278 | K44: 0.3671174706 | L44: 1.22E-19 | M44: 1.64E-16 | N44: 226.316505 | O44: 4.145798335 | P44: 0.4370767242 | Q44: 5.72E-22 | R44: 5.94E-19 | S44: 226.316505 | T44: -1.546687855 | U44: 0.2740619239 | V44: 8.08E-10 | W44: 1.09E-07 | X44: 226.316505 | Y44: -1.535865075 | Z44: 0.2719287523 | AA44: 1.01E-09 | AB44: 1.94E-07 | AC44: 226.316505 | AD44: -1.58773675 | AE44: 0.2823495895 | AF44: 3.24E-10 | AG44: 4.81E-08
A45: Misin07G248200 | B45: probable L-ascorbate peroxidase 4; probable l-ascorbate peroxidase 4 | C45: P:obsolete peroxidase reaction; P:response to oxidative stress; C:integral component of membrane; F:L-ascorbate peroxidase activity; P:L-ascorbic acid metabolic process; F:heme binding; P:hydrogen peroxide catabolic process; F:metal ion binding; P:oxidation-reduction process; P:cellular oxidant detoxification | D45: 225.5435756 | E45: 1.745348754 | F45: 0.4195917562 | G45: 1.78E-06 | H45: 6.71E-05 | I45: 225.5435756 | J45: 3.816738972 | K45: 0.4396280421 | L45: 2.25E-19 | M45: 2.94E-16 | N45: 225.5435756 | O45: 2.929374469 | P45: 0.3527099771 | Q45: 2.05E-18 | R45: 1.58E-15 | S45: 225.5435756 | T45: -1.065473092 | U45: 0.2949408037 | V45: 4.14E-05 | W45: 0.0009600190436 | X45: 225.5435756 | Y45: -0.7169695374 | Z45: 0.3218222278 | AA45: 0.001304502823 | AB45: 0.0245287792 | AC45: 225.5435756 | AD45: -0.9384591452 | AE45: 0.2977983755 | AF45: 0.0001370771648 | AG45: 0.002904952322
A46: Misin19G065300 | B46: phospholipid hydroperoxide glutathione peroxidase 1, chloroplastic; phospholipid hydroperoxide glutathione peroxidase chloroplastic | C46: F:glutathione peroxidase activity; P:glutathione metabolic process; P:obsolete peroxidase reaction; P:response to oxidative stress; C:plastid; P:oxidation-reduction process; P:cellular oxidant detoxification | D46: 1176.136317 | E46: 3.628026174 | F46: 0.5123387222 | G46: 2.84E-14 | H46: 1.81E-11 | I46: 1176.136317 | J46: 3.274021888 | K46: 0.3889255377 | L46: 2.81E-19 | M46: 3.58E-16 | N46: 1176.136317 | O46: 4.231249153 | P46: 0.3520640365 | Q46: 7.74E-34 | R46: 2.88E-30 | S46: 1176.136317 | T46: 0.04124647764 | U46: 0.2985023123 | V46: 0.8734459424 | W46: 0.9300933669 | X46: 1176.136317 | Y46: -1.312121807 | Z46: 0.3614473662 | AA46: 7.40E-06 | AB46: 0.0004254984493 | AC46: 1176.136317 | AD46: -1.309328633 | AE46: 0.3500964639 | AF46: 5.37E-06 | AG46: 0.0002123822043
A47: Misin17G025400 | B47: Thiol protease; uncharacterized protein loc107305514 | C47: P:proteolysis; F:cysteine-type peptidase activity | D47: 460.5028461 | E47: 5.328510288 | F47: 0.6956897036 | G47: 1.89E-15 | H47: 1.78E-12 | I47: 460.5028461 | J47: 7.491447439 | K47: 0.8608541821 | L47: 4.88E-19 | M47: 6.08E-16 | N47: 460.5028461 | O47: 9.948333097 | P47: 1.45259441 | Q47: 3.01E-14 | R47: 1.31E-11 | S47: 460.5028461 | T47: -1.686856206 | U47: 0.3187088838 | V47: 4.25E-09 | W47: 4.62E-07 | X47: 460.5028461 | Y47: -1.433360668 | Z47: 0.3236725966 | AA47: 3.64E-07 | AB47: 3.29E-05 | AC47: 460.5028461 | AD47: -1.341712629 | AE47: 0.3259771293 | AF47: 1.04E-06 | AG47: 5.45E-05
A48: MisinT194600 | B48: ---NA--- | C48: 0 | D48: 236.0989391 | E48: 4.4723215 | F48: 0.6891054763 | G48: 5.72E-12 | H48: 1.57E-09 | I48: 236.0989391 | J48: 4.467950843 | K48: 0.5119148872 | L48: 5.87E-19 | M48: 7.15E-16 | N48: 236.0989391 | O48: 2.836993917 | P48: 0.505870818 | Q48: 1.69E-10 | R48: 3.19E-08 | S48: 236.0989391 | T48: -1.140877976 | U48: 0.3997955813 | V48: 0.0004913064707 | W48: 0.006229161573 | X48: 236.0989391 | Y48: -1.040771062 | Z48: 0.4533336434 | AA48: 0.0005523972701 | AB48: 0.01361072317 | AC48: 236.0989391 | AD48: -0.8034373168 | AE48: 0.398014208 | AF48: 0.0053878383 | AG48: 0.04347243721
A49: Misin19G040000 | B49: ---NA--- | C49: 0 | D49: 265.930848 | E49: 5.129218137 | F49: 0.7768587946 | G49: 3.50E-12 | H49: 1.05E-09 | I49: 265.930848 | J49: 5.327927654 | K49: 0.6088996666 | L49: 6.88E-19 | M49: 8.20E-16 | N49: 265.930848 | O49: 6.072852461 | P49: 0.7123894975 | Q49: 1.76E-18 | R49: 1.39E-15 | S49: 265.930848 | T49: 0.0859580457 | U49: 0.3851319874 | V49: 0.7798106569 | W49: 0.8733292356 | X49: 265.930848 | Y49: -0.2566976466 | Z49: 0.3380489878 | AA49: 0.1965154872 | AB49: 0.4604789408 | AC49: 265.930848 | AD49: -0.6075833705 | AE49: 0.4227783435 | AF49: 0.03457028062 | AG49: 0.1490227426
A50: Misin01G495700 | B50: 60S ribosomal protein L5-1; 60s ribosomal protein l5-1 | C50: P:ribosomal large subunit assembly; F:structural constituent of ribosome; P:translation; F:5S rRNA binding; C:cytosolic large ribosomal subunit | D50: 909.3438693 | E50: 2.231433094 | F50: 0.3364842935 | G50: 3.21E-13 | H50: 1.41E-10 | I50: 909.3438693 | J50: 2.157766135 | K50: 0.2621706744 | L50: 1.16E-18 | M50: 1.36E-15 | N50: 909.3438693 | O50: 0.5344824814 | P50: 0.253000753 | Q50: 0.007082224941 | R50: 0.05892607233 | S50: 909.3438693 | T50: -1.00547671 | U50: 0.2444901875 | V50: 6.13E-06 | W50: 0.0002130610185 | X50: 909.3438693 | Y50: -0.8564574747 | Z50: 0.2693743892 | AA50: 3.98E-05 | AB50: 0.001755346723 | AC50: 909.3438693 | AD50: -0.9069289215 | AE50: 0.2533595646 | AF50: 3.29E-05 | AG50: 0.0009384582472
A51: Misin02G130200 | B51: GATA transcription factor 26-like; transcription factor gata-5 | C51: F:DNA-binding transcription factor activity; C:transcription factor complex; P:regulation of transcription, DNA-templated; P:regulation of transcription, DNA-templated; P:cellular process; C:intracellular membrane-bounded organelle; F:sequence-specific DNA binding | D51: 144.1846336 | E51: 4.463838335 | F51: 0.6923830998 | G51: 7.40E-12 | H51: 1.96E-09 | I51: 144.1846336 | J51: 3.520325403 | K51: 0.4246266929 | L51: 2.09E-18 | M51: 2.38E-15 | N51: 144.1846336 | O51: 3.116710364 | P51: 0.3920042901 | Q51: 6.44E-17 | R51: 4.46E-14 | S51: 144.1846336 | T51: -0.5400088353 | U51: 0.2803661045 | V51: 0.02828192123 | W51: 0.103098691 | X51: 144.1846336 | Y51: -0.5098294876 | Z51: 0.2875823629 | AA51: 0.01028675614 | AB51: 0.09237558753 | AC51: 144.1846336 | AD51: -0.87277169 | AE51: 0.2969392429 | AF51: 0.0003389994723 | AG51: 0.005800117573
A52: Misin08G078200 | B52: ---NA--- | C52: 0 | D52: 347.293438 | E52: 3.775177766 | F52: 0.6934008678 | G52: 8.18E-10 | H52: 1.15E-07 | I52: 347.293438 | J52: 4.435153864 | K52: 0.519573963 | L52: 2.90E-18 | M52: 3.24E-15 | N52: 347.293438 | O52: 3.78061187 | P52: 0.502782149 | Q52: 7.09E-15 | R52: 3.49E-12 | S52: 347.293438 | T52: -0.703233469 | U52: 0.4083577838 | V52: 0.02946788777 | W52: 0.1059981636 | X52: 347.293438 | Y52: -0.8388299468 | Z52: 0.4818308253 | AA52: 0.003493004249 | AB52: 0.04696442409 | AC52: 347.293438 | AD52: -0.7078699366 | AE52: 0.4184088561 | AF52: 0.01513654765 | AG52: 0.08795413124
A53: Misin17G163300 | B53: protein BUD31 homolog 2; protein bud31 homolog 2 | C53: P:mRNA splicing, via spliceosome; C:spliceosomal complex | D53: 667.1299976 | E53: 4.860357467 | F53: 0.8534462553 | G53: 6.94E-10 | H53: 9.93E-08 | I53: 667.1299976 | J53: 5.822697789 | K53: 0.6797846266 | L53: 3.15E-18 | M53: 3.45E-15 | N53: 667.1299976 | O53: 6.181523646 | P53: 0.5922881769 | Q53: 1.76E-26 | R53: 2.66E-23 | S53: 667.1299976 | T53: -0.3908268409 | U53: 0.428343631 | V53: 0.234090929 | W53: 0.4135132553 | X53: 667.1299976 | Y53: -0.6993236102 | Z53: 0.5135510617 | AA53: 0.01206164 | AB53: 0.1013417091 | AC53: 667.1299976 | AD53: -0.9979329972 | AE53: 0.5155690636 | AF53: 0.003486066633 | AG53: 0.0319428206
A54: Misin09G049000 | B54: predicted protein; uncharacterized protein loc9269993 | C54: C:mitochondrion | D54: 2777.003503 | E54: 0.9756400266 | F54: 0.2571888294 | G54: 4.58E-05 | H54: 0.0008765915129 | I54: 2777.003503 | J54: 1.704196313 | K54: 0.2046131912 | L54: 3.35E-18 | M54: 3.53E-15 | N54: 2777.003503 | O54: 1.37200418 | P54: 0.2068537872 | Q54: 8.55E-13 | R54: 2.68E-10 | S54: 2777.003503 | T54: -0.9076470239 | U54: 0.2002942611 | V54: 1.17E-06 | W54: 5.56E-05 | X54: 2777.003503 | Y54: -0.6781631991 | Z54: 0.2125708483 | AA54: 6.46E-05 | AB54: 0.002601638788 | AC54: 2777.003503 | AD54: -0.8339990698 | AE54: 0.2019732246 | AF54: 4.52E-06 | AG54: 0.0001840765749
A55: Misin01G244000 | B55: ---NA--- | C55: 0 | D55: 393.6899617 | E55: 0.8880579339 | F55: 0.4968144177 | G55: 0.02607702687 | H55: 0.09723249488 | I55: 393.6899617 | J55: 4.147839871 | K55: 0.4900796666 | L55: 3.32E-18 | M55: 3.53E-15 | N55: 393.6899617 | O55: 4.383592962 | P55: 0.4685961305 | Q55: 2.07E-21 | R55: 2.04E-18 | S55: 393.6899617 | T55: -0.9792753144 | U55: 0.4028910447 | V55: 0.002598385031 | W55: 0.02052316129 | X55: 393.6899617 | Y55: -0.5583333619 | Z55: 0.397925789 | AA55: 0.01824074858 | AB55: 0.1288821301 | AC55: 393.6899617 | AD55: -0.387452278 | AE55: 0.3497028381 | AF55: 0.1247271591 | AG55: 0.328326914
A56: Misin01G503100 | B56: PIN2/TERF1-interacting telomerase inhibitor 1 | C56: F:nucleic acid binding | D56: 177.629495 | E56: 3.540088173 | F56: 0.5796024798 | G56: 1.24E-11 | H56: 3.02E-09 | I56: 177.629495 | J56: 3.730880305 | K56: 0.4496225897 | L56: 4.17E-18 | M56: 4.31E-15 | N56: 177.629495 | O56: 2.163301728 | P56: 0.5059664819 | Q56: 6.93E-08 | R56: 5.93E-06 | S56: 177.629495 | T56: -0.5071779245 | U56: 0.3280816796 | V56: 0.06718590584 | W56: 0.1815522928 | X56: 177.629495 | Y56: -0.4200133673 | Z56: 0.3184572676 | AA56: 0.04017766767 | AB56: 0.1995180655 | AC56: 177.629495 | AD56: -1.344950398 | AE56: 0.3895793146 | AF56: 1.48E-05 | AG56: 0.0004899887004
A57: Misin01G336200 | B57: hypothetical protein SORBI_009G049000 | C57: 0 | D57: 312.7655925 | E57: 4.347099383 | F57: 0.8162495463 | G57: 3.22E-09 | H57: 3.56E-07 | I57: 312.7655925 | J57: 5.943762477 | K57: 0.6984726202 | L57: 4.92E-18 | M57: 5.00E-15 | N57: 312.7655925 | O57: 6.992990692 | P57: 0.8416531122 | Q57: 5.44E-18 | R57: 4.02E-15 | S57: 312.7655925 | T57: -2.242763165 | U57: 0.4796590754 | V57: 2.40E-08 | W57: 2.10E-06 | X57: 312.7655925 | Y57: -1.047401235 | Z57: 0.5098965089 | AA57: 0.001044228375 | AB57: 0.02106660916 | AC57: 312.7655925 | AD57: -0.4762102539 | AE57: 0.3881898611 | AF57: 0.07735125222 | AG57: 0.2461694933
A58: MisinT543000 | B58: pyruvate orthophosphate dikinase | C58: F:ATP binding; C:cytosol; P:pyruvate metabolic process; P:lipid biosynthetic process; P:response to light stimulus; C:chloroplast; P:carbon utilization; P:photosynthesis; F:kinase activity; P:phosphorylation; P:starch biosynthetic process; F:metal ion binding; F:pyruvate, phosphate dikinase activity | D58: 303.416166 | E58: 1.138876802 | F58: 0.5474670635 | G58: 0.007929302569 | H58: 0.04211221854 | I58: 303.416166 | J58: 5.680104722 | K58: 0.667555213 | L58: 5.31E-18 | M58: 5.29E-15 | N58: 303.416166 | O58: 2.70158734 | P58: 0.495400299 | Q58: 2.92E-10 | R58: 5.13E-08 | S58: 303.416166 | T58: -1.237004524 | U58: 0.4345916986 | V58: 0.0003936926923 | W58: 0.005309573055 | X58: 303.416166 | Y58: -0.9452808535 | Z58: 0.483312542 | AA58: 0.001613751559 | AB58: 0.02820300685 | AC58: 303.416166 | AD58: -0.2537748351 | AE58: 0.3408884749 | AF58: 0.3015435582 | AG58: 0.5508997187
A59: Misin05G313200 | B59: cinnamoyl-CoA reductase 1; cinnamoyl- reductase 1 | C59: F:nucleic acid binding; F:catalytic activity; C:cytosol; F:zinc ion binding; P:glucosinolate biosynthetic process; F:coenzyme binding | D59: 363.4593228 | E59: 5.719061497 | F59: 1.119418132 | G59: 1.16E-08 | H59: 1.05E-06 | I59: 363.4593228 | J59: 5.964781594 | K59: 0.7026543447 | L59: 5.84E-18 | M59: 5.72E-15 | N59: 363.4593228 | O59: 6.219584312 | P59: 0.5648711531 | Q59: 3.41E-29 | R59: 6.60E-26 | S59: 363.4593228 | T59: 0.6925127427 | U59: 0.4175340016 | V59: 0.0344110437 | W59: 0.1176572688 | X59: 363.4593228 | Y59: -0.04202549339 | Z59: 0.2862520646 | AA59: 0.8153324631 | AB59: 0.9245610517 | AC59: 363.4593228 | AD59: -0.6270057477 | AE59: 0.4030427453 | AF59: 0.02607546629 | AG59: 0.124262259
A60: Misin10G043000 | B60: probable sucrose-phosphate synthase 4 | C60: P:starch metabolic process; P:sucrose biosynthetic process; F:sucrose synthase activity; F:sucrose-phosphate synthase activity | D60: 416.3787799 | E60: 6.731361272 | F60: 0.8256956433 | G60: 9.93E-18 | H60: 1.48E-14 | I60: 416.3787799 | J60: 8.789316099 | K60: 1.056620593 | L60: 6.72E-18 | M60: 6.47E-15 | N60: 416.3787799 | O60: 4.231306961 | P60: 0.6029960394 | Q60: 3.91E-13 | R60: 1.31E-10 | S60: 416.3787799 | T60: -0.748513197 | U60: 0.3373383487 | V60: 0.008370776966 | W60: 0.04568852046 | X60: 416.3787799 | Y60: -0.7910654921 | Z60: 0.3856865542 | AA60: 0.001741480818 | AB60: 0.02966110063 | AC60: 416.3787799 | AD60: -1.098422784 | AE60: 0.3802252213 | AF60: 0.0001966051998 | AG60: 0.003839346321
A61: Misin14G005400 | B61: kinesin-like protein KIN-5A; kinesin-like protein kin-5a | C61: F:ATP binding; C:kinesin complex; C:microtubule; P:microtubule-based movement; F:microtubule binding; F:ATP-dependent microtubule motor activity, plus-end-directed; C:tubulin complex | D61: 777.0633414 | E61: 8.729979031 | F61: 1.971060789 | G61: 3.21E-09 | H61: 3.56E-07 | I61: 777.0633414 | J61: 9.309423335 | K61: 1.124945288 | L61: 7.01E-18 | M61: 6.63E-15 | N61: 777.0633414 | O61: 8.01529319 | P61: 1.414299956 | Q61: 3.33E-10 | R61: 5.74E-08 | S61: 777.0633414 | T61: -0.9553072625 | U61: 0.483534114 | V61: 0.008664624819 | W61: 0.04679546118 | X61: 777.0633414 | Y61: -0.5427416598 | Z61: 0.4638009574 | AA61: 0.02996045626 | AB61: 0.16993205 | AC61: 777.0633414 | AD61: 0.04740713635 | AE61: 0.363839815 | AF61: 0.8495045023 | AG61: 0.9445394713
A62: Misin16G128800 | B62: ---NA--- | C62: 0 | D62: 153.2530983 | E62: 4.005245932 | F62: 0.8009767245 | G62: 1.04E-08 | H62: 9.57E-07 | I62: 153.2530983 | J62: 5.504309413 | K62: 0.6529449792 | L62: 1.07E-17 | M62: 9.98E-15 | N62: 153.2530983 | O62: 3.528903003 | P62: 0.6323337388 | Q62: 9.24E-10 | R62: 1.44E-07 | S62: 153.2530983 | T62: -0.3479752169 | U62: 0.4003848696 | V62: 0.2701838582 | W62: 0.4537750819 | X62: 153.2530983 | Y62: -0.2639402803 | Z62: 0.3417459005 | AA62: 0.1868322042 | AB62: 0.4481396136 | AC62: 153.2530983 | AD62: -0.2937472881 | AE62: 0.3752292357 | AF62: 0.2556707634 | AG62: 0.5021011948
A63: MisinT088500 | B63: ---NA--- | C63: 0 | D63: 135.9772838 | E63: 3.074151647 | F63: 0.6724438438 | G63: 2.67E-08 | H63: 2.09E-06 | I63: 135.9772838 | J63: 4.935172848 | K63: 0.5861941598 | L63: 1.13E-17 | M63: 1.03E-14 | N63: 135.9772838 | O63: 4.391619638 | P63: 0.7210499644 | Q63: 1.57E-10 | R63: 2.99E-08 | S63: 135.9772838 | T63: -0.2284934615 | U63: 0.3538095515 | V63: 0.4333689188 | W63: 0.6130754909 | X63: 135.9772838 | Y63: -0.4995609106 | Z63: 0.3804987564 | AA63: 0.02780378616 | AB63: 0.162929396 | AC63: 135.9772838 | AD63: -0.4601726774 | AE63: 0.3702493533 | AF63: 0.0797018401 | AG63: 0.2507476133
A64: Misin13G149600 | B64: Monodehydroascorbate reductase; monodehydroascorbate reductase | C64: C:cell; P:obsolete electron transport; F:disulfide oxidoreductase activity; F:monodehydroascorbate reductase (NADH) activity; P:L-ascorbic acid metabolic process; P:electron transport chain; P:cell redox homeostasis; F:flavin adenine dinucleotide binding | D64: 1602.597178 | E64: -0.1889419152 | F64: 0.3757019355 | G64: 0.561706802 | H64: 0.7292284295 | I64: 1602.597178 | J64: 2.82534945 | K64: 0.3637660599 | L64: 1.65E-17 | M64: 1.48E-14 | N64: 1602.597178 | O64: 2.227448624 | P64: 0.3617599653 | Q64: 2.17E-12 | R64: 6.44E-10 | S64: 1602.597178 | T64: -1.256885159 | U64: 0.332276813 | V64: 1.34E-05 | W64: 0.0003964562094 | X64: 1602.597178 | Y64: -0.1006283634 | Z64: 0.2421223022 | AA64: 0.5575534225 | AB64: 0.7774471672 | AC64: 1602.597178 | AD64: -0.2962471925 | AE64: 0.2841635237 | AF64: 0.1811841103 | AG64: 0.4109271334
A65: Misin04G165200 | B65: serine carboxypeptidase-like 2 | C65: F:serine-type carboxypeptidase activity; C:integral component of membrane; F:transferase activity, transferring acyl groups other than amino-acyl groups; P:secondary metabolic process; P:proteolysis involved in cellular protein catabolic process | D65: 408.4800152 | E65: 2.108458287 | F65: 0.7066714471 | G65: 5.96E-05 | H65: 0.001073321384 | I65: 408.4800152 | J65: 4.953466232 | K65: 0.594517826 | L65: 2.36E-17 | M65: 2.08E-14 | N65: 408.4800152 | O65: 4.143633117 | P65: 0.6443511313 | Q65: 1.72E-11 | R65: 4.14E-09 | S65: 408.4800152 | T65: 1.642445524 | U65: 0.5215409696 | V65: 5.38E-05 | W65: 0.001187496449 | X65: 408.4800152 | Y65: -0.4824308984 | Z65: 0.4374140185 | AA65: 0.04286601946 | AB65: 0.2062157792 | AC65: 408.4800152 | AD65: -1.136043315 | AE65: 0.5293196909 | AF65: 0.001414112676 | AG65: 0.0167533818
A66: Misin17G196000 | B66: NADH dehydrogenase [ubiquinone] flavoprotein 2, mitochondrial; nadh dehydrogenase | C66: C:mitochondrial respiratory chain complex I; P:mitochondrial electron transport, NADH to ubiquinone; P:ubiquinone biosynthetic process; P:sodium ion transport; F:NADH dehydrogenase (ubiquinone) activity; C:plasma membrane respiratory chain complex I; F:metal ion binding; F:2 iron, 2 sulfur cluster binding; P:proton transmembrane transport | D66: 779.3715604 | E66: 7.377891391 | F66: 0.6981768642 | G66: 4.71E-28 | H66: 3.60E-24 | I66: 779.3715604 | J66: 11.03650094 | K66: 1.390637711 | L66: 2.82E-17 | M66: 2.46E-14 | N66: 779.3715604 | O66: 7.824031057 | P66: 0.6875849667 | Q66: 1.40E-31 | R66: 3.73E-28 | S66: 779.3715604 | T66: -0.4748985329 | U66: 0.2258390842 | V66: 0.02149033353 | W66: 0.08602033499 | X66: 779.3715604 | Y66: -0.6886574062 | Z66: 0.2517519564 | AA66: 0.0003003458111 | AB66: 0.00871051636 | AC66: 779.3715604 | AD66: -0.5499169406 | AE66: 0.2325288043 | AF66: 0.00511754006 | AG66: 0.0419064439
A67: Misin15G089100 | B67: outer envelope pore protein 37, chloroplastic-like; outer envelope pore protein chloroplastic-like | C67: C:plastid; C:viral envelope | D67: 277.8984013 | E67: 5.403446704 | F67: 1.515081022 | G67: 3.25E-06 | H67: 0.0001089873817 | I67: 277.8984013 | J67: 4.875476449 | K67: 0.5875514048 | L67: 3.02E-17 | M67: 2.59E-14 | N67: 277.8984013 | O67: 5.704988702 | P67: 0.4687418235 | Q67: 6.43E-35 | R67: 2.77E-31 | S67: 277.8984013 | T67: -0.0625951459 | U67: 0.3171354827 | V67: 0.8170604527 | W67: 0.8962863957 | X67: 277.8984013 | Y67: -0.4669205567 | Z67: 0.328335866 | AA67: 0.02639181932 | AB67: 0.1585613701 | AC67: 277.8984013 | AD67: -0.4953563094 | AE67: 0.3180704099 | AF67: 0.04060135988 | AG67: 0.1651952169
A68: Misin01G331300 | B68: ---NA--- | C68: 0 | D68: 354.8362499 | E68: 4.31026693 | F68: 0.5861507564 | G68: 1.52E-14 | H68: 1.04E-11 | I68: 354.8362499 | J68: 3.535910281 | K68: 0.4442926429 | L68: 3.14E-17 | M68: 2.65E-14 | N68: 354.8362499 | O68: 1.863143255 | P68: 0.4930434453 | Q68: 8.68E-07 | R68: 5.02E-05 | S68: 354.8362499 | T68: -0.3784380728 | U68: 0.347435893 | V68: 0.189248865 | W68: 0.3598997684 | X68: 354.8362499 | Y68: -0.384887525 | Z68: 0.3333038263 | AA68: 0.06253544032 | AB68: 0.2522989679 | AC68: 354.8362499 | AD68: -1.514466648 | AE68: 0.4286613111 | AF68: 7.51E-06 | AG68: 0.0002831059188
A69: Misin07G158500 | B69: cysteine desulfurase 1, chloroplastic; cysteine desulfurase chloroplastic | C69: P:selenium compound metabolic process; P:cysteine metabolic process; F:selenocysteine lyase activity; C:chloroplast; P:response to selenium ion; P:iron incorporation into metallo-sulfur cluster; F:pyridoxal phosphate binding; F:cysteine desulfurase activity | D69: 1324.973837 | E69: 1.361950577 | F69: 0.219627651 | G69: 8.78E-11 | H69: 1.70E-08 | I69: 1324.973837 | J69: 1.372299719 | K69: 0.170388921 | L69: 6.30E-17 | M69: 5.23E-14 | N69: 1324.973837 | O69: 1.937024703 | P69: 0.1735054644 | Q69: 1.62E-31 | R69: 4.13E-28 | S69: 1324.973837 | T69: -0.7930162624 | U69: 0.1642023623 | V69: 3.70E-07 | W69: 2.12E-05 | X69: 1324.973837 | Y69: -0.6849063251 | Z69: 0.1726557374 | AA69: 2.79E-06 | AB69: 0.0001833412459 | AC69: 1324.973837 | AD69: -0.8845302757 | AE69: 0.1636897471 | AF69: 7.30E-09 | AG69: 7.53E-07
A70: Misin07G283600 | B70: putative protease Do-like 14; uncharacterized protein loc4342779 | C70: C:mitochondrion; C:plastid | D70: 656.8619255 | E70: 5.331635214 | F70: 0.8884316222 | G70: 1.31E-10 | H70: 2.43E-08 | I70: 656.8619255 | J70: 5.185138501 | K70: 0.6398374615 | L70: 1.61E-16 | M70: 1.32E-13 | N70: 656.8619255 | O70: 5.234598267 | P70: 0.6362860951 | Q70: 3.68E-17 | R70: 2.58E-14 | S70: 656.8619255 | T70: 0.1944882349 | U70: 0.4507942602 | V70: 0.5617922241 | W70: 0.7204307525 | X70: 656.8619255 | Y70: -0.786383952 | Z70: 0.5876068705 | AA70: 0.009699976054 | AB70: 0.08933784685 | AC70: 656.8619255 | AD70: -0.7927410624 | AE70: 0.5364778124 | AF70: 0.01683086378 | AG70: 0.09413370135
A71: Misin19G206200 | B71: putative disease resistance protein RGA3 | C71: F:formate dehydrogenase (NAD+) activity; F:electron transfer activity; P:formate metabolic process; F:oxidoreductase activity; F:molybdenum ion binding; F:ADP binding; P:oxidation-reduction process | D71: 439.7679203 | E71: 3.693035186 | F71: 0.5169453077 | G71: 2.16E-14 | H71: 1.45E-11 | I71: 439.7679203 | J71: 3.102130082 | K71: 0.4113422616 | L71: 1.74E-16 | M71: 1.40E-13 | N71: 439.7679203 | O71: 0.508705331 | P71: 0.337946908 | Q71: 0.03025937909 | R71: 0.1549033384 | S71: 439.7679203 | T71: 0.2935659915 | U71: 0.3188896213 | V71: 0.2795261383 | W71: 0.4642369428 | X71: 439.7679203 | Y71: -0.1771124328 | Z71: 0.2651027315 | AA71: 0.3234605863 | AB71: 0.5928314936 | AC71: 439.7679203 | AD71: -0.1756816679 | AE71: 0.2919352019 | AF71: 0.4333029583 | AG71: 0.673228484
A72: Misin08G246600 | B72: ---NA--- | C72: 0 | D72: 108.765978 | E72: 3.065425345 | F72: 0.5483722362 | G72: 1.12E-10 | H72: 2.12E-08 | I72: 108.765978 | J72: 3.256129299 | K72: 0.4287375769 | L72: 1.89E-16 | M72: 1.50E-13 | N72: 108.765978 | O72: 3.49902667 | P72: 0.4667158884 | Q72: 5.21E-15 | R72: 2.63E-12 | S72: 108.765978 | T72: -0.6306766239 | U72: 0.2785174245 | V72: 0.01003967325 | W72: 0.05177845782 | X72: 108.765978 | Y72: -0.3309872316 | Z72: 0.2529750254 | AA72: 0.06619774476 | AB72: 0.2599339404 | AC72: 108.765978 | AD72: -0.6659438473 | AE72: 0.2917623214 | AF72: 0.004420669747 | AG72: 0.03793348574
A73: Misin17G032200 | B73: probably inactive leucine-rich repeat receptor-like protein kinase At5g48380; probably inactive leucine-rich repeat receptor-like protein kinase at5g48380 | C73: F:protein kinase activity; F:ATP binding; P:protein phosphorylation; C:integral component of membrane | D73: 214.5450512 | E73: 7.006051482 | F73: 1.951385567 | G73: 6.60E-07 | H73: 2.96E-05 | I73: 214.5450512 | J73: 6.770838552 | K73: 0.8469156366 | L73: 2.68E-16 | M73: 2.10E-13 | N73: 214.5450512 | O73: 6.583668054 | P73: 1.095876281 | Q73: 1.40E-10 | R73: 2.71E-08 | S73: 214.5450512 | T73: -0.1907625341 | U73: 0.3693018881 | V73: 0.5245723247 | W73: 0.6912177034 | X73: 214.5450512 | Y73: -0.9582428001 | Z73: 0.4898432996 | AA73: 0.001572852694 | AB73: 0.02766877748 | AC73: 214.5450512 | AD73: -1.03090049 | AE73: 0.4531703657 | AF73: 0.001392064606 | AG73: 0.01656565742
A74: MisinT580600 | B74: probable LRR receptor-like serine/threonine-protein kinase At3g47570; probable lrr receptor-like serine threonine-protein kinase at3g47570 | C74: F:nucleotide binding; F:protein kinase activity; C:membrane; P:phosphorylation | D74: 2761.144166 | E74: 6.860030185 | F74: 2.16550389 | G74: 1.79E-06 | H74: 6.74E-05 | I74: 2761.144166 | J74: 7.863439029 | K74: 0.9969594982 | L74: 3.83E-16 | M74: 2.96E-13 | N74: 2761.144166 | O74: 10.4655397 | P74: 1.029327431 | Q74: 7.20E-27 | R74: 1.15E-23 | S74: 2761.144166 | T74: 0.6267205009 | U74: 0.6377180207 | V74: 0.1128493515 | W74: 0.2561691026 | X74: 2761.144166 | Y74: -0.003338753852 | Z74: 0.4007192968 | AA74: 0.9857646697 | AB74: 0.9963106907 | AC74: 2761.144166 | AD74: -0.2177130568 | AE74: 0.5046465364 | AF74: 0.4313035619 | AG74: 0.6718229518
A75: Misin05G331600 | B75: General transcription factor 3C polypeptide 2 | C75: F:DNA binding; P:regulation of transcription, DNA-templated | D75: 213.5365734 | E75: 2.329431292 | F75: 0.4119840587 | G75: 1.26E-10 | H75: 2.36E-08 | I75: 213.5365734 | J75: 2.31793243 | K75: 0.312310087 | L75: 4.27E-16 | M75: 3.25E-13 | N75: 213.5365734 | O75: 1.986493595 | P75: 0.3253541854 | Q75: 3.51E-12 | R75: 9.99E-10 | S75: 213.5365734 | T75: -1.029929891 | U75: 0.263930497 | V75: 1.41E-05 | W75: 0.000414016405 | X75: 213.5365734 | Y75: -0.2374249164 | Z75: 0.2206635812 | AA75: 0.1534764048 | AB75: 0.4053005865 | AC75: 213.5365734 | AD75: -0.3541097418 | AE75: 0.2480219477 | AF75: 0.08057023325 | AG75: 0.2524882121
A76: Misin17G249000 | B76: isocitrate dehydrogenase [NADP] | C76: F:magnesium ion binding; F:isocitrate dehydrogenase (NADP+) activity; P:isocitrate metabolic process; P:glutathione metabolic process; P:reductive tricarboxylic acid cycle; F:NAD binding | D76: 1340.967381 | E76: 3.723171834 | F76: 0.570724704 | G76: 1.44E-12 | H76: 5.08E-10 | I76: 1340.967381 | J76: 3.38295948 | K76: 0.4486950227 | L76: 4.45E-16 | M76: 3.34E-13 | N76: 1340.967381 | O76: 1.051921425 | P76: 0.4425803122 | Q76: 0.0007079678514 | R76: 0.01118736603 | S76: 1340.967381 | T76: -0.06677182861 | U76: 0.349689366 | V76: 0.8175002063 | W76: 0.8965355834 | X76: 1340.967381 | Y76: -0.1762117179 | Z76: 0.2914560318 | AA76: 0.3414759622 | AB76: 0.6090440753 | AC76: 1340.967381 | AD76: 0.05873856434 | AE76: 0.3166883828 | AF76: 0.8018680325 | AG76: 0.9200648241
A77: Misin07G200500 | B77: ---NA--- | C77: 0 | D77: 696.2303649 | E77: 0.4418909411 | F77: 0.3163992019 | G77: 0.119793267 | H77: 0.2755945171 | I77: 696.2303649 | J77: 2.07618155 | K77: 0.2800726494 | L77: 1.15E-15 | M77: 8.51E-13 | N77: 696.2303649 | O77: 1.777896619 | P77: 0.2842961366 | Q77: 2.27E-12 | R77: 6.65E-10 | S77: 696.2303649 | T77: -0.7708424295 | U77: 0.2564085004 | V77: 0.0007873190768 | W77: 0.00880881505 | X77: 696.2303649 | Y77: 0.0288092281 | Z77: 0.2054697081 | AA77: 0.8560619523 | AB77: 0.9429504197 | AC77: 696.2303649 | AD77: -0.3217407414 | AE77: 0.238955567 | AF77: 0.1025295166 | AG77: 0.2916747624
A78: Misin15G000200 | B78: NADH-plastoquinone oxidoreductase subunit 3 (chloroplast); nadh-plastoquinone oxidoreductase subunit 3 | C78: C:plasma membrane; P:mitochondrial electron transport, NADH to ubiquinone; P:ubiquinone biosynthetic process; P:sodium ion transport; F:NADH dehydrogenase (ubiquinone) activity; C:chloroplast thylakoid membrane; C:integral component of membrane; P:photosynthesis, light reaction; F:quinone binding; P:proton transmembrane transport | D78: 1224.068027 | E78: 2.241423018 | F78: 0.6477926208 | G78: 7.87E-06 | H78: 0.0002189916023 | I78: 1224.068027 | J78: 3.753512957 | K78: 0.4956650667 | L78: 1.24E-15 | M78: 9.03E-13 | N78: 1224.068027 | O78: 2.023718935 | P78: 0.5205962831 | Q78: 4.34E-07 | R78: 2.79E-05 | S78: 1224.068027 | T78: -0.4130824974 | U78: 0.389996875 | V78: 0.1840527374 | W78: 0.3533150048 | X78: 1224.068027 | Y78: 0.09243896177 | Z78: 0.2939981863 | AA78: 0.6121268559 | AB78: 0.8129704571 | AC78: 1224.068027 | AD78: 0.2692402423 | AE78: 0.3542790868 | AF78: 0.2830555063 | AG78: 0.5319180746
A79: MisinT108300 | B79: ribosomal protein S10, mitochondrial; ribosomal protein mitochondrial | C79: F:structural constituent of ribosome; C:mitochondrion; P:translation; C:small ribosomal subunit; P:ribosome biogenesis | D79: 203.1014319 | E79: 4.916765571 | F79: 0.7397271256 | G79: 2.63E-12 | H79: 8.28E-10 | I79: 203.1014319 | J79: 6.252824807 | K79: 0.8012829228 | L79: 1.51E-15 | M79: 1.09E-12 | N79: 203.1014319 | O79: 5.396066902 | P79: 0.549725402 | Q79: 1.72E-23 | R79: 2.10E-20 | S79: 203.1014319 | T79: 0.005692423463 | U79: 0.32097712 | V79: 0.9833594282 | W79: 0.9925385575 | X79: 203.1014319 | Y79: -0.3751105756 | Z79: 0.314640265 | AA79: 0.06218761485 | AB79: 0.2515588111 | AC79: 203.1014319 | AD79: -0.6979451147 | AE79: 0.3532791943 | AF79: 0.008473900028 | AG79: 0.05951893338
A80: Misin07G251500 | B80: hypothetical protein SORBI_010G145000 | C80: 0 | D80: 107.2680958 | E80: 5.725529035 | F80: 1.513475972 | G80: 1.51E-06 | H80: 5.85E-05 | I80: 107.2680958 | J80: 5.629929582 | K80: 0.720897157 | L80: 1.67E-15 | M80: 1.19E-12 | N80: 107.2680958 | O80: 3.33104009 | P80: 0.6661073694 | Q80: 1.10E-08 | R80: 1.23E-06 | S80: 107.2680958 | T80: -0.03079723481 | U80: 0.3689699178 | V80: 0.9180958461 | W80: 0.9562967829 | X80: 107.2680958 | Y80: -0.3015773224 | Z80: 0.3371750333 | AA80: 0.1352050502 | AB80: 0.3787466646 | AC80: 107.2680958 | AD80: -0.6754017964 | AE80: 0.4211728525 | AF80: 0.02012737791 | AG80: 0.105371417
A81: Misin05G384000 | B81: small nuclear ribonucleoprotein Sm D2; small nuclear ribonucleoprotein sm d2 | C81: P:spliceosomal snRNP assembly; C:U5 snRNP; C:U1 snRNP; C:U2 snRNP; C:viral nucleocapsid; P:ribosome biogenesis; C:U4/U6 x U5 tri-snRNP complex; C:precatalytic spliceosome; C:catalytic step 2 spliceosome | D81: 436.581994 | E81: 3.727551121 | F81: 0.4234756005 | G81: 5.49E-20 | H81: 1.40E-16 | I81: 436.581994 | J81: 2.335752788 | K81: 0.3233443508 | L81: 1.81E-15 | M81: 1.27E-12 | N81: 436.581994 | O81: 3.136196348 | P81: 0.3524338447 | Q81: 2.57E-20 | R81: 2.32E-17 | S81: 436.581994 | T81: -0.5671278568 | U81: 0.2741849187 | V81: 0.01906382574 | W81: 0.07911330885 | X81: 436.581994 | Y81: -0.4694697111 | Z81: 0.2755248629 | AA81: 0.0147916483 | AB81: 0.1139714374 | AC81: 436.581994 | AD81: -0.6240829888 | AE81: 0.2860756122 | AF81: 0.006563716834 | AG81: 0.04986131094
A82: Misin07G534600 | B82: ---NA--- | C82: 0 | D82: 703.1383609 | E82: 5.517543823 | F82: 0.866706787 | G82: 1.38E-11 | H82: 3.26E-09 | I82: 703.1383609 | J82: 5.177040076 | K82: 0.665236951 | L82: 2.06E-15 | M82: 1.43E-12 | N82: 703.1383609 | O82: 4.487581484 | P82: 0.6910219014 | Q82: 1.41E-11 | R82: 3.46E-09 | S82: 703.1383609 | T82: 0.3156944065 | U82: 0.4842200757 | V82: 0.3643250919 | W82: 0.5506863665 | X82: 703.1383609 | Y82: -0.2274140876 | Z82: 0.3953875256 | AA82: 0.2645283294 | AB82: 0.5358186611 | AC82: 703.1383609 | AD82: -0.8108782631 | AE82: 0.5767001593 | AF82: 0.01779411555 | AG82: 0.09748783538
A83: Misin02G032900 | B83: Putative polyprotein from transposon TNT; uncharacterized protein loc101757873 isoform x1 | C83: F:binding | D83: 2505.674092 | E83: 1.336071558 | F83: 0.2801053027 | G83: 2.95E-07 | H83: 1.52E-05 | I83: 2505.674092 | J83: 1.662675517 | K83: 0.2212257643 | L83: 2.59E-15 | M83: 1.78E-12 | N83: 2505.674092 | O83: 0.264363352 | P83: 0.2011123471 | Q83: 0.1024534621 | R83: 0.3258536023 | S83: 2505.674092 | T83: -1.093026383 | U83: 0.2177003926 | V83: 6.40E-08 | W83: 4.90E-06 | X83: 2505.674092 | Y83: -1.043640005 | Z83: 0.2315043532 | AA83: 1.64E-07 | AB83: 1.66E-05 | AC83: 2505.674092 | AD83: -1.245480599 | AE83: 0.2234213673 | AF83: 8.27E-10 | AG83: 1.09E-07
A84: Misin16G076400 | B84: protein KTI12 homolog; protein kti12 homolog | C84: P:tRNA wobble uridine modification; F:calmodulin binding; F:ATP binding; C:nucleus; C:cytoplasm; P:regulation of transcription by RNA polymerase II; P:meristem structural organization; P:root meristem growth; C:Elongator holoenzyme complex; P:leaf development; P:5-carbamoylmethyl uridine residue modification | D84: 329.6827059 | E84: 0.866898282 | F84: 0.2576172321 | G84: 0.0002887126109 | H84: 0.003603257157 | I84: 329.6827059 | J84: 1.617525258 | K84: 0.2151791221 | L84: 2.91E-15 | M84: 1.97E-12 | N84: 329.6827059 | O84: 1.159198139 | P84: 0.2102913746 | Q84: 1.69E-09 | R84: 2.49E-07 | S84: 329.6827059 | T84: -0.09024706902 | U84: 0.1894933599 | V84: 0.6125186687 | W84: 0.7589134017 | X84: 329.6827059 | Y84: 0.4464230452 | Z84: 0.2002676657 | AA84: 0.004951092371 | AB84: 0.05881130853 | AC84: 329.6827059 | AD84: 0.1272771359 | AE84: 0.182464981 | AF84: 0.4281505673 | AG84: 0.6693665755
A85: Misin17G108000 | B85: 40S ribosomal protein S7; 40s ribosomal protein s7 | C85: F:structural constituent of ribosome; P:rRNA processing; P:translation; C:cytosolic small ribosomal subunit; C:90S preribosome; C:small-subunit processome; P:ribosomal small subunit biogenesis | D85: 669.1486466 | E85: 8.577825704 | F85: 1.419437802 | G85: 1.44E-12 | H85: 5.08E-10 | I85: 669.1486466 | J85: 9.749050436 | K85: 1.3099437 | L85: 3.89E-15 | M85: 2.60E-12 | N85: 669.1486466 | O85: 7.028121693 | P85: 0.7778268234 | Q85: 8.81E-21 | R85: 8.24E-18 | S85: 669.1486466 | T85: -0.05410858954 | U85: 0.2715034293 | V85: 0.8222923906 | W85: 0.8996674329 | X85: 669.1486466 | Y85: -0.3261235233 | Z85: 0.2581394522 | AA85: 0.07290858287 | AB85: 0.2737572655 | AC85: 669.1486466 | AD85: -0.9714505351 | AE85: 0.3126333968 | AF85: 0.00014298293 | AG85: 0.002993354845
A86: Misin01G270300 | B86: ubiquitin carboxyl-terminal hydrolase 25-like isoform X3; ubiquitin carboxyl-terminal hydrolase 25-like isoform x3 | C86: P:ubiquitin-dependent protein catabolic process; C:integral component of membrane; P:protein deubiquitination; F:thiol-dependent ubiquitinyl hydrolase activity | D86: 302.5244492 | E86: 6.651735741 | F86: 1.392565633 | G86: 2.36E-08 | H86: 1.88E-06 | I86: 302.5244492 | J86: 7.915542392 | K86: 1.045529983 | L86: 4.46E-15 | M86: 2.94E-12 | N86: 302.5244492 | O86: 8.11965843 | P86: 1.358726395 | Q86: 4.90E-11 | R86: 1.04E-08 | S86: 302.5244492 | T86: -0.1996702354 | U86: 0.2910279469 | V86: 0.4316727109 | W86: 0.6114508327 | X86: 302.5244492 | Y86: -0.6310219799 | Z86: 0.3340953324 | AA86: 0.004492950895 | AB86: 0.05547934708 | AC86: 302.5244492 | AD86: -1.145256593 | AE86: 0.334958333 | AF86: 2.83E-05 | AG86: 0.0008288695001
A87: Misin01G316800 | B87: diacylglycerol kinase 1 | C87: F:diacylglycerol kinase activity; F:ATP binding; C:intracellular; P:protein kinase C-activating G protein-coupled receptor signaling pathway; P:phospholipid catabolic process; C:integral component of membrane; P:phosphorylation; P:intracellular signal transduction; P:glycerolipid metabolic process | D87: 217.4454078 | E87: 2.990561179 | F87: 0.9262961954 | G87: 8.92E-06 | H87: 0.0002416300657 | I87: 217.4454078 | J87: 5.313557706 | K87: 0.6916382284 | L87: 4.53E-15 | M87: 2.96E-12 | N87: 217.4454078 | O87: 2.741590156 | P87: 0.7130047259 | Q87: 5.95E-07 | R87: 3.66E-05 | S87: 217.4454078 | T87: -0.7033364096 | U87: 0.4901471161 | V87: 0.0502787656 | W87: 0.1504051266 | X87: 217.4454078 | Y87: -0.3693778745 | Z87: 0.4227228034 | AA87: 0.09797129969 | AB87: 0.3196615184 | AC87: 217.4454078 | AD87: -0.8514233093 | AE87: 0.532239219 | AF87: 0.01110502147 | AG87: 0.07143010599
A88: Misin11G119100 | B88: kelch domain-containing protein 4 | C88: P:biological_process | D88: 166.0948027 | E88: 2.997367289 | F88: 0.7207790178 | G88: 1.83E-07 | H88: 1.03E-05 | I88: 166.0948027 | J88: 4.037760023 | K88: 0.5386222391 | L88: 4.78E-15 | M88: 3.08E-12 | N88: 166.0948027 | O88: 4.882256091 | P88: 0.6149125133 | Q88: 4.34E-16 | R88: 2.56E-13 | S88: 166.0948027 | T88: -1.119672033 | U88: 0.4095541985 | V88: 0.0007502642192 | W88: 0.008508840564 | X88: 166.0948027 | Y88: -0.2974539651 | Z88: 0.3201274917 | AA88: 0.1329188931 | AB88: 0.3756390376 | AC88: 166.0948027 | AD88: -0.9238850445 | AE88: 0.4152597941 | AF88: 0.00220502576 | AG88: 0.02310272179
A89: Misin11G201400 | B89: F-box/LRR-repeat protein 3 | C89: F:ubiquitin-protein transferase activity; P:protein ubiquitination; C:SCF ubiquitin ligase complex; P:SCF-dependent proteasomal ubiquitin-dependent protein catabolic process | D89: 93.88228929 | E89: 1.366749887 | F89: 0.4614421911 | G89: 0.0004179216015 | H89: 0.004748915678 | I89: 93.88228929 | J89: 4.5318052 | K89: 0.5961591153 | L89: 5.39E-15 | M89: 3.43E-12 | N89: 93.88228929 | O89: 4.136760017 | P89: 0.5956449076 | Q89: 6.02E-13 | R89: 1.95E-10 | S89: 93.88228929 | T89: -1.314257983 | U89: 0.3199156237 | V89: 3.03E-06 | W89: 0.0001209640968 | X89: 93.88228929 | Y89: -0.6491762335 | Z89: 0.3304039849 | AA89: 0.003439571069 | AB89: 0.04644418045 | AC89: 93.88228929 | AD89: -1.026086439 | AE89: 0.3283106114 | AF89: 0.000113387804 | AG89: 0.002521552334
A90: Misin01G023600 | B90: ---NA--- | C90: 0 | D90: 203.3624566 | E90: 7.387544282 | F90: 1.880754502 | G90: 1.66E-07 | H90: 9.51E-06 | I90: 203.3624566 | J90: 7.757457344 | K90: 1.027864905 | L90: 5.79E-15 | M90: 3.65E-12 | N90: 203.3624566 | O90: 8.239485958 | P90: 1.425390476 | Q90: 1.42E-10 | R90: 2.72E-08 | S90: 203.3624566 | T90: -0.4611895108 | U90: 0.2539967059 | V90: 0.04280187093 | W90: 0.1354260386 | X90: 203.3624566 | Y90: -0.4801647698 | Z90: 0.2585063832 | AA90: 0.009944645828 | AB90: 0.09065604126 | AC90: 203.3624566 | AD90: -0.7505034211 | AE90: 0.2779915069 | AF90: 0.001048991853 | AG90: 0.01348486868
A91: Misin15G039600 | B91: dehydrodolichyl diphosphate synthase 6-like isoform X1; dehydrodolichyl diphosphate synthase 6-like isoform x1 | C91: F:transferase activity, transferring alkyl or aryl (other than methyl) groups | D91: 203.5859629 | E91: 7.12023631 | F91: 1.968191416 | G91: 5.29E-07 | H91: 2.49E-05 | I91: 203.5859629 | J91: 6.745440819 | K91: 0.8880655611 | L91: 6.33E-15 | M91: 3.95E-12 | N91: 203.5859629 | O91: 6.666296411 | P91: 0.8716458687 | Q91: 1.50E-15 | R91: 8.26E-13 | S91: 203.5859629 | T91: -0.1373302656 | U91: 0.4082088384 | V91: 0.665924259 | W91: 0.7972215935 | X91: 203.5859629 | Y91: -0.09712279579 | Z91: 0.3156460025 | AA91: 0.600435019 | AB91: 0.8055023224 | AC91: 203.5859629 | AD91: 0.06113115304 | AE91: 0.3615480911 | AF91: 0.8062880072 | AG91: 0.9223305397
A92: Misin05G330300 | B92: peptidyl-prolyl cis-trans isomerase FKBP42; peptidyl-prolyl cis-trans isomerase fkbp42 | C92: P:protein peptidyl-prolyl isomerization; F:peptidyl-prolyl cis-trans isomerase activity; F:calmodulin binding; F:FK506 binding; C:endoplasmic reticulum membrane; C:plasma membrane; C:integral component of membrane; P:cellulose biosynthetic process; P:leaf development; P:chaperone-mediated protein folding | D92: 170.9277649 | E92: 4.583729865 | F92: 0.7963350281 | G92: 4.35E-10 | H92: 6.63E-08 | I92: 170.9277649 | J92: 4.076335872 | K92: 0.5468361135 | L92: 7.11E-15 | M92: 4.38E-12 | N92: 170.9277649 | O92: 2.221687933 | P92: 0.6304605742 | Q92: 1.67E-06 | R92: 8.73E-05 | S92: 170.9277649 | T92: -0.2136898883 | U92: 0.3773113259 | V92: 0.4819340292 | W92: 0.6560491963 | X92: 170.9277649 | Y92: -0.8611991501 | Z92: 0.489773158 | AA92: 0.003174426877 | AB92: 0.04420498556 | AC92: 170.9277649 | AD92: -1.255422554 | AE92: 0.4858260086 | AF92: 0.0003182461211 | AG92: 0.005527666059
A93: Misin13G160400 | B93: Multiple organellar RNA editing factor 8, chloroplastic/mitochondrial | C93: F:protein binding; C:mitochondrion; P:cytidine to uridine editing; P:mitochondrial mRNA modification | D93: 160.9004671 | E93: 5.347147953 | F93: 1.113699322 | G93: 4.98E-08 | H93: 3.51E-06 | I93: 160.9004671 | J93: 6.125175252 | K93: 0.8104629519 | L93: 1.06E-14 | M93: 6.43E-12 | N93: 160.9004671 | O93: 4.210533851 | P93: 0.5092530798 | Q93: 2.92E-17 | R93: 2.13E-14 | S93: 160.9004671 | T93: -0.2560182456 | U93: 0.3506547501 | V93: 0.3772446464 | W93: 0.5626137989 | X93: 160.9004671 | Y93: -0.4130889623 | Z93: 0.3475115451 | AA93: 0.05151396502 | AB93: 0.2277701289 | AC93: 160.9004671 | AD93: -0.6082652761 | AE93: 0.3720347233 | AF93: 0.02387002035 | AG93: 0.1175063716
A94: Misin14G131500 | B94: nucleobase-ascorbate transporter 3 | C94: C:plasma membrane; C:plasmodesma; F:adenine transmembrane transporter activity; F:guanine transmembrane transporter activity; F:uracil transmembrane transporter activity; F:solute:cation symporter activity; C:integral component of membrane; P:hypoxanthine transport; P:cation transmembrane transport; P:adenine import across plasma membrane; P:guanine import across plasma membrane; P:uracil import across plasma membrane | D94: 154.9489049 | E94: 4.187876682 | F94: 0.6533305165 | G94: 6.79E-12 | H94: 1.81E-09 | I94: 154.9489049 | J94: 3.140174173 | K94: 0.4501667515 | L94: 1.23E-14 | M94: 7.42E-12 | N94: 154.9489049 | O94: 3.064079286 | P94: 0.4318581373 | Q94: 3.05E-14 | R94: 1.31E-11 | S94: 154.9489049 | T94: -0.5229937061 | U94: 0.2969792692 | V94: 0.04215819332 | W94: 0.1341264208 | X94: 154.9489049 | Y94: -0.5759947542 | Z94: 0.32139085 | AA94: 0.00717530319 | AB94: 0.07412773205 | AC94: 154.9489049 | AD94: -1.896331912 | AE94: 0.3303381408 | AF94: 1.04E-10 | AG94: 1.76E-08
A95: Misin02G180200 | B95: pyridoxal reductase, chloroplastic; pyridoxal chloroplastic | C95: F:alditol:NADP+ 1-oxidoreductase activity; P:fructose metabolic process; P:galactose metabolic process; P:mannose metabolic process; P:pyruvate metabolic process; C:plastid; P:glycerolipid metabolic process; P:oxidation-reduction process | D95: 448.2395142 | E95: 3.941808019 | F95: 0.7257451388 | G95: 1.14E-09 | H95: 1.50E-07 | I95: 448.2395142 | J95: 3.850629384 | K95: 0.5290626765 | L95: 1.38E-14 | M95: 8.23E-12 | N95: 448.2395142 | O95: 5.84074711 | P95: 0.5272625809 | Q95: 2.15E-29 | R95: 4.46E-26 | S95: 448.2395142 | T95: 0.8764360135 | U95: 0.4363808567 | V95: 0.009965914421 | W95: 0.05151436228 | X95: 448.2395142 | Y95: -0.3976123501 | Z95: 0.3722655837 | AA95: 0.06660375305 | AB95: 0.2606631574 | AC95: 448.2395142 | AD95: -0.5270822657 | AE95: 0.3919626292 | AF95: 0.05365215875 | AG95: 0.1973556322
A96: Misin07G114300 | B96: N-(5'-phosphoribosyl)anthranilate isomerase; n-(5 -phosphoribosyl)anthranilate isomerase | C96: P:tryptophan biosynthetic process; F:phosphoribosylanthranilate isomerase activity; P:tyrosine biosynthetic process; P:L-phenylalanine biosynthetic process; C:plastid | D96: 248.3221004 | E96: 3.399300913 | F96: 0.5426791433 | G96: 3.50E-12 | H96: 1.05E-09 | I96: 248.3221004 | J96: 2.884940235 | K96: 0.419857213 | L96: 1.51E-14 | M96: 8.91E-12 | N96: 248.3221004 | O96: 4.789974922 | P96: 0.4887686521 | Q96: 2.68E-23 | R96: 3.20E-20 | S96: 248.3221004 | T96: -0.1370321405 | U96: 0.3087106133 | V96: 0.6055645959 | W96: 0.7535777514 | X96: 248.3221004 | Y96: -0.2290427684 | Z96: 0.2703784074 | AA96: 0.2094528709 | AB96: 0.4761954529 | AC96: 248.3221004 | AD96: -0.2263087696 | AE96: 0.2930798584 | AF96: 0.3148339714 | AG96: 0.5641362073
A97: Misin06G114400 | B97: ---NA--- | C97: 0 | D97: 175.8474048 | E97: 5.183414459 | F97: 1.043727529 | G97: 2.49E-08 | H97: 1.98E-06 | I97: 175.8474048 | J97: 4.951707612 | K97: 0.6599744713 | L97: 1.59E-14 | M97: 9.26E-12 | N97: 175.8474048 | O97: 4.054457943 | P97: 0.5999326707 | Q97: 1.96E-12 | R97: 5.98E-10 | S97: 175.8474048 | T97: -0.1497398167 | U97: 0.4115411278 | V97: 0.639368213 | W97: 0.778091755 | X97: 175.8474048 | Y97: -0.287595509 | Z97: 0.3679323306 | AA97: 0.1633821012 | AB97: 0.4184226076 | AC97: 175.8474048 | AD97: -0.3788211215 | AE97: 0.404901179 | AF97: 0.1614861622 | AG97: 0.3829904552
A98: Misin19G058600 | B98: ---NA--- | C98: 0 | D98: 102.7343854 | E98: 6.116693289 | F98: 2.010359405 | G98: 5.87E-06 | H98: 0.0001735538352 | I98: 102.7343854 | J98: 5.690870188 | K98: 0.7590782991 | L98: 1.83E-14 | M98: 1.06E-11 | N98: 102.7343854 | O98: 6.999293113 | P98: 1.361879411 | Q98: 1.28E-08 | R98: 1.38E-06 | S98: 102.7343854 | T98: 0.4451229381 | U98: 0.270428486 | V98: 0.06301242732 | W98: 0.1742631589 | X98: 102.7343854 | Y98: -0.4713080737 | Z98: 0.2554778182 | AA98: 0.0107526537 | AB98: 0.09460993684 | AC98: 102.7343854 | AD98: -0.8708265367 | AE98: 0.2641791498 | AF98: 0.0001035144015 | AG98: 0.002346647215
A99: Misin01G223000 | B99: ---NA--- | C99: 0 | D99: 190.2685828 | E99: 4.132445247 | F99: 0.7718023276 | G99: 2.20E-09 | H99: 2.60E-07 | I99: 190.2685828 | J99: 4.063164635 | K99: 0.5582660836 | L99: 2.41E-14 | M99: 1.38E-11 | N99: 190.2685828 | O99: 4.281342797 | P99: 0.5843057835 | Q99: 4.47E-14 | R99: 1.83E-11 | S99: 190.2685828 | T99: -0.2955429091 | U99: 0.3872192989 | V99: 0.3388755287 | W99: 0.5258916158 | X99: 190.2685828 | Y99: -0.3611019497 | Z99: 0.3662376225 | AA99: 0.08917210881 | AB99: 0.3046102404 | AC99: 190.2685828 | AD99: -0.7802567383 | AE99: 0.4414553895 | AF99: 0.0101344876 | AG99: 0.06710658049
A100: Misin11G139100 | B100: caleosin 1 | C100: C:integral component of membrane | D100: 93.94835293 | E100: 0.05910761145 | F100: 1.207601363 | G100: 0.8747319812 | H100: 0.9365559325 | I100: 93.94835293 | J100: 22.9204175 | K100: 4.260651652 | L100: 2.50E-14 | M100: 1.41E-11 | N100: 93.94835293 | O100: 19.21647571 | P100: 4.32318473 | Q100: 4.11E-11 | R100: 8.86E-09 | S100: 93.94835293 | T100: -0.4104302483 | U100: 1.101252985 | V100: 0.2065830021 | W100: 0.3813941715 | X100: 93.94835293 | Y100: 0.211916828 | Z100: 0.8508702645 | AA100: 0.2442809782 | AB100: 0.5154070772 | AC100: 93.94835293 | AD100: 0.1751326119 | AE100: 0.8945438896 | AF100: 0.4681310047 | AG100: 0.7009966198
A101: Misin07G421400 | B101: elicitor-responsive protein 3 | C101: C:cytoplasm; P:defense response | D101: 345.7722433 | E101: 1.737769675 | F101: 0.4743012581 | G101: 1.37E-05 | H101: 0.0003399456629 | I101: 345.7722433 | J101: 2.936581009 | K101: 0.43208629 | L101: 2.77E-14 | M101: 1.53E-11 | N101: 345.7722433 | O101: 3.819881071 | P101: 0.3493862587 | Q101: 1.73E-28 | R101: 3.03E-25 | S101: 345.7722433 | T101: -0.6670935706 | U101: 0.3121308535 | V101: 0.0126513267 | W101: 0.06022643419 | X101: 345.7722433 | Y101: -0.3138930808 | Z101: 0.2727885218 | AA101: 0.09188910978 | AB101: 0.3096654328 | AC101: 345.7722433 | AD101: -0.4758897741 | AE101: 0.2933352444 | AF101: 0.03798484079 | AG101: 0.1582866332
A102: Misin03G248900 | B102: PREDICTED: uncharacterized protein LOC100276212; uncharacterized protein loc4343194 | C102: C:integral component of membrane | D102: 111.8376629 | E102: 1.000227204 | F102: 0.3500561504 | G102: 0.00126343387 | H102: 0.01104211106 | I102: 111.8376629 | J102: 2.496829682 | K102: 0.3673784769 | L102: 2.76E-14 | M102: 1.53E-11 | N102: 111.8376629 | O102: 1.659049939 | P102: 0.325076156 | Q102: 2.95E-09 | R102: 4.02E-07 | S102: 111.8376629 | T102: -0.3554593972 | U102: 0.2452483798 | V102: 0.1085725488 | W102: 0.2496863478 | X102: 111.8376629 | Y102: -0.9005035065 | Z102: 0.28493622 | AA102: 4.02E-05 | AB102: 0.001766350009 | AC102: 111.8376629 | AD102: -0.6931746734 | AE102: 0.2592601522 | AF102: 0.00135968993 | AG102: 0.01627709919
A103: Misin08G275300 | B103: predicted protein; general transcription factor 3c polypeptide 2 | C103: F:DNA binding; P:regulation of transcription, DNA-templated | D103: 123.3217423 | E103: 4.846441945 | F103: 0.7721235111 | G103: 2.59E-11 | H103: 5.73E-09 | I103: 123.3217423 | J103: 3.224073733 | K103: 0.4684163216 | L103: 2.98E-14 | M103: 1.64E-11 | N103: 123.3217423 | O103: 4.23673368 | P103: 0.5778315984 | Q103: 4.22E-14 | R103: 1.74E-11 | S103: 123.3217423 | T103: -0.5226233844 | U103: 0.3249208852 | V103: 0.05753351046 | W103: 0.1642534835 | X103: 123.3217423 | Y103: -0.387723699 | Z103: 0.3067641416 | AA103: 0.05204803782 | AB103: 0.2288903105 | AC103: 123.3217423 | AD103: -0.3864436314 | AE103: 0.316708994 | AF103: 0.1051853887 | AG103: 0.296195337
A104: Misin04G383300 | B104: F-box protein SKIP5; f-box protein skip5 | C104: F:ubiquitin-protein transferase activity; C:nucleus; P:ubiquitin-dependent protein catabolic process; P:multicellular organism development; F:zinc ion binding; P:protein ubiquitination; F:ligase activity | D104: 111.6601298 | E104: 5.496913476 | F104: 1.521433549 | G104: 2.74E-06 | H104: 9.52E-05 | I104: 111.6601298 | J104: 4.828116639 | K104: 0.6523508972 | L104: 3.11E-14 | M104: 1.67E-11 | N104: 111.6601298 | O104: 4.977403908 | P104: 0.6717001316 | Q104: 2.53E-14 | R104: 1.12E-11 | S104: 111.6601298 | T104: -0.3955138693 | U104: 0.3533344039 | V104: 0.1749955355 | W104: 0.3420486396 | X104: 111.6601298 | Y104: -0.4579710262 | Z104: 0.3585888714 | AA104: 0.03582548452 | AB104: 0.1873830031 | AC104: 111.6601298 | AD104: -0.4373607961 | AE104: 0.3492406105 | AF104: 0.08474946091 | AG104: 0.2603337449
A105: Misin04G010300 | B105: predicted protein; jasmonate induced protein | C105: C:integral component of membrane | D105: 346.009671 | E105: -0.6125830802 | F105: 0.7310964164 | G105: 0.1962169437 | H105: 0.3814253451 | I105: 346.009671 | J105: -5.82314947 | K105: 0.7842693259 | L105: 3.09E-14 | M105: 1.67E-11 | N105: 346.009671 | O105: -4.650907921 | P105: 1.470701597 | Q105: 1.66E-05 | R105: 0.0005813995198 | S105: 346.009671 | T105: 4.64510115 | U105: 0.8735789703 | V105: 8.65E-10 | W105: 1.15E-07 | X105: 346.009671 | Y105: 3.697170871 | Z105: 2.384953761 | AA105: 0.0003189844998 | AB105: 0.009098361936 | AC105: 346.009671 | AD105: 0.04231251926 | AE105: 0.6876291166 | AF105: 0.8632712002 | AG105: 0.9505374667
A106: Misin04G316300 | B106: F-box domain containing protein; f-box domain containing protein | C106: P:cellular protein metabolic process | D106: 107.8646402 | E106: 2.663942713 | F106: 0.5869205276 | G106: 3.21E-08 | H106: 2.45E-06 | I106: 107.8646402 | J106: 3.425122578 | K106: 0.494342512 | L106: 4.07E-14 | M106: 2.16E-11 | N106: 107.8646402 | O106: 1.255745564 | P106: 0.3866517229 | Q106: 3.05E-05 | R106: 0.0009458392286 | S106: 107.8646402 | T106: -0.9664404585 | U106: 0.3223006176 | V106: 0.0004821973176 | W106: 0.006160685981 | X106: 107.8646402 | Y106: -0.7901239157 | Z106: 0.3593694119 | AA106: 0.001148941855 | AB106: 0.02252716668 | AC106: 107.8646402 | AD106: -0.624913328 | AE106: 0.3198181496 | AF106: 0.01136516878 | AG106: 0.07263166486
A107: Misin01G374700 | B107: ---NA--- | C107: 0 | D107: 129.9854359 | E107: 4.928465862 | F107: 1.62509262 | G107: 1.55E-05 | H107: 0.0003726319835 | I107: 129.9854359 | J107: 5.398073575 | K107: 0.7320377668 | L107: 4.62E-14 | M107: 2.44E-11 | N107: 129.9854359 | O107: 5.937017475 | P107: 0.9106687266 | Q107: 8.44E-12 | R107: 2.22E-09 | S107: 129.9854359 | T107: -1.287014257 | U107: 0.4255426114 | V107: 0.000196765178 | W107: 0.003204770456 | X107: 129.9854359 | Y107: -1.067607908 | Z107: 0.4732100318 | AA107: 0.0005938331121 | AB107: 0.01424508038 | AC107: 129.9854359 | AD107: -0.6404756379 | AE107: 0.3924728655 | AF107: 0.0215006888 | AG107: 0.1098739072
A108: Misin16G092400 | B108: protein PEROXIN-4 isoform X1; protein peroxin-4 isoform x1 | C108: F:ATP binding; C:cytoplasm; P:fatty acid beta-oxidation; P:protein import into peroxisome matrix; P:protein ubiquitination; F:ubiquitin protein ligase binding; F:ubiquitin protein ligase activity | D108: 156.189326 | E108: 4.199958812 | F108: 0.9115177634 | G108: 7.33E-08 | H108: 4.81E-06 | I108: 156.189326 | J108: 5.192695641 | K108: 0.7053896504 | L108: 4.91E-14 | M108: 2.56E-11 | N108: 156.189326 | O108: 5.297347536 | P108: 0.7367977416 | Q108: 1.14E-13 | R108: 4.42E-11 | S108: 156.189326 | T108: 0.09124018977 | U108: 0.4179475925 | V108: 0.7769454039 | W108: 0.8717658182 | X108: 156.189326 | Y108: -0.4505387914 | Z108: 0.437072018 | AA108: 0.05489009192 | AB108: 0.2351723001 | AC108: 156.189326 | AD108: -0.3191090572 | AE108: 0.4010540895 | AF108: 0.231808018 | AG108: 0.4744385567
A109: Misin15G059700 | B109: proteasome assembly chaperone 4 | C109: F:O-methyltransferase activity; F:S-adenosylmethionine-dependent methyltransferase activity; P:aromatic compound biosynthetic process; P:methylation; P:proteasome assembly; F:protein dimerization activity | D109: 203.1330751 | E109: 3.072999777 | F109: 0.6302077516 | G109: 5.74E-09 | H109: 5.70E-07 | I109: 203.1330751 | J109: 3.327304839 | K109: 0.4856582539 | L109: 5.07E-14 | M109: 2.60E-11 | N109: 203.1330751 | O109: 3.392243202 | P109: 0.4702153863 | Q109: 3.16E-14 | R109: 1.33E-11 | S109: 203.1330751 | T109: -0.09520021137 | U109: 0.3380802155 | V109: 0.7364758952 | W109: 0.8453013294 | X109: 203.1330751 | Y109: -0.3335787209 | Z109: 0.3198112753 | AA109: 0.0954790136 | AB109: 0.3156941441 | AC109: 203.1330751 | AD109: -0.4801212739 | AE109: 0.351759495 | AF109: 0.0608768871 | AG109: 0.2129665802
A110: Misin12G093000 | B110: 26S proteasome non-ATPase regulatory subunit 11 homolog; 26s proteasome non-atpase regulatory subunit 11 homolog | C110: C:proteasome complex; C:mitochondrion; C:cytosol; C:plasmodesma | D110: 252.6133496 | E110: 7.479587846 | F110: 1.889795121 | G110: 1.33E-07 | H110: 7.90E-06 | I110: 252.6133496 | J110: 7.5978591 | K110: 1.045227822 | L110: 5.07E-14 | M110: 2.60E-11 | N110: 252.6133496 | O110: 8.150801811 | P110: 1.361963691 | Q110: 4.52E-11 | R110: 9.64E-09 | S110: 252.6133496 | T110: -0.005936442478 | U110: 0.2877118729 | V110: 0.9811994161 | W110: 0.9913342904 | X110: 252.6133496 | Y110: -0.5332489731 | Z110: 0.3163183545 | AA110: 0.01114873253 | AB110: 0.09677115339 | AC110: 252.6133496 | AD110: -0.4081158835 | AE110: 0.2921588335 | AF110: 0.07254491945 | AG110: 0.2370336037
A111: Misin05G211400 | B111: serine/Arginine-related protein 53 | C111: P:alternative mRNA splicing, via spliceosome; C:nucleus; C:cytoplasm | D111: 248.5519992 | E111: 5.029389906 | F111: 0.7726801143 | G111: 6.38E-12 | H111: 1.72E-09 | I111: 248.5519992 | J111: 6.488367621 | K111: 0.8896745351 | L111: 6.84E-14 | M111: 3.47E-11 | N111: 248.5519992 | O111: 6.583330082 | P111: 0.8870986508 | Q111: 9.10E-15 | R111: 4.36E-12 | S111: 248.5519992 | T111: -1.972846168 | U111: 0.3647173735 | V111: 1.12E-09 | W111: 1.44E-07 | X111: 248.5519992 | Y111: -1.325678872 | Z111: 0.3855558951 | AA111: 1.42E-05 | AB111: 0.0007452684542 | AC111: 248.5519992 | AD111: -1.318876002 | AE111: 0.3751367628 | AF111: 1.25E-05 | AG111: 0.0004253809059
A112: MisinT194400 | B112: transcription factor bHLH139-like; transcription factor bhlh139-like | C112: C:nucleus | D112: 89.62027658 | E112: 4.273475996 | F112: 0.896664576 | G112: 3.97E-08 | H112: 2.92E-06 | I112: 89.62027658 | J112: 4.499427201 | K112: 0.6228515811 | L112: 7.87E-14 | M112: 3.96E-11 | N112: 89.62027658 | O112: 6.497091587 | P112: 1.405995523 | Q112: 1.79E-07 | R112: 1.33E-05 | S112: 89.62027658 | T112: -0.05579877156 | U112: 0.3751299942 | V112: 0.8536943319 | W112: 0.9192783857 | X112: 89.62027658 | Y112: 0.02139209843 | Z112: 0.2888550706 | AA112: 0.9054449999 | AB112: 0.9642768591 | AC112: 89.62027658 | AD112: -0.2104799447 | AE112: 0.3501375033 | AF112: 0.3961119287 | AG112: 0.6415643951
A113: Misin07G106900 | B113: disease resistance protein RPM1; disease resistance protein rpm1 | C113: F:identical protein binding | D113: 810.8465982 | E113: 2.422680408 | F113: 0.6024350505 | G113: 5.21E-07 | H113: 2.46E-05 | I113: 810.8465982 | J113: 3.230486352 | K113: 0.4795696363 | L113: 8.30E-14 | M113: 4.14E-11 | N113: 810.8465982 | O113: 6.046244146 | P113: 0.4496384825 | Q113: 3.56E-42 | R113: 2.85E-38 | S113: 810.8465982 | T113: 0.1517822498 | U113: 0.3397976291 | V113: 0.5928507102 | W113: 0.7437835709 | X113: 810.8465982 | Y113: -0.9624526404 | Z113: 0.4404963137 | AA113: 0.000845629419 | AB113: 0.01811154956 | AC113: 810.8465982 | AD113: -1.085857355 | AE113: 0.4004554782 | AF113: 0.0003511892031 | AG113: 0.005952386357
A114: Misin05G114500 | B114: GTP-binding protein SAR1A; gtp-binding protein sar1a | C114: F:transporter activity; F:GTP binding; C:endoplasmic reticulum; C:Golgi apparatus; P:intracellular protein transport; P:endoplasmic reticulum to Golgi vesicle-mediated transport; P:small GTPase mediated signal transduction | D114: 243.6784878 | E114: 2.045329828 | F114: 0.6818002494 | G114: 6.50E-05 | H114: 0.00114715724 | I114: 243.6784878 | J114: 4.03866583 | K114: 0.5707025755 | L114: 9.16E-14 | M114: 4.52E-11 | N114: 243.6784878 | O114: 3.563185553 | P114: 0.5362149674 | Q114: 2.06E-12 | R114: 6.20E-10 | S114: 243.6784878 | T114: -0.6268373839 | U114: 0.4160024499 | V114: 0.05428211002 | W114: 0.158234068 | X114: 243.6784878 | Y114: -0.7213963918 | Z114: 0.477456293 | AA114: 0.008222044957 | AB114: 0.08063384478 | AC114: 243.6784878 | AD114: -1.131639686 | AE114: 0.4807469332 | AF114: 0.00084260491 | AG114: 0.01151779098
A115: MisinT464400 | B115: hypothetical protein SORBIDRAFT_07g022690 | C115: P:gamete generation; P:cellular process involved in reproduction in multicellular organism; P:meiotic nuclear division | D115: 532.1173551 | E115: 4.64243525 | F115: 0.9691110143 | G115: 4.62E-08 | H115: 3.32E-06 | I115: 532.1173551 | J115: 5.178789964 | K115: 0.7127451725 | L115: 9.76E-14 | M115: 4.78E-11 | N115: 532.1173551 | O115: 5.137199287 | P115: 0.7017400657 | Q115: 4.67E-14 | R115: 1.88E-11 | S115: 532.1173551 | T115: -1.612722501 | U115: 0.6473070513 | V115: 0.0004128567351 | W115: 0.005500375404 | X115: 532.1173551 | Y115: -0.7459668487 | Z115: 0.6121006929 | AA115: 0.01353484248 | AB115: 0.1082908696 | AC115: 532.1173551 | AD115: -0.7206160547 | AE115: 0.5543073809 | AF115: 0.02868912636 | AG115: 0.1325285933
A116: Misin04G300700 | B116: reactive Intermediate Deaminase A, chloroplastic; reactive intermediate deaminase chloroplastic | C116: C:mitochondrion; C:vacuole; P:gluconeogenesis; P:glycolytic process; C:thylakoid; P:response to salt stress; C:chloroplast envelope; C:integral component of membrane; P:glucosinolate biosynthetic process | D116: 85.15495572 | E116: 5.456815295 | F116: 1.136287227 | G116: 4.85E-08 | H116: 3.43E-06 | I116: 85.15495572 | J116: 6.053211895 | K116: 0.8340313058 | L116: 1.01E-13 | M116: 4.90E-11 | N116: 85.15495572 | O116: 7.091781342 | P116: 1.464197061 | Q116: 4.89E-08 | R116: 4.43E-06 | S116: 85.15495572 | T116: 0.2208509595 | U116: 0.3805617358 | V116: 0.4697502461 | W116: 0.645813821 | X116: 85.15495572 | Y116: -0.01727966958 | Z116: 0.2882494123 | AA116: 0.9235105063 | AB116: 0.9717990775 | AC116: 85.15495572 | AD116: -0.4230079534 | AE116: 0.3879543808 | AF116: 0.1135304945 | AG116: 0.3099677628
A117: Misin01G411600 | B117: hypothetical protein OsI_09542 | C117: 0 | D117: 182.9735927 | E117: 4.071621766 | F117: 0.7844249391 | G117: 4.55E-09 | H117: 4.72E-07 | I117: 182.9735927 | J117: 3.967478177 | K117: 0.5647493503 | L117: 1.09E-13 | M117: 5.23E-11 | N117: 182.9735927 | O117: 8.976379571 | P117: 1.475057122 | Q117: 1.16E-11 | R117: 2.95E-09 | S117: 182.9735927 | T117: -0.4358881864 | U117: 0.3922319307 | V117: 0.1626818779 | W117: 0.3263340136 | X117: 182.9735927 | Y117: -0.3301656382 | Z117: 0.3519453226 | AA117: 0.110760851 | AB117: 0.3410759266 | AC117: 182.9735927 | AD117: -0.4721232276 | AE117: 0.3868420877 | AF117: 0.07921700387 | AG117: 0.2497546609
A118: MisinT527600 | B118: probable mediator of RNA polymerase II transcription subunit 37e; probable mediator of rna polymerase ii transcription subunit 37e | C118: F:nucleotide binding | D118: 77.92605781 | E118: 2.489911512 | F118: 0.6971203978 | G118: 3.24E-06 | H118: 0.0001088162245 | I118: 77.92605781 | J118: 3.927670469 | K118: 0.5612313242 | L118: 1.17E-13 | M118: 5.60E-11 | N118: 77.92605781 | O118: 3.686103348 | P118: 0.9268081347 | Q118: 1.09E-06 | R118: 6.07E-05 | S118: 77.92605781 | T118: -0.08962740097 | U118: 0.3532657932 | V118: 0.758322019 | W118: 0.8596846098 | X118: 77.92605781 | Y118: -0.2818532089 | Z118: 0.3160576409 | AA118: 0.1505985958 | AB118: 0.4013215453 | AC118: 77.92605781 | AD118: -0.7644445013 | AE118: 0.4254879573 | AF118: 0.01005828746 | AG118: 0.06675965116
A119: Misin02G206300 | B119: ---NA--- | C119: 0 | D119: 221.6945155 | E119: 3.108456838 | F119: 0.6272974056 | G119: 3.92E-09 | H119: 4.14E-07 | I119: 221.6945155 | J119: 3.034101104 | K119: 0.4592580821 | L119: 1.23E-13 | M119: 5.80E-11 | N119: 221.6945155 | O119: 5.013973905 | P119: 0.5464522127 | Q119: 9.72E-21 | R119: 8.94E-18 | S119: 221.6945155 | T119: -0.2119209199 | U119: 0.3345196557 | V119: 0.4504655878 | W119: 0.6287297263 | X119: 221.6945155 | Y119: -0.4097371106 | Z119: 0.3331585676 | AA119: 0.04906364409 | AB119: 0.2217420939 | AC119: 221.6945155 | AD119: -0.5061655363 | AE119: 0.3472910264 | AF119: 0.04732097136 | AG119: 0.1821423841
A120: Misin07G524600 | B120: Ubiquitin carboxyl-terminal hydrolase 23; ubiquitin carboxyl-terminal hydrolase 23 | C120: P:proteolysis; F:peptidase activity; P:cellular protein metabolic process | D120: 329.8627036 | E120: 7.383896679 | F120: 1.944061791 | G120: 2.34E-07 | H120: 1.27E-05 | I120: 329.8627036 | J120: 7.888422396 | K120: 1.112011472 | L120: 1.57E-13 | M120: 7.36E-11 | N120: 329.8627036 | O120: 7.751412752 | P120: 1.403296174 | Q120: 9.37E-10 | R120: 1.46E-07 | S120: 329.8627036 | T120: -0.5073050286 | U120: 0.4210158346 | V120: 0.1202873857 | W120: 0.267125019 | X120: 329.8627036 | Y120: -0.7540286247 | Z120: 0.5053285704 | AA120: 0.007786569013 | AB120: 0.07797632375 | AC120: 329.8627036 | AD120: -1.154847925 | AE120: 0.5104476798 | AF120: 0.001001926683 | AG120: 0.01304085821
A121: Misin04G056500 | B121: ---NA--- | C121: 0 | D121: 510.527868 | E121: 7.421562719 | F121: 2.005903857 | G121: 2.79E-07 | H121: 1.45E-05 | I121: 510.527868 | J121: 10.21533172 | K121: 1.489537085 | L121: 1.82E-13 | M121: 8.47E-11 | N121: 510.527868 | O121: 8.535623352 | P121: 1.205083235 | Q121: 2.15E-14 | R121: 9.72E-12 | S121: 510.527868 | T121: 0.1113464087 | U121: 0.4743894658 | V121: 0.7449425231 | W121: 0.8514590115 | X121: 510.527868 | Y121: -0.3489951492 | Z121: 0.4521222318 | AA121: 0.1200712013 | AB121: 0.3552855312 | AC121: 510.527868 | AD121: -0.3620242488 | AE121: 0.4635135171 | AF121: 0.2008815219 | AG121: 0.43540115
A122: Misin02G257500 | B122: ---NA--- | C122: 0 | D122: 201.3054605 | E122: 1.636391108 | F122: 0.5342067835 | G122: 0.0001520362877 | H122: 0.002215444991 | I122: 201.3054605 | J122: 3.109059968 | K122: 0.473774825 | L122: 1.95E-13 | M122: 8.98E-11 | N122: 201.3054605 | O122: 2.686780076 | P122: 0.4436911761 | Q122: 8.75E-12 | R122: 2.28E-09 | S122: 201.3054605 | T122: 0.3495036953 | U122: 0.3464855954 | V122: 0.2244278781 | W122: 0.4024403742 | X122: 201.3054605 | Y122: -0.2978748512 | Z122: 0.3029217166 | AA122: 0.1244904485 | AB122: 0.3624554498 | AC122: 201.3054605 | AD122: -0.4196520354 | AE122: 0.3331988676 | AF122: 0.08876183717 | AG122: 0.2672289247
A123: Misin01G397400 | B123: glycine-rich RNA-binding protein 6, mitochondrial; glycine-rich rna-binding protein mitochondrial | C123: F:nucleotide binding; F:nucleic acid binding; C:plastid | D123: 101.6142085 | E123: 5.201269573 | F123: 0.9103601864 | G123: 6.58E-10 | H123: 9.55E-08 | I123: 101.6142085 | J123: 5.622255023 | K123: 0.7888405785 | L123: 2.76E-13 | M123: 1.26E-10 | N123: 101.6142085 | O123: 4.913767319 | P123: 0.7842277418 | Q123: 6.20E-11 | R123: 1.29E-08 | S123: 101.6142085 | T123: -0.3669258984 | U123: 0.3076657521 | V123: 0.1652146811 | W123: 0.3296296841 | X123: 101.6142085 | Y123: -0.4274978635 | Z123: 0.3085635617 | AA123: 0.03442419274 | AB123: 0.1834680457 | AC123: 101.6142085 | AD123: -1.204480925 | AE123: 0.3623679565 | AF123: 3.38E-05 | AG123: 0.0009582913407
A124: Misin12G170100 | B124: replication factor A protein 1-like | C124: C:membrane; C:integral component of membrane | D124: 519.765516 | E124: 7.531814205 | F124: 2.010776169 | G124: 2.11E-07 | H124: 1.16E-05 | I124: 519.765516 | J124: 10.17408968 | K124: 1.496923088 | L124: 2.87E-13 | M124: 1.30E-10 | N124: 519.765516 | O124: 10.15982691 | P124: 1.56577122 | Q124: 2.70E-13 | R124: 9.40E-11 | S124: 519.765516 | T124: -0.389638816 | U124: 0.5072140653 | V124: 0.274460969 | W124: 0.4583382541 | X124: 519.765516 | Y124: -0.2849036965 | Z124: 0.4313235831 | AA124: 0.1831109643 | AB124: 0.4436484562 | AC124: 519.765516 | AD124: -0.3395839647 | AE124: 0.4673401494 | AF124: 0.2287310602 | AG124: 0.4705763366
A125: Misin16G198200 | B125: predicted protein; uncharacterized protein loc100191662 | C125: C:plastid | D125: 902.4613841 | E125: 0.5441898339 | F125: 0.2409531598 | G125: 0.01562291991 | H125: 0.06788469596 | I125: 902.4613841 | J125: 1.353409342 | K125: 0.1959671048 | L125: 3.35E-13 | M125: 1.51E-10 | N125: 902.4613841 | O125: 0.7798004338 | P125: 0.1839799159 | Q125: 2.15E-06 | R125: 0.0001078224775 | S125: 902.4613841 | T125: -0.01931958551 | U125: 0.1834678918 | V125: 0.9111704816 | W125: 0.9522312533 | X125: 902.4613841 | Y125: 0.7926824046 | Z125: 0.2100460937 | AA125: 4.35E-06 | AB125: 0.0002693249159 | AC125: 902.4613841 | AD125: 0.5614300195 | AE125: 0.1802592126 | AF125: 0.0004942720483 | AG125: 0.007778998802
A126: Misin15G193500 | B126: ---NA--- | C126: 0 | D126: 91.75749617 | E126: 4.555218655 | F126: 0.9190404344 | G126: 2.14E-08 | H126: 1.74E-06 | I126: 91.75749617 | J126: 5.01365238 | K126: 0.7081888065 | L126: 3.40E-13 | M126: 1.52E-10 | N126: 91.75749617 | O126: 5.314150928 | P126: 0.8265359649 | Q126: 2.05E-11 | R126: 4.78E-09 | S126: 91.75749617 | T126: 0.428179069 | U126: 0.3856704966 | V126: 0.1656915854 | W126: 0.3302206554 | X126: 91.75749617 | Y126: -0.3580614592 | Z126: 0.3489470609 | AA126: 0.08595241395 | AB126: 0.2987365044 | AC126: 91.75749617 | AD126: -0.409939823 | AE126: 0.366861537 | AF126: 0.1142132415 | AG126: 0.3111351102
A127: Misin04G053800 | B127: Disease resistance protein RPM1 | C127: F:ADP binding | D127: 103.2664067 | E127: -3.55765688 | F127: 1.328074487 | G127: 5.48E-05 | H127: 0.001005050627 | I127: 103.2664067 | J127: -6.353583505 | K127: 0.902150071 | L127: 4.37E-13 | M127: 1.93E-10 | N127: 103.2664067 | O127: -4.487185263 | P127: 0.9233036981 | Q127: 8.03E-08 | R127: 6.72E-06 | S127: 103.2664067 | T127: 0.3910640955 | U127: 0.648854972 | V127: 0.3026754174 | W127: 0.4885478318 | X127: 103.2664067 | Y127: 0.07457800433 | Z127: 0.4671955099 | AA127: 0.6903842972 | AB127: 0.8584973034 | AC127: 103.2664067 | AD127: 0.8038096974 | AE127: 0.9018997901 | AF127: 0.03331492497 | AG127: 0.1458260085
A128: Misin16G009900 | B128: general transcription factor IIH subunit 5; general transcription factor iih subunit 5 | C128: C:transcription factor TFIIH core complex; P:nucleotide-excision repair; P:regulation of transcription, DNA-templated | D128: 260.7043393 | E128: 5.198040742 | F128: 0.6109171782 | G128: 2.07E-18 | H128: 3.57E-15 | I128: 260.7043393 | J128: 9.505159913 | K128: 1.396952789 | L128: 4.56E-13 | M128: 2.00E-10 | N128: 260.7043393 | O128: 6.870226794 | P128: 0.8726778877 | Q128: 2.17E-16 | R128: 1.31E-13 | S128: 260.7043393 | T128: -0.3269775842 | U128: 0.2831786082 | V128: 0.1881375726 | W128: 0.3584759595 | X128: 260.7043393 | Y128: -0.4217425363 | Z128: 0.2826899796 | AA128: 0.02923693049 | AB128: 0.1675838255 | AC128: 260.7043393 | AD128: -0.7748165971 | AE128: 0.3106602148 | AF128: 0.001752688843 | AG128: 0.01957768447
A129: MisinT499100 | B129: hypothetical protein SORBIDRAFT_03g008343, partial | C129: 0 | D129: 235.6079668 | E129: 6.444098177 | F129: 1.381224424 | G129: 4.59E-08 | H129: 3.31E-06 | I129: 235.6079668 | J129: 9.449847852 | K129: 1.388943449 | L129: 4.76E-13 | M129: 2.07E-10 | N129: 235.6079668 | O129: 7.5879577 | P129: 1.342822106 | Q129: 5.24E-10 | R129: 8.68E-08 | S129: 235.6079668 | T129: -0.8897173738 | U129: 0.2635632932 | V129: 0.0001586397693 | W129: 0.002725511775 | X129: 235.6079668 | Y129: -0.7004336473 | Z129: 0.283398511 | AA129: 0.0006660358852 | AB129: 0.01534489386 | AC129: 235.6079668 | AD129: -0.8578258041 | AE129: 0.2710726191 | AF129: 0.0001699081417 | AG129: 0.003423307444
A130: MisinT113100 | B130: kinesin-like protein KIN-5A; kinesin-like protein kin-5a | C130: F:ATP binding; C:kinesin complex; C:microtubule; P:microtubule-based movement; F:microtubule binding; F:ATP-dependent microtubule motor activity, plus-end-directed; C:tubulin complex | D130: 240.9526447 | E130: 7.740916135 | F130: 1.910655941 | G130: 6.72E-08 | H130: 4.53E-06 | I130: 240.9526447 | J130: 9.622243476 | K130: 1.420053823 | L130: 5.09E-13 | M130: 2.20E-10 | N130: 240.9526447 | O130: 6.636450893 | P130: 1.471053427 | Q130: 2.56E-07 | R130: 1.77E-05 | S130: 240.9526447 | T130: -0.6220627719 | U130: 0.378903725 | V130: 0.04255798757 | W130: 0.1349035301 | X130: 240.9526447 | Y130: -0.5434596058 | Z130: 0.3944128866 | AA130: 0.02037664734 | AB130: 0.13700207 | AC130: 240.9526447 | AD130: 0.1425833799 | AE130: 0.3504995723 | AF130: 0.5636436829 | AG130: 0.7738014699
A131: Misin02G231100 | B131: F-box/LRR-repeat protein 3 | C131: F:ubiquitin-protein transferase activity; P:protein ubiquitination; C:SCF ubiquitin ligase complex; P:SCF-dependent proteasomal ubiquitin-dependent protein catabolic process | D131: 166.7618903 | E131: 1.383440551 | F131: 0.5003683515 | G131: 0.0007331784773 | H131: 0.007312127782 | I131: 166.7618903 | J131: 2.968805595 | K131: 0.4660250286 | L131: 5.27E-13 | M131: 2.26E-10 | N131: 166.7618903 | O131: 3.013588359 | P131: 0.4730596728 | Q131: 3.08E-12 | R131: 8.87E-10 | S131: 166.7618903 | T131: -0.1018965634 | U131: 0.3286232524 | V131: 0.713407487 | W131: 0.8292908465 | X131: 166.7618903 | Y131: -0.3005251917 | Z131: 0.3009719768 | AA131: 0.1204981296 | AB131: 0.356076726 | AC131: 166.7618903 | AD131: -0.5973136451 | AE131: 0.3556609732 | AF131: 0.02265866434 | AG131: 0.1136072939
A132: Misin13G166900 | B132: serine/threonine-protein kinase RIO1; serine threonine-protein kinase rio1 | C132: F:protein serine/threonine kinase activity; F:ATP binding; C:mitochondrion; P:protein phosphorylation; P:serine family amino acid metabolic process; C:integral component of membrane | D132: 405.3061575 | E132: 1.431436975 | F132: 0.3922475865 | G132: 3.26E-05 | H132: 0.000673043824 | I132: 405.3061575 | J132: 2.140069418 | K132: 0.3289054063 | L132: 5.88E-13 | M132: 2.50E-10 | N132: 405.3061575 | O132: 1.482633071 | P132: 0.3336558434 | Q132: 1.39E-07 | R132: 1.07E-05 | S132: 405.3061575 | T132: -0.8231197887 | U132: 0.2919588947 | V132: 0.001251043081 | W132: 0.01216278327 | X132: 405.3061575 | Y132: -0.6694775022 | Z132: 0.3158533347 | AA132: 0.00209628892 | AB132: 0.03368020764 | AC132: 405.3061575 | AD132: -0.964886589 | AE132: 0.3069484152 | AF132: 0.0001293425877 | AG132: 0.002782577304
A133: Misin04G368000 | B133: mitochondrial ATP synthase 6 kDa subunit; mitochondrial atp synthase 6 kda subunit | C133: C:mitochondrion; C:plastid; C:integral component of membrane; F:hydrolase activity | D133: 146.1496818 | E133: 4.128553708 | F133: 0.8151213584 | G133: 8.89E-09 | H133: 8.34E-07 | I133: 146.1496818 | J133: 4.366896815 | K133: 0.6342180591 | L133: 6.41E-13 | M133: 2.70E-10 | N133: 146.1496818 | O133: 4.285063399 | P133: 0.6905586321 | Q133: 7.52E-11 | R133: 1.54E-08 | S133: 146.1496818 | T133: 0.2872095094 | U133: 0.4244511727 | V133: 0.3780609198 | W133: 0.563394029 | X133: 146.1496818 | Y133: -0.1385955893 | Z133: 0.3276966683 | AA133: 0.4634042025 | AB133: 0.7101536165 | AC133: 146.1496818 | AD133: -0.1377045787 | AE133: 0.3750539152 | AF133: 0.587887108 | AG133: 0.7902700841
A134: Misin02G111700 | B134: uncharacterized tRNA/rRNA methyltransferase YsgA; uncharacterized trna rrna methyltransferase | C134: P:RNA methylation; F:RNA binding; P:RNA processing; F:RNA methyltransferase activity; C:plastid | D134: 292.6262914 | E134: 1.343335233 | F134: 0.2919358628 | G134: 6.59E-07 | H134: 2.96E-05 | I134: 292.6262914 | J134: 1.570905812 | K134: 0.2323476242 | L134: 7.40E-13 | M134: 3.10E-10 | N134: 292.6262914 | O134: 1.475045647 | P134: 0.2307893847 | Q134: 2.87E-12 | R134: 8.31E-10 | S134: 292.6262914 | T134: -0.08540211649 | U134: 0.2025433975 | V134: 0.6512267403 | W134: 0.7867448459 | X134: 292.6262914 | Y134: -0.7162401259 | Z134: 0.2242707617 | AA134: 5.45E-05 | AB134: 0.002277940858 | AC134: 292.6262914 | AD134: -1.187157196 | AE134: 0.2112128599 | AF134: 7.49E-10 | AG134: 1.00E-07
A135: Misin16G019000 | B135: 60S ribosomal protein L17; 60s ribosomal protein l17 | C135: F:structural constituent of ribosome; P:translation; C:large ribosomal subunit; P:ribosome biogenesis | D135: 99.96577533 | E135: 2.152321485 | F135: 0.5158455139 | G135: 4.93E-07 | H135: 2.34E-05 | I135: 99.96577533 | J135: 2.756806468 | K135: 0.439351204 | L135: 8.10E-13 | M135: 3.37E-10 | N135: 99.96577533 | O135: 0.5577806644 | P135: 0.3624344227 | Q135: 0.02373510573 | R135: 0.1327053984 | S135: 99.96577533 | T135: 0.3926679532 | U135: 0.3160368781 | V135: 0.1453112605 | W135: 0.3030893027 | X135: 99.96577533 | Y135: -0.01710488191 | Z135: 0.2464899071 | AA135: 0.9207527747 | AB135: 0.9703376864 | AC135: 99.96577533 | AD135: -0.8036629545 | AE135: 0.3562894736 | AF135: 0.003014242788 | AG135: 0.02870183476
A136: Misin03G058000 | B136: ---NA--- | C136: 0 | D136: 297.2080071 | E136: 6.070937975 | F136: 2.106094259 | G136: 8.02E-06 | H136: 0.0002218882081 | I136: 297.2080071 | J136: 4.43780528 | K136: 0.6481874346 | L136: 9.28E-13 | M136: 3.82E-10 | N136: 297.2080071 | O136: 6.713292533 | P136: 0.6787405188 | Q136: 3.15E-24 | R136: 4.11E-21 | S136: 297.2080071 | T136: 0.3058708049 | U136: 0.4324550147 | V136: 0.3529540877 | W136: 0.5391774952 | X136: 297.2080071 | Y136: -0.3104045786 | Z136: 0.3819943691 | AA136: 0.1407387962 | AB136: 0.387051939 | AC136: 297.2080071 | AD136: -0.1513525827 | AE136: 0.3716555841 | AF136: 0.5504189698 | AG136: 0.7639259569
A137: Misin12G076400 | B137: COP9 signalosome complex subunit 8; cop9 signalosome complex subunit 8 | C137: P:protein deneddylation; F:metalloendopeptidase activity; C:cytoplasm; P:protein targeting to mitochondrion; C:COP9 signalosome; P:photomorphogenesis; P:response to jasmonic acid; P:COP9 signalosome assembly | D137: 141.9566105 | E137: 5.80800557 | F137: 0.7631710704 | G137: 1.99E-15 | H137: 1.84E-12 | I137: 141.9566105 | J137: 7.057913835 | K137: 1.024291773 | L137: 9.83E-13 | M137: 4.02E-10 | N137: 141.9566105 | O137: 7.442340192 | P137: 1.417084599 | Q137: 5.20E-09 | R137: 6.36E-07 | S137: 141.9566105 | T137: -0.3854073734 | U137: 0.2387541479 | V137: 0.07518000684 | W137: 0.1959790772 | X137: 141.9566105 | Y137: -0.3719820423 | Z137: 0.2333328518 | AA137: 0.0319755228 | AB137: 0.1763955566 | AC137: 141.9566105 | AD137: -0.8443371347 | AE137: 0.2789362625 | AF137: 0.000280151503 | AG137: 0.005019903209
A138: Misin05G288600 | B138: WD repeat-containing protein 13; wd repeat-containing protein 13 | C138: C:plastid | D138: 152.0622719 | E138: 5.283792418 | F138: 1.634447277 | G138: 8.05E-06 | H138: 0.0002221657349 | I138: 152.0622719 | J138: 4.833811718 | K138: 0.7028692742 | L138: 1.19E-12 | M138: 4.85E-10 | N138: 152.0622719 | O138: 5.303996756 | P138: 0.65346344 | Q138: 8.82E-17 | R138: 5.82E-14 | S138: 152.0622719 | T138: 0.1720094482 | U138: 0.4262112967 | V138: 0.5974685381 | W138: 0.7475583728 | X138: 152.0622719 | Y138: -0.1710572986 | Z138: 0.3391711993 | AA138: 0.374390586 | AB138: 0.6382368987 | AC138: 152.0622719 | AD138: 0.258306224 | AE138: 0.3925871679 | AF138: 0.3245834935 | AG138: 0.5741221531
A139: Misin01G312200 | B139: probable esterase D14L; probable esterase d14l | C139: F:hydrolase activity | D139: 523.4786484 | E139: 6.762598221 | F139: 1.382774841 | G139: 1.28E-08 | H139: 1.13E-06 | I139: 523.4786484 | J139: 8.781467501 | K139: 1.305448329 | L139: 1.25E-12 | M139: 5.02E-10 | N139: 523.4786484 | O139: 10.98295564 | P139: 1.465555063 | Q139: 8.14E-17 | R139: 5.50E-14 | S139: 523.4786484 | T139: -1.530855747 | U139: 0.3025811878 | V139: 2.06E-08 | W139: 1.84E-06 | X139: 523.4786484 | Y139: -0.2076486063 | Z139: 0.2371026355 | AA139: 0.2271107429 | AB139: 0.4967502675 | AC139: 523.4786484 | AD139: -0.2449570312 | AE139: 0.2568473457 | AF139: 0.2363184424 | AG139: 0.4799188849
A140: MisinT058500 | B140: transformation/transcription domain-associated protein-like; transcription-associated protein 1-like | C140: C:histone acetyltransferase complex; P:DNA repair; F:kinase activity; P:phosphorylation; P:histone acetylation | D140: 1462.415684 | E140: 1.049091119 | F140: 0.3706193574 | G140: 0.001249372191 | H140: 0.01095757208 | I140: 1462.415684 | J140: 1.988337822 | K140: 0.3076096659 | L140: 1.41E-12 | M140: 5.64E-10 | N140: 1462.415684 | O140: 0.4737431689 | P140: 0.2812374125 | Q140: 0.02375095429 | R140: 0.1327161773 | S140: 1462.415684 | T140: -0.6870505676 | U140: 0.2827563831 | V140: 0.005605526511 | W140: 0.0347453696 | X140: 1462.415684 | Y140: -0.7882007132 | Z140: 0.3221965498 | AA140: 0.000549573144 | AB140: 0.01356609909 | AC140: 1462.415684 | AD140: -0.8418352773 | AE140: 0.2953127385 | AF140: 0.000494528969 | AG140: 0.007779988002
A141: Misin07G402000 | B141: probable LRR receptor-like serine/threonine-protein kinase At3g47570; receptor-like protein kinase at3g47110 | C141: F:nucleotide binding; F:protein kinase activity; C:mitochondrion; C:membrane; P:phosphorylation | D141: 235.1351309 | E141: 4.558251945 | F141: 0.873809584 | G141: 6.49E-09 | H141: 6.35E-07 | I141: 235.1351309 | J141: 4.461728169 | K141: 0.6575287718 | L141: 1.43E-12 | M141: 5.68E-10 | N141: 235.1351309 | O141: 2.250387481 | P141: 0.5243558314 | Q141: 6.30E-08 | R141: 5.48E-06 | S141: 235.1351309 | T141: 2.217147658 | U141: 0.5458635914 | V141: 4.12E-07 | W141: 2.32E-05 | X141: 235.1351309 | Y141: -0.1792728027 | Z141: 0.3099386498 | AA141: 0.3423236476 | AB141: 0.6099784822 | AC141: 235.1351309 | AD141: -0.5543124712 | AE141: 0.3954773978 | AF141: 0.04431461013 | AG141: 0.1745366759
A142: Misin01G251700 | B142: Gamma-glutamyltranspeptidase 1; gamma-glutamyltranspeptidase 1 | C142: F:obsolete gamma-glutamyltransferase activity; C:mitochondrion; P:leukotriene metabolic process; P:prostaglandin metabolic process; P:glutathione metabolic process; P:taurine metabolic process | D142: 268.796353 | E142: 3.768754782 | F142: 0.6470494855 | G142: 1.03E-10 | H142: 1.96E-08 | I142: 268.796353 | J142: 3.279459796 | K142: 0.519953877 | L142: 1.59E-12 | M142: 6.24E-10 | N142: 268.796353 | O142: 4.10746607 | P142: 0.5619726276 | Q142: 4.60E-14 | R142: 1.87E-11 | S142: 268.796353 | T142: -0.623532083 | U142: 0.3877852905 | V142: 0.04529257633 | W142: 0.1405833706 | X142: 268.796353 | Y142: -1.093625796 | Z142: 0.4829764136 | AA142: 0.0005601992501 | AB142: 0.01372484322 | AC142: 268.796353 | AD142: -1.026952997 | AE142: 0.4412296741 | AF142: 0.001228707137 | AG142: 0.0151508318
A143: Misin05G191300 | B143: Heterogeneous nuclear ribonucleoprotein 1; heterogeneous nuclear ribonucleoprotein 1 | C143: F:nucleotide binding; F:nucleic acid binding; C:viral nucleocapsid; C:ribonucleoprotein complex | D143: 508.8193883 | E143: 1.759639333 | F143: 0.5034855807 | G143: 2.43E-05 | H143: 0.000532138216 | I143: 508.8193883 | J143: 2.650051352 | K143: 0.4292086238 | L143: 1.59E-12 | M143: 6.24E-10 | N143: 508.8193883 | O143: 2.789158381 | P143: 0.4188122912 | Q143: 2.53E-13 | R143: 8.92E-11 | S143: 508.8193883 | T143: -0.5168425782 | U143: 0.3412387926 | V143: 0.06972427842 | W143: 0.1862995475 | X143: 508.8193883 | Y143: -0.4869300937 | Z143: 0.3479730486 | AA143: 0.02504313244 | AB143: 0.1536935964 | AC143: 508.8193883 | AD143: -0.5693948056 | AE143: 0.3472767164 | AF143: 0.02698656736 | AG143: 0.1272739346
A144: Misin12G075800 | B144: ubiquitin-like-specific protease ESD4 isoform X1 | C144: F:catalytic activity; P:metabolic process | D144: 410.7727987 | E144: 6.941857005 | F144: 2.039187306 | G144: 1.06E-06 | H144: 4.34E-05 | I144: 410.7727987 | J144: 7.990505882 | K144: 1.182869596 | L144: 1.61E-12 | M144: 6.25E-10 | N144: 410.7727987 | O144: 9.072566148 | P144: 1.489129401 | Q144: 1.02E-11 | R144: 2.60E-09 | S144: 410.7727987 | T144: 0.2769837862 | U144: 0.4832397599 | V144: 0.4247471475 | W144: 0.6053123476 | X144: 410.7727987 | Y144: -0.3419761183 | Z144: 0.445810223 | AA144: 0.1249638295 | AB144: 0.3634106722 | AC144: 410.7727987 | AD144: -0.3077443367 | AE144: 0.4473244391 | AF144: 0.2660132556 | AG144: 0.5134159276
A145: MisinT408400 | B145: predicted protein | C145: 0 | D145: 440.2938545 | E145: 1.001461077 | F145: 0.2505800472 | G145: 1.89E-05 | H145: 0.000435109696 | I145: 440.2938545 | J145: 1.387170928 | K145: 0.2079341991 | L145: 1.65E-12 | M145: 6.36E-10 | N145: 440.2938545 | O145: 1.410375508 | P145: 0.210147245 | Q145: 4.34E-13 | R145: 1.44E-10 | S145: 440.2938545 | T145: -0.9274561872 | U145: 0.1890891514 | V145: 1.75E-07 | W145: 1.14E-05 | X145: 440.2938545 | Y145: -0.5314602051 | Z145: 0.1939091904 | AA145: 0.0006728660509 | AB145: 0.01542862912 | AC145: 440.2938545 | AD145: -1.273922171 | AE145: 0.1944415989 | AF145: 1.70E-12 | AG145: 4.43E-10
A146: Misin06G051300 | B146: ---NA--- | C146: 0 | D146: 178.7988773 | E146: 2.499757361 | F146: 0.687866447 | G146: 2.47E-06 | H146: 8.77E-05 | I146: 178.7988773 | J146: 3.405768538 | K146: 0.5370296264 | L146: 1.81E-12 | M146: 6.94E-10 | N146: 178.7988773 | O146: 3.73889277 | P146: 0.5083664612 | Q146: 2.22E-14 | R146: 9.97E-12 | S146: 178.7988773 | T146: -0.4896982715 | U146: 0.3828489956 | V146: 0.1116418179 | W146: 0.2544499619 | X146: 178.7988773 | Y146: -0.2776268297 | Z146: 0.3250912608 | AA146: 0.1603237829 | AB146: 0.4145941758 | AC146: 178.7988773 | AD146: -0.1895317836 | AE146: 0.3338690549 | AF146: 0.4332531827 | AG146: 0.673228484
A147: MisinT215500 | B147: putative 4-hydroxy-4-methyl-2-oxoglutarate aldolase 2 | C147: P:pyruvate metabolic process; P:arginine metabolic process; P:proline metabolic process; F:methyltransferase activity; F:ribonuclease inhibitor activity; F:oxaloacetate decarboxylase activity; P:benzoate metabolic process; P:methylation; P:negative regulation of catalytic activity; F:metal ion binding; F:4-hydroxy-4-methyl-2-oxoglutarate aldolase activity; P:regulation of RNA metabolic process | D147: 292.6767256 | E147: 7.906540959 | F147: 1.46335455 | G147: 1.94E-10 | H147: 3.48E-08 | I147: 292.6767256 | J147: 3.535991792 | K147: 0.5528374278 | L147: 1.88E-12 | M147: 7.17E-10 | N147: 292.6767256 | O147: 2.662575445 | P147: 1.568798791 | Q147: 0.0004873283627 | R147: 0.008446171577 | S147: 292.6767256 | T147: 1.050960082 | U147: 0.4698657081 | V147: 0.003577664942 | W147: 0.02558636199 | X147: 292.6767256 | Y147: -0.3762756344 | Z147: 0.3857225703 | AA147: 0.08380865566 | AB147: 0.2945905104 | AC147: 292.6767256 | AD147: -0.5649927318 | AE147: 0.4689586237 | AF147: 0.05806368381 | AG147: 0.2068670885
A148: Misin16G243200 | B148: 3-ketoacyl-CoA synthase 11; 3-ketoacyl- synthase 11 | C148: P:fatty acid biosynthetic process; C:integral component of membrane; F:transferase activity, transferring acyl groups other than amino-acyl groups | D148: 373.7990951 | E148: -3.751379938 | F148: 1.353851716 | G148: 4.07E-05 | H148: 0.0008028446121 | I148: 373.7990951 | J148: 7.023231368 | K148: 1.033320852 | L148: 1.91E-12 | M148: 7.22E-10 | N148: 373.7990951 | O148: 5.448681873 | P148: 0.9735992647 | Q148: 2.71E-09 | R148: 3.76E-07 | S148: 373.7990951 | T148: -0.366552937 | U148: 0.6110999799 | V148: 0.3287863811 | W148: 0.5157973952 | X148: 373.7990951 | Y148: 2.131705975 | Z148: 1.202739472 | AA148: 0.0003300902485 | AB148: 0.009350410637 | AC148: 373.7990951 | AD148: 1.283473855 | AE148: 0.953770923 | AF148: 0.005114729361 | AG148: 0.04190178151
A149: Misin19G139500 | B149: paired amphipathic helix protein Sin3-like 4; paired amphipathic helix protein sin3-like 4 | C149: C:histone deacetylase complex; P:negative regulation of transcription by RNA polymerase II; C:chromatin; F:transcription corepressor activity; F:histone deacetylase activity; C:integral component of membrane; P:histone deacetylation | D149: 164.6070009 | E149: 3.135031231 | F149: 0.5540689187 | G149: 8.27E-11 | H149: 1.62E-08 | I149: 164.6070009 | J149: 2.503797233 | K149: 0.4080759948 | L149: 2.41E-12 | M149: 9.06E-10 | N149: 164.6070009 | O149: 1.968629408 | P149: 0.4267479825 | Q149: 1.67E-08 | R149: 1.73E-06 | S149: 164.6070009 | T149: -0.03911808002 | U149: 0.2996682501 | V149: 0.8802690823 | W149: 0.9343464066 | X149: 164.6070009 | Y149: -0.3224649313 | Z149: 0.2817088367 | AA149: 0.08840461364 | AB149: 0.3032128842 | AC149: 164.6070009 | AD149: -0.6877897592 | AE149: 0.3338665107 | AF149: 0.007185544071 | AG149: 0.05306138765
A150: Misin03G038500 | B150: ribosome quality control complex subunit 2 | C150: 0 | D150: 237.7231936 | E150: 7.481696343 | F150: 1.914894492 | G150: 1.52E-07 | H150: 8.88E-06 | I150: 237.7231936 | J150: 7.281581805 | K150: 1.079705545 | L150: 2.45E-12 | M150: 9.14E-10 | N150: 237.7231936 | O150: 6.233429631 | P150: 1.405819319 | Q150: 4.11E-07 | R150: 2.67E-05 | S150: 237.7231936 | T150: -1.242239105 | U150: 0.4130888166 | V150: 0.0002327115239 | W150: 0.003621329514 | X150: 237.7231936 | Y150: -0.902160154 | Z150: 0.4606771742 | AA150: 0.001745270239 | AB150: 0.02968643183 | AC150: 237.7231936 | AD150: -1.26958622 | AE150: 0.450634 | AF150: 0.0001532373146 | AG150: 0.003157352971
A151: Misin14G064200 | B151: probable thiamine biosynthetic bifunctional enzyme, chloroplastic; probable thiamine biosynthetic bifunctional chloroplastic | C151: F:nucleotide binding; F:thiamine-phosphate diphosphorylase activity; F:hydroxymethylpyrimidine kinase activity; F:phosphomethylpyrimidine kinase activity; P:thiamine biosynthetic process; C:chloroplast stroma; P:phosphorylation; F:ion binding | D151: 175.1645235 | E151: 5.663261334 | F151: 1.012933169 | G151: 1.11E-09 | H151: 1.46E-07 | I151: 175.1645235 | J151: 6.866988038 | K151: 1.017342518 | L151: 2.80E-12 | M151: 1.04E-09 | N151: 175.1645235 | O151: 7.744075583 | P151: 1.340922232 | Q151: 2.24E-10 | R151: 4.08E-08 | S151: 175.1645235 | T151: -1.121378607 | U151: 0.229184946 | V151: 1.16E-07 | W151: 8.07E-06 | X151: 175.1645235 | Y151: -0.3995981117 | Z151: 0.2161942729 | AA151: 0.01623990024 | AB151: 0.1205357484 | AC151: 175.1645235 | AD151: -0.8901438913 | AE151: 0.2265125852 | AF151: 8.75E-06 | AG151: 0.0003218381732
A152: Misin16G082200 | B152: ---NA--- | C152: 0 | D152: 172.7866234 | E152: 7.004130634 | F152: 1.91697324 | G152: 5.74E-07 | H152: 2.65E-05 | I152: 172.7866234 | J152: 9.174001865 | K152: 1.3995019 | L152: 3.07E-12 | M152: 1.13E-09 | N152: 172.7866234 | O152: 6.512167458 | P152: 1.370119682 | Q152: 1.03E-07 | R152: 8.38E-06 | S152: 172.7866234 | T152: -0.6927794158 | U152: 0.3130115481 | V152: 0.009799570417 | W152: 0.05095237566 | X152: 172.7866234 | Y152: -0.6210723265 | Z152: 0.3360487322 | AA152: 0.00517746985 | AB152: 0.0603874324 | AC152: 172.7866234 | AD152: -1.079314881 | AE152: 0.3491683383 | AF152: 0.0001080898783 | AG152: 0.002429747824
A153: Misin06G114300 | B153: PREDICTED: uncharacterized protein At1g04910-like isoform X2 | C153: C:endosome; C:Golgi apparatus; C:trans-Golgi network; C:membrane; C:integral component of membrane | D153: 423.324428 | E153: 1.49954907 | F153: 0.6392479876 | G153: 0.001726927362 | H153: 0.01391255694 | I153: 423.324428 | J153: 3.550850064 | K153: 0.5616598689 | L153: 3.12E-12 | M153: 1.14E-09 | N153: 423.324428 | O153: 2.919418459 | P153: 0.5690700885 | Q153: 2.54E-09 | R153: 3.57E-07 | S153: 423.324428 | T153: -0.1009907064 | U153: 0.3998301399 | V153: 0.7479600312 | W153: 0.8534644427 | X153: 423.324428 | Y153: -0.1680022064 | Z153: 0.3244921538 | AA153: 0.377566343 | AB153: 0.6408944435 | AC153: 423.324428 | AD153: -0.167027718 | AE153: 0.3633365018 | AF153: 0.5064032944 | AG153: 0.7322696476
A154: Misin16G136300 | B154: predicted protein; uncharacterized protein loc101758353 | C154: C:cytosol; P:purine nucleobase metabolic process; P:purine nucleoside catabolic process; P:nicotinamide metabolic process; F:purine nucleosidase activity; P:nicotinate nucleotide metabolic process | D154: 93.29747769 | E154: 2.500644472 | F154: 0.6266435166 | G154: 5.27E-07 | H154: 2.49E-05 | I154: 93.29747769 | J154: 3.179112189 | K154: 0.5164875265 | L154: 3.21E-12 | M154: 1.16E-09 | N154: 93.29747769 | O154: 2.701367713 | P154: 0.5259681683 | Q154: 1.58E-09 | R154: 2.34E-07 | S154: 93.29747769 | T154: -0.8653449519 | U154: 0.3457383005 | V154: 0.002871414263 | W154: 0.02195159472 | X154: 93.29747769 | Y154: -0.34982608 | Z154: 0.3008557404 | AA154: 0.07428396905 | AB154: 0.2762493117 | AC154: 93.29747769 | AD154: -0.9286809776 | AE154: 0.3665931677 | AF154: 0.0009538911069 | AG154: 0.01260282279
A155: Misin16G237700 | B155: ---NA--- | C155: 0 | D155: 85.10829968 | E155: 2.89689631 | F155: 0.746355383 | G155: 6.33E-07 | H155: 2.86E-05 | I155: 85.10829968 | J155: 3.728192688 | K155: 0.5826904606 | L155: 3.23E-12 | M155: 1.16E-09 | N155: 85.10829968 | O155: 5.997709318 | P155: 1.033557997 | Q155: 6.82E-10 | R155: 1.09E-07 | S155: 85.10829968 | T155: -1.12463469 | U155: 0.3195070878 | V155: 5.10E-05 | W155: 0.001131621129 | X155: 85.10829968 | Y155: -1.301428051 | Z155: 0.33222463 | AA155: 2.61E-06 | AB155: 0.0001736462243 | AC155: 85.10829968 | AD155: -0.9825239956 | AE155: 0.3168808061 | AF155: 0.0001411707709 | AG155: 0.002967602207
A156: Misin17G144200 | B156: MLO-like protein 1; mlo-like protein 1 | C156: F:calmodulin binding; C:plasma membrane; P:defense response; P:response to biotic stimulus; C:integral component of membrane | D156: 4236.646299 | E156: 1.427323827 | F156: 0.8340730802 | G156: 0.008441069544 | H156: 0.04409110982 | I156: 4236.646299 | J156: 4.742878205 | K156: 0.7064368808 | L156: 3.21E-12 | M156: 1.16E-09 | N156: 4236.646299 | O156: 3.089751289 | P156: 0.7931193985 | Q156: 7.36E-07 | R156: 4.39E-05 | S156: 4236.646299 | T156: -0.1744735328 | U156: 0.4951356437 | V156: 0.616925799 | W156: 0.7616818997 | X156: 4236.646299 | Y156: -0.2002959648 | Z156: 0.4014800353 | AA156: 0.3198256557 | AB156: 0.5893488278 | AC156: 4236.646299 | AD156: -0.2777681073 | AE156: 0.4596258805 | AF156: 0.3156421692 | AG156: 0.5649295827
A157: Misin16G113000 | B157: retrotransposon protein | C157: C:membrane; C:integral component of membrane | D157: 418.1051649 | E157: 7.165216328 | F157: 2.061264262 | G157: 6.64E-07 | H157: 2.97E-05 | I157: 418.1051649 | J157: 9.817035508 | K157: 1.516520807 | L157: 3.31E-12 | M157: 1.17E-09 | N157: 418.1051649 | O157: 9.760609321 | P157: 1.58256878 | Q157: 3.23E-12 | R157: 9.26E-10 | S157: 418.1051649 | T157: -0.4423941718 | U157: 0.5417864472 | V157: 0.2283703577 | W157: 0.4069916247 | X157: 418.1051649 | Y157: -0.3021024519 | Z157: 0.460889673 | AA157: 0.1673007947 | AB157: 0.4232376673 | AC157: 418.1051649 | AD157: -0.3417885874 | AE157: 0.4912514877 | AF157: 0.2315078273 | AG157: 0.4740285676
A158: Misin10G014100 | B158: ---NA--- | C158: 0 | D158: 112.8049514 | E158: 2.966205166 | F158: 0.8935918806 | G158: 6.33E-06 | H158: 0.000184258251 | I158: 112.8049514 | J158: 5.514343149 | K158: 0.8148729018 | L158: 3.29E-12 | M158: 1.17E-09 | N158: 112.8049514 | O158: 3.010164348 | P158: 0.6298573761 | Q158: 1.65E-08 | R158: 1.72E-06 | S158: 112.8049514 | T158: 0.339550155 | U158: 0.4259804305 | V158: 0.2989960498 | W158: 0.4847798314 | X158: 112.8049514 | Y158: -0.4219319494 | Z158: 0.4158428384 | AA158: 0.06395941902 | AB158: 0.2555548221 | AC158: 112.8049514 | AD158: -0.2241815253 | AE158: 0.3761134895 | AF158: 0.3822084235 | AG158: 0.629150757
A159: Misin02G255600 | B159: ATP-dependent Clp protease proteolytic subunit 4, chloroplastic; atp-dependent clp protease proteolytic subunit chloroplastic | C159: F:serine-type endopeptidase activity; P:proteolysis; C:thylakoid; C:chloroplastic endopeptidase Clp complex; P:chloroplast relocation; C:chloroplast envelope; P:thylakoid membrane organization; P:photosystem II assembly; P:isopentenyl diphosphate biosynthetic process, methylerythritol 4-phosphate pathway; P:ncRNA metabolic process; P:regulation of protein dephosphorylation; P:plastid transcription; P:positive regulation of transcription, DNA-templated; P:regulation of timing of transition from vegetative to reproductive phase | D159: 156.62178 | E159: 3.78300113 | F159: 0.6839519942 | G159: 5.24E-10 | H159: 7.87E-08 | I159: 156.62178 | J159: 3.223550148 | K159: 0.5228985196 | L159: 3.37E-12 | M159: 1.18E-09 | N159: 156.62178 | O159: 2.645071102 | P159: 0.5225692161 | Q159: 2.09E-09 | R159: 3.00E-07 | S159: 156.62178 | T159: -0.644067639 | U159: 0.3712210775 | V159: 0.0333798158 | W159: 0.1153907334 | X159: 156.62178 | Y159: -0.3693763605 | Z159: 0.3358664976 | AA159: 0.07334342717 | AB159: 0.2743090945 | AC159: 156.62178 | AD159: -1.106803328 | AE159: 0.4201409498 | AF159: 0.0004147001327 | AG159: 0.006790790349
A160: Misin02G071500 | B160: pentatricopeptide repeat-containing protein At3g22670, mitochondrial; pentatricopeptide repeat-containing protein mitochondrial | C160: F:RNA binding; F:RNA-directed DNA polymerase activity; C:mitochondrion; P:RNA-dependent DNA biosynthetic process; C:plastid | D160: 183.7063972 | E160: 1.58547513 | F160: 0.4411786746 | G160: 2.73E-05 | H160: 0.0005828359324 | I160: 183.7063972 | J160: 2.331196918 | K160: 0.3802597627 | L160: 3.68E-12 | M160: 1.29E-09 | N160: 183.7063972 | O160: 0.8814269301 | P160: 0.3537283034 | Q160: 0.0008696591723 | R160: 0.01295824513 | S160: 183.7063972 | T160: -0.6167862206 | U160: 0.3053560484 | V160: 0.01901073522 | W160: 0.07900436152 | X160: 183.7063972 | Y160: -0.3663871361 | Z160: 0.2803391947 | AA160: 0.0544984532 | AB160: 0.2344225604 | AC160: 183.7063972 | AD160: -0.4433414955 | AE160: 0.300583979 | AF160: 0.05622616228 | AG160: 0.2031115401
A161: Misin03G136800 | B161: replication protein A 70 kDa DNA-binding subunit B-like | C161: C:membrane; C:integral component of membrane | D161: 304.1229719 | E161: 6.415781457 | F161: 1.698557786 | G161: 8.67E-07 | H161: 3.69E-05 | I161: 304.1229719 | J161: 10.04037509 | K161: 1.562055603 | L161: 3.71E-12 | M161: 1.29E-09 | N161: 304.1229719 | O161: 1.722256618 | P161: 1.824592891 | Q161: 0.00493438463 | R161: 0.04554481733 | S161: 304.1229719 | T161: -0.251251366 | U161: 0.5640266653 | V161: 0.4908027206 | W161: 0.6633453529 | X161: 304.1229719 | Y161: -0.3073337981 | Z161: 0.5026701775 | AA161: 0.1657023913 | AB161: 0.421402142 | AC161: 304.1229719 | AD161: 0.04490581359 | AE161: 0.5052836505 | AF161: 0.8665487747 | AG161: 0.9515382773
A162: Misin07G223600 | B162: ---NA--- | C162: 0 | D162: 437.3762051 | E162: 7.628826071 | F162: 1.871987755 | G162: 7.52E-08 | H162: 4.90E-06 | I162: 437.3762051 | J162: 8.54635466 | K162: 1.299868139 | L162: 3.99E-12 | M162: 1.38E-09 | N162: 437.3762051 | O162: 7.709140203 | P162: 0.7583158711 | Q162: 8.34E-26 | R162: 1.17E-22 | S162: 437.3762051 | T162: -0.3974524095 | U162: 0.2387594908 | V162: 0.0664749154 | W162: 0.1802262147 | X162: 437.3762051 | Y162: -1.143362624 | Z162: 0.2673242299 | AA162: 5.32E-07 | AB162: 4.54E-05 | AC162: 437.3762051 | AD162: -1.21991228 | AE162: 0.2562469102 | AF162: 7.05E-08 | AG162: 5.50E-06
A163: Misin16G132100 | B163: ---NA--- | C163: 0 | D163: 301.878565 | E163: 6.134845761 | F163: 1.527541691 | G163: 5.73E-07 | H163: 2.65E-05 | I163: 301.878565 | J163: 9.443870088 | K163: 1.456045693 | L163: 4.02E-12 | M163: 1.38E-09 | N163: 301.878565 | O163: 9.930458677 | P163: 1.517767519 | Q163: 2.43E-13 | R163: 8.63E-11 | S163: 301.878565 | T163: 0.2381592906 | U163: 0.435918147 | V163: 0.4705505044 | W163: 0.6463685991 | X163: 301.878565 | Y163: -0.2330864976 | Z163: 0.3640381012 | AA163: 0.2457915335 | AB163: 0.5170652113 | AC163: 301.878565 | AD163: -0.359000785 | AE163: 0.4179309714 | AF163: 0.1886989518 | AG163: 0.4205014587
A164: Misin10G004700 | B164: predicted protein; uncharacterized protein loc101772398 | C164: F:ubiquitin-protein transferase activity; P:protein ubiquitination; C:SCF ubiquitin ligase complex; P:SCF-dependent proteasomal ubiquitin-dependent protein catabolic process | D164: 115.0795363 | E164: 5.330000896 | F164: 1.599763023 | G164: 6.17E-06 | H164: 0.0001809134807 | I164: 115.0795363 | J164: 5.211578635 | K164: 0.7759524432 | L164: 4.30E-12 | M164: 1.46E-09 | N164: 115.0795363 | O164: 7.608177226 | P164: 1.473110208 | Q164: 7.14E-09 | R164: 8.47E-07 | S164: 115.0795363 | T164: -0.658528203 | U164: 0.4380110087 | V164: 0.05033407208 | W164: 0.1505025816 | X164: 115.0795363 | Y164: -0.5014517615 | Z164: 0.434779016 | AA164: 0.03646456124 | AB164: 0.1893860002 | AC164: 115.0795363 | AD164: -1.064602959 | AE164: 0.5062022925 | AF164: 0.001931352111 | AG164: 0.02100590155
A165: Misin07G106000 | B165: predicted protein; heat shock factor protein 1 | C165: F:DNA binding; P:transcription, DNA-templated | D165: 2499.107928 | E165: -1.741491395 | F165: 0.9774196383 | G165: 0.003687594679 | H165: 0.02411840007 | I165: 2499.107928 | J165: 5.109040087 | K165: 0.7640648654 | L165: 4.99E-12 | M165: 1.69E-09 | N165: 2499.107928 | O165: 4.664665874 | P165: 0.7642353961 | Q165: 1.61E-10 | R165: 3.05E-08 | S165: 2499.107928 | T165: -2.346804644 | U165: 0.8526331649 | V165: 3.55E-05 | W165: 0.0008550867242 | X165: 2499.107928 | Y165: 4.344407766 | Z165: 0.8148368627 | AA165: 2.59E-09 | AB165: 4.56E-07 | AC165: 2499.107928 | AD165: 3.865930043 | AE165: 0.8396328906 | AF165: 6.03E-08 | AG165: 4.79E-06
A166: Misin11G182500 | B166: hypothetical protein SETIT_011344mg | C166: C:membrane; C:integral component of membrane | D166: 221.4685524 | E166: 6.448859316 | F166: 0.9408008656 | G166: 2.58E-13 | H166: 1.20E-10 | I166: 221.4685524 | J166: 3.736724215 | K166: 0.590375696 | L166: 5.05E-12 | M166: 1.70E-09 | N166: 221.4685524 | O166: -0.04689865834 | P166: 0.5078370327 | Q166: 0.8334396266 | R166: 0.9393404899 | S166: 221.4685524 | T166: 0.4792756202 | U166: 0.4356857359 | V166: 0.1496713133 | W166: 0.3090130281 | X166: 221.4685524 | Y166: -0.6374331928 | Z166: 0.4945466337 | AA166: 0.01705159558 | AB166: 0.1238993175 | AC166: 221.4685524 | AD166: -1.580756594 | AE166: 1.01432043 | AF166: 0.001886016156 | AG166: 0.02066364839
A167: Misin01G262700 | B167: plastidal glycolate/glycerate translocator 1, chloroplastic; plastidal glycolate glycerate translocator chloroplastic | C167: P:chloroplast organization; C:chloroplast inner membrane; P:photorespiration; P:thylakoid membrane organization; C:integral component of membrane; F:glycolate transmembrane transporter activity; P:divalent metal ion transport; P:glycolate transmembrane transport; F:glycerate transmembrane transporter activity; P:glycerate transmembrane transport | D167: 84.54391502 | E167: 3.472310616 | F167: 1.073320267 | G167: 8.93E-06 | H167: 0.0002418652457 | I167: 84.54391502 | J167: 4.112207898 | K167: 0.6347015537 | L167: 5.19E-12 | M167: 1.73E-09 | N167: 84.54391502 | O167: 4.345475325 | P167: 0.6884400544 | Q167: 4.10E-11 | R167: 8.86E-09 | S167: 84.54391502 | T167: 0.5418726613 | U167: 0.4398281364 | V167: 0.10613861 | W167: 0.2461436978 | X167: 84.54391502 | Y167: -0.2708061269 | Z167: 0.3434760523 | AA167: 0.1774287269 | AB167: 0.4367901805 | AC167: 84.54391502 | AD167: -0.4188888566 | AE167: 0.3933026482 | AF167: 0.119217012 | AG167: 0.3194778795
A168: MisinT504300 | B168: hypothetical protein SORBI_005G184000 | C168: 0 | D168: 250.8547993 | E168: 6.99675874 | F168: 2.004484066 | G168: 8.26E-07 | H168: 3.54E-05 | I168: 250.8547993 | J168: 9.429998383 | K168: 1.463724372 | L168: 5.39E-12 | M168: 1.79E-09 | N168: 250.8547993 | O168: 7.282490989 | P168: 1.144331173 | Q168: 8.68E-12 | R168: 2.27E-09 | S168: 250.8547993 | T168: -0.2903708557 | U168: 0.4505699642 | V168: 0.3876907156 | W168: 0.5719404381 | X168: 250.8547993 | Y168: -0.2805664291 | Z168: 0.3920990869 | AA168: 0.1797999097 | AB168: 0.4395708978 | AC168: 250.8547993 | AD168: -0.3767968547 | AE168: 0.4349610736 | AF168: 0.1755684744 | AG168: 0.4030589009
A169: MisinT220300 | B169: ---NA--- | C169: 0 | D169: 122.5070475 | E169: 6.114323658 | F169: 2.117251608 | G169: 7.55E-06 | H169: 0.0002119375595 | I169: 122.5070475 | J169: 6.501870916 | K169: 0.9753668789 | L169: 5.61E-12 | M169: 1.85E-09 | N169: 122.5070475 | O169: 7.863231382 | P169: 1.499232643 | Q169: 3.84E-09 | R169: 5.01E-07 | S169: 122.5070475 | T169: -0.4049164864 | U169: 0.4589786334 | V169: 0.2349289717 | W169: 0.414489268 | X169: 122.5070475 | Y169: -0.2540742785 | Z169: 0.3793542775 | AA169: 0.2147763032 | AB169: 0.4823669605 | AC169: 122.5070475 | AD169: -0.2468827563 | AE169: 0.4088534991 | AF169: 0.3529645475 | AG169: 0.601391884
A170: Misin04G264300 | B170: predicted protein; uncharacterized protein loc101754806 | C170: C:chloroplast stroma | D170: 154.0038047 | E170: 3.744403661 | F170: 0.9713674049 | G170: 1.03E-06 | H170: 4.27E-05 | I170: 154.0038047 | J170: 6.362626832 | K170: 0.9603995369 | L170: 7.69E-12 | M170: 2.51E-09 | N170: 154.0038047 | O170: 5.960887983 | P170: 0.9714093894 | Q170: 9.55E-11 | R170: 1.92E-08 | S170: 154.0038047 | T170: -0.9732475605 | U170: 0.4834521749 | V170: 0.007574985366 | W170: 0.04269827501 | X170: 154.0038047 | Y170: -0.8579633549 | Z170: 0.5423213674 | AA170: 0.004837345729 | AB170: 0.05801344618 | AC170: 154.0038047 | AD170: -1.067398104 | AE170: 0.5208683518 | AF170: 0.002177771074 | AG170: 0.02288128338
A171: Misin13G066500 | B171: ---NA--- | C171: 0 | D171: 160.849187 | E171: 6.709835766 | F171: 1.931140531 | G171: 1.26E-06 | H171: 5.05E-05 | I171: 160.849187 | J171: 8.941215428 | K171: 1.388662684 | L171: 7.67E-12 | M171: 2.51E-09 | N171: 160.849187 | O171: 8.834254939 | P171: 1.430759144 | Q171: 7.60E-12 | R171: 2.06E-09 | S171: 160.849187 | T171: -0.4209347414 | U171: 0.2561179681 | V171: 0.06639981039 | W171: 0.1801205742 | X171: 160.849187 | Y171: -0.2610209668 | Z171: 0.2265724677 | AA171: 0.1224165391 | AB171: 0.3593076347 | AC171: 160.849187 | AD171: -0.4967524293 | AE171: 0.2580959116 | AF171: 0.0183901153 | AG171: 0.09950888729
A172: Misin11G089100 | B172: predicted protein; uncharacterized protein loc102718642 isoform x2 | C172: P:metabolic process; C:plastid; P:cellular process; C:membrane; P:cellular macromolecule biosynthetic process; P:primary metabolic process; P:regulation of biological process; P:response to stimulus | D172: 357.6216433 | E172: 5.7560927 | F172: 2.139376953 | G172: 1.55E-05 | H172: 0.0003726319835 | I172: 357.6216433 | J172: 9.178380607 | K172: 1.436029729 | L172: 8.91E-12 | M172: 2.87E-09 | N172: 357.6216433 | O172: 11.00247447 | P172: 1.51402056 | Q172: 4.26E-16 | R172: 2.54E-13 | S172: 357.6216433 | T172: -0.7658874636 | U172: 0.4459636505 | V172: 0.02520688711 | W172: 0.0955550527 | X172: 357.6216433 | Y172: -0.06581872976 | Z172: 0.3011054483 | AA172: 0.7183976701 | AB172: 0.8733614708 | AC172: 357.6216433 | AD172: 0.1905888303 | AE172: 0.3561794025 | AF172: 0.4451757795 | AG172: 0.6826651318
A173: Misin05G087800 | B173: truncated transcription factor CAULIFLOWER D-like; truncated transcription factor cauliflower d-like | C173: F:DNA-binding transcription factor activity; F:binding; C:nucleus; C:transcription factor complex; C:mitochondrion; P:regulation of transcription, DNA-templated; P:regulation of transcription, DNA-templated | D173: 126.8412418 | E173: 0.1753670625 | F173: 0.4089436842 | G173: 0.6126678266 | H173: 0.7683364131 | I173: 126.8412418 | J173: 5.891391613 | K173: 0.8903261284 | L173: 8.87E-12 | M173: 2.87E-09 | N173: 126.8412418 | O173: 6.085812725 | P173: 0.6294732938 | Q173: 4.65E-23 | R173: 5.44E-20 | S173: 126.8412418 | T173: -0.2071790963 | U173: 0.322123171 | V173: 0.448761335 | W173: 0.6273892658 | X173: 126.8412418 | Y173: 0.1714560137 | Z173: 0.2703872138 | AA173: 0.3421259394 | AB173: 0.6098190986 | AC173: 126.8412418 | AD173: 0.1049710153 | AE173: 0.2811502328 | AF173: 0.6314090812 | AG173: 0.8175225911
A174: Misin02G272300 | B174: protein SRG1-like; protein srg1-like | C174: F:metal ion binding; F:dioxygenase activity; P:oxidation-reduction process | D174: 788.5430463 | E174: 0.8323795395 | F174: 0.5123320748 | G174: 0.04043281895 | H174: 0.1311111072 | I174: 788.5430463 | J174: 2.969262651 | K174: 0.5020265214 | L174: 9.66E-12 | M174: 3.10E-09 | N174: 788.5430463 | O174: 0.7500982375 | P174: 0.4320451224 | Q174: 0.008121469109 | R174: 0.06466391183 | S174: 788.5430463 | T174: -0.1768061173 | U174: 0.3664369245 | V174: 0.5533743777 | W174: 0.7143120274 | X174: 788.5430463 | Y174: -0.8018382755 | Z174: 0.4709072924 | AA174: 0.004203567071 | AB174: 0.05299323928 | AC174: 788.5430463 | AD174: -1.33221488 | AE174: 0.4667897074 | AF174: 0.000116719383 | AG174: 0.002572183339
A175: Misin18G281400 | B175: protease 2 | C175: F:serine-type endopeptidase activity; C:mitochondrion; P:proteolysis; F:serine-type exopeptidase activity | D175: 554.3902485 | E175: 1.775166616 | F175: 0.2301661534 | G175: 6.77E-16 | H175: 6.72E-13 | I175: 554.3902485 | J175: 1.14640678 | K175: 0.1809139447 | L175: 1.08E-11 | M175: 3.45E-09 | N175: 554.3902485 | O175: 0.06617157469 | P175: 0.1540958341 | Q175: 0.6124040422 | R175: 0.8269533565 | S175: 554.3902485 | T175: -0.348529894 | U175: 0.1634179956 | V175: 0.0251260265 | W175: 0.09536722176 | X175: 554.3902485 | Y175: -0.62789603 | Z175: 0.1762034449 | AA175: 2.02E-05 | AB175: 0.000996810413 | AC175: 554.3902485 | AD175: -0.7310413425 | AE175: 0.1759242027 | AF175: 5.46E-06 | AG175: 0.0002148750755
A176: Misin18G025900 | B176: hypothetical protein SETIT_008700mg | C176: 0 | D176: 444.9570352 | E176: 0.5168672129 | F176: 0.2774219788 | G176: 0.04219214321 | H176: 0.1350420855 | I176: 444.9570352 | J176: 1.50442408 | K176: 0.2363926545 | L176: 1.11E-11 | M176: 3.53E-09 | N176: 444.9570352 | O176: 2.178381447 | P176: 0.2448265148 | Q176: 1.42E-21 | R176: 1.42E-18 | S176: 444.9570352 | T176: -0.8943316688 | U176: 0.219769413 | V176: 9.85E-06 | W176: 0.0003086208515 | X176: 444.9570352 | Y176: -0.9029356102 | Z176: 0.2380082107 | AA176: 3.44E-06 | AB176: 0.0002211711266 | AC176: 444.9570352 | AD176: -1.012456437 | AE176: 0.2193929993 | AF176: 2.78E-07 | AG176: 1.80E-05
A177: Misin07G303600 | B177: protein canopy-1 | C177: C:membrane | D177: 130.6411579 | E177: 2.803464907 | F177: 0.9057449678 | G177: 1.57E-05 | H177: 0.0003770109455 | I177: 130.6411579 | J177: 5.120786006 | K177: 0.7805069242 | L177: 1.13E-11 | M177: 3.55E-09 | N177: 130.6411579 | O177: 5.451751365 | P177: 0.8055044081 | Q177: 2.07E-12 | R177: 6.20E-10 | S177: 130.6411579 | T177: -0.2282222069 | U177: 0.4188732126 | V177: 0.4799189727 | W177: 0.6543556609 | X177: 130.6411579 | Y177: -0.9206806311 | Z177: 0.5598046134 | AA177: 0.003617277793 | AB177: 0.04812794393 | AC177: 130.6411579 | AD177: -0.7027564308 | AE177: 0.4705775581 | AF177: 0.0224019141 | AG177: 0.1126321248
A178: Misin01G113300 | B178: 30S ribosomal protein S13, chloroplastic; 30s ribosomal protein chloroplastic | C178: F:RNA binding; F:structural constituent of ribosome; C:cytosol; P:translation; C:plastid; C:small ribosomal subunit; P:ribosome biogenesis | D178: 555.2612932 | E178: 5.218091131 | F178: 0.6879542898 | G178: 3.50E-15 | H178: 3.02E-12 | I178: 555.2612932 | J178: 3.023071135 | K178: 0.5159198053 | L178: 1.46E-11 | M178: 4.59E-09 | N178: 555.2612932 | O178: 3.585470336 | P178: 0.4697581992 | Q178: 2.25E-15 | R178: 1.20E-12 | S178: 555.2612932 | T178: 1.004753984 | U178: 0.4368947559 | V178: 0.003445542078 | W178: 0.02489718642 | X178: 555.2612932 | Y178: -0.055006082 | Z178: 0.2873850452 | AA178: 0.7603478694 | AB178: 0.8964781206 | AC178: 555.2612932 | AD178: -0.2323061856 | AE178: 0.3446375169 | AF178: 0.3460990895 | AG178: 0.5948585359
A179: Misin07G457400 | B179: coatomer subunit delta-3 | C179: C:Golgi membrane; C:cytosol; P:retrograde vesicle-mediated transport, Golgi to endoplasmic reticulum; C:plasmodesma; P:protein transport; C:COPI vesicle coat; P:protein catabolic process | D179: 70.25015746 | E179: 5.772796068 | F179: 2.109278193 | G179: 1.42E-05 | H179: 0.0003490229544 | I179: 70.25015746 | J179: 4.280322916 | K179: 0.6758504286 | L179: 1.76E-11 | M179: 5.48E-09 | N179: 70.25015746 | O179: 6.122157814 | P179: 1.439454442 | Q179: 7.98E-07 | R179: 4.71E-05 | S179: 70.25015746 | T179: -0.1199304344 | U179: 0.3555615439 | V179: 0.6818311733 | W179: 0.8079240066 | X179: 70.25015746 | Y179: -0.4708713766 | Z179: 0.3751401253 | AA179: 0.03505835014 | AB179: 0.1852921148 | AC179: 70.25015746 | AD179: -0.404780734 | AE179: 0.3590970082 | AF179: 0.1145403364 | AG179: 0.3116477353
A180: Misin03G005600 | B180: proline--tRNA ligase, chloroplastic/mitochondrial; proline--trna chloroplastic mitochondrial | C180: F:RNA binding; F:proline-tRNA ligase activity; F:ATP binding; C:mitochondrion; P:prolyl-tRNA aminoacylation; P:arginine metabolic process; P:proline metabolic process; C:chloroplast stroma | D180: 892.2849506 | E180: 2.931644966 | F180: 0.4163500574 | G180: 7.28E-15 | H180: 5.57E-12 | I180: 892.2849506 | J180: 1.859162614 | K180: 0.3032767887 | L180: 1.95E-11 | M180: 6.03E-09 | N180: 892.2849506 | O180: 2.193941564 | P180: 0.3134546818 | Q180: 7.03E-15 | R180: 3.49E-12 | S180: 892.2849506 | T180: -0.3443433739 | U180: 0.265302137 | V180: 0.1446321171 | W180: 0.3021786035 | X180: 892.2849506 | Y180: -0.4242218566 | Z180: 0.2650336493 | AA180: 0.0234255555 | AB180: 0.1484459134 | AC180: 892.2849506 | AD180: -0.844740488 | AE180: 0.2877999635 | AF180: 0.0003758872868 | AG180: 0.006287395908
A181: Misin08G081800 | B181: predicted protein; uncharacterized protein loc102705538 | C181: C:membrane | D181: 398.5184119 | E181: 4.99414984 | F181: 0.6943649403 | G181: 6.55E-14 | H181: 3.62E-11 | I181: 398.5184119 | J181: 3.909233644 | K181: 0.6327209615 | L181: 1.96E-11 | M181: 6.03E-09 | N181: 398.5184119 | O181: 1.55244824 | P181: 0.6256075573 | Q181: 0.0001389196035 | R181: 0.003215561686 | S181: 398.5184119 | T181: 0.2498174569 | U181: 0.4156376653 | V181: 0.43759517 | W181: 0.6171475746 | X181: 398.5184119 | Y181: 0.0999878019 | Z181: 0.3206032799 | AA181: 0.5911474544 | AB181: 0.7996407402 | AC181: 398.5184119 | AD181: -0.723654398 | AE181: 0.4781952321 | AF181: 0.0201014032 | AG181: 0.1052845721
A182: Misin06G119700 | B182: S-adenosylmethionine synthase 3; s-adenosylmethionine synthase 3 | C182: F:methionine adenosyltransferase activity; F:ATP binding; C:cytosol; P:methionine metabolic process; P:S-adenosylmethionine biosynthetic process; P:one-carbon metabolic process; F:metal ion binding | D182: 174.5790099 | E182: 6.419339346 | F182: 1.46702565 | G182: 1.39E-07 | H182: 8.20E-06 | I182: 174.5790099 | J182: 8.998864165 | K182: 1.435787677 | L182: 2.21E-11 | M182: 6.78E-09 | N182: 174.5790099 | O182: 9.012734168 | P182: 1.483911883 | Q182: 1.21E-11 | R182: 3.04E-09 | S182: 174.5790099 | T182: 0.4046416387 | U182: 0.40914272 | V182: 0.2061466391 | W182: 0.3809220801 | X182: 174.5790099 | Y182: 0.07613026281 | Z182: 0.3030686625 | AA182: 0.6775333461 | AB182: 0.8515234486 | AC182: 174.5790099 | AD182: -0.1069150401 | AE182: 0.3500582799 | AF182: 0.6642151479 | AG182: 0.8376997205
